Workbook

Sheet constant L
B1: FRICTION | C1: =TRUE -> TRUE
A2: =1/2*(INERTIA+mazalazo*($C2^2+$D2^2))*$I2^2 -> 0 | S2: vxrelative = vx-omega*y | V2: L-I*omega+mass*x*vy-mass*y*vx
B3: MASS | E3: 3 | S3: vyrelative=vy-omega*x | V3: domega/dt=mass*(x*dvy/dt-ydvx/et)/inertia
B5: OMEGA | E5: 4 | F5: =-omega0 -> -4
B7: INERTIA | E7: 19 | Y7: ;+Yom∙dω/dt²-Xom∙dω/dt
B9: V0 | C9: =-exactome*1 -> 4
AM10: TEL_AKTINA | AN10: 6.312978185 | AO10: -0.3880336168 | AP10: TEL_OMEGA
B11: L0 | C11: =(INERTIA+mazalazo*1)*exactome-mazalazo*1*v0 -> -100
B13: friction | E13: 3
K14: 37
K15: MOVE OBJECT
AA16: =ISERR(xtomi11) -> FALSE
U18: =AX -> -1.863477921 | V18: =AY -> -2.351052964 | X18: vom^2 | Y18: =VXOM^2+VYOM^2 -> 19.16705224 | AA18: =AXOM^2+AYOM^2 -> 21.69326064
K19: Deltax = 6 * Pi / Abs(omega0) / ARFOR | U19: ACCELERATION | X19: vom^2/R | Y19: =Y18/aktistomon -> 4.774519064 | Z19: R =Vom^2/Aom | AA19: =IF(AA18<>0,(VXOM^2+VYOM^2)/SQRT(AXOM^2+AYOM^2),10000000) -> 4.115218595
J20: DT | K20: =6*PI()/ABS(exactome)/250 -> 0.01884955592 | U20: =X -> 2.628049659 | V20: =Y -> 0.2961089919 | AA20: =IF(AA19<aktistomon/10,Y19*1/SQRT(1+klisia11^2),AXOM/10) -> 0.0483906935 | AB20: =IF(AA19<aktistomon/10,Y19*klisia11/SQRT(1+klisia11^2),AYOM/10) -> -0.4632396218
M21: OMEGA=(Ltotal+mass*(y*vx-x*vy))/Inertia | U21: =X+AX -> 0.7645717386 | V21: =Y+AY -> -2.054943972 | AA21: =AXOM -> 0.483906935 | AB21: =AYOM -> -4.632396218
U22: =-1/20*V18+18/20*U18+U20 -> 1.068472179 | V22: =1/20*U18+18/20*V18+V20 -> -1.913012572 | AA22: =IF(ISERR(xtomi11),0, SIGN(xtomi11-XOM)*ABS(AA20)) -> -0.0483906935 | AB22: =IF(ISERR(ytomi11),0,SIGN(ytomi11-YOM)*ABS(AB20)) -> -0.4632396218
U23: =1/20*V18+18/20*U18+U20 -> 0.8333668825 | V23: =-1/20*U18+18/20*V18+V20 -> -1.726664779 | Y23: =VXOM -> -4.373382293 | Z23: =VYOM -> 0.2014436706 | AA23: =AA22 -> -0.0483906935 | AB23: =AB22 -> -0.4632396218 | AH23: xmes11
M24: Ltotal =( Inertai+m*r^2) * omEGa - mass * y * vx + mass * x * Vy | U24: =U21 -> 0.7645717386 | V24: =V21 -> -2.054943972 | Y24: VELOCITY ROTATED | AA24: ACCELERATION ROTATED | AE24: =AE25-1 -> 35 | AF24: =VLOOKUP(AE24,B40:F290,4,FALSE) -> -1.613218942 | AG24: =VLOOKUP(AE24,B40:G290,5,FALSE) -> 1.946713668 | AH24: =(xa_1+xa_2)/2 -> -1.735476637 | AI24: =(ya_1+ya_2)/2 -> 1.956672069
M25: 0=(inertia+mass*(x^2+y^2)*domega/dt-mass*(dy/dt*x-dx/dt*y)+2*omega*m*(x*dx/dt+y*dy/dt) | Y25: =XOM -> -1.776216253 | Z25: =YOM -> 1.959433941 | AA25: =XOM -> -1.776216253 | AB25: =YOM -> 1.959433941 | AE25: =AE26-1 -> 36 | AF25: =VLOOKUP(AE25,B41:F291,4,FALSE) -> -1.694737021 | AG25: =VLOOKUP(AE25,B41:G291,5,FALSE) -> 1.953910198 | AH25: =(xa_2+xa_3)/2 -> -1.653977982 | AI25: =(ya_2+ya_3)/2 -> 1.950311933
N26: =FIXED(AKT_KAMP,1,) -> 5,0 | U26: =X -> 2.628049659 | V26: =Y -> 0.2961089919 | W26: CURRENT XY | Y26: =XOM+VXOM -> -6.149598547 | Z26: =YOM+VYOM -> 2.160877612 | AA26: =XOM+AA23 -> -1.824606947 | AB26: =YOM+AB23 -> 1.496194319 | AE26: =E33 -> 37 | AF26: =VLOOKUP(AE26,B42:F292,4,FALSE) -> -1.776216253 | AG26: =VLOOKUP(AE26,B42:G292,5,FALSE) -> 1.959433941 | AH26: klisia11 | AI26: =-(xa_2-xa_1)/(ya_2-ya_1) -> 14.75072741
E27: =CELL("row",E33) -> 33 | O27: =ABS(FIXED(O28,1)) -> 0.5 | P27: =ABS(FIXED(P28,1)) -> 4.8 | Q27: 6.4 | R27: 1 | U27: =X -> 2.628049659 | V27: =V26 -> 0.2961089919 | Y27: =-1/20*Z23+18/20*Y23+Y25 -> -5.722332501 | Z27: =1/20*Y23+18/20*Z23+Z25 -> 1.92206413 | AA27: =-1/20*AB23+18/20*AA23+AA25 -> -1.796605896 | AB27: =1/20*AA23+18/20*AB23+AB25 -> 1.540098747 | AH27: klisia22 | AI27: =-(xa_3-xa_2)/(ya_3-ya_2) -> 11.32741577
M28: =MAX(N28:R28) -> 6.374547051 | N28: =AKT_KAMP -> 5.008696721 | O28: =ABS(O30) -> 0.5157522972 | P28: =ABS(P30) -> 4.798473536 | Q28: 6.374547051 | R28: 1 | S28: =FIXED(M28,2,FALSE) -> 6,37 | U28: =VX -> 3.324792416 | V28: =VY -> -1.94162054 | W28: VELOCITY | Y28: =1/20*Z23+18/20*Y23+Y25 -> -5.702188134 | Z28: =-1/20*Y23+18/20*Z23+Z25 -> 2.359402359 | AA28: =1/20*AB23+18/20*AA23+AA25 -> -1.842929859 | AB28: =-1/20*AA23+18/20*AB23+AB25 -> 1.544937816 | AF28: xtomi11 | AG28: =((ymess11-ymess22)+klisia22*xmess22-klisia11*xmess11)/(klisia22-klisia11) -> -2.007005902 | AH28: ytomi11 | AI28: =ymess11+klisia11*(xtomi11-xmess11) -> -2.0485821
O29: minxlab | P29: maxlab | Q29: minylab | R29: maxylab | S29: =-S28 -> -6.37 | U29: VX | V29: VY | Y29: =Y26 -> -6.149598547 | Z29: =Z26 -> 2.160877612 | AA29: =AA26 -> -1.824606947 | AB29: =AB26 -> 1.496194319 | AF29: aktistomon | AG29: =IF(AH29,SQRT((xtomi11-xmess22)^2+(ytomi11-ymess22)^2),1000000) -> 4.014446686 | AH29: =NOT(AI29) -> TRUE | AI29: =AND(ABS(AF25-AF24)<0.0000000001,ABS(AF25-AF26)<0.0000000001) -> FALSE
O30: =MIN(C40:C290) -> -0.5157522972 | P30: =MAX(C40:C290) -> 4.798473536 | Q30: =MIN(D40:D290) -> -6.374547051 | R30: =MAX(D40:D290) -> 1 | U30: =X -> 2.628049659 | V30: =Y -> 0.2961089919
I31: exacome(kkk) = (Ltotal - mass * (ThesiY(kkk) * taxYx(kkk) - thesiX(kkk) * taxYy(kkk)) * epilogi - mass * Radius * omega0 * (1 - epilogi)) / Inertia 'ç ôéìÞ ôçò ù ìå áñ÷Þ äéáôÞñçóçò | O31: minxrot | P31: maxxrot | Q31: miniyro | R31: maxyrto | S31: =MAX(N33:R33) -> 6.1 | U31: =X+VX -> 5.952842076 | V31: =Y+VY -> -1.645511548
F32: X | G32: Y | H32: VX | I32: VY | J32: AX | K32: AY | O32: =MIN(E40:E290) -> -6.086357836 | P32: =MAX(E40:E290) -> 0 | Q32: =MIN(F40:F290) -> 1 | R32: =MAX(F40:F290) -> 1.966866096 | S32: =-S31 -> -6.1 | U32: =-1/20*V28+18/20*U28+U30 -> 5.717443861 | V32: =1/20*U28+18/20*V28+V30 -> -1.285109874 | BO32: L=I*omega+m*(xdy/dt-y*dx/dt)
E33: =VLOOKUP(1,A40:R288,2,FALSE) -> 37 | F33: =VLOOKUP(1,A40:AJ288,34,FALSE) -> 2.628049659 | G33: =VLOOKUP(1,A40:AQ288,35,FALSE) -> 0.2961089919 | H33: =VLOOKUP(1,A40:U288,7,FALSE) -> 3.324792416 | I33: =VLOOKUP(1,A40:U288,8,FALSE) -> -1.94162054 | J33: =VLOOKUP(1,A40:U288,10,FALSE) -> -1.863477921 | K33: =VLOOKUP(1,A40:U288,11,FALSE) -> -2.351052964 | M33: L-I*omega+mass*x*vy-mass*y*vx | N33: =N27 -> 0 | O33: =ABS(FIXED(O32,1)) -> 6.1 | P33: =ABS(FIXED(P32,1)) -> 0 | Q33: 1 | R33: 2 | U33: =1/20*V28+18/20*U28+U30 -> 5.523281807 | V33: =-1/20*U28+18/20*V28+V30 -> -1.617589115 | AR33: Axom = ax*cosf+ay*sinf+2Vyom*omega+Xom*omega^2+Yom*domega/dt | BO33: 0=I*domega/dt+m*(xdvy/dt-y*dvx/dt)
E34: =VLOOKUP(1,A40:R289,5,FALSE) -> -1.776216253 | F34: =VLOOKUP(1,A40:S289,6,FALSE) -> 1.959433941 | G34: =VX*COS(F)+VY*SIN(F)+YOM*OMEGA -> -4.373382293 | H34: =-VX*SIN(F)+VY*COS(F)-XOM*OMEGA -> 0.2014436706 | I34: =AX*COS(F)+AY*SIN(F)+2*VYOM*OMEGA+XOM*OMEGA^2+YOM*DOMEGADT -> 0.483906935 | J34: =-AX*SIN(F)+AY*COS(F)-2*VXOM*OMEGA+YOM*OMEGA^2-XOM*DOMEGADT -> -4.632396218 | K34: =VLOOKUP(1,A40:X289,15,FALSE) -> -2.194988702 | L34: =VLOOKUP(1,A40:Y289,12,FALSE) -> -2.044331825 | M34: =VLOOKUP(1,A40:Z289,14,FALSE) -> 2.926379451 | N34: domega/dt=(mass*(dy/dt*x-dx/dt)-2*omega*mass*(x*dx/dt+y*dy/dt))/(Inertia+mass*(x^2+y^2)) | U34: =U31 -> 5.952842076 | V34: =V31 -> -1.645511548 | AM34: xmes1 = 0.5 * (xA1 + xa2): xmes2 = 0.5 * (xa2 + xa3) | AR34: Ayom = =ax*sinf+ay*cosf-2*vxom*omega+Yom*omega^2=Xom*domega/dt | BO34: domega/dt=m(ydvx/dt-x*dvy/dt)/*
C35: =G40-D35 -> 0 | D35: =-D40*L40 -> 4 | E35: XOM | F35: YOM | G35: VXOM | H35: VYOM | I35: AXOM | J35: AYOM | K35: F | L35: OMEGA | M35: DOMEGADT | Q35: Vxom=vx∙cosφ+vy∙sinφ+Yom∙ω | AM35: ymes1 = 0.5 * (Ya1 + ya2): ymes2 = 0.5 * (ya2 + ya3) | BK35: domegadt = mit * mass * (y11 * vXrElaTive - x11 * vYreLative) * epilogi / (Inertia * Sqr(vXrElaTive ^ 2 + vYreLative ^ 2)) 'ìåôáâïëÞ ôçò ù ëüãù ñïðÞò ôçò ôñéâÞò
A36: =SUM(A40:A289) -> 1 | B36: =E33+40 -> 77 | C36: =G41+L41*D41 -> -0.007018234658 | D36: =-D41*L41 -> 3.995537168 | J36: vxr=vx+y*omega | L36: domega/dt=mass*(x*dvy/dt-ydvx/et)/inertia | Q36: Vyom=-vx∙sinφ+vy∙cosφ-Xom∙ω | U36: Axom=ax∙cosφ+ay∙sinφ+2Vyom∙ω+Xom∙ω²+Yom∙dω/dt | AH36: X=XOM*COSF-YOM*SINF | AS36: =DT -> 0.01884955592 | BK36: domegadt = mit * (thesiY(kkk) * vXrelative - thesiX(kkk) * vYrelative) * epilogi / (Inertia * Sqr(vXrelative ^ 2 + vYrelative ^ 2)) 'ìåôáâïëÞ ôçò ù ëüãù ñïðÞò ôçò ôñéâÞò
C37: =G42+L42*D42 -> 0.007906342508 | H37: taxyy | J37: vyr=vy-x*omega | M37: DOMEGADT=MASS*(Y*AX-X*AY)/INERTIA | U37: Ayom=-ax∙sinφ+ay∙cosφ-2Vxom∙ω+Yom∙ω²-Xom∙dω/dt | Z37: =VLOOKUP(1,A40:AG289,17,FALSE) -> -19.8695951 | AH37: Y=XOM*SINF+YOM*COSF | AM37: XA1 | BI37: ergocomplem(kkk) = ergocomplem(kkk - 1) + mass * (omega * r12 + thesiX(kkk) * taxYy(kkk) - thesiY(kkk) * taxYx(kkk)) * domegadt * deltax
A38: =SUM(A40:A289) -> 1 | B38: kkk | C38: THESIX(K) | D38: THESIY(K) | E38: THESIXOM | F38: THESIYOM | G38: taxyx(kkk) | H38: taxyy | I38: omeg | J38: -mit*vxr/v | K38: -mit*vyr/v | L38: Φ EXCELL | M38: domega/dt | N38: domega/dt=mass*(x*dvy/dt-ydvx/et)/inertia | O38: φ | P38: TAXXOM | Q38: ergo trivis | R38: ergofygoke | S38: AXOM | T38: AYOM | U38: TAXYOM | Y38: RX | Z38: =VLOOKUP(1,A40:AG290,31,FALSE) -> 0.1022239306 | AA38: RY | AB38: =VLOOKUP(1,A40:AG290,32,FALSE) -> -4.029231688 | AC38: AKT_KAMP | AD38: =VLOOKUP(1,A40:AI290,33,FALSE) -> 5.008696721 | AO38: ergocomplem(KKK) = ergocomplem(KKK - 1) +mass* (thesiYom(KKK) * taxXom(KKK) - thesiXom(KKK) * taxYom(KKK)) * DOMEGADT * Deltax
A39: 1 | B39: =A39+1 -> 2 | C39: =B39+1 -> 3 | D39: =C39+1 -> 4 | E39: 5 | F39: 6 | G39: 7 | H39: 8 | I39: 9 | J39: =I39+1 -> 10 | K39: 11 | L39: 12 | M39: 13 | N39: 14 | O39: 15 | P39: 16 | Q39: 17 | R39: 18 | S39: 19 | T39: 20 | U39: 21 | V39: CIRCLE | Y39: XMESI1 | Z39: XMESI2 | AA39: YMESI1 | AB39: YMESI2 | AC39: KLISIA1 | AD39: KLISIA2 | AE39: XTOMII11 | AF39: YTOMI11 | AG39: AKTINATOMON | AH39: X TLEIKO | AI39: Y_TELIKO | AJ39: TEL_F | AL39: If exacome(foreSxtypo) > omeag0 / 10 And exacome(foreSxtypo + 1) < omega0 / 10 Then | AM39: X | AO39: circle | AR39: ergo trivis sto lab | AS39: ergo complementary | AU39: XRONOS | AW39: KINETIC ENERGY | AX39: ROTATIONAL ENERGY | AY39: COMPLEMENTARY | AZ39: FRICTION IN LAB | BA39: friction rotational | BB39: ROT+KIN | BC39: FRI+COM+FUGAL | BD39: TOTAL | BF39: t | BG39: vxre | BH39: vyreo | BI39: vrel | BJ39: dvx/dt | BK39: dvy/dt | BL39: ergoomplementary | BM39: x | BN39: y | BO39: xom | BP39: yom | BQ39: vx | BR39: vy | BS39: domegadt | BT39: do/dt from difference
A40: =IF(B40=XRON,1,0) -> 0 | B40: 0 | C40: 0 | D40: 1 | E40: 0 | F40: 1 | G40: 4 | H40: 0 | I40: -4 | J40: =-IF((G40+L40*D40)^2+(H40-L40*C40)^2<>0,mew*(G40+L40*D40)/SQRT((G40+L40*D40)^2+(H40-L40*C40)^2),0) -> 0 | K40: =-mew*(H40-C40*L40)/SQRT((G40+D40*L40)^2+(I40-L40*C40)^2) -> 0 | L40: -4 | N40: =IF(Q40<>0,mazalazo*(D40*J40-C40*K40)/INERTIA,0) -> 0 | O40: 0 | P40: 0 | Q40: 0 | R40: 0 | S40: =J40*COS(O40)+K40*SIN(O40)+2*U40*L40^2-F40*M40 -> 0 | T40: =-J40*SIN(O40)+K40*COS(O40)-2*P40*L40^2-C40*N40 -> 0 | U40: =-G40*SIN(O40)+H40*COS(O40)-E40*L40 -> 0 | V40: =0 -> 0 | W40: =IF(ERGOTRIVIS<>0,RX+AKT_KAMP*COS(V40),TEL_AKTINA*COS(V40)) -> 5.110920652 | X40: =IF(ERGOTRIVIS<>0,RY+AKT_KAMP*SIN(V40),TEL_AKTINA*SIN(V40)) -> -4.029231688 | AH40: =C40 -> 0 | AI40: =D40 -> 1 | AN40: =B40*DT -> 0 | AO40: =V40 -> 0 | AP40: =xtomi11+aktistomon*COS(AO40) -> 2.007440784 | AQ40: =ytomi11+aktistomon*SIN(AO40) -> -2.0485821 | AR40: 0 | AS40: 0 | AT40: =0 -> 0 | AU40: 0 | AV40: 0 | AW40: =1/2*mazalazo*(P40^2+U40^2) -> 0 | AX40: =1/2*(INERTIA+mazalazo*($C40^2+$D40^2))*$I40^2 -> 176 | AY40: 0 | AZ40: =AR40 -> 0 | BA40: =IF((P40^2+U40^2)<>0,mazalazo*mew*(P40^2+U40^2)/SQRT(P40^2+U40^2)*DT,0) -> 0 | BB40: =AW40+AX40 -> 176 | BF40: 0 | BG40: =G40-(-D40*L40) -> 0 | BH40: =H40-(C40*I40) -> 0 | BI40: =SQRT(BG40^2+BH40^2) -> 0 | BL40: 0 | BM40: =C40 -> 0 | BN40: 1 | BO40: 0 | BP40: 1 | BQ40: 4 | BR40: 0 | BS40: 0
A41: 0 | B41: 1 | C41: 0.07543249597 | D41: 0.9990087585 | E41: -2.153293829e-05 | F41: 1.001852564 | G41: 3.988518933 | H41: -0.0564331791 | I41: =IF(AND(Q41<>0,B41>=0),(L0+mazalazo*(D41*G41-C41*H41))/(INERTIA+mazalazo*($C41^2+$D41^2)),I40) -> -3.99950164 | J41: =IF(($G41+$I41*$D41)^2+($H41-$I41*$D41)^2<>0,-mew*($G41+$I41*$D41)/SQRT(($G41+$I41*$D41)^2+($H41-$I41*$C41)^2),0) -> 0.08581161432 | K41: =-mew*($H41-$C41*$I41)/SQRT(($G41+$D41*$I41)^2+($H41-$I41*$C41)^2) -> -2.998772477 | L41: -3.99950164 | M41: =($I41-$I40)/DT -> 0.02643881359 | N41: =IF(Q41<>0,mazalazo*(($D41*$J41-$C41*$K41)-2*$I41*($C41*$G41+$D41*$H41))/(INERTIA+mazalazo*($C41^2+$D41^2)),0) -> 0.309059343 | O41: -0.07538582584 | P41: =IF(Q41<>0,G41*COS(O41)+H41*SIN(O41)+F41*$I41,0) -> -0.02546986264 | Q41: -0.04162427672 | R41: =R40+mazalazo*($I41^2*($E41*$P41+$F41*$U41))*DT -> 0.2211512363 | S41: =IF(Q41<>0,$J41*COS($O41)+$K41*SIN($Z41)+2*$U41*$I41+$E41*$I41^2+$F41*$N41,0) -> -1.557173905 | T41: =IF(Q41<>0,-$J41*SIN($O41)+$K41*COS($O41)-2*$P41*$I41+$F41*$I41^2-$E41*$N41,0) -> 12.83812754 | U41: =IF(Q41<>0,-$G41*SIN(O41)+$H41*COS(O41)-$E41*$I41,0) -> 0.2440340609 | V41: =2*PI()/50*B41 -> 0.1256637061 | W41: 5.071425582 | X41: -3.401475532 | AH41: =IF(Q41<>0,C41,SIGN(C41)*TEL_AKTINA*COS(AJ41)) -> 0.07543249597 | AI41: =IF(Q41<>0,D41,TEL_AKTINA*SIN(AJ41)) -> 0.9990087585 | AJ41: =IF(Q41<>0,O41,AJ40+TEL_OMEGA*DT) -> -0.07538582584 | AN41: 0.01884955592 | AO41: =V41 -> 0.1256637061 | AP41: 1.975785673 | AQ41: -1.545438516 | AR41: =mazalazo*($J41*G41+K41*H41)*DT+AR40 -> 0.02892416361 | AS41: =AS40+mazalazo*($F41*$P41-$E41*$U41)*$N41*DT -> -0.0004458668948 | AT41: =AT40+1 -> 1 | AU41: =IF(AND(AT41>0,Q41<>0),AN41,AU40) -> 0.01884955592 | AV41: =IF(AU41<>AU40,Q41,AV40) -> -0.04162427672 | AW41: 0.0903020052 | AX41: =1/2*(INERTIA+mazalazo*($C41^2+$D41^2))*$I41^2 -> 176.0451303 | AY41: =IF(AU41<>AU40,AS41,AY40) -> -0.0004458668948 | AZ41: =IF(AU41<>AU40,AR41,AR40) -> 0.02892416361 | BA41: =IF(($P41^2+$U41^2)<>0,-mazalazo*mew*($P41^2+$U41^2)/SQRT($P41^2+$U41^2)*DT+BA40,BA40) -> -0.04162427672 | BB41: =AW41+AX41 -> 176.1354324 | BC41: =BA41+AY41+$R41 -> 0.1790810927 | BD41: =BB41+BC41 -> 176.3145134 | BF41: =B41*DT -> 0.01884955592 | BG41: =G41-(-D41*L41) -> -0.007018234658 | BH41: =$H41-($I41*$C41) -> 0.2452592122 | BI41: =SQRT(BG41^2+BH41^2) -> 0.2453596071 | BJ41: =-mew*BG41/BH41 -> 0.08584674061 | BK41: =-mew*BH41/BI41 -> -2.998772477 | BL41: =BL40+mazalazo*($I41*(BM41^2+BN41^2)+BM41*BR41-BN41*BQ41)*$BS41*DT -> -0.01924290743 | BM41: 0.07543249597 | BN41: 0.9990087585 | BO41: -2.153293829e-05 | BP41: 1.001852564 | BQ41: 3.988518933 | BR41: -0.0564331791 | BS41: =($BN41*$BJ41-$BM41*$BK41)/(INERTIA+mazalazo*($BM41^2+$BN41^2))*mazalazo -> 0.04251938901 | BT41: =$M41 -> 0.02643881359 | BU41: =$N41 -> 0.309059343
A42: 0 | B42: 2 | C42: 0.150619643 | D42: 0.9974121224 | E42: -0.0007446787326 | F42: 1.00872031 | G42: 3.98867565 | H42: -0.1129770788 | I42: =IF(AND(Q42<>0,B42>=0),(L0+mazalazo*(D42*G42-C42*H42))/(INERTIA+mazalazo*($C42^2+$D42^2)),I41) -> -3.99109778 | J42: =IF(($G42+$I42*$D42)^2+($H42-$I42*$D42)^2<>0,-mew*($G42+$I42*$D42)/SQRT(($G42+$I42*$D42)^2+($H42-$I42*$C42)^2),0) -> -0.04858219827 | K42: =-mew*($H42-$C42*$I42)/SQRT(($G42+$D42*$I42)^2+($H42-$I42*$C42)^2) -> -2.999606603 | L42: -3.99109778 | M42: =($I42-$I41)/DT -> 0.4458386177 | N42: =IF(Q42<>0,mazalazo*(($D42*$J42-$C42*$K42)-2*$I42*($C42*$G42+$D42*$H42))/(INERTIA+mazalazo*($C42^2+$D42^2)),0) -> 0.5848790681 | O42: -0.1506162466 | P42: =IF(Q42<>0,G42*COS(O42)+H42*SIN(O42)+F42*$I42,0) -> -0.06543041727 | Q42: -0.12444964 | R42: =R41+mazalazo*($I42^2*($E42*$P42+$F42*$U42))*DT -> 0.6607995553 | S42: =IF(Q42<>0,$J42*COS($O42)+$K42*SIN($Z42)+2*$U42*$I42+$E42*$I42^2+$F42*$N42,0) -> -3.44497086 | T42: =IF(Q42<>0,-$J42*SIN($O42)+$K42*COS($O42)-2*$P42*$I42+$F42*$I42^2-$E42*$N42,0) -> 12.57298618 | U42: =IF(Q42<>0,-$G42*SIN(O42)+$H42*COS(O42)-$E42*$I42,0) -> 0.4838204057 | V42: =2*PI()/50*B42 -> 0.2513274123 | W42: 4.953563234 | X42: -2.783619466 | Y42: =(C42+C41)/2 -> 0.1130260695 | Z42: =(C41+C40)/2 -> 0.03771624798 | AA42: =(D42+D41)/2 -> 0.9982104404 | AB42: =(D41+D40)/2 -> 0.9995043792 | AC42: =-(C41-C42)/(D41-D42) -> 47.09097227 | AD42: =-(C40-C41)/(D40-D41) -> 76.09900863 | AE42: =((AA42-AB42)+AD42*Z42-AC42*Y42)/(AD42-AC42) -> -0.0845845727 | AF42: =AA42+AC42*(AE42-Y42) -> -8.307466829 | AG42: =SQRT((AE42-Z42)^2+(AF42-AB42)^2) -> 9.307774738 | AH42: =IF(Q42<>0,C42,E42*COS(AJ42)-F42*SIN(AJ42)) -> 0.150619643 | AI42: =IF(Q42<>0,D42,E42*SIN(AJ42)+F42*COS(AJ42)) -> 0.9974121224 | AJ42: -0.1506162466 | AL42: =AND(ABS(L42)>ABS(exactome)/10,ABS(L43)<ABS(exactome)/10) -> FALSE | AN42: 0.03769911184 | AO42: =V42 -> 0.2513274123 | AP42: 1.88131956 | AQ42: -1.050229806 | AR42: =mazalazo*(J42*G42+K42*H42)*DT+AR41 -> 0.03712983676 | AS42: -0.002616876079 | AT42: =AT41+1 -> 2 | AU42: =IF(AND(AT42>0,Q42<>0),AN42,AU41) -> 0.03769911184 | AV42: =IF(AU42<>AU41,Q42,AV41) -> -0.12444964 | AW42: 0.3575449868 | AX42: =1/2*(INERTIA+mazalazo*($C42^2+$D42^2))*$I42^2 -> 175.6360204 | AY42: =IF(AU42<>AU41,AS42,AY41) -> -0.002616876079 | AZ42: =IF(AU42<>AU41,AR42,AR41) -> 0.03712983676 | BA42: -0.12444964 | BB42: =AW42+AX42 -> 175.9935654 | BC42: =BA42+AY42+$R42 -> 0.5337330392 | BD42: =BB42+BC42 -> 176.5272984 | BF42: 0.03769911184 | BG42: =G42-(-D42*L42) -> 0.007906342508 | BH42: =$H42-($I42*$C42) -> 0.4881606439 | BI42: =SQRT(BG42^2+BH42^2) -> 0.488224666 | BJ42: -0.04858856981 | BK42: -2.999606603 | BL42: =BL41+mazalazo*($I42*(BM42^2+BN42^2)+BM42*BR42-BN42*BQ42)*$BS42*DT -> -0.04424018227 | BM42: =C42 -> 0.150619643 | BN42: =D42 -> 0.9974121224 | BO42: =E42 -> -0.0007446787326 | BP42: =F42 -> 1.00872031 | BQ42: =G42 -> 3.98867565 | BR42: =H42 -> -0.1129770788 | BS42: 0.05486941193 | BT42: =$M42 -> 0.4458386177 | BU42: =$N42 -> 0.5848790681
A43: 0 | B43: 3 | C43: 0.2257909088 | D43: 0.9947497772 | E43: -0.002436334657 | F43: 1.020050351 | G43: 3.987003832 | H43: -0.1694995016 | I43: -3.977436832 | J43: =IF(($G43+$I43*$D43)^2+($H43-$I43*$D43)^2<>0,-mew*($G43+$I43*$D43)/SQRT(($G43+$I43*$D43)^2+($H43-$I43*$C43)^2),0) -> -0.1252709673 | K43: =-mew*($H43-$C43*$I43)/SQRT(($G43+$D43*$I43)^2+($H43-$I43*$C43)^2) -> -2.99738339 | L43: -3.977436832 | M43: =($I43-$I42)/DT -> 0.7247358028 | N43: =IF(Q43<>0,mazalazo*(($D43*$J43-$C43*$K43)-2*$I43*($C43*$G43+$D43*$H43))/(INERTIA+mazalazo*($C43^2+$D43^2)),0) -> 0.8641506516 | O43: -0.2255891646 | P43: =IF(Q43<>0,G43*COS(O43)+H43*SIN(O43)+F43*$I43,0) -> -0.1332889899 | Q43: -0.2481564541 | R43: =R42+mazalazo*($I43^2*($E43*$P43+$F43*$U43))*DT -> 1.315306574 | S43: =IF(Q43<>0,$J43*COS($O43)+$K43*SIN($Z43)+2*$U43*$I43+$E43*$I43^2+$F43*$N43,0) -> -5.320235261 | T43: =IF(Q43<>0,-$J43*SIN($O43)+$K43*COS($O43)-2*$P43*$I43+$F43*$I43^2-$E43*$N43,0) -> 12.12955081 | U43: =IF(Q43<>0,-$G43*SIN(O43)+$H43*COS(O43)-$E43*$I43,0) -> 0.7169203855 | V43: 0.3769911184 | W43: 4.759192367 | X43: -2.185407448 | Y43: =(C43+C42)/2 -> 0.1882052759 | Z43: =(C42+C41)/2 -> 0.1130260695 | AA43: =(D43+D42)/2 -> 0.9960809498 | AB43: =(D42+D41)/2 -> 0.9982104404 | AC43: =-(C42-C43)/(D42-D43) -> 28.23498063 | AD43: =-(C41-C42)/(D41-D42) -> 47.09097227 | AE43: =((AA43-AB43)+AD43*Z43-AC43*Y43)/(AD43-AC43) -> 0.0003397166083 | AF43: =AA43+AC43*(AE43-Y43) -> -4.308299477 | AG43: =SQRT((AE43-Z43)^2+(AF43-AB43)^2) -> 5.307706258 | AH43: =IF(Q43<>0,C43,E43*COS(AJ43)-F43*SIN(AJ43)) -> 0.2257909088 | AI43: =IF(Q43<>0,D43,E43*SIN(AJ43)+F43*COS(AJ43)) -> 0.9947497772 | AJ43: -0.2255891646 | AL43: FALSE | AM43: =ABS(exactome)/10 -> 0.4 | AN43: 0.05654866776 | AO43: 0.3769911184 | AP43: 1.725532231 | AQ43: -0.570765709 | AR43: 0.03761610802 | AS43: -0.009175493863 | AT43: 3 | AU43: 0.05654866776 | AV43: -0.2481564541 | AW43: 0.797611191 | AX43: =1/2*(INERTIA+mazalazo*($C43^2+$D43^2))*$I43^2 -> 174.9813119 | AY43: =IF(AU43<>AU42,AS43,AY42) -> -0.009175493863 | AZ43: 0.03761610802 | BA43: -0.2481564541 | BB43: 175.7789231 | BC43: 1.057974626 | BD43: 176.8368977 | BF43: 0.05654866776 | BG43: 0.03044942993 | BH43: =$H43-($I43*$C43) -> 0.7285695754 | BI43: 0.729205591 | BJ43: -0.1253803245 | BK43: -2.99738339 | BL43: =BL42+mazalazo*($I43*(BM43^2+BN43^2)+BM43*BR43-BN43*BQ43)*$BS43*DT -> -0.07871435349 | BM43: 0.2257909088 | BN43: 0.9947497772 | BO43: -0.002436334657 | BP43: 1.020050351 | BQ43: 3.987003832 | BR43: -0.1694995016 | BS43: 0.07486733113 | BT43: 0.7247358028 | BU43: 0.8641506516
A44: 0 | B44: 4 | C44: 0.3009180109 | D44: 0.991022477 | E44: -0.005602666959 | F44: 1.035686154 | G44: 3.984028563 | H44: -0.225968771 | I44: -3.958551406 | J44: =IF(($G44+$I44*$D44)^2+($H44-$I44*$D44)^2<>0,-mew*($G44+$I44*$D44)/SQRT(($G44+$I44*$D44)^2+($H44-$I44*$C44)^2),0) -> -0.1892613026 | K44: =-mew*($H44-$C44*$I44)/SQRT(($G44+$D44*$I44)^2+($H44-$I44*$C44)^2) -> -2.994024075 | L44: -3.958551406 | M44: =($I44-$I43)/DT -> 1.001902979 | N44: =IF(Q44<>0,mazalazo*(($D44*$J44-$C44*$K44)-2*$I44*($C44*$G44+$D44*$H44))/(INERTIA+mazalazo*($C44^2+$D44^2)),0) -> 1.138532206 | O44: -0.3002061007 | P44: =IF(Q44<>0,G44*COS(O44)+H44*SIN(O44)+F44*$I44,0) -> -0.2271489273 | Q44: -0.4122308072 | R44: =R43+mazalazo*($I44^2*($E44*$P44+$F44*$U44))*DT -> 2.179212649 | S44: =IF(Q44<>0,$J44*COS($O44)+$K44*SIN($Z44)+2*$U44*$I44+$E44*$I44^2+$F44*$N44,0) -> -7.092503312 | T44: =IF(Q44<>0,-$J44*SIN($O44)+$K44*COS($O44)-2*$P44*$I44+$F44*$I44^2-$E44*$N44,0) -> 11.52126745 | U44: =IF(Q44<>0,-$G44*SIN(O44)+$H44*COS(O44)-$E44*$I44,0) -> 0.9401044669 | V44: 0.5026548246 | W44: 4.491378326 | X44: -1.616273641 | Y44: 0.2633544598 | Z44: 0.1882052759 | AA44: 0.9928861271 | AB44: 0.9960809498 | AC44: 20.15590333 | AD44: 28.23498063 | AE44: 0.0003255892559 | AF44: -4.308698363 | AG44: 5.308105343 | AH44: 0.3009180109 | AI44: =IF(Q44<>0,D44,E44*SIN(AJ44)+F44*COS(AJ44)) -> 0.991022477 | AJ44: -0.3002061007 | AL44: FALSE | AN44: 0.07539822369 | AO44: 0.5026548246 | AP44: 1.510880546 | AQ44: -0.1146076591 | AR44: 0.03323548094 | AS44: -0.02398268554 | AT44: 4 | AU44: 0.07539822369 | AV44: -0.4122308072 | AW44: 1.403089566 | AX44: =1/2*(INERTIA+mazalazo*($C44^2+$D44^2))*$I44^2 -> 174.0797132 | AY44: -0.02398268554 | AZ44: 0.03323548094 | BA44: -0.4122308072 | BB44: 175.4828028 | BC44: 1.742999156 | BD44: 177.2258019 | BF44: 0.07539822369 | BG44: 0.06101514364 | BH44: =$H44-($I44*$C44) -> 0.965230644 | BI44: 0.9671571971 | BJ44: -0.1896390589 | BK44: -2.994024075 | BL44: =BL43+mazalazo*($I44*(BM44^2+BN44^2)+BM44*BR44-BN44*BQ44)*$BS44*DT -> -0.1236976374 | BM44: 0.3009180109 | BN44: 0.991022477 | BO44: -0.005602666959 | BP44: 1.035686154 | BQ44: 3.984028563 | BR44: -0.225968771 | BS44: 0.09627574739 | BT44: 1.001902979 | BU44: 1.138532206
A45: 0 | B45: 5 | C45: 0.3759780007 | D45: 0.9862314116 | E45: -0.01071514089 | F45: 1.055413208 | G45: 3.979897583 | H45: -0.2823654228 | I45: -3.934565862 | J45: =IF(($G45+$I45*$D45)^2+($H45-$I45*$D45)^2<>0,-mew*($G45+$I45*$D45)/SQRT(($G45+$I45*$D45)^2+($H45-$I45*$C45)^2),0) -> -0.248540461 | K45: =-mew*($H45-$C45*$I45)/SQRT(($G45+$D45*$I45)^2+($H45-$I45*$C45)^2) -> -2.98968688 | L45: -3.934565862 | M45: =($I45-$I44)/DT -> 1.272472643 | N45: =IF(Q45<>0,mazalazo*(($D45*$J45-$C45*$K45)-2*$I45*($C45*$G45+$D45*$H45))/(INERTIA+mazalazo*($C45^2+$D45^2)),0) -> 1.404872037 | O45: -0.37437092 | P45: =IF(Q45<>0,G45*COS(O45)+H45*SIN(O45)+F45*$I45,0) -> -0.3450940588 | Q45: -0.6159881638 | R45: =R44+mazalazo*($I45^2*($E45*$P45+$F45*$U45))*DT -> 3.245364809 | S45: =IF(Q45<>0,$J45*COS($O45)+$K45*SIN($Z45)+2*$U45*$I45+$E45*$I45^2+$F45*$N45,0) -> -8.745644046 | T45: =IF(Q45<>0,-$J45*SIN($O45)+$K45*COS($O45)-2*$P45*$I45+$F45*$I45^2-$E45*$N45,0) -> 10.7646098 | U45: =IF(Q45<>0,-$G45*SIN(O45)+$H45*COS(O45)-$E45*$I45,0) -> 1.150429562 | V45: 0.6283185307 | W45: 4.154344698 | X45: -1.085193623 | Y45: 0.3384480058 | Z45: 0.2633544598 | AA45: 0.9886269443 | AB45: 0.9928861271 | AC45: 15.66665959 | AD45: 20.15590333 | AE45: 0.0003426313717 | AF45: -4.308354863 | AG45: 5.307761417 | AH45: 0.3759780007 | AI45: 0.9862314116 | AJ45: -0.37437092 | AL45: FALSE | AN45: 0.09424777961 | AO45: 0.6283185307 | AP45: 1.24074969 | AQ45: 0.3110504586 | AR45: 0.02503697705 | AS45: -0.05193809389 | AT45: 5 | AU45: 0.09424777961 | AV45: -0.6159881638 | AW45: 2.16386713 | AX45: =1/2*(INERTIA+mazalazo*($C45^2+$D45^2))*$I45^2 -> 172.9363872 | AY45: -0.05193809389 | AZ45: 0.02503697705 | BA45: -0.6159881638 | BB45: 175.1002544 | BC45: 2.577438551 | BD45: 177.6776929 | BF45: 0.09424777961 | BG45: 0.09950513891 | BH45: =$H45-($I45*$C45) -> 1.196944783 | BI45: 1.201073723 | BJ45: -0.2493978176 | BK45: -2.98968688 | BL45: =BL44+mazalazo*($I45*(BM45^2+BN45^2)+BM45*BR45-BN45*BQ45)*$BS45*DT -> -0.179800519 | BM45: 0.3759780007 | BN45: 0.9862314116 | BO45: -0.01071514089 | BP45: 1.055413208 | BQ45: 3.979897583 | BR45: -0.2823654228 | BS45: 0.1179067858 | BT45: 1.272472643 | BU45: 1.404872037
A46: 0 | B46: 6 | C46: 0.4509497475 | D46: 0.9803781215 | E46: -0.01820643299 | F46: 1.078964996 | G46: 3.974672706 | H46: -0.3386713321 | I46: -3.905653552 | J46: =IF(($G46+$I46*$D46)^2+($H46-$I46*$D46)^2<>0,-mew*($G46+$I46*$D46)/SQRT(($G46+$I46*$D46)^2+($H46-$I46*$C46)^2),0) -> -0.3055666529 | K46: =-mew*($H46-$C46*$I46)/SQRT(($G46+$D46*$I46)^2+($H46-$I46*$C46)^2) -> -2.984397598 | L46: -3.905653552 | M46: =($I46-$I45)/DT -> 1.533845681 | N46: =IF(Q46<>0,mazalazo*(($D46*$J46-$C46*$K46)-2*$I46*($C46*$G46+$D46*$H46))/(INERTIA+mazalazo*($C46^2+$D46^2)),0) -> 1.660946908 | O46: -0.447990755 | P46: =IF(Q46<>0,G46*COS(O46)+H46*SIN(O46)+F46*$I46,0) -> -0.4849171692 | Q46: -0.8585852392 | R46: =R45+mazalazo*($I46^2*($E46*$P46+$F46*$U46))*DT -> 4.505065213 | S46: =IF(Q46<>0,$J46*COS($O46)+$K46*SIN($Z46)+2*$U46*$I46+$E46*$I46^2+$F46*$N46,0) -> -10.26041276 | T46: =IF(Q46<>0,-$J46*SIN($O46)+$K46*COS($O46)-2*$P46*$I46+$F46*$I46^2-$E46*$N46,0) -> 9.878822116 | U46: =IF(Q46<>0,-$G46*SIN(O46)+$H46*COS(O46)-$E46*$I46,0) -> 1.345292093 | V46: 0.7539822369 | W46: 3.753406704 | X46: -0.6005428436 | Y46: 0.4134638741 | Z46: 0.3384480058 | AA46: 0.9833047666 | AB46: 0.9886269443 | AC46: 12.80847951 | AD46: 15.66665959 | AE46: 0.0004142350872 | AF46: -4.307233072 | AG46: 5.306637367 | AH46: 0.4509497475 | AI46: 0.9803781215 | AJ46: -0.447990755 | AL46: FALSE | AN46: 0.1130973355 | AO46: 0.7539822369 | AP46: 0.9193997889 | AQ46: 0.6994957613 | AR46: 0.0135124985 | AS46: -0.09877963251 | AT46: 6 | AU46: 0.1130973355 | AV46: -0.8585852392 | AW46: 3.067433213 | AX46: =1/2*(INERTIA+mazalazo*($C46^2+$D46^2))*$I46^2 -> 171.5593127 | AY46: -0.09877963251 | AZ46: 0.0135124985 | BA46: -0.8585852392 | BB46: 174.6267459 | BC46: 3.547700341 | BD46: 178.1744463 | BF46: 0.1130973355 | BG46: 0.1456554136 | BH46: =$H46-($I46*$C46) -> 1.422582151 | BI46: 1.430019397 | BJ46: -0.3071641525 | BK46: -2.984397598 | BL46: =BL45+mazalazo*($I46*(BM46^2+BN46^2)+BM46*BR46-BN46*BQ46)*$BS46*DT -> -0.2475400368 | BM46: 0.4509497475 | BN46: 0.9803781215 | BO46: -0.01820643299 | BP46: 1.078964996 | BQ46: 3.974672706 | BR46: -0.3386713321 | BS46: 0.1393304851 | BT46: 1.533845681 | BU46: 1.660946908
A47: 0 | B47: 7 | C47: 0.5258129615 | D47: 0.9734644858 | E47: -0.02846488872 | F47: 1.106029894 | G47: 3.968385849 | H47: -0.3948686101 | I47: -3.872025647 | J47: =IF(($G47+$I47*$D47)^2+($H47-$I47*$D47)^2<>0,-mew*($G47+$I47*$D47)/SQRT(($G47+$I47*$D47)^2+($H47-$I47*$C47)^2),0) -> -0.3613268813 | K47: =-mew*($H47-$C47*$I47)/SQRT(($G47+$D47*$I47)^2+($H47-$I47*$C47)^2) -> -2.97816099 | L47: -3.872025647 | M47: =($I47-$I46)/DT -> 1.784015751 | N47: =IF(Q47<>0,mazalazo*(($D47*$J47-$C47*$K47)-2*$I47*($C47*$G47+$D47*$H47))/(INERTIA+mazalazo*($C47^2+$D47^2)),0) -> 1.904934133 | O47: -0.520976719 | P47: =IF(Q47<>0,G47*COS(O47)+H47*SIN(O47)+F47*$I47,0) -> -0.6441253388 | Q47: -1.139031607 | R47: =R46+mazalazo*($I47^2*($E47*$P47+$F47*$U47))*DT -> 5.948240712 | S47: =IF(Q47<>0,$J47*COS($O47)+$K47*SIN($Z47)+2*$U47*$I47+$E47*$I47^2+$F47*$N47,0) -> -11.61994239 | T47: =IF(Q47<>0,-$J47*SIN($O47)+$K47*COS($O47)-2*$P47*$I47+$F47*$I47^2-$E47*$N47,0) -> 8.885427637 | U47: =IF(Q47<>0,-$G47*SIN(O47)+$H47*COS(O47)-$E47*$I47,0) -> 1.522475297 | V47: 0.879645943 | W47: 3.294887378 | X47: -0.1699645358 | Y47: 0.4883813545 | Z47: 0.4134638741 | AA47: 0.9769213036 | AB47: 0.9833047666 | AC47: 10.82834225 | AD47: 12.80847951 | AE47: 0.0005553373541 | AF47: -4.305425767 | AG47: 5.304824607 | AH47: =IF(Q47<>0,C47,(E47*COS(AJ47)-F47*SIN(AJ47)+C47)/2) -> 0.5258129615 | AI47: =IF(Q47<>0,D47,(E47*SIN(AJ47)+F47*COS(AJ47)+D47)/2) -> 0.9734644858 | AJ47: -0.520976719 | AL47: FALSE | AN47: 0.1319468915 | AO47: 0.879645943 | AP47: 0.5518987215 | AQ47: 1.044602235 | AR47: -0.001071526834 | AS47: -0.1708544413 | AT47: 7 | AU47: 0.1319468915 | AV47: -1.139031607 | AW47: 4.099242723 | AX47: =1/2*(INERTIA+mazalazo*($C47^2+$D47^2))*$I47^2 -> 169.9584437 | AY47: -0.1708544413 | AZ47: -0.001071526834 | BA47: -1.139031607 | BB47: 174.0576864 | BC47: 4.638354663 | BD47: 178.6960411 | BF47: 0.1319468915 | BG47: 0.1991063933 | BH47: =$H47-($I47*$C47) -> 1.641092662 | BI47: 1.65312688 | BJ47: -0.3639765101 | BK47: -2.97816099 | BL47: =BL46+mazalazo*($I47*(BM47^2+BN47^2)+BM47*BR47-BN47*BQ47)*$BS47*DT -> -0.3274168615 | BM47: 0.5258129615 | BN47: 0.9734644858 | BO47: -0.02846488872 | BP47: 1.106029894 | BQ47: 3.968385849 | BR47: -0.3948686101 | BS47: 0.1603236716 | BT47: 1.784015751 | BU47: 1.904934133
A48: 0 | B48: 8 | C48: 0.6005478174 | D48: 0.9654927203 | E48: -0.04182971141 | F48: 1.136258839 | G48: 3.961055998 | H48: -0.4509394061 | I48: -3.833924845 | J48: =IF(($G48+$I48*$D48)^2+($H48-$I48*$D48)^2<>0,-mew*($G48+$I48*$D48)/SQRT(($G48+$I48*$D48)^2+($H48-$I48*$C48)^2),0) -> -0.4162854473 | K48: =-mew*($H48-$C48*$I48)/SQRT(($G48+$D48*$I48)^2+($H48-$I48*$C48)^2) -> -2.970977352 | L48: -3.833924845 | M48: =($I48-$I47)/DT -> 2.021310336 | N48: =IF(Q48<>0,mazalazo*(($D48*$J48-$C48*$K48)-2*$I48*($C48*$G48+$D48*$H48))/(INERTIA+mazalazo*($C48^2+$D48^2)),0) -> 2.135303667 | O48: -0.5932444997 | P48: =IF(Q48<>0,G48*COS(O48)+H48*SIN(O48)+F48*$I48,0) -> -0.8199963847 | Q48: -1.456202239 | R48: =R47+mazalazo*($I48^2*($E48*$P48+$F48*$U48))*DT -> 7.563630426 | S48: =IF(Q48<>0,$J48*COS($O48)+$K48*SIN($Z48)+2*$U48*$I48+$E48*$I48^2+$F48*$N48,0) -> -12.81112859 | T48: =IF(Q48<>0,-$J48*SIN($O48)+$K48*COS($O48)-2*$P48*$I48+$F48*$I48^2-$E48*$N48,0) -> 7.807499658 | U48: =IF(Q48<>0,-$G48*SIN(O48)+$H48*COS(O48)-$E48*$I48,0) -> 1.680184605 | V48: 1.005309649 | W48: 2.786017842 | X48: 0.1997508235 | Y48: 0.5631803895 | Z48: 0.4883813545 | AA48: 0.969478603 | AB48: 0.9769213036 | AC48: 9.374944152 | AD48: 10.82834225 | AE48: 0.0007795897069 | AF48: -4.302997486 | AG48: 5.302386057 | AH48: =IF(Q48<>0,C48,(E48*COS(AJ48)-F48*SIN(AJ48)+C48)/2) -> 0.6005478174 | AI48: =IF(Q48<>0,D48,(E48*SIN(AJ48)+F48*COS(AJ48)+D48)/2) -> 0.9654927203 | AJ48: -0.5932444997 | AL48: FALSE | AN48: 0.1507964474 | AO48: 1.005309649 | AP48: 0.1440421996 | AQ48: 1.340927343 | AR48: -0.01855632996 | AS48: -0.2748728812 | AT48: 8 | AU48: 0.1507964474 | AV48: -1.456202239 | AW48: 5.243121565 | AX48: =1/2*(INERTIA+mazalazo*($C48^2+$D48^2))*$I48^2 -> 168.1453156 | AY48: -0.2748728812 | AZ48: -0.01855632996 | BA48: -1.456202239 | BB48: 173.3884372 | BC48: 5.832555306 | BD48: 179.2209925 | BF48: 0.1507964474 | BG48: 0.2594294699 | BH48: =$H48-($I48*$C48) -> 1.851515792 | BI48: 1.869602732 | BJ48: -0.4203520236 | BK48: -2.970977352 | BL48: =BL47+mazalazo*($I48*(BM48^2+BN48^2)+BM48*BR48-BN48*BQ48)*$BS48*DT -> -0.4199327585 | BM48: 0.6005478174 | BN48: 0.9654927203 | BO48: -0.04182971141 | BP48: 1.136258839 | BQ48: 3.961055998 | BR48: -0.4509394061 | BS48: 0.1807417944 | BT48: 2.021310336 | BU48: 2.135303667
A49: 0 | B49: 9 | C49: 0.6751347812 | D49: 0.9564653775 | E49: -0.05858739555 | F49: 1.169273496 | G49: 3.952695753 | H49: -0.5068658628 | I49: -3.791620147 | J49: =IF(($G49+$I49*$D49)^2+($H49-$I49*$D49)^2<>0,-mew*($G49+$I49*$D49)/SQRT(($G49+$I49*$D49)^2+($H49-$I49*$C49)^2),0) -> -0.4706842949 | K49: =-mew*($H49-$C49*$I49)/SQRT(($G49+$D49*$I49)^2+($H49-$I49*$C49)^2) -> -2.962845979 | L49: -3.791620147 | M49: =($I49-$I48)/DT -> 2.244333948 | N49: =IF(Q49<>0,mazalazo*(($D49*$J49-$C49*$K49)-2*$I49*($C49*$G49+$D49*$H49))/(INERTIA+mazalazo*($C49^2+$D49^2)),0) -> 2.350792729 | O49: -0.6647148557 | P49: =IF(Q49<>0,G49*COS(O49)+H49*SIN(O49)+F49*$I49,0) -> -1.009650492 | Q49: -1.808851019 | R49: =R48+mazalazo*($I49^2*($E49*$P49+$F49*$U49))*DT -> 9.338986325 | S49: =IF(Q49<>0,$J49*COS($O49)+$K49*SIN($Z49)+2*$U49*$I49+$E49*$I49^2+$F49*$N49,0) -> -13.82509244 | T49: =IF(Q49<>0,-$J49*SIN($O49)+$K49*COS($O49)-2*$P49*$I49+$F49*$I49^2-$E49*$N49,0) -> 6.668859666 | U49: =IF(Q49<>0,-$G49*SIN(O49)+$H49*COS(O49)-$E49*$I49,0) -> 1.817068417 | V49: 1.130973355 | W49: 2.234823272 | X49: 0.5027726024 | Y49: 0.6378412993 | Z49: 0.5631803895 | AA49: 0.9609790489 | AB49: 0.969478603 | AC49: 8.262338737 | AD49: 9.374944152 | AE49: 0.001100362324 | AF49: -4.29999026 | AG49: 5.299361854 | AH49: 0.6751347812 | AI49: 0.9564653775 | AJ49: -0.6647148557 | AL49: FALSE | AN49: 0.1696460033 | AO49: 1.130973355 | AP49: -0.2977376358 | AQ49: 1.583797863 | AR49: -0.03884069503 | AS49: -0.417657536 | AT49: 9 | AU49: 0.1696460033 | AV49: -1.808851019 | AW49: 6.481697622 | AX49: =1/2*(INERTIA+mazalazo*($C49^2+$D49^2))*$I49^2 -> 166.1327596 | AY49: -0.417657536 | AZ49: -0.03884069503 | BA49: -1.808851019 | BB49: 172.6144573 | BC49: 7.11247777 | BD49: 179.726935 | BF49: 0.1696460033 | BG49: 0.326142358 | BH49: =$H49-($I49*$C49) -> 2.052988775 | BI49: 2.078733208 | BJ49: -0.4765866652 | BK49: -2.962845979 | BL49: =BL48+mazalazo*($I49*(BM49^2+BN49^2)+BM49*BR49-BN49*BQ49)*$BS49*DT -> -0.5255888473 | BM49: 0.6751347812 | BN49: 0.9564653775 | BO49: -0.05858739555 | BP49: 1.169273496 | BQ49: 3.952695753 | BR49: -0.5068658628 | BS49: 0.2004787744 | BT49: 2.244333948 | BU49: 2.350792729
A50: 0 | B50: 10 | C50: 0.7495545206 | D50: 0.9463853466 | E50: -0.07896955664 | F50: 1.20467465 | G50: 3.943314277 | H50: -0.5626301079 | I50: -3.745401894 | J50: =IF(($G50+$I50*$D50)^2+($H50-$I50*$D50)^2<>0,-mew*($G50+$I50*$D50)/SQRT(($G50+$I50*$D50)^2+($H50-$I50*$C50)^2),0) -> -0.5246582019 | K50: =-mew*($H50-$C50*$I50)/SQRT(($G50+$D50*$I50)^2+($H50-$I50*$C50)^2) -> -2.953766032 | L50: -3.745401894 | M50: =($I50-$I49)/DT -> 2.451954431 | N50: =IF(Q50<>0,mazalazo*(($D50*$J50-$C50*$K50)-2*$I50*($C50*$G50+$D50*$H50))/(INERTIA+mazalazo*($C50^2+$D50^2)),0) -> 2.550399095 | O50: -0.7353140182 | P50: =IF(Q50<>0,G50*COS(O50)+H50*SIN(O50)+F50*$I50,0) -> -1.210125861 | Q50: -2.195625062 | R50: =R49+mazalazo*($I50^2*($E50*$P50+$F50*$U50))*DT -> 11.26128111 | S50: =IF(Q50<>0,$J50*COS($O50)+$K50*SIN($Z50)+2*$U50*$I50+$E50*$I50^2+$F50*$N50,0) -> -14.65725027 | T50: =IF(Q50<>0,-$J50*SIN($O50)+$K50*COS($O50)-2*$P50*$I50+$F50*$I50^2-$E50*$N50,0) -> 5.49328345 | U50: =IF(Q50<>0,-$G50*SIN(O50)+$H50*COS(O50)-$E50*$I50,0) -> 1.932223816 | V50: 1.256637061 | W50: 1.649996337 | X50: 0.7343219663 | Y50: 0.7123446509 | Z50: 0.6378412993 | AA50: 0.9514253621 | AB50: 0.9609790489 | AC50: 7.382888018 | AD50: 8.262338737 | AE50: 0.001530956588 | AF50: -4.296432544 | AG50: 5.295778273 | AH50: 0.7495545206 | AI50: 0.9463853466 | AJ50: -0.7353140182 | AL50: FALSE | AN50: 0.1884955592 | AO50: 1.256637061 | AP50: -0.7664736528 | AQ50: 1.769383581 | AR50: -0.06185682144 | AS50: -0.6058987027 | AT50: 10 | AU50: 0.1884955592 | AV50: -2.195625062 | AW50: 7.796840211 | AX50: =1/2*(INERTIA+mazalazo*($C50^2+$D50^2))*$I50^2 -> 163.9346484 | AY50: -0.6058987027 | AZ50: -0.06185682144 | BA50: -2.195625062 | BB50: 171.7314886 | BC50: 8.459757343 | BD50: 180.191246 | BF50: 0.1884955592 | BG50: 0.3987208066 | BH50: =$H50-($I50*$C50) -> 2.244752813 | BI50: 2.279888917 | BJ50: -0.5328704402 | BK50: -2.953766032 | BL50: =BL49+mazalazo*($I50*(BM50^2+BN50^2)+BM50*BR50-BN50*BQ50)*$BS50*DT -> -0.6448766282 | BM50: 0.7495545206 | BN50: 0.9463853466 | BO50: -0.07896955664 | BP50: 1.20467465 | BQ50: 3.943314277 | BR50: -0.5626301079 | BS50: 0.2194518654 | BT50: 2.451954431 | BU50: 2.550399095
A51: 0 | B51: 11 | C51: 0.8237878561 | D51: 0.9352558538 | E51: -0.1031521688 | F51: 1.242050552 | G51: 3.932918777 | H51: -0.618214254 | I51: -3.695576901 | J51: =IF(($G51+$I51*$D51)^2+($H51-$I51*$D51)^2<>0,-mew*($G51+$I51*$D51)/SQRT(($G51+$I51*$D51)^2+($H51-$I51*$C51)^2),0) -> -0.578285296 | K51: =-mew*($H51-$C51*$I51)/SQRT(($G51+$D51*$I51)^2+($H51-$I51*$C51)^2) -> -2.943736761 | L51: -3.695576901 | M51: =($I51-$I50)/DT -> 2.64329802 | N51: =IF(Q51<>0,mazalazo*(($D51*$J51-$C51*$K51)-2*$I51*($C51*$G51+$D51*$H51))/(INERTIA+mazalazo*($C51^2+$D51^2)),0) -> 2.733376546 | O51: -0.8049740016 | P51: =IF(Q51<>0,G51*COS(O51)+H51*SIN(O51)+F51*$I51,0) -> -1.418452797 | Q51: -2.615079543 | R51: =R50+mazalazo*($I51^2*($E51*$P51+$F51*$U51))*DT -> 13.31691767 | S51: =IF(Q51<>0,$J51*COS($O51)+$K51*SIN($Z51)+2*$U51*$I51+$E51*$I51^2+$F51*$N51,0) -> -15.30714519 | T51: =IF(Q51<>0,-$J51*SIN($O51)+$K51*COS($O51)-2*$P51*$I51+$F51*$I51^2-$E51*$N51,0) -> 4.303766289 | U51: =IF(Q51<>0,-$G51*SIN(O51)+$H51*COS(O51)-$E51*$I51,0) -> 2.025187897 | V51: 1.382300768 | W51: 1.040760107 | X51: 0.8907472434 | Y51: 0.7866711883 | Z51: 0.7123446509 | AA51: 0.9408206002 | AB51: 0.9514253621 | AC51: 6.669965681 | AD51: 7.382888018 | AE51: 0.002084655275 | AF51: -4.292344649 | AG51: 5.291653162 | AH51: 0.8237878561 | AI51: 0.9352558538 | AJ51: -0.8049740016 | AL51: FALSE | AN51: 0.2073451151 | AO51: 1.382300768 | AP51: -1.254773604 | AQ51: 1.894757699 | AR51: -0.08755757308 | AS51: -0.845926672 | AT51: 11 | AU51: 0.2073451151 | AV51: -2.615079543 | AW51: 9.170091532 | AX51: =1/2*(INERTIA+mazalazo*($C51^2+$D51^2))*$I51^2 -> 161.565655 | AY51: -0.845926672 | AZ51: -0.08755757308 | BA51: -2.615079543 | BB51: 170.7357466 | BC51: 9.855911455 | BD51: 180.591658 | BF51: 0.2073451151 | BG51: 0.4766088482 | BH51: =$H51-($I51*$C51) -> 2.426157118 | BI51: 2.472527928 | BJ51: -0.589337984 | BK51: -2.943736761 | BL51: =BL50+mazalazo*($I51*(BM51^2+BN51^2)+BM51*BR51-BN51*BQ51)*$BS51*DT -> -0.7782663142 | BM51: 0.8237878561 | BN51: 0.9352558538 | BO51: -0.1031521688 | BP51: 1.242050552 | BQ51: 3.932918777 | BR51: -0.618214254 | BS51: 0.2375951311 | BT51: 2.64329802 | BU51: 2.733376546
A52: 0 | B52: 12 | C52: 0.8978157324 | D52: 0.9230804624 | E52: -0.1312561393 | F52: 1.280984955 | G52: 3.921515321 | H52: -0.6736004007 | I52: -3.642463685 | J52: =IF(($G52+$I52*$D52)^2+($H52-$I52*$D52)^2<>0,-mew*($G52+$I52*$D52)/SQRT(($G52+$I52*$D52)^2+($H52-$I52*$C52)^2),0) -> -0.6316115302 | K52: =-mew*($H52-$C52*$I52)/SQRT(($G52+$D52*$I52)^2+($H52-$I52*$C52)^2) -> -2.932757555 | L52: -3.642463685 | M52: =($I52-$I51)/DT -> 2.81774362 | N52: =IF(Q52<>0,mazalazo*(($D52*$J52-$C52*$K52)-2*$I52*($C52*$G52+$D52*$H52))/(INERTIA+mazalazo*($C52^2+$D52^2)),0) -> 2.899227565 | O52: -0.8736328245 | P52: =IF(Q52<>0,G52*COS(O52)+H52*SIN(O52)+F52*$I52,0) -> -1.631722608 | Q52: -3.065692782 | R52: =R51+mazalazo*($I52^2*($E52*$P52+$F52*$U52))*DT -> 15.49193474 | S52: =IF(Q52<>0,$J52*COS($O52)+$K52*SIN($Z52)+2*$U52*$I52+$E52*$I52^2+$F52*$N52,0) -> -15.77811145 | T52: =IF(Q52<>0,-$J52*SIN($O52)+$K52*COS($O52)-2*$P52*$I52+$F52*$I52^2-$E52*$N52,0) -> 3.121882515 | U52: =IF(Q52<>0,-$G52*SIN(O52)+$H52*COS(O52)-$E52*$I52,0) -> 2.09591624 | V52: 1.507964474 | W52: 0.4167225998 | X52: 0.9695815138 | Y52: 0.8608017942 | Z52: 0.7866711883 | AA52: 0.9291681581 | AB52: 0.9408206002 | AC52: 6.080122935 | AD52: 6.669965681 | AE52: 0.002774731015 | AF52: -4.287741868 | AG52: 5.286999067 | AH52: 0.8978157324 | AI52: 0.9230804624 | AJ52: -0.8736328245 | AL52: FALSE | AN52: 0.2261946711 | AO52: 1.507964474 | AP52: -1.754936709 | AQ52: 1.957942993 | AR52: -0.1159092445 | AS52: -1.143509379 | AT52: 12 | AU52: 0.2261946711 | AV52: -3.065692782 | AW52: 10.58307533 | AX52: =1/2*(INERTIA+mazalazo*($C52^2+$D52^2))*$I52^2 -> 159.04102 | AY52: -1.143509379 | AZ52: -0.1159092445 | BA52: -3.065692782 | BB52: 169.6240953 | BC52: 11.28273258 | BD52: 180.9068279 | BF52: 0.2261946711 | BG52: 0.559228259 | BH52: =$H52-($I52*$C52) -> 2.5966608 | BI52: 2.656197198 | BJ52: -0.6460931581 | BK52: -2.932757555 | BL52: =BL51+mazalazo*($I52*(BM52^2+BN52^2)+BM52*BR52-BN52*BQ52)*$BS52*DT -> -0.9261945745 | BM52: 0.8978157324 | BN52: 0.9230804624 | BO52: -0.1312561393 | BP52: 1.280984955 | BQ52: 3.921515321 | BR52: -0.6736004007 | BS52: 0.2548562833 | BT52: 2.81774362 | BU52: 2.899227565
A53: 0 | B53: 13 | C53: 0.9716192016 | D53: 0.9098630735 | E53: -0.1633490933 | F53: 1.321064631 | G53: 3.909109305 | H53: -0.7287706375 | I53: -3.586387886 | J53: =IF(($G53+$I53*$D53)^2+($H53-$I53*$D53)^2<>0,-mew*($G53+$I53*$D53)/SQRT(($G53+$I53*$D53)^2+($H53-$I53*$C53)^2),0) -> -0.6846634965 | K53: =-mew*($H53-$C53*$I53)/SQRT(($G53+$D53*$I53)^2+($H53-$I53*$C53)^2) -> -2.920827947 | L53: -3.586387886 | M53: =($I53-$I52)/DT -> 2.974913499 | N53: =IF(Q53<>0,mazalazo*(($D53*$J53-$C53*$K53)-2*$I53*($C53*$G53+$D53*$H53))/(INERTIA+mazalazo*($C53^2+$D53^2)),0) -> 3.047691959 | O53: -0.9412346435 | P53: =IF(Q53<>0,G53*COS(O53)+H53*SIN(O53)+F53*$I53,0) -> -1.847148795 | Q53: -3.545881288 | R53: =R52+mazalazo*($I53^2*($E53*$P53+$F53*$U53))*DT -> 17.77220383 | S53: =IF(Q53<>0,$J53*COS($O53)+$K53*SIN($Z53)+2*$U53*$I53+$E53*$I53^2+$F53*$N53,0) -> -16.07682018 | T53: =IF(Q53<>0,-$J53*SIN($O53)+$K53*COS($O53)-2*$P53*$I53+$F53*$I53^2-$E53*$N53,0) -> 1.967262599 | U53: =IF(Q53<>0,-$G53*SIN(O53)+$H53*COS(O53)-$E53*$I53,0) -> 2.144750546 | V53: 1.63362818 | W53: -0.2122747387 | X53: 0.9695815138 | Y53: 0.934717467 | Z53: 0.8608017942 | AA53: 0.916471768 | AB53: 0.9291681581 | AC53: 5.583816129 | AD53: 6.080122935 | AE53: 0.003614442916 | AF53: -4.282636316 | AG53: 5.281825066 | AH53: 0.9716192016 | AI53: 0.9098630735 | AJ53: -0.9412346435 | AL53: FALSE | AN53: 0.245044227 | AO53: 1.63362818 | AP53: -2.259075095 | AQ53: 1.957942993 | AR53: -0.1468872155 | AS53: -1.503681933 | AT53: 13 | AU53: 0.245044227 | AV53: -3.545881288 | AW53: 12.01787036 | AX53: =1/2*(INERTIA+mazalazo*($C53^2+$D53^2))*$I53^2 -> 156.3763291 | AY53: -1.503681933 | AZ53: -0.1468872155 | BA53: -3.545881288 | BB53: 168.3941995 | BC53: 12.72264061 | BD53: 181.1168401 | BF53: 0.245044227 | BG53: 0.6459873996 | BH53: =$H53-($I53*$C53) -> 2.755832697 | BI53: 2.830532384 | BJ53: -0.7032220065 | BK53: -2.920827947 | BL53: =BL52+mazalazo*($I53*(BM53^2+BN53^2)+BM53*BR53-BN53*BQ53)*$BS53*DT -> -1.089052836 | BM53: 0.9716192016 | BN53: 0.9098630735 | BO53: -0.1633490933 | BP53: 1.321064631 | BQ53: 3.909109305 | BR53: -0.7287706375 | BS53: 0.2711949345 | BT53: 2.974913499 | BU53: 3.047691959
A54: 0 | B54: 14 | C54: 1.045179414 | D54: 0.8956079258 | E54: -0.1994482057 | F54: 1.361886183 | G54: 3.895705747 | H54: -0.7837070465 | I54: -3.527677931 | J54: =IF(($G54+$I54*$D54)^2+($H54-$I54*$D54)^2<>0,-mew*($G54+$I54*$D54)/SQRT(($G54+$I54*$D54)^2+($H54-$I54*$C54)^2),0) -> -0.7374555619 | K54: =-mew*($H54-$C54*$I54)/SQRT(($G54+$D54*$I54)^2+($H54-$I54*$C54)^2) -> -2.907947609 | L54: -3.527677931 | M54: =($I54-$I53)/DT -> 3.114659852 | N54: =IF(Q54<>0,mazalazo*(($D54*$J54-$C54*$K54)-2*$I54*($C54*$G54+$D54*$H54))/(INERTIA+mazalazo*($C54^2+$D54^2)),0) -> 3.178731427 | O54: -1.007729806 | P54: =IF(Q54<>0,G54*COS(O54)+H54*SIN(O54)+F54*$I54,0) -> -2.062118818 | Q54: -4.05401452 | R54: =R53+mazalazo*($I54^2*($E54*$P54+$F54*$U54))*DT -> 20.14361345 | S54: =IF(Q54<>0,$J54*COS($O54)+$K54*SIN($Z54)+2*$U54*$I54+$E54*$I54^2+$F54*$N54,0) -> -16.21274789 | T54: =IF(Q54<>0,-$J54*SIN($O54)+$K54*COS($O54)-2*$P54*$I54+$F54*$I54^2-$E54*$N54,0) -> 0.8572001825 | U54: =IF(Q54<>0,-$G54*SIN(O54)+$H54*COS(O54)-$E54*$I54,0) -> 2.172377797 | V54: 1.759291886 | W54: -0.8363122454 | X54: 0.8907472434 | Y54: 1.008399308 | Z54: 0.934717467 | AA54: 0.9027354997 | AB54: 0.916471768 | AC54: 5.160256033 | AD54: 5.583816129 | AE54: 0.004617029873 | AF54: -4.277038055 | AG54: 5.276137896 | AH54: 1.045179414 | AI54: 0.8956079258 | AJ54: -1.007729806 | AL54: FALSE | AN54: 0.2638937829 | AO54: 1.759291886 | AP54: -2.759238199 | AQ54: 1.894757699 | AR54: -0.1804732132 | AS54: -1.930612319 | AT54: 14 | AU54: 0.2638937829 | AV54: -4.05401452 | AW54: 13.45733897 | AX54: =1/2*(INERTIA+mazalazo*($C54^2+$D54^2))*$I54^2 -> 153.5873041 | AY54: -1.930612319 | AZ54: -0.1804732132 | BA54: -4.05401452 | BB54: 167.044643 | BC54: 14.15898661 | BD54: 181.2036296 | BF54: 0.2638937829 | BG54: 0.7362894321 | BH54: =$H54-($I54*$C54) -> 2.903349305 | BI54: 2.995256135 | BJ54: -0.7608000499 | BK54: -2.907947609 | BL54: =BL53+mazalazo*($I54*(BM54^2+BN54^2)+BM54*BR54-BN54*BQ54)*$BS54*DT -> -1.267176831 | BM54: 1.045179414 | BN54: 0.8956079258 | BO54: -0.1994482057 | BP54: 1.361886183 | BQ54: 3.895705747 | BR54: -0.7837070465 | BS54: 0.2865814655 | BT54: 3.114659852 | BU54: 3.178731427
A55: 0 | B55: 15 | C55: 1.118477611 | D55: 0.8803195957 | E55: -0.2395238908 | F55: 1.403062031 | G55: 3.881309477 | H55: -0.8383917047 | I55: -3.466661022 | J55: =IF(($G55+$I55*$D55)^2+($H55-$I55*$D55)^2<>0,-mew*($G55+$I55*$D55)/SQRT(($G55+$I55*$D55)^2+($H55-$I55*$C55)^2),0) -> -0.7899940488 | K55: =-mew*($H55-$C55*$I55)/SQRT(($G55+$D55*$I55)^2+($H55-$I55*$C55)^2) -> -2.894116342 | L55: -3.466661022 | M55: =($I55-$I54)/DT -> 3.237047573 | N55: =IF(Q55<>0,mazalazo*(($D55*$J55-$C55*$K55)-2*$I55*($C55*$G55+$D55*$H55))/(INERTIA+mazalazo*($C55^2+$D55^2)),0) -> 3.292510659 | O55: -1.073074827 | P55: =IF(Q55<>0,G55*COS(O55)+H55*SIN(O55)+F55*$I55,0) -> -2.274235484 | Q55: -4.588429127 | R55: =R54+mazalazo*($I55^2*($E55*$P55+$F55*$U55))*DT -> 22.59223724 | S55: =IF(Q55<>0,$J55*COS($O55)+$K55*SIN($Z55)+2*$U55*$I55+$E55*$I55^2+$F55*$N55,0) -> -16.19760491 | T55: =IF(Q55<>0,-$J55*SIN($O55)+$K55*COS($O55)-2*$P55*$I55+$F55*$I55^2-$E55*$N55,0) -> -0.1936081268 | U55: =IF(Q55<>0,-$G55*SIN(O55)+$H55*COS(O55)-$E55*$I55,0) -> 2.179783435 | V55: 1.884955592 | W55: -1.445548476 | X55: 0.7343219663 | Y55: 1.081828512 | Z55: 1.008399308 | AA55: 0.8879637607 | AB55: 0.9027354997 | AC55: 4.794388717 | AD55: 5.160256033 | AE55: 0.005795703191 | AF55: -4.270955799 | AG55: 5.26994266 | AH55: 1.118477611 | AI55: 0.8803195957 | AJ55: -1.073074827 | AL55: FALSE | AN55: 0.2827433388 | AO55: 1.884955592 | AP55: -3.247538151 | AQ55: 1.769383581 | AR55: -0.2166535176 | AS55: -2.42750531 | AT55: 15 | AU55: 0.2827433388 | AV55: -4.588429127 | AW55: 14.88540429 | AX55: =1/2*(INERTIA+mazalazo*($C55^2+$D55^2))*$I55^2 -> 150.6896092 | AY55: -2.42750531 | AZ55: -0.2166535176 | BA55: -4.588429127 | BB55: 165.5750135 | BC55: 15.5763028 | BD55: 181.1513163 | BF55: 0.2827433388 | BG55: 0.8295398478 | BH55: =$H55-($I55*$C55) -> 3.038991033 | BI55: 3.150175052 | BJ55: -0.8188966392 | BK55: -2.894116342 | BL55: =BL54+mazalazo*($I55*(BM55^2+BN55^2)+BM55*BR55-BN55*BQ55)*$BS55*DT -> -1.460837817 | BM55: 1.118477611 | BN55: 0.8803195957 | BO55: -0.2395238908 | BP55: 1.403062031 | BQ55: 3.881309477 | BR55: -0.8383917047 | BS55: 0.300996155 | BT55: 3.237047573 | BU55: 3.292510659
A56: 0 | B56: 16 | C56: 1.191495126 | D56: 0.8640029976 | E56: -0.283504152 | F56: 1.444225471 | G56: 3.86592526 | H56: -0.8928066868 | I56: -3.403659511 | J56: =IF(($G56+$I56*$D56)^2+($H56-$I56*$D56)^2<>0,-mew*($G56+$I56*$D56)/SQRT(($G56+$I56*$D56)^2+($H56-$I56*$C56)^2),0) -> -0.8422797897 | K56: =-mew*($H56-$C56*$I56)/SQRT(($G56+$D56*$I56)^2+($H56-$I56*$C56)^2) -> -2.879334082 | L56: -3.403659511 | M56: =($I56-$I55)/DT -> 3.342333953 | N56: =IF(Q56<>0,mazalazo*(($D56*$J56-$C56*$K56)-2*$I56*($C56*$G56+$D56*$H56))/(INERTIA+mazalazo*($C56^2+$D56^2)),0) -> 3.389375785 | O56: -1.137232297 | P56: =IF(Q56<>0,G56*COS(O56)+H56*SIN(O56)+F56*$I56,0) -> -2.48134761 | Q56: -5.147442479 | R56: =R55+mazalazo*($I56^2*($E56*$P56+$F56*$U56))*DT -> 25.10448365 | S56: =IF(Q56<>0,$J56*COS($O56)+$K56*SIN($Z56)+2*$U56*$I56+$E56*$I56^2+$F56*$N56,0) -> -16.0447564 | T56: =IF(Q56<>0,-$J56*SIN($O56)+$K56*COS($O56)-2*$P56*$I56+$F56*$I56^2-$E56*$N56,0) -> -1.173195525 | U56: =IF(Q56<>0,-$G56*SIN(O56)+$H56*COS(O56)-$E56*$I56,0) -> 2.168200994 | V56: 2.010619298 | W56: -2.030375411 | X56: 0.5027726024 | Y56: 1.154986369 | Z56: 1.081828512 | AA56: 0.8721612966 | AB56: 0.8879637607 | AC56: 4.475045272 | AD56: 4.794388717 | AE56: 0.007163639302 | AF56: -4.264397381 | AG56: 5.26324329 | AH56: 1.191495126 | AI56: 0.8640029976 | AJ56: -1.137232297 | AL56: FALSE | AN56: 0.3015928947 | AO56: 2.010619298 | AP56: -3.716274168 | AQ56: 1.583797863 | AR56: -0.255417742 | AS56: -2.996544619 | AT56: 16 | AU56: 0.3015928947 | AV56: -5.147442479 | AW56: 16.28727227 | AX56: =1/2*(INERTIA+mazalazo*($C56^2+$D56^2))*$I56^2 -> 147.6986774 | AY56: -2.996544619 | AZ56: -0.255417742 | BA56: -5.147442479 | BB56: 163.9859497 | BC56: 16.96049655 | BD56: 180.9464462 | BF56: 0.3015928947 | BG56: 0.9251532398 | BH56: =$H56-($I56*$C56) -> 3.162637032 | BI56: 3.295175491 | BJ56: -0.8775776958 | BK56: -2.879334082 | BL56: =BL55+mazalazo*($I56*(BM56^2+BN56^2)+BM56*BR56-BN56*BQ56)*$BS56*DT -> -1.670235712 | BM56: 1.191495126 | BN56: 0.8640029976 | BO56: -0.283504152 | BP56: 1.444225471 | BQ56: 3.86592526 | BR56: -0.8928066868 | BS56: 0.3144284124 | BT56: 3.342333953 | BU56: 3.389375785
A57: 0 | B57: 17 | C57: 1.264213382 | D57: 0.8466633836 | E57: -0.3312793922 | F57: 1.485034789 | G57: 3.849557884 | H57: -0.9469340674 | I57: -3.338987699 | J57: =IF(($G57+$I57*$D57)^2+($H57-$I57*$D57)^2<>0,-mew*($G57+$I57*$D57)/SQRT(($G57+$I57*$D57)^2+($H57-$I57*$C57)^2),0) -> -0.8943097454 | K57: =-mew*($H57-$C57*$I57)/SQRT(($G57+$D57*$I57)^2+($H57-$I57*$C57)^2) -> -2.863600894 | L57: -3.338987699 | M57: =($I57-$I56)/DT -> 3.430946182 | N57: =IF(Q57<>0,mazalazo*(($D57*$J57-$C57*$K57)-2*$I57*($C57*$G57+$D57*$H57))/(INERTIA+mazalazo*($C57^2+$D57^2)),0) -> 3.469831069 | O57: -1.200170732 | P57: =IF(Q57<>0,G57*COS(O57)+H57*SIN(O57)+F57*$I57,0) -> -2.681570209 | Q57: -5.729365328 | R57: =R56+mazalazo*($I57^2*($E57*$P57+$F57*$U57))*DT -> 27.66722569 | S57: =IF(Q57<>0,$J57*COS($O57)+$K57*SIN($Z57)+2*$U57*$I57+$E57*$I57^2+$F57*$N57,0) -> -15.76866368 | T57: =IF(Q57<>0,-$J57*SIN($O57)+$K57*COS($O57)-2*$P57*$I57+$F57*$I57^2-$E57*$N57,0) -> -2.072342039 | U57: =IF(Q57<>0,-$G57*SIN(O57)+$H57*COS(O57)-$E57*$I57,0) -> 2.139060489 | V57: 2.136283004 | W57: -2.581569981 | X57: 0.1997508235 | Y57: 1.227854254 | Z57: 1.154986369 | AA57: 0.8553331906 | AB57: 0.8721612966 | AC57: 4.193764418 | AD57: 4.475045272 | AE57: 0.008733972758 | AF57: -4.257370068 | AG57: 5.256042863 | AH57: 1.264213382 | AI57: 0.8466633836 | AJ57: -1.200170732 | AL57: FALSE | AN57: 0.3204424507 | AO57: 2.136283004 | AP57: -4.158054003 | AQ57: 1.340927343 | AR57: -0.2967579786 | AS57: -3.638871515 | AT57: 17 | AU57: 0.3204424507 | AV57: -5.729365328 | AW57: 17.64959784 | AX57: =1/2*(INERTIA+mazalazo*($C57^2+$D57^2))*$I57^2 -> 144.6295556 | AY57: -3.638871515 | AZ57: -0.2967579786 | BA57: -5.729365328 | BB57: 162.2791535 | BC57: 18.29898885 | BD57: 180.5781423 | BF57: 0.3204424507 | BG57: 1.02255926 | BH57: =$H57-($I57*$C57) -> 3.274258865 | BI57: 3.430218442 | BJ57: -0.9369075285 | BK57: -2.863600894 | BL57: =BL56+mazalazo*($I57*(BM57^2+BN57^2)+BM57*BR57-BN57*BQ57)*$BS57*DT -> -1.895494269 | BM57: 1.264213382 | BN57: 0.8466633836 | BO57: -0.3312793922 | BP57: 1.485034789 | BQ57: 3.849557884 | BR57: -0.9469340674 | BS57: 0.3268760416 | BT57: 3.430946182 | BU57: 3.469831069
A58: 0 | B58: 18 | C58: 1.336613893 | D58: 0.8283063439 | E58: -0.3827074969 | F58: 1.525176406 | G58: 3.832212221 | H58: -1.000755924 | I58: -3.272949081 | J58: =IF(($G58+$I58*$D58)^2+($H58-$I58*$D58)^2<>0,-mew*($G58+$I58*$D58)/SQRT(($G58+$I58*$D58)^2+($H58-$I58*$C58)^2),0) -> -0.9460780601 | K58: =-mew*($H58-$C58*$I58)/SQRT(($G58+$D58*$I58)^2+($H58-$I58*$C58)^2) -> -2.846916982 | L58: -3.272949081 | M58: =($I58-$I57)/DT -> 3.503457529 | N58: =IF(Q58<>0,mazalazo*(($D58*$J58-$C58*$K58)-2*$I58*($C58*$G58+$D58*$H58))/(INERTIA+mazalazo*($C58^2+$D58^2)),0) -> 3.534514726 | O58: -1.261864369 | P58: =IF(Q58<>0,G58*COS(O58)+H58*SIN(O58)+F58*$I58,0) -> -2.873294836 | Q58: -6.332513479 | R58: =R57+mazalazo*($I58^2*($E58*$P58+$F58*$U58))*DT -> 30.26790991 | S58: =IF(Q58<>0,$J58*COS($O58)+$K58*SIN($Z58)+2*$U58*$I58+$E58*$I58^2+$F58*$N58,0) -> -15.38436731 | T58: =IF(Q58<>0,-$J58*SIN($O58)+$K58*COS($O58)-2*$P58*$I58+$F58*$I58^2-$E58*$N58,0) -> -2.884492039 | U58: =IF(Q58<>0,-$G58*SIN(O58)+$H58*COS(O58)-$E58*$I58,0) -> 2.093937545 | V58: 2.261946711 | W58: -3.090439517 | X58: -0.1699645358 | Y58: 1.300413637 | Z58: 1.227854254 | AA58: 0.8374848638 | AB58: 0.8553331906 | AC58: 3.944018839 | AD58: 4.193764418 | AE58: 0.01051978949 | AF58: -4.249880773 | AG58: 5.248343816 | AH58: 1.336613893 | AI58: 0.8283063439 | AJ58: -1.261864369 | AL58: FALSE | AN58: 0.3392920066 | AO58: 2.261946711 | AP58: -4.565910525 | AQ58: 1.044602235 | AR58: -0.3406681814 | AS58: -4.354596691 | AT58: 18 | AU58: 0.3392920066 | AV58: -6.332513479 | AW58: 18.96059648 | AX58: =1/2*(INERTIA+mazalazo*($C58^2+$D58^2))*$I58^2 -> 141.4967731 | AY58: -4.354596691 | AZ58: -0.3406681814 | BA58: -6.332513479 | BB58: 160.4573695 | BC58: 19.58079974 | BD58: 180.0381693 | BF58: 0.3392920066 | BG58: 1.121207734 | BH58: =$H58-($I58*$C58) -> 3.373913288 | BI58: 3.555333691 | BJ58: -0.9969501035 | BK58: -2.846916982 | BL58: =BL57+mazalazo*($I58*(BM58^2+BN58^2)+BM58*BR58-BN58*BQ58)*$BS58*DT -> -2.136658282 | BM58: 1.336613893 | BN58: 0.8283063439 | BO58: -0.3827074969 | BP58: 1.525176406 | BQ58: 3.832212221 | BR58: -1.000755924 | BS58: 0.3383445088 | BT58: 3.503457529 | BU58: 3.534514726
A59: 0 | B59: 19 | C59: 1.408678264 | D59: 0.8089378064 | E59: -0.4376190153 | F59: 1.5643671 | G59: 3.813893275 | H59: -1.054254338 | I59: -3.205834048 | J59: =IF(($G59+$I59*$D59)^2+($H59-$I59*$D59)^2<>0,-mew*($G59+$I59*$D59)/SQRT(($G59+$I59*$D59)^2+($H59-$I59*$C59)^2),0) -> -0.9975767695 | K59: =-mew*($H59-$C59*$I59)/SQRT(($G59+$D59*$I59)^2+($H59-$I59*$C59)^2) -> -2.829282699 | L59: -3.205834048 | M59: =($I59-$I58)/DT -> 3.560563067 | N59: =IF(Q59<>0,mazalazo*(($D59*$J59-$C59*$K59)-2*$I59*($C59*$G59+$D59*$H59))/(INERTIA+mazalazo*($C59^2+$D59^2)),0) -> 3.584174676 | O59: -1.322292917 | P59: =IF(Q59<>0,G59*COS(O59)+H59*SIN(O59)+F59*$I59,0) -> -3.055191135 | Q59: -6.955218386 | R59: =R58+mazalazo*($I59^2*($E59*$P59+$F59*$U59))*DT -> 32.8946446 | S59: =IF(Q59<>0,$J59*COS($O59)+$K59*SIN($Z59)+2*$U59*$I59+$E59*$I59^2+$F59*$N59,0) -> -14.90702795 | T59: =IF(Q59<>0,-$J59*SIN($O59)+$K59*COS($O59)-2*$P59*$I59+$F59*$I59^2-$E59*$N59,0) -> -3.605591111 | U59: =IF(Q59<>0,-$G59*SIN(O59)+$H59*COS(O59)-$E59*$I59,0) -> 2.034504964 | V59: 2.387610417 | W59: -3.548958843 | X59: -0.6005428436 | Y59: 1.372646078 | Z59: 1.300413637 | AA59: 0.8186220751 | AB59: 0.8374848638 | AC59: 3.720692447 | AD59: 3.944018839 | AE59: 0.0125341203 | AF59: -4.241936215 | AG59: 5.240148103 | AH59: 1.408678264 | AI59: 0.8089378064 | AJ59: -1.322292917 | AL59: FALSE | AN59: 0.3581415625 | AO59: 2.387610417 | AP59: -4.933411593 | AQ59: 0.6994957613 | AR59: -0.3871437091 | AS59: -5.142841152 | AT59: 19 | AU59: 0.3581415625 | AV59: -6.955218386 | AW59: 20.21010498 | AX59: =1/2*(INERTIA+mazalazo*($C59^2+$D59^2))*$I59^2 -> 138.3142307 | AY59: -5.142841152 | AZ59: -0.3871437091 | BA59: -6.955218386 | BB59: 158.5243357 | BC59: 20.79658506 | BD59: 179.3209207 | BF59: 0.3581415625 | BG59: 1.220572912 | BH59: =$H59-($I59*$C59) -> 3.461734404 | BI59: 3.67061348 | BJ59: -1.057769982 | BK59: -2.829282699 | BL59: =BL58+mazalazo*($I59*(BM59^2+BN59^2)+BM59*BR59-BN59*BQ59)*$BS59*DT -> -2.393692763 | BM59: 1.408678264 | BN59: 0.8089378064 | BO59: -0.4376190153 | BP59: 1.5643671 | BQ59: 3.813893275 | BR59: -1.054254338 | BS59: 0.3488462057 | BT59: 3.560563067 | BU59: 3.584174676
A60: 0 | B60: 20 | C60: 1.480388199 | D60: 0.7885640365 | E60: -0.4958222899 | F60: 1.602355365 | G60: 3.794606216 | H60: -1.1074114 | I60: -3.137918048 | J60: =IF(($G60+$I60*$D60)^2+($H60-$I60*$D60)^2<>0,-mew*($G60+$I60*$D60)/SQRT(($G60+$I60*$D60)^2+($H60-$I60*$C60)^2),0) -> -1.048796286 | K60: =-mew*($H60-$C60*$I60)/SQRT(($G60+$D60*$I60)^2+($H60-$I60*$C60)^2) -> -2.810698552 | L60: -3.137918048 | M60: =($I60-$I59)/DT -> 3.603055678 | N60: =IF(Q60<>0,mazalazo*(($D60*$J60-$C60*$K60)-2*$I60*($C60*$G60+$D60*$H60))/(INERTIA+mazalazo*($C60^2+$D60^2)),0) -> 3.619644916 | O60: -1.381441279 | P60: =IF(Q60<>0,G60*COS(O60)+H60*SIN(O60)+F60*$I60,0) -> -3.226200783 | Q60: -7.595836618 | R60: =R59+mazalazo*($I60^2*($E60*$P60+$F60*$U60))*DT -> 35.53626793 | S60: =IF(Q60<>0,$J60*COS($O60)+$K60*SIN($Z60)+2*$U60*$I60+$E60*$I60^2+$F60*$N60,0) -> -14.35153468 | T60: =IF(Q60<>0,-$J60*SIN($O60)+$K60*COS($O60)-2*$P60*$I60+$F60*$I60^2-$E60*$N60,0) -> -4.233862139 | U60: =IF(Q60<>0,-$G60*SIN(O60)+$H60*COS(O60)-$E60*$I60,0) -> 1.962488014 | V60: 2.513274123 | W60: -3.949896836 | X60: -1.085193623 | Y60: 1.444533232 | Z60: 1.372646078 | AA60: 0.7987509214 | AB60: 0.8186220751 | AC60: 3.519718509 | AD60: 3.720692447 | AE60: 0.01478993444 | AF60: -4.233543024 | AG60: 5.231457301 | AH60: 1.480388199 | AI60: 0.7885640365 | AJ60: -1.381441279 | AL60: FALSE | AN60: 0.3769911184 | AO60: 2.513274123 | AP60: -5.254761494 | AQ60: 0.3110504586 | AR60: -0.4361809771 | AS60: -6.00180121 | AT60: 20 | AU60: 0.3769911184 | AV60: -7.595836618 | AW60: 21.38959605 | AX60: =1/2*(INERTIA+mazalazo*($C60^2+$D60^2))*$I60^2 -> 135.0951128 | AY60: -6.00180121 | AZ60: -0.4361809771 | BA60: -7.595836618 | BB60: 156.4847088 | BC60: 21.9386301 | BD60: 178.4233389 | BF60: 0.3769911184 | BG60: 1.320156894 | BH60: =$H60-($I60*$C60) -> 3.537925448 | BI60: 3.77620586 | BJ60: -1.119433052 | BK60: -2.810698552 | BL60: =BL59+mazalazo*($I60*(BM60^2+BN60^2)+BM60*BR60-BN60*BQ60)*$BS60*DT -> -2.666483945 | BM60: 1.480388199 | BN60: 0.7885640365 | BO60: -0.4958222899 | BP60: 1.602355365 | BQ60: 3.794606216 | BR60: -1.1074114 | BS60: 0.3583997137 | BT60: 3.603055678 | BU60: 3.619644916
A61: 0 | B61: 21 | C61: 1.551725499 | D61: 0.7671916374 | E61: -0.5571084053 | F61: 1.63892198 | G61: 3.774356409 | H61: -1.160209213 | I61: -3.069460175 | J61: =IF(($G61+$I61*$D61)^2+($H61-$I61*$D61)^2<>0,-mew*($G61+$I61*$D61)/SQRT(($G61+$I61*$D61)^2+($H61-$I61*$C61)^2),0) -> -1.099725738 | K61: =-mew*($H61-$C61*$I61)/SQRT(($G61+$D61*$I61)^2+($H61-$I61*$C61)^2) -> -2.791165223 | L61: -3.069460175 | M61: =($I61-$I60)/DT -> 3.631802997 | N61: =IF(Q61<>0,mazalazo*(($D61*$J61-$C61*$K61)-2*$I61*($C61*$G61+$D61*$H61))/(INERTIA+mazalazo*($C61^2+$D61^2)),0) -> 3.641823102 | O61: -1.43929924 | P61: =IF(Q61<>0,G61*COS(O61)+H61*SIN(O61)+F61*$I61,0) -> -3.385525194 | Q61: -8.252758181 | R61: =R60+mazalazo*($I61^2*($E61*$P61+$F61*$U61))*DT -> 38.18239694 | S61: =IF(Q61<>0,$J61*COS($O61)+$K61*SIN($Z61)+2*$U61*$I61+$E61*$I61^2+$F61*$N61,0) -> -13.73218534 | T61: =IF(Q61<>0,-$J61*SIN($O61)+$K61*COS($O61)-2*$P61*$I61+$F61*$I61^2-$E61*$N61,0) -> -4.769539993 | U61: =IF(Q61<>0,-$G61*SIN(O61)+$H61*COS(O61)-$E61*$I61,0) -> 1.879624394 | V61: 2.638937829 | W61: -4.286930464 | X61: -1.616273641 | Y61: 1.516056849 | Z61: 1.444533232 | AA61: 0.7778778369 | AB61: 0.7987509214 | AC61: 3.337823687 | AD61: 3.519718509 | AE61: 0.01730013331 | AF61: -4.22470783 | AG61: 5.2222727 | AH61: 1.551725499 | AI61: 0.7671916374 | AJ61: -1.43929924 | AL61: FALSE | AN61: 0.3958406744 | AO61: 2.638937829 | AP61: -5.52489235 | AQ61: -0.1146076591 | AR61: -0.4877771848 | AS61: -6.928832388 | AT61: 21 | AU61: 0.3958406744 | AV61: -8.252758181 | AW61: 22.49215305 | AX61: =1/2*(INERTIA+mazalazo*($C61^2+$D61^2))*$I61^2 -> 131.8518192 | AY61: -6.928832388 | AZ61: -0.4877771848 | BA61: -8.252758181 | BB61: 154.3439723 | BC61: 23.00080637 | BD61: 177.3447787 | BF61: 0.3958406744 | BG61: 1.419492231 | BH61: =$H61-($I61*$C61) -> 3.602750409 | BI61: 3.87230793 | BJ61: -1.182007136 | BK61: -2.791165223 | BL61: =BL60+mazalazo*($I61*(BM61^2+BN61^2)+BM61*BR61-BN61*BQ61)*$BS61*DT -> -2.954841927 | BM61: 1.551725499 | BN61: 0.7671916374 | BO61: -0.5571084053 | BP61: 1.63892198 | BQ61: 3.774356409 | BR61: -1.160209213 | BS61: 0.3670290755 | BT61: 3.631802997 | BU61: 3.641823102
A62: 0 | B62: 22 | C62: 1.622672069 | D62: 0.7448275492 | E62: -0.621255857 | F62: 1.673879889 | G62: 3.75314943 | H62: -1.212629892 | I62: -3.000702164 | J62: =IF(($G62+$I62*$D62)^2+($H62-$I62*$D62)^2<>0,-mew*($G62+$I62*$D62)/SQRT(($G62+$I62*$D62)^2+($H62-$I62*$C62)^2),0) -> -1.15035321 | K62: =-mew*($H62-$C62*$I62)/SQRT(($G62+$D62*$I62)^2+($H62-$I62*$C62)^2) -> -2.770683579 | L62: -3.000702164 | M62: =($I62-$I61)/DT -> 3.647725772 | N62: =IF(Q62<>0,mazalazo*(($D62*$J62-$C62*$K62)-2*$I62*($C62*$G62+$D62*$H62))/(INERTIA+mazalazo*($C62^2+$D62^2)),0) -> 3.651649772 | O62: -1.495861143 | P62: =IF(Q62<>0,G62*COS(O62)+H62*SIN(O62)+F62*$I62,0) -> -3.532608345 | Q62: -8.924413699 | R62: =R61+mazalazo*($I62^2*($E62*$P62+$F62*$U62))*DT -> 40.82345895 | S62: =IF(Q62<>0,$J62*COS($O62)+$K62*SIN($Z62)+2*$U62*$I62+$E62*$I62^2+$F62*$N62,0) -> -13.06243917 | T62: =IF(Q62<>0,-$J62*SIN($O62)+$K62*COS($O62)-2*$P62*$I62+$F62*$I62^2-$E62*$N62,0) -> -5.214582716 | U62: =IF(Q62<>0,-$G62*SIN(O62)+$H62*COS(O62)-$E62*$I62,0) -> 1.787629445 | V62: 2.764601535 | W62: -4.554744506 | X62: -2.185407448 | Y62: 1.587198784 | Z62: 1.516056849 | AA62: 0.7560095933 | AB62: 0.7778778369 | AC62: 3.172343523 | AD62: 3.337823687 | AE62: 0.02007754418 | AF62: -4.215437323 | AG62: 5.212595358 | AH62: 1.622672069 | AI62: 0.7448275492 | AJ62: -1.495861143 | AL62: FALSE | AN62: 0.4146902303 | AO62: 2.764601535 | AP62: -5.739544035 | AQ62: -0.570765709 | AR62: -0.5419300985 | AS62: -7.920547014 | AT62: 22 | AU62: 0.4146902303 | AV62: -8.924413699 | AW62: 23.51241112 | AX62: =1/2*(INERTIA+mazalazo*($C62^2+$D62^2))*$I62^2 -> 128.5959176 | AY62: -7.920547014 | AZ62: -0.5419300985 | BA62: -8.924413699 | BB62: 152.1083287 | BC62: 23.97849823 | BD62: 176.0868269 | BF62: 0.4146902303 | BG62: 1.518143791 | BH62: =$H62-($I62*$C62) -> 3.656525698 | BI62: 3.959159096 | BJ62: -1.245562523 | BK62: -2.770683579 | BL62: =BL61+mazalazo*($I62*(BM62^2+BN62^2)+BM62*BR62-BN62*BQ62)*$BS62*DT -> -3.258504747 | BM62: 1.622672069 | BN62: 0.7448275492 | BO62: -0.621255857 | BP62: 1.673879889 | BQ62: 3.75314943 | BR62: -1.212629892 | BS62: 0.3747630861 | BT62: 3.647725772 | BU62: 3.651649772
A63: 0 | B63: 23 | C63: 1.693209922 | D63: 0.7214790493 | E63: -0.6880348612 | F63: 1.707073486 | G63: 3.730991092 | H63: -1.264655571 | I63: -2.931867769 | J63: =IF(($G63+$I63*$D63)^2+($H63-$I63*$D63)^2<>0,-mew*($G63+$I63*$D63)/SQRT(($G63+$I63*$D63)^2+($H63-$I63*$C63)^2),0) -> -1.200665921 | K63: =-mew*($H63-$C63*$I63)/SQRT(($G63+$D63*$I63)^2+($H63-$I63*$C63)^2) -> -2.749254689 | L63: -2.931867769 | M63: =($I63-$I62)/DT -> 3.651778052 | N63: =IF(Q63<>0,mazalazo*(($D63*$J63-$C63*$K63)-2*$I63*($C63*$G63+$D63*$H63))/(INERTIA+mazalazo*($C63^2+$D63^2)),0) -> 3.650089518 | O63: -1.551125549 | P63: =IF(Q63<>0,G63*COS(O63)+H63*SIN(O63)+F63*$I63,0) -> -3.667116063 | Q63: -9.609280469 | R63: =R62+mazalazo*($I63^2*($E63*$P63+$F63*$U63))*DT -> 43.45070713 | S63: =IF(Q63<>0,$J63*COS($O63)+$K63*SIN($Z63)+2*$U63*$I63+$E63*$I63^2+$F63*$N63,0) -> -12.35473806 | T63: =IF(Q63<>0,-$J63*SIN($O63)+$K63*COS($O63)-2*$P63*$I63+$F63*$I63^2-$E63*$N63,0) -> -5.572374812 | U63: =IF(Q63<>0,-$G63*SIN(O63)+$H63*COS(O63)-$E63*$I63,0) -> 1.688166893 | V63: 2.890265241 | W63: -4.749115373 | X63: -2.783619466 | Y63: 1.657940995 | Z63: 1.587198784 | AA63: 0.7331532993 | AB63: 0.7560095933 | AC63: 3.021087119 | AD63: 3.172343523 | AE63: 0.02313491384 | AF63: -4.205738296 | AG63: 5.202426156 | AH63: 1.693209922 | AI63: 0.7214790493 | AJ63: -1.551125549 | AL63: FALSE | AN63: 0.4335397862 | AO63: 2.890265241 | AP63: -5.895331363 | AQ63: -1.050229806 | AR63: -0.5986378712 | AS63: -8.972920577 | AT63: 23 | AU63: 0.4335397862 | AV63: -9.609280469 | AW63: 24.44647152 | AX63: =1/2*(INERTIA+mazalazo*($C63^2+$D63^2))*$I63^2 -> 125.3381126 | AY63: -8.972920577 | AZ63: -0.5986378712 | BA63: -9.609280469 | BB63: 149.7845842 | BC63: 24.86850608 | BD63: 174.6530903 | BF63: 0.4335397862 | BG63: 1.615709921 | BH63: =$H63-($I63*$C63) -> 3.699612025 | BI63: 4.037034516 | BJ63: -1.310172453 | BK63: -2.749254689 | BL63: =BL62+mazalazo*($I63*(BM63^2+BN63^2)+BM63*BR63-BN63*BQ63)*$BS63*DT -> -3.577143654 | BM63: 1.693209922 | BN63: 0.7214790493 | BO63: -0.6880348612 | BP63: 1.707073486 | BQ63: 3.730991092 | BR63: -1.264655571 | BS63: 0.3816346111 | BT63: 3.651778052 | BU63: 3.650089518
A64: 0 | B64: 24 | C64: 1.76332118 | D64: 0.6971537514 | E64: -0.7572112545 | F64: 1.73837742 | G64: 3.707887454 | H64: -1.316268408 | I64: -2.863162468 | J64: =IF(($G64+$I64*$D64)^2+($H64-$I64*$D64)^2<>0,-mew*($G64+$I64*$D64)/SQRT(($G64+$I64*$D64)^2+($H64-$I64*$C64)^2),0) -> -1.250650349 | K64: =-mew*($H64-$C64*$I64)/SQRT(($G64+$D64*$I64)^2+($H64-$I64*$C64)^2) -> -2.726879848 | L64: -2.863162468 | M64: =($I64-$I63)/DT -> 3.644929416 | N64: =IF(Q64<>0,mazalazo*(($D64*$J64-$C64*$K64)-2*$I64*($C64*$G64+$D64*$H64))/(INERTIA+mazalazo*($C64^2+$D64^2)),0) -> 3.638114316 | O64: -1.60509489 | P64: =IF(Q64<>0,G64*COS(O64)+H64*SIN(O64)+F64*$I64,0) -> -3.788913003 | Q64: -10.30588747 | R64: =R63+mazalazo*($I64^2*($E64*$P64+$F64*$U64))*DT -> 46.05622206 | S64: =IF(Q64<>0,$J64*COS($O64)+$K64*SIN($Z64)+2*$U64*$I64+$E64*$I64^2+$F64*$N64,0) -> -11.62039046 | T64: =IF(Q64<>0,-$J64*SIN($O64)+$K64*COS($O64)-2*$P64*$I64+$F64*$I64^2-$E64*$N64,0) -> -5.847435583 | U64: =IF(Q64<>0,-$G64*SIN(O64)+$H64*COS(O64)-$E64*$I64,0) -> 1.582825124 | V64: 3.015928947 | W64: -4.866977721 | X64: -3.401475532 | Y64: 1.728265551 | Z64: 1.657940995 | AA64: 0.7093164003 | AB64: 0.7331532993 | AC64: 2.882236376 | AD64: 3.021087119 | AE64: 0.02648490227 | AF64: -4.195617689 | AG64: 5.19176583 | AH64: 1.76332118 | AI64: 0.6971537514 | AJ64: -1.60509489 | AL64: FALSE | AN64: 0.4523893421 | AO64: 3.015928947 | AP64: -5.989797477 | AQ64: -1.545438516 | AR64: -0.6578988926 | AS64: -10.08140233 | AT64: 24 | AU64: 0.4523893421 | AV64: -10.30588747 | AW64: 25.29179567 | AX64: =1/2*(INERTIA+mazalazo*($C64^2+$D64^2))*$I64^2 -> 122.0882327 | AY64: -10.08140233 | AZ64: -0.6578988926 | BA64: -10.30588747 | BB64: 147.3800284 | BC64: 25.66893226 | BD64: 173.0489607 | BF64: 0.4523893421 | BG64: 1.711822998 | BH64: =$H64-($I64*$C64) -> 3.732406615 | BI64: 4.106238804 | BJ64: -1.375913593 | BK64: -2.726879848 | BL64: =BL63+mazalazo*($I64*(BM64^2+BN64^2)+BM64*BR64-BN64*BQ64)*$BS64*DT -> -3.91036934 | BM64: 1.76332118 | BN64: 0.6971537514 | BO64: -0.7572112545 | BP64: 1.73837742 | BQ64: 3.707887454 | BR64: -1.316268408 | BS64: 0.3876799426 | BT64: 3.644929416 | BU64: 3.638114316
A65: 0 | B65: 25 | C65: 1.832988086 | D65: 0.6718596053 | E65: -0.8285499526 | F65: 1.767695004 | G65: 3.683844836 | H65: -1.367450586 | I65: -2.794773463 | J65: =IF(($G65+$I65*$D65)^2+($H65-$I65*$D65)^2<>0,-mew*($G65+$I65*$D65)/SQRT(($G65+$I65*$D65)^2+($H65-$I65*$C65)^2),0) -> -1.300292332 | K65: =-mew*($H65-$C65*$I65)/SQRT(($G65+$D65*$I65)^2+($H65-$I65*$C65)^2) -> -2.703560588 | L65: -2.794773463 | M65: =($I65-$I64)/DT -> 3.628149423 | N65: =IF(Q65<>0,mazalazo*(($D65*$J65-$C65*$K65)-2*$I65*($C65*$G65+$D65*$H65))/(INERTIA+mazalazo*($C65^2+$D65^2)),0) -> 3.616689085 | O65: -1.657775129 | P65: =IF(Q65<>0,G65*COS(O65)+H65*SIN(O65)+F65*$I65,0) -> -3.898038392 | Q65: -11.01281935 | R65: =R64+mazalazo*($I65^2*($E65*$P65+$F65*$U65))*DT -> 48.63290127 | S65: =IF(Q65<>0,$J65*COS($O65)+$K65*SIN($Z65)+2*$U65*$I65+$E65*$I65^2+$F65*$N65,0) -> -10.86951028 | T65: =IF(Q65<>0,-$J65*SIN($O65)+$K65*COS($O65)-2*$P65*$I65+$F65*$I65^2-$E65*$N65,0) -> -6.045142594 | U65: =IF(Q65<>0,-$G65*SIN(O65)+$H65*COS(O65)-$E65*$I65,0) -> 1.473098782 | V65: 3.141592654 | W65: -4.906472791 | X65: -4.029231688 | Y65: 1.798154633 | Z65: 1.728265551 | AA65: 0.6845066783 | AB65: 0.7093164003 | AC65: 2.754269909 | AD65: 2.882236376 | AE65: 0.03014007614 | AF65: -4.185082614 | AG65: 5.180615006 | AH65: 1.832988086 | AI65: 0.6718596053 | AJ65: -1.657775129 | AL65: FALSE | AN65: 0.471238898 | AO65: 3.141592654 | AP65: -6.021452588 | AQ65: -2.0485821 | AR65: -0.7197116581 | AS65: -11.24102622 | AT65: 25 | AU65: 0.471238898 | AV65: -11.01281935 | AW65: 26.04708499 | AX65: =1/2*(INERTIA+mazalazo*($C65^2+$D65^2))*$I65^2 -> 118.8552294 | AY65: -11.24102622 | AZ65: -0.7197116581 | BA65: -11.01281935 | BB65: 144.9023144 | BC65: 26.3790557 | BD65: 171.2813701 | BF65: 0.471238898 | BG65: 1.80614944 | BH65: =$H65-($I65*$C65) -> 3.755335874 | BI65: 4.16710011 | BJ65: -1.442866498 | BK65: -2.703560588 | BL65: =BL64+mazalazo*($I65*(BM65^2+BN65^2)+BM65*BR65-BN65*BQ65)*$BS65*DT -> -4.257738911 | BM65: 1.832988086 | BN65: 0.6718596053 | BO65: -0.8285499526 | BP65: 1.767695004 | BQ65: 3.683844836 | BR65: -1.367450586 | BS65: 0.3929381989 | BT65: 3.628149423 | BU65: 3.616689085
A66: 0 | B66: 26 | C66: 1.902193 | D66: 0.6456048965 | E66: -0.9018179534 | F66: 1.794956342 | G66: 3.658869832 | H66: -1.418184318 | I66: -2.72686993 | J66: =IF(($G66+$I66*$D66)^2+($H66-$I66*$D66)^2<>0,-mew*($G66+$I66*$D66)/SQRT(($G66+$I66*$D66)^2+($H66-$I66*$C66)^2),0) -> -1.349577136 | K66: =-mew*($H66-$C66*$I66)/SQRT(($G66+$D66*$I66)^2+($H66-$I66*$C66)^2) -> -2.679298706 | L66: -2.72686993 | M66: =($I66-$I65)/DT -> 3.602394288 | N66: =IF(Q66<>0,mazalazo*(($D66*$J66-$C66*$K66)-2*$I66*($C66*$G66+$D66*$H66))/(INERTIA+mazalazo*($C66^2+$D66^2)),0) -> 3.58675949 | O66: -1.709175416 | P66: =IF(Q66<>0,G66*COS(O66)+H66*SIN(O66)+F66*$I66,0) -> -3.994681498 | Q66: -11.72871948 | R66: =R65+mazalazo*($I66^2*($E66*$P66+$F66*$U66))*DT -> 51.17443867 | S66: =IF(Q66<>0,$J66*COS($O66)+$K66*SIN($Z66)+2*$U66*$I66+$E66*$I66^2+$F66*$N66,0) -> -10.11100197 | T66: =IF(Q66<>0,-$J66*SIN($O66)+$K66*COS($O66)-2*$P66*$I66+$F66*$I66^2-$E66*$N66,0) -> -6.171477615 | U66: =IF(Q66<>0,-$G66*SIN(O66)+$H66*COS(O66)-$E66*$I66,0) -> 1.360375343 | V66: 3.26725636 | W66: -4.866977721 | X66: -4.656987844 | Y66: 1.867590543 | Z66: 1.798154633 | AA66: 0.6587322509 | AB66: 0.6845066783 | AC66: 2.635904863 | AD66: 2.754269909 | AE66: 0.03411290233 | AF66: -4.174140378 | AG66: 5.168974216 | AH66: 1.902193 | AI66: 0.6456048965 | AJ66: -1.709175416 | AL66: FALSE | AN66: 0.490088454 | AO66: 3.26725636 | AP66: -5.989797477 | AQ66: -2.551725684 | AR66: -0.7840746539 | AS66: -12.44651885 | AT66: 26 | AU66: 0.490088454 | AV66: -11.72871948 | AW66: 26.71215201 | AX66: =1/2*(INERTIA+mazalazo*($C66^2+$D66^2))*$I66^2 -> 115.6471895 | AY66: -12.44651885 | AZ66: -0.7840746539 | BA66: -11.72871948 | BB66: 142.3593416 | BC66: 26.99920034 | BD66: 169.3585419 | BF66: 0.490088454 | BG66: 1.898389253 | BH66: =$H66-($I66*$C66) -> 3.768848576 | BI66: 4.219964614 | BJ66: -1.511116099 | BK66: -2.679298706 | BL66: =BL65+mazalazo*($I66*(BM66^2+BN66^2)+BM66*BR66-BN66*BQ66)*$BS66*DT -> -4.618763374 | BM66: 1.902193 | BN66: 0.6456048965 | BO66: -0.9018179534 | BP66: 1.794956342 | BQ66: 3.658869832 | BR66: -1.418184318 | BS66: 0.3974507732 | BT66: 3.602394288 | BU66: 3.58675949
A67: 0 | B67: 27 | C67: 1.970918413 | D67: 0.6183982452 | E67: -0.9767868891 | F67: 1.820116248 | G67: 3.632969317 | H67: -1.468451857 | I67: -2.659603485 | J67: =IF(($G67+$I67*$D67)^2+($H67-$I67*$D67)^2<>0,-mew*($G67+$I67*$D67)/SQRT(($G67+$I67*$D67)^2+($H67-$I67*$C67)^2),0) -> -1.398489514 | K67: =-mew*($H67-$C67*$I67)/SQRT(($G67+$D67*$I67)^2+($H67-$I67*$C67)^2) -> -2.654096283 | L67: -2.659603485 | M67: =($I67-$I66)/DT -> 3.568595778 | N67: =IF(Q67<>0,mazalazo*(($D67*$J67-$C67*$K67)-2*$I67*($C67*$G67+$D67*$H67))/(INERTIA+mazalazo*($C67^2+$D67^2)),0) -> 3.549241902 | O67: -1.759307761 | P67: =IF(Q67<>0,G67*COS(O67)+H67*SIN(O67)+F67*$I67,0) -> -4.079157562 | Q67: -12.45229217 | R67: =R66+mazalazo*($I67^2*($E67*$P67+$F67*$U67))*DT -> 53.67529586 | S67: =IF(Q67<>0,$J67*COS($O67)+$K67*SIN($Z67)+2*$U67*$I67+$E67*$I67^2+$F67*$N67,0) -> -9.352583026 | T67: =IF(Q67<>0,-$J67*SIN($O67)+$K67*COS($O67)-2*$P67*$I67+$F67*$I67^2-$E67*$N67,0) -> -6.232799856 | U67: =IF(Q67<>0,-$G67*SIN(O67)+$H67*COS(O67)-$E67*$I67,0) -> 1.245926158 | V67: 3.392920066 | W67: -4.749115373 | X67: -5.274843911 | Y67: 1.936555707 | Z67: 1.867590543 | AA67: 0.6320015709 | AB67: 0.6587322509 | AC67: 2.526051905 | AD67: 2.635904863 | AE67: 0.0384157412 | AF67: -4.162798504 | AG67: 5.156843926 | AH67: 1.970918413 | AI67: 0.6183982452 | AJ67: -1.759307761 | AL67: FALSE | AN67: 0.5089380099 | AO67: 3.392920066 | AP67: -5.895331363 | AQ67: -3.046934393 | AR67: -0.8509862539 | AS67: -13.69240187 | AT67: =AT66+1 -> 27 | AU67: 0.5089380099 | AV67: -12.45229217 | AW67: 27.28778761 | AX67: =1/2*(INERTIA+mazalazo*($C67^2+$D67^2))*$I67^2 -> 112.4713574 | AY67: -13.69240187 | AZ67: -0.8509862539 | BA67: -12.45229217 | BB67: 139.7591451 | BC67: 27.53060182 | BD67: 167.2897469 | BF67: 0.5089380099 | BG67: 1.988275189 | BH67: =$H67-($I67*$C67) -> 3.773409623 | BI67: 4.265191485 | BJ67: -1.580752201 | BK67: -2.654096283 | BL67: =BL66+mazalazo*($I67*(BM67^2+BN67^2)+BM67*BR67-BN67*BQ67)*$BS67*DT -> -4.992915447 | BM67: 1.970918413 | BN67: 0.6183982452 | BO67: -0.9767868891 | BP67: 1.820116248 | BQ67: 3.632969317 | BR67: -1.468451857 | BS67: 0.4012608361 | BT67: 3.568595778 | BU67: 3.549241902
A68: 0 | B68: 28 | C68: 2.039146947 | D68: 0.5902486061 | E68: -1.053235142 | F68: 1.843152035 | G68: 3.606150458 | H68: -1.518235496 | I68: -2.593108807 | J68: =IF(($G68+$I68*$D68)^2+($H68-$I68*$D68)^2<>0,-mew*($G68+$I68*$D68)/SQRT(($G68+$I68*$D68)^2+($H68-$I68*$C68)^2),0) -> -1.447013748 | K68: =-mew*($H68-$C68*$I68)/SQRT(($G68+$D68*$I68)^2+($H68-$I68*$C68)^2) -> -2.62795571 | L68: -2.593108807 | M68: =($I68-$I67)/DT -> 3.527652213 | N68: =IF(Q68<>0,mazalazo*(($D68*$J68-$C68*$K68)-2*$I68*($C68*$G68+$D68*$H68))/(INERTIA+mazalazo*($C68^2+$D68^2)),0) -> 3.50501542 | O68: -1.80818671 | P68: =IF(Q68<>0,G68*COS(O68)+H68*SIN(O68)+F68*$I68,0) -> -4.151884808 | Q68: -13.18230409 | R68: =R67+mazalazo*($I68^2*($E68*$P68+$F68*$U68))*DT -> 56.1306669 | S68: =IF(Q68<>0,$J68*COS($O68)+$K68*SIN($Z68)+2*$U68*$I68+$E68*$I68^2+$F68*$N68,0) -> -8.600835445 | T68: =IF(Q68<>0,-$J68*SIN($O68)+$K68*COS($O68)-2*$P68*$I68+$F68*$I68^2-$E68*$N68,0) -> -6.23564907 | U68: =IF(Q68<>0,-$G68*SIN(O68)+$H68*COS(O68)-$E68*$I68,0) -> 1.130901459 | V68: 3.518583772 | W68: -4.554744506 | X68: -5.873055928 | Y68: 2.00503268 | Z68: 1.936555707 | AA68: 0.6043234257 | AB68: 0.6320015709 | AC68: 2.423780032 | AD68: 2.526051905 | AE68: 0.04306083985 | AF68: -4.151064744 | AG68: 5.144224546 | AH68: 2.039146947 | AI68: 0.5902486061 | AJ68: -1.80818671 | AL68: FALSE | AN68: 0.5277875658 | AO68: 3.518583772 | AP68: -5.739544035 | AQ68: -3.52639849 | AR68: -0.9204446234 | AS68: -14.97308676 | AT68: 28 | AU68: 0.5277875658 | AV68: -13.18230409 | AW68: 27.77562835 | AX68: =1/2*(INERTIA+mazalazo*($C68^2+$D68^2))*$I68^2 -> 109.334165 | AY68: -14.97308676 | AZ68: -0.9204446234 | BA68: -13.18230409 | BB68: 137.1097934 | BC68: 27.97527606 | BD68: 165.0850694 | BF68: 0.5277875658 | BG68: 2.075571599 | BH68: =$H68-($I68*$C68) -> 3.76949441 | BI68: 4.303148332 | BJ68: -1.651870018 | BK68: -2.62795571 | BL68: =BL67+mazalazo*($I68*(BM68^2+BN68^2)+BM68*BR68-BN68*BQ68)*$BS68*DT -> -5.379637521 | BM68: 2.039146947 | BN68: 0.5902486061 | BO68: -1.053235142 | BP68: 1.843152035 | BQ68: 3.606150458 | BR68: -1.518235496 | BS68: 0.4044128924 | BT68: 3.527652213 | BU68: 3.50501542
A69: 0 | B69: 29 | C69: 2.10686136 | D69: 0.5611652669 | E69: -1.130949548 | F69: 1.864061256 | G69: 3.578420724 | H69: -1.567517576 | I69: -2.527504409 | J69: =IF(($G69+$I69*$D69)^2+($H69-$I69*$D69)^2<>0,-mew*($G69+$I69*$D69)/SQRT(($G69+$I69*$D69)^2+($H69-$I69*$C69)^2),0) -> -1.49513369 | K69: =-mew*($H69-$C69*$I69)/SQRT(($G69+$D69*$I69)^2+($H69-$I69*$C69)^2) -> -2.600879707 | L69: -2.527504409 | M69: =($I69-$I68)/DT -> 3.480421431 | N69: =IF(Q69<>0,mazalazo*(($D69*$J69-$C69*$K69)-2*$I69*($C69*$G69+$D69*$H69))/(INERTIA+mazalazo*($C69^2+$D69^2)),0) -> 3.45491575 | O69: -1.855829046 | P69: =IF(Q69<>0,G69*COS(O69)+H69*SIN(O69)+F69*$I69,0) -> -4.213362964 | Q69: -13.917585 | R69: =R68+mazalazo*($I69^2*($E69*$P69+$F69*$U69))*DT -> 58.53643832 | S69: =IF(Q69<>0,$J69*COS($O69)+$K69*SIN($Z69)+2*$U69*$I69+$E69*$I69^2+$F69*$N69,0) -> -7.861278043 | T69: =IF(Q69<>0,-$J69*SIN($O69)+$K69*COS($O69)-2*$P69*$I69+$F69*$I69^2-$E69*$N69,0) -> -6.186579354 | U69: =IF(Q69<>0,-$G69*SIN(O69)+$H69*COS(O69)-$E69*$I69,0) -> 1.016328721 | V69: 3.644247478 | W69: -4.286930464 | X69: -6.442189736 | Y69: 2.073004153 | Z69: 2.00503268 | AA69: 0.5757069365 | AB69: 0.6043234257 | AC69: 2.328288796 | AD69: 2.423780032 | AE69: 0.04806032515 | AF69: -4.138947091 | AG69: 5.131116447 | AH69: 2.10686136 | AI69: 0.5611652669 | AJ69: -1.855829046 | AL69: FALSE | AN69: 0.5466371217 | AO69: 3.644247478 | AP69: -5.52489235 | AQ69: -3.98255654 | AR69: -0.9924476307 | AS69: -16.28296064 | AT69: 29 | AU69: 0.5466371217 | AV69: -13.917585 | AW69: 28.1780273 | AX69: =1/2*(INERTIA+mazalazo*($C69^2+$D69^2))*$I69^2 -> 106.2412683 | AY69: -16.28296064 | AZ69: -0.9924476307 | BA69: -13.917585 | BB69: 134.4192956 | BC69: 28.33589268 | BD69: 162.7551883 | BF69: 0.5466371217 | BG69: 2.160073038 | BH69: =$H69-($I69*$C69) -> 3.757583799 | BI69: 4.33420714 | BJ69: -1.724570751 | BK69: -2.600879707 | BL69: =BL68+mazalazo*($I69*(BM69^2+BN69^2)+BM69*BR69-BN69*BQ69)*$BS69*DT -> -5.778349623 | BM69: 2.10686136 | BN69: 0.5611652669 | BO69: -1.130949548 | BP69: 1.864061256 | BQ69: 3.578420724 | BR69: -1.567517576 | BS69: 0.4069523939 | BT69: 3.480421431 | BU69: 3.45491575
A70: 0 | B70: 30 | C70: 2.174044555 | D70: 0.5311578477 | E70: -1.209726722 | F70: 1.882859434 | G70: 3.54978789 | H70: -1.616280493 | I70: -2.462893493 | J70: =IF(($G70+$I70*$D70)^2+($H70-$I70*$D70)^2<>0,-mew*($G70+$I70*$D70)/SQRT(($G70+$I70*$D70)^2+($H70-$I70*$C70)^2),0) -> -1.542832784 | K70: =-mew*($H70-$C70*$I70)/SQRT(($G70+$D70*$I70)^2+($H70-$I70*$C70)^2) -> -2.572871353 | L70: -2.462893493 | M70: =($I70-$I69)/DT -> 3.427715543 | N70: =IF(Q70<>0,mazalazo*(($D70*$J70-$C70*$K70)-2*$I70*($C70*$G70+$D70*$H70))/(INERTIA+mazalazo*($C70^2+$D70^2)),0) -> 3.399730802 | O70: -1.902253494 | P70: =IF(Q70<>0,G70*COS(O70)+H70*SIN(O70)+F70*$I70,0) -> -4.264153596 | Q70: -14.65702794 | R70: =R69+mazalazo*($I70^2*($E70*$P70+$F70*$U70))*DT -> 60.88914573 | S70: =IF(Q70<>0,$J70*COS($O70)+$K70*SIN($Z70)+2*$U70*$I70+$E70*$I70^2+$F70*$N70,0) -> -7.138452847 | T70: =IF(Q70<>0,-$J70*SIN($O70)+$K70*COS($O70)-2*$P70*$I70+$F70*$I70^2-$E70*$N70,0) -> -6.092022958 | U70: =IF(Q70<>0,-$G70*SIN(O70)+$H70*COS(O70)-$E70*$I70,0) -> 0.903113842 | V70: 3.769911184 | W70: -3.949896836 | X70: -6.973269754 | Y70: 2.140452957 | Z70: 2.073004153 | AA70: 0.5461615573 | AB70: 0.5757069365 | AC70: 2.23888617 | AD70: 2.328288796 | AE70: 0.05342619669 | AF70: -4.126453793 | AG70: 5.11751997 | AH70: 2.174044555 | AI70: 0.5311578477 | AJ70: -1.902253494 | AL70: FALSE | AN70: 0.5654866776 | AO70: 3.769911184 | AP70: -5.254761494 | AQ70: -4.408214658 | AR70: -1.066992762 | AS70: -17.61646236 | AT70: 30 | AU70: 0.5654866776 | AV70: -14.65702794 | AW70: 28.49793075 | AX70: =1/2*(INERTIA+mazalazo*($C70^2+$D70^2))*$I70^2 -> 103.1975888 | AY70: -17.61646236 | AZ70: -1.066992762 | BA70: -14.65702794 | BB70: 131.6955195 | BC70: 28.61565543 | BD70: 160.311175 | BF70: 0.5654866776 | BG70: 2.241602683 | BH70: =$H70-($I70*$C70) -> 3.738159696 | BI70: 4.358740701 | BJ70: -1.798962216 | BK70: -2.572871353 | BL70: =BL69+mazalazo*($I70*(BM70^2+BN70^2)+BM70*BR70-BN70*BQ70)*$BS70*DT -> -6.188457263 | BM70: 2.174044555 | BN70: 0.5311578477 | BO70: -1.209726722 | BP70: 1.882859434 | BQ70: 3.54978789 | BR70: -1.616280493 | BS70: 0.4089254082 | BT70: 3.427715543 | BU70: 3.399730802
A71: 0 | B71: 31 | C71: 2.240679587 | D71: 0.5002363 | E71: -1.289374032 | F71: 1.89957784 | G71: 3.520260049 | H71: -1.664506705 | I71: -2.399364886 | J71: =IF(($G71+$I71*$D71)^2+($H71-$I71*$D71)^2<>0,-mew*($G71+$I71*$D71)/SQRT(($G71+$I71*$D71)^2+($H71-$I71*$C71)^2),0) -> -1.590094097 | K71: =-mew*($H71-$C71*$I71)/SQRT(($G71+$D71*$I71)^2+($H71-$I71*$C71)^2) -> -2.543934111 | L71: -2.399364886 | M71: =($I71-$I70)/DT -> 3.370297281 | N71: =IF(Q71<>0,mazalazo*(($D71*$J71-$C71*$K71)-2*$I71*($C71*$G71+$D71*$H71))/(INERTIA+mazalazo*($C71^2+$D71^2)),0) -> 3.340197762 | O71: -1.947480457 | P71: =IF(Q71<>0,G71*COS(O71)+H71*SIN(O71)+F71*$I71,0) -> -4.304862445 | Q71: -15.39958878 | R71: =R70+mazalazo*($I71^2*($E71*$P71+$F71*$U71))*DT -> 63.18592829 | S71: =IF(Q71<>0,$J71*COS($O71)+$K71*SIN($Z71)+2*$U71*$I71+$E71*$I71^2+$F71*$N71,0) -> -6.436019483 | T71: =IF(Q71<>0,-$J71*SIN($O71)+$K71*COS($O71)-2*$P71*$I71+$F71*$I71^2-$E71*$N71,0) -> -5.958182433 | U71: =IF(Q71<>0,-$G71*SIN(O71)+$H71*COS(O71)-$E71*$I71,0) -> 0.7920445658 | V71: 3.89557489 | W71: -3.548958843 | X71: -7.457920533 | Y71: 2.207362071 | Z71: 2.140452957 | AA71: 0.5156970738 | AB71: 0.5461615573 | AC71: 2.154970768 | AD71: 2.23888617 | AE71: 0.05917031955 | AF71: -4.113593356 | AG71: 5.103435438 | AH71: 2.240679587 | AI71: 0.5002363 | AJ71: -1.947480457 | AL71: FALSE | AN71: 0.5843362336 | AO71: 3.89557489 | AP71: -4.933411593 | AQ71: -4.796659961 | AR71: -1.144077041 | AS71: -18.96814828 | AT71: 31 | AU71: 0.5843362336 | AV71: -15.39958878 | AW71: 28.7387629 | AX71: =1/2*(INERTIA+mazalazo*($C71^2+$D71^2))*$I71^2 -> 100.207358 | AY71: -18.96814828 | AZ71: -1.144077041 | BA71: -15.39958878 | BB71: 128.9461209 | BC71: 28.81819124 | BD71: 157.7643121 | BF71: 0.5843362336 | BG71: 2.320010636 | BH71: =$H71-($I71*$C71) -> 3.711701216 | BI71: 4.377119517 | BJ71: -1.87515953 | BK71: -2.543934111 | BL71: =BL70+mazalazo*($I71*(BM71^2+BN71^2)+BM71*BR71-BN71*BQ71)*$BS71*DT -> -6.609359059 | BM71: 2.240679587 | BN71: 0.5002363 | BO71: -1.289374032 | BP71: 1.89957784 | BQ71: 3.520260049 | BR71: -1.664506705 | BS71: 0.4103783402 | BT71: 3.370297281 | BU71: 3.340197762
A72: 0 | B72: 32 | C72: 2.306749662 | D72: 0.4684109053 | E72: -1.369710279 | F72: 1.914261354 | G72: 3.489845614 | H72: -1.712178737 | I72: -2.33699401 | J72: =IF(($G72+$I72*$D72)^2+($H72-$I72*$D72)^2<>0,-mew*($G72+$I72*$D72)/SQRT(($G72+$I72*$D72)^2+($H72-$I72*$C72)^2),0) -> -1.63690034 | K72: =-mew*($H72-$C72*$I72)/SQRT(($G72+$D72*$I72)^2+($H72-$I72*$C72)^2) -> -2.514071852 | L72: -2.33699401 | M72: =($I72-$I71)/DT -> 3.308877746 | N72: =IF(Q72<>0,mazalazo*(($D72*$J72-$C72*$K72)-2*$I72*($C72*$G72+$D72*$H72))/(INERTIA+mazalazo*($C72^2+$D72^2)),0) -> 3.277001466 | O72: -1.991531756 | P72: =IF(Q72<>0,G72*COS(O72)+H72*SIN(O72)+F72*$I72,0) -> -4.336123836 | Q72: -16.14428539 | R72: =R71+mazalazo*($I72^2*($E72*$P72+$F72*$U72))*DT -> 65.42448224 | S72: =IF(Q72<>0,$J72*COS($O72)+$K72*SIN($Z72)+2*$U72*$I72+$E72*$I72^2+$F72*$N72,0) -> -5.756852703 | T72: =IF(Q72<>0,-$J72*SIN($O72)+$K72*COS($O72)-2*$P72*$I72+$F72*$I72^2-$E72*$N72,0) -> -5.790948686 | U72: =IF(Q72<>0,-$G72*SIN(O72)+$H72*COS(O72)-$E72*$I72,0) -> 0.6837956619 | V72: 4.021238597 | W72: =IF(ERGOTRIVIS<>0,RX+AKT_KAMP*COS(V72),TEL_AKTINA*COS(V72)) -> -3.090439517 | X72: =IF(ERGOTRIVIS<>0,RY+AKT_KAMP*SIN(V72),TEL_AKTINA*SIN(V72)) -> -7.888498841 | Y72: 2.273714624 | Z72: 2.207362071 | AA72: 0.4843236026 | AB72: 0.5156970738 | AC72: 2.076017464 | AD72: 2.154970768 | AE72: 0.06530441689 | AF72: -4.100374555 | AG72: 5.088863162 | AH72: 2.306749662 | AI72: 0.4684109053 | AJ72: -1.991531756 | AL72: FALSE | AN72: 0.6031857895 | AO72: 4.021238597 | AP72: =xtomi11+aktistomon*COS(AO72) -> -4.565910525 | AQ72: =ytomi11+aktistomon*SIN(AO72) -> -5.141766434 | AR72: -1.223696949 | AS72: -20.33274796 | AT72: 32 | AU72: 0.6031857895 | AV72: -16.14428539 | AW72: 28.90431964 | AX72: =1/2*(INERTIA+mazalazo*($C72^2+$D72^2))*$I72^2 -> 97.27416415 | AY72: -20.33274796 | AZ72: -1.223696949 | BA72: -16.14428539 | BB72: 126.1784838 | BC72: 28.94744889 | BD72: 155.1259327 | BF72: 0.6031857895 | BG72: 2.395172134 | BH72: =$H72-($I72*$C72) -> 3.678681404 | BI72: 4.389709151 | BJ72: -1.953285869 | BK72: -2.514071852 | BL72: =BL71+mazalazo*($I72*(BM72^2+BN72^2)+BM72*BR72-BN72*BQ72)*$BS72*DT -> -7.040454081 | BM72: 2.306749662 | BN72: 0.4684109053 | BO72: -1.369710279 | BP72: 1.914261354 | BQ72: 3.489845614 | BR72: -1.712178737 | BS72: 0.4113577066 | BT72: 3.308877746 | BU72: 3.277001466
A73: 0 | B73: 33 | C73: 2.372238151 | D73: 0.4356922736 | E73: -1.450566092 | F73: 1.926966429 | G73: 3.458553329 | H73: -1.759279195 | I73: -2.275843876 | J73: =IF(($G73+$I73*$D73)^2+($H73-$I73*$D73)^2<>0,-mew*($G73+$I73*$D73)/SQRT(($G73+$I73*$D73)^2+($H73-$I73*$C73)^2),0) -> -1.683233887 | K73: =-mew*($H73-$C73*$I73)/SQRT(($G73+$D73*$I73)^2+($H73-$I73*$C73)^2) -> -2.483288884 | L73: -2.275843876 | M73: =($I73-$I72)/DT -> 3.244115339 | N73: =IF(Q73<>0,mazalazo*(($D73*$J73-$C73*$K73)-2*$I73*($C73*$G73+$D73*$H73))/(INERTIA+mazalazo*($C73^2+$D73^2)),0) -> 3.210773875 | O73: -2.034430403 | P73: =IF(Q73<>0,G73*COS(O73)+H73*SIN(O73)+F73*$I73,0) -> -4.358587155 | Q73: -16.89019647 | R73: =R72+mazalazo*($I73^2*($E73*$P73+$F73*$U73))*DT -> 67.60301422 | S73: =IF(Q73<>0,$J73*COS($O73)+$K73*SIN($Z73)+2*$U73*$I73+$E73*$I73^2+$F73*$N73,0) -> -5.103139169 | T73: =IF(Q73<>0,-$J73*SIN($O73)+$K73*COS($O73)-2*$P73*$I73+$F73*$I73^2-$E73*$N73,0) -> -5.59584207 | U73: =IF(Q73<>0,-$G73*SIN(O73)+$H73*COS(O73)-$E73*$I73,0) -> 0.578935394 | V73: 4.146902303 | W73: -2.581569981 | X73: -8.2582142 | Y73: 2.339493906 | Z73: 2.273714624 | AA73: 0.4520515894 | AB73: 0.4843236026 | AC73: 2.001565646 | AD73: 2.076017464 | AE73: 0.0718400624 | AF73: -4.086806441 | AG73: 5.073803451 | AH73: 2.372238151 | AI73: 0.4356922736 | AJ73: -2.034430403 | AL73: FALSE | AN73: 0.6220353454 | AO73: 4.146902303 | AP73: -4.158054003 | AQ73: -5.438091542 | AR73: -1.305848349 | AS73: -21.70520986 | AT73: 33 | AU73: 0.6220353454 | AV73: -16.89019647 | AW73: 28.99867227 | AX73: =1/2*(INERTIA+mazalazo*($C73^2+$D73^2))*$I73^2 -> 94.40099969 | AY73: -21.70520986 | AZ73: -1.305848349 | BA73: -16.89019647 | BB73: 123.399672 | BC73: 29.00760789 | BD73: 152.4072799 | BF73: 0.6220353454 | BG73: 2.466985737 | BH73: =$H73-($I73*$C73) -> 3.639564474 | BI73: 4.396867997 | BJ73: -2.033473308 | BK73: -2.483288884 | BL73: =BL72+mazalazo*($I73*(BM73^2+BN73^2)+BM73*BR73-BN73*BQ73)*$BS73*DT -> -7.481148848 | BM73: 2.372238151 | BN73: 0.4356922736 | BO73: -1.450566092 | BP73: 1.926966429 | BQ73: 3.458553329 | BR73: -1.759279195 | BS73: 0.4119099596 | BT73: 3.244115339 | BU73: 3.210773875
A74: 0 | B74: 34 | C74: 2.437128592 | D74: 0.4020913422 | E74: -1.531784106 | F74: 1.937759189 | G74: 3.426392274 | H74: -1.805790768 | I74: -2.215966081 | J74: =IF(($G74+$I74*$D74)^2+($H74-$I74*$D74)^2<>0,-mew*($G74+$I74*$D74)/SQRT(($G74+$I74*$D74)^2+($H74-$I74*$C74)^2),0) -> -1.729076796 | K74: =-mew*($H74-$C74*$I74)/SQRT(($G74+$D74*$I74)^2+($H74-$I74*$C74)^2) -> -2.451589981 | L74: -2.215966081 | M74: =($I74-$I73)/DT -> 3.176615703 | N74: =IF(Q74<>0,mazalazo*(($D74*$J74-$C74*$K74)-2*$I74*($C74*$G74+$D74*$H74))/(INERTIA+mazalazo*($C74^2+$D74^2)),0) -> 3.142094445 | O74: -2.076200379 | P74: =IF(Q74<>0,G74*COS(O74)+H74*SIN(O74)+F74*$I74,0) -> -4.372905349 | Q74: -17.63645998 | R74: =R73+mazalazo*($I74^2*($E74*$P74+$F74*$U74))*DT -> 69.72019534 | S74: =IF(Q74<>0,$J74*COS($O74)+$K74*SIN($Z74)+2*$U74*$I74+$E74*$I74^2+$F74*$N74,0) -> -4.476470561 | T74: =IF(Q74<>0,-$J74*SIN($O74)+$K74*COS($O74)-2*$P74*$I74+$F74*$I74^2-$E74*$N74,0) -> -5.377973487 | U74: =IF(Q74<>0,-$G74*SIN(O74)+$H74*COS(O74)-$E74*$I74,0) -> 0.4779328819 | V74: 4.272566009 | W74: -2.030375411 | X74: -8.561235979 | Y74: 2.404683372 | Z74: 2.339493906 | AA74: 0.4188918079 | AB74: 0.4520515894 | AC74: 1.931209591 | AD74: 2.001565646 | AE74: 0.07878867257 | AF74: -4.072898342 | AG74: 5.05825662 | AH74: 2.437128592 | AI74: 0.4020913422 | AJ74: -2.076200379 | AL74: FALSE | AN74: 0.6408849013 | AO74: 4.272566009 | AP74: -3.716274168 | AQ74: -5.680962062 | AR74: -1.390526406 | AS74: -23.08073774 | AT74: 34 | AU74: 0.6408849013 | AV74: -17.63645998 | AW74: 29.02608155 | AX74: =1/2*(INERTIA+mazalazo*($C74^2+$D74^2))*$I74^2 -> 91.59030901 | AY74: -23.08073774 | AZ74: -1.390526406 | BA74: -17.63645998 | BB74: 120.6163906 | BC74: 29.00299761 | BD74: 149.6193882 | BF74: 0.6408849013 | BG74: 2.535371498 | BH74: =$H74-($I74*$C74) -> 3.594803527 | BI74: 4.398945445 | BJ74: -2.115863757 | BK74: -2.451589981 | BL74: =BL73+mazalazo*($I74*(BM74^2+BN74^2)+BM74*BR74-BN74*BQ74)*$BS74*DT -> -7.930863962 | BM74: 2.437128592 | BN74: 0.4020913422 | BO74: -1.531784106 | BP74: 1.937759189 | BQ74: 3.426392274 | BR74: -1.805790768 | BS74: 0.4120813568 | BT74: 3.176615703 | BU74: 3.142094445
A75: 0 | B75: 35 | C75: 2.501404697 | D75: 0.3676193738 | E75: -1.613218942 | F75: 1.946713668 | G75: 3.393371867 | H75: -1.851696238 | I75: -2.157401783 | J75: =IF(($G75+$I75*$D75)^2+($H75-$I75*$D75)^2<>0,-mew*($G75+$I75*$D75)/SQRT(($G75+$I75*$D75)^2+($H75-$I75*$C75)^2),0) -> -1.774410826 | K75: =-mew*($H75-$C75*$I75)/SQRT(($G75+$D75*$I75)^2+($H75-$I75*$C75)^2) -> -2.418980409 | L75: -2.157401783 | M75: =($I75-$I74)/DT -> 3.106932482 | N75: =IF(Q75<>0,mazalazo*(($D75*$J75-$C75*$K75)-2*$I75*($C75*$G75+$D75*$H75))/(INERTIA+mazalazo*($C75^2+$D75^2)),0) -> 3.071491243 | O75: -2.116866445 | P75: =IF(Q75<>0,G75*COS(O75)+H75*SIN(O75)+F75*$I75,0) -> -4.379725308 | Q75: -18.38227138 | R75: =R74+mazalazo*($I75^2*($E75*$P75+$F75*$U75))*DT -> 71.77511644 | S75: =IF(Q75<>0,$J75*COS($O75)+$K75*SIN($Z75)+2*$U75*$I75+$E75*$I75^2+$F75*$N75,0) -> -3.877930932 | T75: =IF(Q75<>0,-$J75*SIN($O75)+$K75*COS($O75)-2*$P75*$I75+$F75*$I75^2-$E75*$N75,0) -> -5.142022385 | U75: =IF(Q75<>0,-$G75*SIN(O75)+$H75*COS(O75)-$E75*$I75,0) -> 0.381166013 | V75: 4.398229715 | W75: -1.445548476 | X75: -8.792785343 | Y75: 2.469266645 | Z75: 2.404683372 | AA75: 0.384855358 | AB75: 0.4188918079 | AC75: 1.864590505 | AD75: 1.931209591 | AE75: 0.0861614988 | AF75: -4.058659869 | AG75: 5.042222991 | AH75: 2.501404697 | AI75: 0.3676193738 | AJ75: -2.116866445 | AL75: FALSE | AN75: 0.6597344573 | AO75: 4.398229715 | AP75: -3.247538151 | AQ75: -5.86654778 | AR75: -1.477725518 | AS75: -24.45481833 | AT75: 35 | AU75: 0.6597344573 | AV75: -18.38227138 | AW75: 28.99092195 | AX75: =1/2*(INERTIA+mazalazo*($C75^2+$D75^2))*$I75^2 -> 88.84403541 | AY75: -24.45481833 | AZ75: -1.477725518 | BA75: -18.38227138 | BB75: 117.8349574 | BC75: 28.93802673 | BD75: 146.7729841 | BF75: 0.6597344573 | BG75: 2.600269175 | BH75: =$H75-($I75*$C75) -> 3.544838716 | BI75: 4.396280394 | BJ75: -2.200609999 | BK75: -2.418980409 | BL75: =BL74+mazalazo*($I75*(BM75^2+BN75^2)+BM75*BR75-BN75*BQ75)*$BS75*DT -> -8.389040359 | BM75: 2.501404697 | BN75: 0.3676193738 | BO75: -1.613218942 | BP75: 1.946713668 | BQ75: 3.393371867 | BR75: -1.851696238 | BS75: 0.4119178765 | BT75: 3.106932482 | BU75: 3.071491243
A76: 0 | B76: 36 | C76: 2.565050359 | D76: 0.3322879544 | E76: -1.694737021 | F76: 1.953910198 | G76: 3.359501876 | H76: -1.896978495 | I76: -2.100182661 | J76: =IF(($G76+$I76*$D76)^2+($H76-$I76*$D76)^2<>0,-mew*($G76+$I76*$D76)/SQRT(($G76+$I76*$D76)^2+($H76-$I76*$C76)^2),0) -> -1.81921746 | K76: =-mew*($H76-$C76*$I76)/SQRT(($G76+$D76*$I76)^2+($H76-$I76*$C76)^2) -> -2.385465958 | L76: -2.100182661 | M76: =($I76-$I75)/DT -> 3.035568734 | N76: =IF(Q76<>0,mazalazo*(($D76*$J76-$C76*$K76)-2*$I76*($C76*$G76+$D76*$H76))/(INERTIA+mazalazo*($C76^2+$D76^2)),0) -> 2.999442643 | O76: -2.156453955 | P76: =IF(Q76<>0,G76*COS(O76)+H76*SIN(O76)+F76*$I76,0) -> -4.379680017 | Q76: -19.12688164 | R76: =R75+mazalazo*($I76^2*($E76*$P76+$F76*$U76))*DT -> 73.76724515 | S76: =IF(Q76<>0,$J76*COS($O76)+$K76*SIN($Z76)+2*$U76*$I76+$E76*$I76^2+$F76*$N76,0) -> -3.308176932 | T76: =IF(Q76<>0,-$J76*SIN($O76)+$K76*COS($O76)-2*$P76*$I76+$F76*$I76^2-$E76*$N76,0) -> -4.892228736 | U76: =IF(Q76<>0,-$G76*SIN(O76)+$H76*COS(O76)-$E76*$I76,0) -> 0.2889296167 | V76: 4.523893421 | W76: -0.8363122454 | X76: -8.94921062 | Y76: 2.533227528 | Z76: 2.469266645 | AA76: 0.3499536641 | AB76: 0.384855358 | AC76: 1.80138991 | AD76: 1.864590505 | AE76: 0.09396961925 | AF76: -4.044100922 | AG76: 5.025702905 | AH76: 2.565050359 | AI76: 0.3322879544 | AJ76: -2.156453955 | AL76: FALSE | AN76: 0.6785840132 | AO76: 4.523893421 | AP76: -2.759238199 | AQ76: -5.991921898 | AR76: -1.567439235 | AS76: -25.82324115 | AT76: 36 | AU76: 0.6785840132 | AV76: -19.12688164 | AW76: 28.89761606 | AX76: =1/2*(INERTIA+mazalazo*($C76^2+$D76^2))*$I76^2 -> 86.16366674 | AY76: -25.82324115 | AZ76: -1.567439235 | BA76: -19.12688164 | BB76: 115.0612828 | BC76: 28.81712236 | BD76: 143.8784052 | BF76: 0.6785840132 | BG76: 2.661636475 | BH76: =$H76-($I76*$C76) -> 3.490095793 | BI76: 4.389200084 | BJ76: -2.287876866 | BK76: -2.385465958 | BL76: =BL75+mazalazo*($I76*(BM76^2+BN76^2)+BM76*BR76-BN76*BQ76)*$BS76*DT -> -8.855145182 | BM76: 2.565050359 | BN76: 0.3322879544 | BO76: -1.694737021 | BP76: 1.953910198 | BQ76: 3.359501876 | BR76: -1.896978495 | BS76: 0.4114651726 | BT76: 3.035568734 | BU76: 2.999442643
A77: 1 | B77: 37 | C77: 2.628049659 | D77: 0.2961089919 | E77: -1.776216253 | F77: 1.959433941 | G77: 3.324792416 | H77: -1.94162054 | I77: -2.044331825 | J77: =IF(($G77+$I77*$D77)^2+($H77-$I77*$D77)^2<>0,-mew*($G77+$I77*$D77)/SQRT(($G77+$I77*$D77)^2+($H77-$I77*$C77)^2),0) -> -1.863477921 | K77: =-mew*($H77-$C77*$I77)/SQRT(($G77+$D77*$I77)^2+($H77-$I77*$C77)^2) -> -2.351052964 | L77: -2.044331825 | M77: =($I77-$I76)/DT -> 2.962978856 | N77: =IF(Q77<>0,mazalazo*(($D77*$J77-$C77*$K77)-2*$I77*($C77*$G77+$D77*$H77))/(INERTIA+mazalazo*($C77^2+$D77^2)),0) -> 2.926379451 | O77: -2.194988702 | P77: =IF(Q77<>0,G77*COS(O77)+H77*SIN(O77)+F77*$I77,0) -> -4.373382293 | Q77: -19.8695951 | R77: =R76+mazalazo*($I77^2*($E77*$P77+$F77*$U77))*DT -> 75.69638489 | S77: =IF(Q77<>0,$J77*COS($O77)+$K77*SIN($Z77)+2*$U77*$I77+$E77*$I77^2+$F77*$N77,0) -> -2.767510132 | T77: =IF(Q77<>0,-$J77*SIN($O77)+$K77*COS($O77)-2*$P77*$I77+$F77*$I77^2-$E77*$N77,0) -> -4.632396218 | U77: =IF(Q77<>0,-$G77*SIN(O77)+$H77*COS(O77)-$E77*$I77,0) -> 0.2014436706 | V77: 4.649557127 | W77: -0.2122747387 | X77: -9.028044891 | Y77: 2.596550009 | Z77: 2.533227528 | AA77: 0.3141984732 | AB77: 0.3499536641 | AC77: 1.741324119 | AD77: 1.80138991 | AE77: 0.1022239306 | AF77: -4.029231688 | AG77: 5.008696721 | AH77: 2.628049659 | AI77: 0.2961089919 | AJ77: -2.194988702 | AL77: FALSE | AN77: 0.6974335691 | AO77: 4.649557127 | AP77: -2.259075095 | AQ77: -6.055107192 | AR77: -1.65966019 | AS77: -27.18211129 | AT77: 37 | AU77: 0.6974335691 | AV77: -19.8695951 | AW77: 28.75057836 | AX77: =1/2*(INERTIA+mazalazo*($C77^2+$D77^2))*$I77^2 -> 83.55027942 | AY77: -27.18211129 | AZ77: -1.65966019 | BA77: -19.8695951 | BB77: 112.3008578 | BC77: 28.6446785 | BD77: 140.9455363 | BF77: 0.6974335691 | BG77: 2.719447381 | BH77: =$H77-($I77*$C77) -> 3.430985016 | BI77: 4.378019214 | BJ77: -2.377842545 | BK77: -2.351052964 | BL77: =BL76+mazalazo*($I77*(BM77^2+BN77^2)+BM77*BR77-BN77*BQ77)*$BS77*DT -> -9.3286773 | BM77: 2.628049659 | BN77: 0.2961089919 | BO77: -1.776216253 | BP77: 1.959433941 | BQ77: 3.324792416 | BR77: -1.94162054 | BS77: 0.4107685702 | BT77: 2.962978856 | BU77: 2.926379451
A78: 0 | B78: 38 | C78: 2.690386872 | D78: 0.2590947131 | E78: -1.857545626 | F78: 1.963373586 | G78: 3.289253964 | H78: -1.985605501 | I78: -1.989864697 | J78: =IF(($G78+$I78*$D78)^2+($H78-$I78*$D78)^2<>0,-mew*($G78+$I78*$D78)/SQRT(($G78+$I78*$D78)^2+($H78-$I78*$C78)^2),0) -> -1.907173195 | K78: =-mew*($H78-$C78*$I78)/SQRT(($G78+$D78*$I78)^2+($H78-$I78*$C78)^2) -> -2.315748346 | L78: -1.989864697 | M78: =($I78-$I77)/DT -> 2.889570886 | N78: =IF(Q78<>0,mazalazo*(($D78*$J78-$C78*$K78)-2*$I78*($C78*$G78+$D78*$H78))/(INERTIA+mazalazo*($C78^2+$D78^2)),0) -> 2.852687365 | O78: -2.232496768 | P78: =IF(Q78<>0,G78*COS(O78)+H78*SIN(O78)+F78*$I78,0) -> -4.361419953 | Q78: -20.60976728 | R78: =R77+mazalazo*($I78^2*($E78*$P78+$F78*$U78))*DT -> 77.56263638 | S78: =IF(Q78<>0,$J78*COS($O78)+$K78*SIN($Z78)+2*$U78*$I78+$E78*$I78^2+$F78*$N78,0) -> -2.255941137 | T78: =IF(Q78<>0,-$J78*SIN($O78)+$K78*COS($O78)-2*$P78*$I78+$F78*$I78^2-$E78*$N78,0) -> -4.365904127 | U78: =IF(Q78<>0,-$G78*SIN(O78)+$H78*COS(O78)-$E78*$I78,0) -> 0.1188613525 | V78: 4.775220833 | W78: 0.4167225998 | X78: -9.028044891 | Y78: 2.659218266 | Z78: 2.596550009 | AA78: 0.2776018525 | AB78: 0.3141984732 | AC78: 1.684139591 | AD78: 1.741324119 | AE78: 0.1109351394 | AF78: -4.01406265 | AG78: 4.991204828 | AH78: 2.690386872 | AI78: 0.2590947131 | AJ78: -2.232496768 | AL78: FALSE | AN78: 0.716283125 | AO78: 4.775220833 | AP78: -1.754936709 | AQ78: -6.055107192 | AR78: -1.754380019 | AS78: -28.52785603 | AT78: 38 | AU78: 0.716283125 | AV78: -20.60976728 | AW78: 28.55416804 | AX78: =1/2*(INERTIA+mazalazo*($C78^2+$D78^2))*$I78^2 -> 81.00458028 | AY78: -28.52785603 | AZ78: -1.754380019 | BA78: -20.60976728 | BB78: 109.5587483 | BC78: 28.42501307 | BD78: 137.9837614 | BF78: 0.716283125 | BG78: 2.773690541 | BH78: =$H78-($I78*$C78) -> 3.367900356 | BI78: 4.363039311 | BJ78: -2.470700064 | BK78: -2.315748346 | BL78: =BL77+mazalazo*($I78*(BM78^2+BN78^2)+BM78*BR78-BN78*BQ78)*$BS78*DT -> -9.80917249 | BM78: 2.690386872 | BN78: 0.2590947131 | BO78: -1.857545626 | BP78: 1.963373586 | BQ78: 3.289253964 | BR78: -1.985605501 | BS78: 0.4098730963 | BT78: 2.889570886 | BU78: 2.852687365
A79: 0 | B79: 39 | C79: 2.752046472 | D79: 0.2212576618 | E79: -1.938624709 | F79: 1.965820179 | G79: 3.252897353 | H79: -2.028916641 | I79: -1.936789831 | J79: =IF(($G79+$I79*$D79)^2+($H79-$I79*$D79)^2<>0,-mew*($G79+$I79*$D79)/SQRT(($G79+$I79*$D79)^2+($H79-$I79*$C79)^2),0) -> -1.950284054 | K79: =-mew*($H79-$C79*$I79)/SQRT(($G79+$D79*$I79)^2+($H79-$I79*$C79)^2) -> -2.279559631 | L79: -1.936789831 | M79: =($I79-$I78)/DT -> 2.815709069 | N79: =IF(Q79<>0,mazalazo*(($D79*$J79-$C79*$K79)-2*$I79*($C79*$G79+$D79*$H79))/(INERTIA+mazalazo*($C79^2+$D79^2)),0) -> 2.778709635 | O79: -2.269004396 | P79: =IF(Q79<>0,G79*COS(O79)+H79*SIN(O79)+F79*$I79,0) -> -4.344352224 | Q79: -21.34680254 | R79: =R78+mazalazo*($I79^2*($E79*$P79+$F79*$U79))*DT -> 79.36636146 | S79: =IF(Q79<>0,$J79*COS($O79)+$K79*SIN($Z79)+2*$U79*$I79+$E79*$I79^2+$F79*$N79,0) -> -1.773245573 | T79: =IF(Q79<>0,-$J79*SIN($O79)+$K79*COS($O79)-2*$P79*$I79+$F79*$I79^2-$E79*$N79,0) -> -4.095725849 | U79: =IF(Q79<>0,-$G79*SIN(O79)+$H79*COS(O79)-$E79*$I79,0) -> 0.04127679955 | V79: 4.90088454 | W79: 1.040760107 | X79: -8.94921062 | Y79: 2.721216672 | Z79: 2.659218266 | AA79: 0.2401761875 | AB79: 0.2776018525 | AC79: 1.629609017 | AD79: 1.684139591 | AE79: 0.1201137534 | AF79: -3.998604583 | AG79: 4.973227644 | AH79: 2.752046472 | AI79: 0.2212576618 | AJ79: -2.269004396 | AL79: FALSE | AN79: 0.7351326809 | AO79: 4.90088454 | AP79: -1.254773604 | AQ79: -5.991921898 | AR79: -1.851589292 | AS79: -29.85722617 | AT79: 39 | AU79: 0.7351326809 | AV79: -21.34680254 | AW79: 28.31265003 | AX79: =1/2*(INERTIA+mazalazo*($C79^2+$D79^2))*$I79^2 -> 78.52694613 | AY79: -29.85722617 | AZ79: -1.851589292 | BA79: -21.34680254 | BB79: 106.8395962 | BC79: 28.16233275 | BD79: 135.0019289 | BF79: 0.7351326809 | BG79: 2.824367763 | BH79: =$H79-($I79*$C79) -> 3.301218981 | BI79: 4.344548311 | BJ79: -2.566658964 | BK79: -2.279559631 | BL79: =BL78+mazalazo*($I79*(BM79^2+BN79^2)+BM79*BR79-BN79*BQ79)*$BS79*DT -> -10.29620834 | BM79: 2.752046472 | BN79: 0.2212576618 | BO79: -1.938624709 | BP79: 1.965820179 | BQ79: 3.252897353 | BR79: -2.028916641 | BS79: 0.4088235473 | BT79: 2.815709069 | BU79: 2.778709635
A80: 0 | B80: 40 | C80: 2.813013143 | D80: 0.1826106958 | E80: -2.019363109 | F80: 1.966866096 | G80: 3.215733781 | H80: -2.071537371 | I80: -1.885109691 | J80: =IF(($G80+$I80*$D80)^2+($H80-$I80*$D80)^2<>0,-mew*($G80+$I80*$D80)/SQRT(($G80+$I80*$D80)^2+($H80-$I80*$C80)^2),0) -> -1.992791073 | K80: =-mew*($H80-$C80*$I80)/SQRT(($G80+$D80*$I80)^2+($H80-$I80*$C80)^2) -> -2.242494981 | L80: -1.885109691 | M80: =($I80-$I79)/DT -> 2.741716595 | N80: =IF(Q80<>0,mazalazo*(($D80*$J80-$C80*$K80)-2*$I80*($C80*$G80+$D80*$H80))/(INERTIA+mazalazo*($C80^2+$D80^2)),0) -> 2.704749862 | O80: -2.304537877 | P80: =IF(Q80<>0,G80*COS(O80)+H80*SIN(O80)+F80*$I80,0) -> -4.322707249 | Q80: -22.08015173 | R80: =R79+mazalazo*($I80^2*($E80*$P80+$F80*$U80))*DT -> 81.10814956 | S80: =IF(Q80<>0,$J80*COS($O80)+$K80*SIN($Z80)+2*$U80*$I80+$E80*$I80^2+$F80*$N80,0) -> -1.319012252 | T80: =IF(Q80<>0,-$J80*SIN($O80)+$K80*COS($O80)-2*$P80*$I80+$F80*$I80^2-$E80*$N80,0) -> -3.824451991 | U80: =IF(Q80<>0,-$G80*SIN(O80)+$H80*COS(O80)-$E80*$I80,0) -> -0.03126752859 | V80: 5.026548246 | W80: 1.649996337 | X80: -8.792785343 | Y80: 2.782529807 | Z80: 2.721216672 | AA80: 0.2019341788 | AB80: 0.2401761875 | AC80: 1.577527992 | AD80: 1.629609017 | AE80: 0.1297700728 | AF80: -3.982868558 | AG80: 4.954765625 | AH80: 2.813013143 | AI80: 0.1826106958 | AJ80: -2.304537877 | AL80: FALSE | AN80: 0.7539822369 | AO80: 5.026548246 | AP80: -0.7664736528 | AQ80: -5.86654778 | AR80: -1.951277435 | AS80: -31.16729292 | AT80: 40 | AU80: 0.7539822369 | AV80: -22.08015173 | AW80: 28.03016343 | AX80: =1/2*(INERTIA+mazalazo*($C80^2+$D80^2))*$I80^2 -> 76.11746083 | AY80: -31.16729292 | AZ80: -1.951277435 | BA80: -22.08015173 | BB80: 104.1476243 | BC80: 27.86070491 | BD80: 132.0083292 | BF80: 0.7539822369 | BG80: 2.871492589 | BH80: =$H80-($I80*$C80) -> 3.231300965 | BI80: 4.322820331 | BJ80: -2.665947202 | BK80: -2.242494981 | BL80: =BL79+mazalazo*($I80*(BM80^2+BN80^2)+BM80*BR80-BN80*BQ80)*$BS80*DT -> -10.78940889 | BM80: 2.813013143 | BN80: 0.1826106958 | BO80: -2.019363109 | BP80: 1.966866096 | BQ80: 3.215733781 | BR80: -2.071537371 | BS80: 0.4076645887 | BT80: 2.741716595 | BU80: 2.704749862
A81: 0 | B81: 41 | C81: 2.873271782 | D81: 0.143166984 | E81: -2.099679886 | F81: 1.966604153 | G81: 3.177774816 | H81: -2.113451262 | I81: -1.834821368 | J81: =IF(($G81+$I81*$D81)^2+($H81-$I81*$D81)^2<>0,-mew*($G81+$I81*$D81)/SQRT(($G81+$I81*$D81)^2+($H81-$I81*$C81)^2),0) -> -2.034674665 | K81: =-mew*($H81-$C81*$I81)/SQRT(($G81+$D81*$I81)^2+($H81-$I81*$C81)^2) -> -2.204563224 | L81: -1.834821368 | M81: =($I81-$I80)/DT -> 2.667878427 | N81: =IF(Q81<>0,mazalazo*(($D81*$J81-$C81*$K81)-2*$I81*($C81*$G81+$D81*$H81))/(INERTIA+mazalazo*($C81^2+$D81^2)),0) -> 2.63107485 | O81: -2.339123445 | P81: =IF(Q81<>0,G81*COS(O81)+H81*SIN(O81)+F81*$I81,0) -> -4.296980504 | Q81: -22.80930986 | R81: =R80+mazalazo*($I81^2*($E81*$P81+$F81*$U81))*DT -> 82.78878673 | S81: =IF(Q81<>0,$J81*COS($O81)+$K81*SIN($Z81)+2*$U81*$I81+$E81*$I81^2+$F81*$N81,0) -> -0.8926840644 | T81: =IF(Q81<>0,-$J81*SIN($O81)+$K81*COS($O81)-2*$P81*$I81+$F81*$I81^2-$E81*$N81,0) -> -3.554316613 | U81: =IF(Q81<>0,-$G81*SIN(O81)+$H81*COS(O81)-$E81*$I81,0) -> -0.09877395424 | V81: 5.152211952 | W81: 2.234823272 | X81: -8.561235979 | Y81: 2.843142462 | Z81: 2.782529807 | AA81: 0.1628888399 | AB81: 0.2019341788 | AC81: 1.527712185 | AD81: 1.577527992 | AE81: 0.1399141804 | AF81: -3.966865944 | AG81: 4.935819265 | AH81: 2.873271782 | AI81: 0.143166984 | AJ81: -2.339123445 | AL81: FALSE | AN81: 0.7728317928 | AO81: 5.152211952 | AP81: -0.2977376358 | AQ81: -5.680962062 | AR81: -2.053432659 | AS81: -32.45544106 | AT81: 41 | AU81: 0.7728317928 | AV81: -22.80930986 | AW81: 27.71069662 | AX81: =1/2*(INERTIA+mazalazo*($C81^2+$D81^2))*$I81^2 -> 73.77594988 | AY81: -32.45544106 | AZ81: -2.053432659 | BA81: -22.80930986 | BB81: 101.4866465 | BC81: 27.52403582 | BD81: 129.0106823 | BF81: 0.7728317928 | BG81: 2.915088975 | BH81: =$H81-($I81*$C81) -> 3.158489198 | BI81: 4.298115604 | BJ81: -2.768813308 | BK81: -2.204563224 | BL81: =BL80+mazalazo*($I81*(BM81^2+BN81^2)+BM81*BR81-BN81*BQ81)*$BS81*DT -> -11.28844913 | BM81: 2.873271782 | BN81: 0.143166984 | BO81: -2.099679886 | BP81: 1.966604153 | BQ81: 3.177774816 | BR81: -2.113451262 | BS81: 0.4064408897 | BT81: 2.667878427 | BU81: 2.63107485
A82: 0 | B82: 42 | C82: 2.932807508 | D82: 0.1029400036 | E82: -2.17950294 | F82: 1.96512683 | G82: 3.139032395 | H82: -2.154642058 | I82: -1.785917247 | J82: =IF(($G82+$I82*$D82)^2+($H82-$I82*$D82)^2<>0,-mew*($G82+$I82*$D82)/SQRT(($G82+$I82*$D82)^2+($H82-$I82*$C82)^2),0) -> -2.075915098 | K82: =-mew*($H82-$C82*$I82)/SQRT(($G82+$D82*$I82)^2+($H82-$I82*$C82)^2) -> -2.165773882 | L82: -1.785917247 | M82: =($I82-$I81)/DT -> 2.594444156 | N82: =IF(Q82<>0,mazalazo*(($D82*$J82-$C82*$K82)-2*$I82*($C82*$G82+$D82*$H82))/(INERTIA+mazalazo*($C82^2+$D82^2)),0) -> 2.557917449 | O82: -2.372787192 | P82: =IF(Q82<>0,G82*COS(O82)+H82*SIN(O82)+F82*$I82,0) -> -4.267634001 | Q82: -23.53381375 | R82: =R81+mazalazo*($I82^2*($E82*$P82+$F82*$U82))*DT -> 84.40922728 | S82: =IF(Q82<>0,$J82*COS($O82)+$K82*SIN($Z82)+2*$U82*$I82+$E82*$I82^2+$F82*$N82,0) -> -0.4935922103 | T82: =IF(Q82<>0,-$J82*SIN($O82)+$K82*COS($O82)-2*$P82*$I82+$F82*$I82^2-$E82*$N82,0) -> -3.28722523 | U82: =IF(Q82<>0,-$G82*SIN(O82)+$H82*COS(O82)-$E82*$I82,0) -> -0.1612831966 | V82: 5.277875658 | W82: 2.786017842 | X82: -8.2582142 | Y82: 2.903039645 | Z82: 2.843142462 | AA82: 0.1230534938 | AB82: 0.1628888399 | AC82: 1.479994917 | AD82: 1.527712185 | AE82: 0.1505559327 | AF82: -3.95060841 | AG82: 4.916389106 | AH82: 2.932807508 | AI82: 0.1029400036 | AJ82: -2.372787192 | AL82: FALSE | AN82: 0.7916813487 | AO82: 5.277875658 | AP82: 0.1440421996 | AQ82: -5.438091542 | AR82: -2.158041884 | AS82: -33.71935911 | AT82: 42 | AU82: 0.7916813487 | AV82: -23.53381375 | AW82: 27.35806835 | AX82: =1/2*(INERTIA+mazalazo*($C82^2+$D82^2))*$I82^2 -> 71.50201229 | AY82: -33.71935911 | AZ82: -2.158041884 | BA82: -23.53381375 | BB82: 98.86008064 | BC82: 27.15605442 | BD82: 126.0161351 | BF82: 0.7916813487 | BG82: 2.955190067 | BH82: =$H82-($I82*$C82) -> 3.083109454 | BI82: 4.270680535 | BJ82: -2.875528856 | BK82: -2.165773882 | BL82: =BL81+mazalazo*($I82*(BM82^2+BN82^2)+BM82*BR82-BN82*BQ82)*$BS82*DT -> -11.7930593 | BM82: 2.932807508 | BN82: 0.1029400036 | BO82: -2.17950294 | BP82: 1.96512683 | BQ82: 3.139032395 | BR82: -2.154642058 | BS82: 0.4051972902 | BT82: 2.594444156 | BU82: 2.557917449
A83: 0 | B83: 43 | C83: 2.99160567 | D83: 0.06194353643 | E83: -2.258768401 | F83: 1.962525616 | G83: 3.099518827 | H83: -2.19509369 | I83: -1.738385626 | J83: =IF(($G83+$I83*$D83)^2+($H83-$I83*$D83)^2<>0,-mew*($G83+$I83*$D83)/SQRT(($G83+$I83*$D83)^2+($H83-$I83*$C83)^2),0) -> -2.116492529 | K83: =-mew*($H83-$C83*$I83)/SQRT(($G83+$D83*$I83)^2+($H83-$I83*$C83)^2) -> -2.126137195 | L83: -1.738385626 | M83: =($I83-$I82)/DT -> 2.521630829 | N83: =IF(Q83<>0,mazalazo*(($D83*$J83-$C83*$K83)-2*$I83*($C83*$G83+$D83*$H83))/(INERTIA+mazalazo*($C83^2+$D83^2)),0) -> 2.485479362 | O83: -2.405554989 | P83: =IF(Q83<>0,G83*COS(O83)+H83*SIN(O83)+F83*$I83,0) -> -4.235096127 | Q83: -24.25323968 | R83: =R82+mazalazo*($I83^2*($E83*$P83+$F83*$U83))*DT -> 85.97056779 | S83: =IF(Q83<>0,$J83*COS($O83)+$K83*SIN($Z83)+2*$U83*$I83+$E83*$I83^2+$F83*$N83,0) -> -0.1209844852 | T83: =IF(Q83<>0,-$J83*SIN($O83)+$K83*COS($O83)-2*$P83*$I83+$F83*$I83^2-$E83*$N83,0) -> -3.024783569 | U83: =IF(Q83<>0,-$G83*SIN(O83)+$H83*COS(O83)-$E83*$I83,0) -> -0.2188685198 | V83: 5.403539364 | W83: 3.294887378 | X83: -7.888498841 | Y83: 2.962206589 | Z83: 2.903039645 | AA83: 0.08244177004 | AB83: 0.1230534938 | AC83: 1.434225081 | AD83: 1.479994917 | AE83: 0.1617049493 | AF83: -3.934107922 | AG83: 4.896475739 | AH83: 2.99160567 | AI83: 0.06194353643 | AJ83: -2.405554989 | AL83: FALSE | AN83: 0.8105309046 | AO83: 5.403539364 | AP83: 0.5518987215 | AQ83: -5.141766434 | AR83: -2.265090666 | AS83: -34.95702726 | AT83: 43 | AU83: 0.8105309046 | AV83: -24.25323968 | AW83: 26.97591395 | AX83: =1/2*(INERTIA+mazalazo*($C83^2+$D83^2))*$I83^2 -> 69.29505007 | AY83: -34.95702726 | AZ83: -2.265090666 | BA83: -24.25323968 | BB83: 96.27096402 | BC83: 26.76030086 | BD83: 123.0312649 | BF83: 0.8105309046 | BG83: 2.991837073 | BH83: =$H83-($I83*$C83) -> 3.005470605 | BI83: 4.240747886 | BJ83: -2.986391284 | BK83: -2.126137195 | BL83: =BL82+mazalazo*($I83*(BM83^2+BN83^2)+BM83*BR83-BN83*BQ83)*$BS83*DT -> -12.30302925 | BM83: 2.99160567 | BN83: 0.06194353643 | BO83: -2.258768401 | BP83: 1.962525616 | BQ83: 3.099518827 | BR83: -2.19509369 | BS83: 0.4039790032 | BT83: 2.521630829 | BU83: 2.485479362
A84: 0 | B84: 44 | C84: 3.049651849 | D84: 0.0201916652 | E84: -2.337420011 | F84: 1.95889045 | G84: 3.059246797 | H84: -2.234790287 | I84: -1.692211269 | J84: =IF(($G84+$I84*$D84)^2+($H84-$I84*$D84)^2<>0,-mew*($G84+$I84*$D84)/SQRT(($G84+$I84*$D84)^2+($H84-$I84*$C84)^2),0) -> -2.156387036 | K84: =-mew*($H84-$C84*$I84)/SQRT(($G84+$D84*$I84)^2+($H84-$I84*$C84)^2) -> -2.085664151 | L84: -1.692211269 | M84: =($I84-$I83)/DT -> 2.449625706 | N84: =IF(Q84<>0,mazalazo*(($D84*$J84-$C84*$K84)-2*$I84*($C84*$G84+$D84*$H84))/(INERTIA+mazalazo*($C84^2+$D84^2)),0) -> 2.413933849 | O84: -2.43745242 | P84: =IF(Q84<>0,G84*COS(O84)+H84*SIN(O84)+F84*$I84,0) -> -4.199762003 | Q84: -24.96720116 | R84: =R83+mazalazo*($I84^2*($E84*$P84+$F84*$U84))*DT -> 87.4740237 | S84: =IF(Q84<>0,$J84*COS($O84)+$K84*SIN($Z84)+2*$U84*$I84+$E84*$I84^2+$F84*$N84,0) -> 0.2259516652 | T84: =IF(Q84<>0,-$J84*SIN($O84)+$K84*COS($O84)-2*$P84*$I84+$F84*$I84^2-$E84*$N84,0) -> -2.768326223 | U84: =IF(Q84<>0,-$G84*SIN(O84)+$H84*COS(O84)-$E84*$I84,0) -> -0.2716304191 | V84: 5.52920307 | W84: 3.753406704 | X84: -7.457920533 | Y84: 3.020628759 | Z84: 2.962206589 | AA84: 0.04106760082 | AB84: 0.08244177004 | AC84: 1.390265347 | AD84: 1.434225081 | AE84: 0.1733706033 | AF84: -3.917376748 | AG84: 4.876079812 | AH84: 3.049651849 | AI84: 0.0201916652 | AJ84: -2.43745242 | AL84: FALSE | AN84: 0.8293804605 | AO84: 5.52920307 | AP84: 0.9193997889 | AQ84: -4.796659961 | AR84: -2.374563128 | AS84: -36.16670336 | AT84: 44 | AU84: 0.8293804605 | AV84: -24.96720116 | AW84: 26.56767595 | AX84: =1/2*(INERTIA+mazalazo*($C84^2+$D84^2))*$I84^2 -> 67.1542951 | AY84: -36.16670336 | AZ84: -2.374563128 | BA84: -24.96720116 | BB84: 93.72197105 | BC84: 26.34011917 | BD84: 120.0620902 | BF84: 0.8293804605 | BG84: 3.025078234 | BH84: =$H84-($I84*$C84) -> 2.92586494 | BI84: 4.208537034 | BJ84: -3.101727143 | BK84: -2.085664151 | BL84: =BL83+mazalazo*($I84*(BM84^2+BN84^2)+BM84*BR84-BN84*BQ84)*$BS84*DT -> -12.81821268 | BM84: 3.049651849 | BN84: 0.0201916652 | BO84: -2.337420011 | BP84: 1.95889045 | BQ84: 3.059246797 | BR84: -2.234790287 | BS84: 0.4028318531 | BT84: 2.449625706 | BU84: 2.413933849
A85: 0 | B85: 45 | C85: 3.106931873 | D85: -0.0223012301 | E85: -2.415408522 | F85: 1.954309259 | G85: 3.018229367 | H85: -2.273716194 | I85: -1.647375924 | J85: =IF(($G85+$I85*$D85)^2+($H85-$I85*$D85)^2<>0,-mew*($G85+$I85*$D85)/SQRT(($G85+$I85*$D85)^2+($H85-$I85*$C85)^2),0) -> -2.195578644 | K85: =-mew*($H85-$C85*$I85)/SQRT(($G85+$D85*$I85)^2+($H85-$I85*$C85)^2) -> -2.044366508 | L85: -1.647375924 | M85: =($I85-$I84)/DT -> 2.37858892 | N85: =IF(Q85<>0,mazalazo*(($D85*$J85-$C85*$K85)-2*$I85*($C85*$G85+$D85*$H85))/(INERTIA+mazalazo*($C85^2+$D85^2)),0) -> 2.343428341 | O85: -2.468504725 | P85: =IF(Q85<>0,G85*COS(O85)+H85*SIN(O85)+F85*$I85,0) -> -4.16199426 | Q85: -25.67534672 | R85: =R84+mazalazo*($I85^2*($E85*$P85+$F85*$U85))*DT -> 88.92090804 | S85: =IF(Q85<>0,$J85*COS($O85)+$K85*SIN($Z85)+2*$U85*$I85+$E85*$I85^2+$F85*$N85,0) -> 0.5480706103 | T85: =IF(Q85<>0,-$J85*SIN($O85)+$K85*COS($O85)-2*$P85*$I85+$F85*$I85^2-$E85*$N85,0) -> -2.518944602 | U85: =IF(Q85<>0,-$G85*SIN(O85)+$H85*COS(O85)-$E85*$I85,0) -> -0.3196918367 | V85: 5.654866776 | W85: 4.154344698 | X85: -6.973269754 | Y85: 3.078291861 | Z85: 3.020628759 | AA85: -0.00105478245 | AB85: 0.04106760082 | AC85: 1.34799061 | AD85: 1.390265347 | AE85: 0.1855620103 | AF85: -3.900427457 | AG85: 4.855202032 | AH85: 3.106931873 | AI85: -0.0223012301 | AJ85: -2.468504725 | AL85: FALSE | AN85: 0.8482300165 | AO85: 5.654866776 | AP85: 1.24074969 | AQ85: -4.408214658 | AR85: -2.486441879 | AS85: -37.34690782 | AT85: 45 | AU85: 0.8482300165 | AV85: -25.67534672 | AW85: 26.13659863 | AX85: =1/2*(INERTIA+mazalazo*($C85^2+$D85^2))*$I85^2 -> 65.07883365 | AY85: -37.34690782 | AZ85: -2.486441879 | BA85: -25.67534672 | BB85: 91.21543229 | BC85: 25.8986535 | BD85: 117.1140858 | BF85: 0.8482300165 | BG85: 3.054967877 | BH85: =$H85-($I85*$C85) -> 2.844568572 | BI85: 4.174254315 | BJ85: -3.221895833 | BK85: -2.044366508 | BL85: =BL84+mazalazo*($I85*(BM85^2+BN85^2)+BM85*BR85-BN85*BQ85)*$BS85*DT -> -13.33853164 | BM85: 3.106931873 | BN85: -0.0223012301 | BO85: -2.415408522 | BP85: 1.954309259 | BQ85: 3.018229367 | BR85: -2.273716194 | BS85: 0.4018025537 | BT85: 2.37858892 | BU85: 2.343428341
A86: 0 | B86: 46 | C86: 3.163431817 | D86: -0.06552047655 | E86: -2.492691107 | F86: 1.948867579 | G86: 2.976479974 | H86: -2.311855986 | I86: -1.603858784 | J86: =IF(($G86+$I86*$D86)^2+($H86-$I86*$D86)^2<>0,-mew*($G86+$I86*$D86)/SQRT(($G86+$I86*$D86)^2+($H86-$I86*$C86)^2),0) -> -2.234047366 | K86: =-mew*($H86-$C86*$I86)/SQRT(($G86+$D86*$I86)^2+($H86-$I86*$C86)^2) -> -2.002256818 | L86: -1.603858784 | M86: =($I86-$I85)/DT -> 2.308656019 | N86: =IF(Q86<>0,mazalazo*(($D86*$J86-$C86*$K86)-2*$I86*($C86*$G86+$D86*$H86))/(INERTIA+mazalazo*($C86^2+$D86^2)),0) -> 2.274086903 | O86: -2.49873675 | P86: =IF(Q86<>0,G86*COS(O86)+H86*SIN(O86)+F86*$I86,0) -> -4.122124128 | Q86: -26.37735773 | R86: =R85+mazalazo*($I86^2*($E86*$P86+$F86*$U86))*DT -> 90.31261241 | S86: =IF(Q86<>0,$J86*COS($O86)+$K86*SIN($Z86)+2*$U86*$I86+$E86*$I86^2+$F86*$N86,0) -> 0.8462538441 | T86: =IF(Q86<>0,-$J86*SIN($O86)+$K86*COS($O86)-2*$P86*$I86+$F86*$I86^2-$E86*$N86,0) -> -2.277513697 | U86: =IF(Q86<>0,-$G86*SIN(O86)+$H86*COS(O86)-$E86*$I86,0) -> -0.3631938893 | V86: 5.780530483 | W86: 4.491378326 | X86: -6.442189736 | Y86: 3.135181845 | Z86: 3.078291861 | AA86: -0.04391085332 | AB86: -0.00105478245 | AC86: 1.307286641 | AD86: 1.34799061 | AE86: 0.1982880173 | AF86: -3.88327292 | AG86: 4.833843171 | AH86: 3.163431817 | AI86: -0.06552047655 | AJ86: -2.49873675 | AL86: FALSE | AN86: 0.8670795724 | AO86: 5.780530483 | AP86: 1.510880546 | AQ86: -3.98255654 | AR86: -2.600707953 | AS86: -38.49640752 | AT86: 46 | AU86: 0.8670795724 | AV86: -26.37735773 | AW86: 25.68572569 | AX86: =1/2*(INERTIA+mazalazo*($C86^2+$D86^2))*$I86^2 -> 63.06762861 | AY86: -38.49640752 | AZ86: -2.600707953 | BA86: -26.37735773 | BB86: 88.7533543 | BC86: 25.43884716 | BD86: 114.1922015 | BF86: 0.8670795724 | BG86: 3.081565566 | BH86: =$H86-($I86*$C86) -> 2.76184192 | BI86: 4.138093417 | BJ86: -3.347293932 | BK86: -2.002256818 | BL86: =BL85+mazalazo*($I86*(BM86^2+BN86^2)+BM86*BR86-BN86*BQ86)*$BS86*DT -> -13.86398112 | BM86: 3.163431817 | BN86: -0.06552047655 | BO86: -2.492691107 | BP86: 1.948867579 | BQ86: 2.976479974 | BR86: -2.311855986 | BS86: 0.4009390295 | BT86: 2.308656019 | BU86: 2.274086903
A87: 0 | B87: 47 | C87: 3.219138012 | D87: -0.1094511127 | E87: -2.569230792 | F87: 1.94264825 | G87: 2.934012433 | H87: -2.34919448 | I87: -1.561636903 | J87: =IF(($G87+$I87*$D87)^2+($H87-$I87*$D87)^2<>0,-mew*($G87+$I87*$D87)/SQRT(($G87+$I87*$D87)^2+($H87-$I87*$C87)^2),0) -> -2.271773236 | K87: =-mew*($H87-$C87*$I87)/SQRT(($G87+$D87*$I87)^2+($H87-$I87*$C87)^2) -> -1.959348453 | L87: -1.561636903 | M87: =($I87-$I86)/DT -> 2.239940364 | N87: =IF(Q87<>0,mazalazo*(($D87*$J87-$C87*$K87)-2*$I87*($C87*$G87+$D87*$H87))/(INERTIA+mazalazo*($C87^2+$D87^2)),0) -> 2.206012567 | O87: -2.528172913 | P87: =IF(Q87<>0,G87*COS(O87)+H87*SIN(O87)+F87*$I87,0) -> -4.080452772 | Q87: -27.07294635 | R87: =R86+mazalazo*($I87^2*($E87*$P87+$F87*$U87))*DT -> 91.65058996 | S87: =IF(Q87<>0,$J87*COS($O87)+$K87*SIN($Z87)+2*$U87*$I87+$E87*$I87^2+$F87*$N87,0) -> 1.121398513 | T87: =IF(Q87<>0,-$J87*SIN($O87)+$K87*COS($O87)-2*$P87*$I87+$F87*$I87^2-$E87*$N87,0) -> -2.044717355 | U87: =IF(Q87<>0,-$G87*SIN(O87)+$H87*COS(O87)-$E87*$I87,0) -> -0.4022920804 | V87: 5.906194189 | W87: 4.759192367 | X87: -5.873055928 | Y87: 3.191284914 | Z87: 3.135181845 | AA87: -0.08748579463 | AB87: -0.04391085332 | AC87: 1.268048917 | AD87: 1.307286641 | AE87: 0.2115571911 | AF87: -3.865926306 | AG87: 4.812004077 | AH87: 3.219138012 | AI87: -0.1094511127 | AJ87: -2.528172913 | AL87: FALSE | AN87: 0.8859291283 | AO87: 5.906194189 | AP87: 1.725532231 | AQ87: -3.52639849 | AR87: -2.717340731 | AS87: -39.61419936 | AT87: 47 | AU87: 0.8859291283 | AV87: -27.07294635 | AW87: 25.21790062 | AX87: =1/2*(INERTIA+mazalazo*($C87^2+$D87^2))*$I87^2 -> 61.11953954 | AY87: -39.61419936 | AZ87: -2.717340731 | BA87: -27.07294635 | BB87: 86.33744016 | BC87: 24.96344425 | BD87: 111.3008844 | BF87: 0.8859291283 | BG87: 3.10493533 | BH87: =$H87-($I87*$C87) -> 2.677930235 | BI87: 4.100235816 | BJ87: -3.478360216 | BK87: -1.959348453 | BL87: =BL86+mazalazo*($I87*(BM87^2+BN87^2)+BM87*BR87-BN87*BQ87)*$BS87*DT -> -14.39463401 | BM87: 3.219138012 | BN87: -0.1094511127 | BO87: -2.569230792 | BP87: 1.94264825 | BQ87: 2.934012433 | BR87: -2.34919448 | BS87: 0.4002907868 | BT87: 2.239940364 | BU87: 2.206012567
A88: 0 | B88: 48 | C88: 3.274037056 | D88: -0.1540778935 | E88: -2.644995924 | F88: 1.935731181 | G88: 2.890840934 | H88: -2.385716753 | I88: -1.520685575 | J88: =IF(($G88+$I88*$D88)^2+($H88-$I88*$D88)^2<>0,-mew*($G88+$I88*$D88)/SQRT(($G88+$I88*$D88)^2+($H88-$I88*$C88)^2),0) -> -2.308736352 | K88: =-mew*($H88-$C88*$I88)/SQRT(($G88+$D88*$I88)^2+($H88-$I88*$C88)^2) -> -1.915655621 | L88: -1.520685575 | M88: =($I88-$I87)/DT -> 2.172535383 | N88: =IF(Q88<>0,mazalazo*(($D88*$J88-$C88*$K88)-2*$I88*($C88*$G88+$D88*$H88))/(INERTIA+mazalazo*($C88^2+$D88^2)),0) -> 2.139289509 | O88: -2.55683716 | P88: =IF(Q88<>0,G88*COS(O88)+H88*SIN(O88)+F88*$I88,0) -> -4.037252794 | Q88: -27.76185354 | R88: =R87+mazalazo*($I88^2*($E88*$P88+$F88*$U88))*DT -> 92.93634028 | S88: =IF(Q88<>0,$J88*COS($O88)+$K88*SIN($Z88)+2*$U88*$I88+$E88*$I88^2+$F88*$N88,0) -> 1.374408591 | T88: =IF(Q88<>0,-$J88*SIN($O88)+$K88*COS($O88)-2*$P88*$I88+$F88*$I88^2-$E88*$N88,0) -> -1.821071837 | U88: =IF(Q88<>0,-$G88*SIN(O88)+$H88*COS(O88)-$E88*$I88,0) -> -0.4371529693 | V88: 6.031857895 | W88: 4.953563234 | X88: -5.274843911 | Y88: 3.246587534 | Z88: 3.191284914 | AA88: -0.1317645031 | AB88: -0.08748579463 | AC88: 1.23018159 | AD88: 1.268048917 | AE88: 0.2253778064 | AF88: -3.84840109 | AG88: 4.789685671 | AH88: 3.274037056 | AI88: -0.1540778935 | AJ88: -2.55683716 | AL88: FALSE | AN88: 0.9047786842 | AO88: 6.031857895 | AP88: 1.88131956 | AQ88: -3.046934393 | AR88: -2.836317875 | AS88: -40.69949363 | AT88: 48 | AU88: 0.9047786842 | AV88: -27.76185354 | AW88: 24.73576926 | AX88: =1/2*(INERTIA+mazalazo*($C88^2+$D88^2))*$I88^2 -> 59.23334069 | AY88: -40.69949363 | AZ88: -2.836317875 | BA88: -27.76185354 | BB88: 83.96910995 | BC88: 24.47499311 | BD88: 108.4441031 | BF88: 0.9047786842 | BG88: 3.125144964 | BH88: =$H88-($I88*$C88) -> 2.593064171 | BI88: 4.060851246 | BJ88: -3.615581517 | BK88: -1.915655621 | BL88: =BL87+mazalazo*($I88*(BM88^2+BN88^2)+BM88*BR88-BN88*BQ88)*$BS88*DT -> -14.93064645 | BM88: 3.274037056 | BN88: -0.1540778935 | BO88: -2.644995924 | BP88: 1.935731181 | BQ88: 2.890840934 | BR88: -2.385716753 | BS88: 0.3999093417 | BT88: 2.172535383 | BU88: 2.139289509
A89: 0 | B89: 49 | C89: 3.328115816 | D89: -0.1993852949 | E89: -2.719959654 | F89: 1.92819316 | G89: 2.84698004 | H89: -2.421408161 | I89: -1.480978671 | J89: =IF(($G89+$I89*$D89)^2+($H89-$I89*$D89)^2<>0,-mew*($G89+$I89*$D89)/SQRT(($G89+$I89*$D89)^2+($H89-$I89*$C89)^2),0) -> -2.344916911 | K89: =-mew*($H89-$C89*$I89)/SQRT(($G89+$D89*$I89)^2+($H89-$I89*$C89)^2) -> -1.871193385 | L89: -1.480978671 | M89: =($I89-$I88)/DT -> 2.106516676 | N89: =IF(Q89<>0,mazalazo*(($D89*$J89-$C89*$K89)-2*$I89*($C89*$G89+$D89*$H89))/(INERTIA+mazalazo*($C89^2+$D89^2)),0) -> 2.073985075 | O89: -2.584752951 | P89: =IF(Q89<>0,G89*COS(O89)+H89*SIN(O89)+F89*$I89,0) -> -3.99276985 | Q89: -28.44384713 | R89: =R88+mazalazo*($I89^2*($E89*$P89+$F89*$U89))*DT -> 94.17139599 | S89: =IF(Q89<>0,$J89*COS($O89)+$K89*SIN($Z89)+2*$U89*$I89+$E89*$I89^2+$F89*$N89,0) -> 1.606188204 | T89: =IF(Q89<>0,-$J89*SIN($O89)+$K89*COS($O89)-2*$P89*$I89+$F89*$I89^2-$E89*$N89,0) -> -1.606947554 | U89: =IF(Q89<>0,-$G89*SIN(O89)+$H89*COS(O89)-$E89*$I89,0) -> -0.4679512611 | V89: 6.157521601 | W89: 5.071425582 | X89: -4.656987844 | Y89: 3.301076436 | Z89: 3.246587534 | AA89: -0.1767315942 | AB89: -0.1317645031 | AC89: 1.193596592 | AD89: 1.23018159 | AE89: 0.2397578326 | AF89: -3.830711046 | AG89: 4.766888963 | AH89: 3.328115816 | AI89: -0.1993852949 | AJ89: -2.584752951 | AL89: FALSE | AN89: 0.9236282402 | AO89: 6.157521601 | AP89: 1.975785673 | AQ89: -2.551725684 | AR89: -2.95761526 | AS89: -41.75169739 | AT89: 49 | AU89: 0.9236282402 | AV89: -28.44384713 | AW89: 24.24178418 | AX89: =1/2*(INERTIA+mazalazo*($C89^2+$D89^2))*$I89^2 -> 57.40773714 | AY89: -41.75169739 | AZ89: -2.95761526 | BA89: -28.44384713 | BB89: 81.64952133 | BC89: 23.97585148 | BD89: 105.6253728 | BF89: 0.9236282402 | BG89: 3.142265409 | BH89: =$H89-($I89*$C89) -> 2.507460379 | BI89: 4.02009819 | BJ89: -3.759499574 | BK89: -1.871193385 | BL89: =BL88+mazalazo*($I89*(BM89^2+BN89^2)+BM89*BR89-BN89*BQ89)*$BS89*DT -> -15.47226376 | BM89: 3.328115816 | BN89: -0.1993852949 | BO89: -2.719959654 | BP89: 1.92819316 | BQ89: 2.84698004 | BR89: -2.421408161 | BS89: 0.399848714 | BT89: 2.106516676 | BU89: 2.073985075
A90: 0 | B90: 50 | C90: 3.381361437 | D90: -0.2453575198 | E90: -2.794099459 | F90: 1.920107731 | G90: 2.802444689 | H90: -2.456254348 | I90: -1.442488935 | J90: =IF(($G90+$I90*$D90)^2+($H90-$I90*$D90)^2<>0,-mew*($G90+$I90*$D90)/SQRT(($G90+$I90*$D90)^2+($H90-$I90*$C90)^2),0) -> -2.380295256 | K90: =-mew*($H90-$C90*$I90)/SQRT(($G90+$D90*$I90)^2+($H90-$I90*$C90)^2) -> -1.825977681 | L90: -1.442488935 | M90: =($I90-$I89)/DT -> 2.041943957 | N90: =IF(Q90<>0,mazalazo*(($D90*$J90-$C90*$K90)-2*$I90*($C90*$G90+$D90*$H90))/(INERTIA+mazalazo*($C90^2+$D90^2)),0) -> 2.010151648 | O90: -2.611943226 | P90: =IF(Q90<>0,G90*COS(O90)+H90*SIN(O90)+F90*$I90,0) -> -3.947224335 | Q90: -29.11872003 | R90: =R89+mazalazo*($I90^2*($E90*$P90+$F90*$U90))*DT -> 95.35731096 | S90: =IF(Q90<>0,$J90*COS($O90)+$K90*SIN($Z90)+2*$U90*$I90+$E90*$I90^2+$F90*$N90,0) -> 1.817636656 | T90: =IF(Q90<>0,-$J90*SIN($O90)+$K90*COS($O90)-2*$P90*$I90+$F90*$I90^2-$E90*$N90,0) -> -1.402588936 | U90: =IF(Q90<>0,-$G90*SIN(O90)+$H90*COS(O90)-$E90*$I90,0) -> -0.4948672852 | V90: 6.283185307 | W90: 5.110920652 | X90: -4.029231688 | Y90: 3.354738627 | Z90: 3.301076436 | AA90: -0.2223714073 | AB90: -0.1767315942 | AC90: 1.158212841 | AD90: 1.193596592 | AE90: 0.2547049206 | AF90: -3.812870253 | AG90: 4.743615052 | AH90: 3.381361437 | AI90: -0.2453575198 | AJ90: -2.611943226 | AL90: FALSE | AN90: 0.9424777961 | AO90: 6.283185307 | AP90: 2.007440784 | AQ90: -2.0485821 | AR90: -3.081206908 | AS90: -42.77039822 | AT90: 50 | AU90: 0.9424777961 | AV90: -29.11872003 | AW90: 23.73821037 | AX90: =1/2*(INERTIA+mazalazo*($C90^2+$D90^2))*$I90^2 -> 55.64137915 | AY90: -42.77039822 | AZ90: -3.081206908 | BA90: -29.11872003 | BB90: 79.37958952 | BC90: 23.46819272 | BD90: 102.8477822 | BF90: 0.9424777961 | BG90: 3.156370196 | BH90: =$H90-($I90*$C90) -> 2.42132211 | BI90: 3.978124379 | BJ90: -3.910719086 | BK90: -1.825977681 | BL90: =BL89+mazalazo*($I90*(BM90^2+BN90^2)+BM90*BR90-BN90*BQ90)*$BS90*DT -> -16.01982705 | BM90: 3.381361437 | BN90: -0.2453575198 | BO90: -2.794099459 | BP90: 1.920107731 | BQ90: 2.802444689 | BR90: -2.456254348 | BS90: 0.4001660012 | BT90: 2.041943957 | BU90: 2.010151648
A91: 0 | B91: 51 | C91: 3.43376135 | D91: -0.2919785032 | E91: -2.86739669 | F91: 1.911545103 | G91: 2.757250186 | H91: -2.490241269 | I91: -1.405188249 | J91: =IF(($G91+$I91*$D91)^2+($H91-$I91*$D91)^2<>0,-mew*($G91+$I91*$D91)/SQRT(($G91+$I91*$D91)^2+($H91-$I91*$C91)^2),0) -> -2.414851923 | K91: =-mew*($H91-$C91*$I91)/SQRT(($G91+$D91*$I91)^2+($H91-$I91*$C91)^2) -> -1.780025334 | L91: -1.405188249 | M91: =($I91-$I90)/DT -> 1.978862852 | N91: =IF(Q91<>0,mazalazo*(($D91*$J91-$C91*$K91)-2*$I91*($C91*$G91+$D91*$H91))/(INERTIA+mazalazo*($C91^2+$D91^2)),0) -> 1.947828371 | O91: -2.638430401 | P91: =IF(Q91<>0,G91*COS(O91)+H91*SIN(O91)+F91*$I91,0) -> -3.900813093 | Q91: -29.78628847 | R91: =R90+mazalazo*($I91^2*($E91*$P91+$F91*$U91))*DT -> 96.49565003 | S91: =IF(Q91<>0,$J91*COS($O91)+$K91*SIN($Z91)+2*$U91*$I91+$E91*$I91^2+$F91*$N91,0) -> 2.009644777 | T91: =IF(Q91<>0,-$J91*SIN($O91)+$K91*COS($O91)-2*$P91*$I91+$F91*$I91^2-$E91*$N91,0) -> -1.208132435 | U91: =IF(Q91<>0,-$G91*SIN(O91)+$H91*COS(O91)-$E91*$I91,0) -> -0.5180848253 | Y91: 3.407561394 | Z91: 3.354738627 | AA91: -0.2686680115 | AB91: -0.2223714073 | AC91: 1.123955546 | AD91: 1.158212841 | AE91: 0.2702263886 | AF91: -3.794893089 | AG91: 4.719865138 | AH91: 3.43376135 | AI91: -0.2919785032 | AJ91: -2.638430401 | AL91: FALSE | AN91: 0.961327352 | AR91: -3.207064923 | AS91: -43.75534843 | AT91: 51 | AU91: 0.961327352 | AV91: -29.78628847 | AW91: 23.22713201 | AX91: =1/2*(INERTIA+mazalazo*($C91^2+$D91^2))*$I91^2 -> 53.93287492 | AY91: -43.75534843 | AZ91: -3.207064923 | BA91: -29.78628847 | BB91: 77.16000693 | BC91: 22.95401313 | BD91: 100.1140201 | BF91: 0.961327352 | BG91: 3.167534947 | BH91: =$H91-($I91*$C91) -> 2.334839829 | BI91: 3.935067302 | BJ91: -4.069917226 | BK91: -1.780025334 | BL91: =BL90+mazalazo*($I91*(BM91^2+BN91^2)+BM91*BR91-BN91*BQ91)*$BS91*DT -> -16.57378075 | BM91: 3.43376135 | BN91: -0.2919785032 | BO91: -2.86739669 | BP91: 1.911545103 | BQ91: 2.757250186 | BR91: -2.490241269 | BS91: 0.4009220462 | BT91: 1.978862852 | BU91: 1.947828371
A92: 0 | B92: 52 | C92: 3.485303277 | D92: -0.3392319187 | E92: -2.939836157 | F92: 1.9025721 | G92: 2.7114122 | H92: -2.523355205 | I92: -1.369047872 | J92: =IF(($G92+$I92*$D92)^2+($H92-$I92*$D92)^2<>0,-mew*($G92+$I92*$D92)/SQRT(($G92+$I92*$D92)^2+($H92-$I92*$C92)^2),0) -> -2.448567682 | K92: =-mew*($H92-$C92*$I92)/SQRT(($G92+$D92*$I92)^2+($H92-$I92*$C92)^2) -> -1.733354063 | L92: -1.369047872 | M92: =($I92-$I91)/DT -> 1.917306546 | N92: =IF(Q92<>0,mazalazo*(($D92*$J92-$C92*$K92)-2*$I92*($C92*$G92+$D92*$H92))/(INERTIA+mazalazo*($C92^2+$D92^2)),0) -> 1.887042721 | O92: -2.664236345 | P92: =IF(Q92<>0,G92*COS(O92)+H92*SIN(O92)+F92*$I92,0) -> -3.853711127 | Q92: -30.44639035 | R92: =R91+mazalazo*($I92^2*($E92*$P92+$F92*$U92))*DT -> 97.58798 | S92: =IF(Q92<>0,$J92*COS($O92)+$K92*SIN($Z92)+2*$U92*$I92+$E92*$I92^2+$F92*$N92,0) -> 2.183092287 | T92: =IF(Q92<>0,-$J92*SIN($O92)+$K92*COS($O92)-2*$P92*$I92+$F92*$I92^2-$E92*$N92,0) -> -1.023622716 | U92: =IF(Q92<>0,-$G92*SIN(O92)+$H92*COS(O92)-$E92*$I92,0) -> -0.5377892682 | Y92: 3.459532314 | Z92: 3.407561394 | AA92: -0.315605211 | AB92: -0.2686680115 | AC92: 1.09075559 | AD92: 1.123955546 | AE92: 0.286329207 | AF92: -3.776794237 | AG92: 4.695640529 | AH92: 3.485303277 | AI92: -0.3392319187 | AJ92: -2.664236345 | AK92: =AJ92-AK91 -> -2.664236345 | AL92: FALSE | AN92: 0.9801769079 | AR92: -3.335159434 | AS92: -44.70644985 | AT92: 52 | AU92: 0.9801769079 | AV92: -30.44639035 | AW92: 22.71046012 | AX92: =1/2*(INERTIA+mazalazo*($C92^2+$D92^2))*$I92^2 -> 52.28080187 | AY92: -44.70644985 | AZ92: -3.335159434 | BA92: -30.44639035 | BB92: 74.99126199 | BC92: 22.4351398 | BD92: 97.42640179 | BF92: 0.9801769079 | BG92: 3.175836936 | BH92: =$H92-($I92*$C92) -> 2.24819183 | BI92: 3.891054709 | BJ92: -4.237854921 | BK92: -1.733354063 | BL92: =BL91+mazalazo*($I92*(BM92^2+BN92^2)+BM92*BR92-BN92*BQ92)*$BS92*DT -> -17.13468122 | BM92: 3.485303277 | BN92: -0.3392319187 | BO92: -2.939836157 | BP92: 1.9025721 | BQ92: 2.7114122 | BR92: -2.523355205 | BS92: 0.4021822204 | BT92: 1.917306546 | BU92: 1.887042721
A93: 0 | B93: 53 | C93: 3.53597524 | D93: -0.3871011841 | E93: -3.011405742 | F93: 1.893252144 | G93: 2.664946762 | H93: -2.555582777 | I93: -1.334038643 | J93: =IF(($G93+$I93*$D93)^2+($H93-$I93*$D93)^2<>0,-mew*($G93+$I93*$D93)/SQRT(($G93+$I93*$D93)^2+($H93-$I93*$C93)^2),0) -> -2.481423589 | K93: =-mew*($H93-$C93*$I93)/SQRT(($G93+$D93*$I93)^2+($H93-$I93*$C93)^2) -> -1.685982495 | L93: -1.334038643 | M93: =($I93-$I92)/DT -> 1.857297286 | N93: =IF(Q93<>0,mazalazo*(($D93*$J93-$C93*$K93)-2*$I93*($C93*$G93+$D93*$H93))/(INERTIA+mazalazo*($C93^2+$D93^2)),0) -> 1.827811942 | O93: -2.689382381 | P93: =IF(Q93<>0,G93*COS(O93)+H93*SIN(O93)+F93*$I93,0) -> -3.806073277 | Q93: -31.09888367 | R93: =R92+mazalazo*($I93^2*($E93*$P93+$F93*$U93))*DT -> 98.63586188 | S93: =IF(Q93<>0,$J93*COS($O93)+$K93*SIN($Z93)+2*$U93*$I93+$E93*$I93^2+$F93*$N93,0) -> 2.338845899 | T93: =IF(Q93<>0,-$J93*SIN($O93)+$K93*COS($O93)-2*$P93*$I93+$F93*$I93^2-$E93*$N93,0) -> -0.8490271248 | U93: =IF(Q93<>0,-$G93*SIN(O93)+$H93*COS(O93)-$E93*$I93,0) -> -0.5541660368 | Y93: 3.510639259 | Z93: 3.459532314 | AA93: -0.3631665514 | AB93: -0.315605211 | AC93: 1.058548985 | AD93: 1.09075559 | AE93: 0.3030199826 | AF93: -3.75858868 | AG93: 4.670942653 | AH93: 3.53597524 | AI93: -0.3871011841 | AJ93: -2.689382381 | AK93: =AJ93-AK92 -> -0.025146036 | AL93: FALSE | AN93: 0.9990264638 | AR93: -3.465458531 | AS93: -45.62373921 | AT93: 53 | AU93: 0.9990264638 | AV93: -31.09888367 | AW93: 22.18994068 | AX93: =1/2*(INERTIA+mazalazo*($C93^2+$D93^2))*$I93^2 -> 50.68371651 | AY93: -45.62373921 | AZ93: -3.465458531 | BA93: -31.09888367 | BB93: 72.87365719 | BC93: 21.913239 | BD93: 94.78689619 | BF93: 0.9990264638 | BG93: 3.1813547 | BH93: =$H93-($I93*$C93) -> 2.161544832 | BI93: 3.846205115 | BJ93: -4.415390307 | BK93: -1.685982495 | BL93: =BL92+mazalazo*($I93*(BM93^2+BN93^2)+BM93*BR93-BN93*BQ93)*$BS93*DT -> -17.70320672 | BM93: 3.53597524 | BN93: -0.3871011841 | BO93: -3.011405742 | BP93: 1.893252144 | BQ93: 2.664946762 | BR93: -2.555582777 | BS93: 0.4040173464 | BT93: 1.857297286 | BU93: 1.827811942
A94: 0 | B94: 54 | C94: 3.585765564 | D94: -0.4355694686 | E94: -3.082096037 | F94: 1.883645258 | G94: 2.617870254 | H94: -2.58691097 | I94: -1.300131161 | J94: =IF(($G94+$I94*$D94)^2+($H94-$I94*$D94)^2<>0,-mew*($G94+$I94*$D94)/SQRT(($G94+$I94*$D94)^2+($H94-$I94*$C94)^2),0) -> -2.513401036 | K94: =-mew*($H94-$C94*$I94)/SQRT(($G94+$D94*$I94)^2+($H94-$I94*$C94)^2) -> -1.637930168 | L94: -1.300131161 | M94: =($I94-$I93)/DT -> 1.798847747 | N94: =IF(Q94<>0,mazalazo*(($D94*$J94-$C94*$K94)-2*$I94*($C94*$G94+$D94*$H94))/(INERTIA+mazalazo*($C94^2+$D94^2)),0) -> 1.770144349 | O94: -2.713889276 | P94: =IF(Q94<>0,G94*COS(O94)+H94*SIN(O94)+F94*$I94,0) -> -3.758035851 | Q94: -31.74364507 | R94: =R93+mazalazo*($I94^2*($E94*$P94+$F94*$U94))*DT -> 99.64084421 | S94: =IF(Q94<>0,$J94*COS($O94)+$K94*SIN($Z94)+2*$U94*$I94+$E94*$I94^2+$F94*$N94,0) -> 2.477757948 | T94: =IF(Q94<>0,-$J94*SIN($O94)+$K94*COS($O94)-2*$P94*$I94+$F94*$I94^2-$E94*$N94,0) -> -0.6842485223 | U94: =IF(Q94<>0,-$G94*SIN(O94)+$H94*COS(O94)-$E94*$I94,0) -> -0.5673992781 | Y94: 3.560870402 | Z94: 3.510639259 | AA94: -0.4113353263 | AB94: -0.3631665514 | AC94: 1.027276387 | AD94: 1.058548985 | AE94: 0.3203049414 | AF94: -3.740291705 | AG94: 4.645773064 | AH94: 3.585765564 | AI94: -0.4355694686 | AJ94: -2.713889276 | AK94: -2.68874324 | AL94: FALSE | AN94: 1.01787602 | AR94: -3.597928213 | AS94: -46.50737438 | AT94: 54 | AU94: 1.01787602 | AV94: -31.74364507 | AW94: 21.6671631 | AX94: =1/2*(INERTIA+mazalazo*($C94^2+$D94^2))*$I94^2 -> 49.14016318 | AY94: -46.50737438 | AZ94: -3.597928213 | BA94: -31.74364507 | BB94: 70.80732628 | BC94: 21.38982476 | BD94: 92.19715104 | BF94: 1.01787602 | BG94: 3.184167693 | BH94: =$H94-($I94*$C94) -> 2.075054578 | BI94: 3.80062829 | BJ94: -4.603494859 | BK94: -1.637930168 | BL94: =BL93+mazalazo*($I94*(BM94^2+BN94^2)+BM94*BR94-BN94*BQ94)*$BS94*DT -> -18.28016897 | BM94: 3.585765564 | BN94: -0.4355694686 | BO94: -3.082096037 | BP94: 1.883645258 | BQ94: 2.617870254 | BR94: -2.58691097 | BS94: 0.4065047931 | BT94: 1.798847747 | BU94: 1.770144349
A95: 0 | B95: 55 | C95: 3.634662889 | D95: -0.4846196995 | E95: -3.151900023 | F95: 1.873808104 | G95: 2.570199409 | H95: -2.617327141 | I95: -1.267295946 | J95: =IF(($G95+$I95*$D95)^2+($H95-$I95*$D95)^2<>0,-mew*($G95+$I95*$D95)/SQRT(($G95+$I95*$D95)^2+($H95-$I95*$C95)^2),0) -> -2.544481801 | K95: =-mew*($H95-$C95*$I95)/SQRT(($G95+$D95*$I95)^2+($H95-$I95*$C95)^2) -> -1.589217533 | L95: -1.267295946 | M95: =($I95-$I94)/DT -> 1.741962274 | N95: =IF(Q95<>0,mazalazo*(($D95*$J95-$C95*$K95)-2*$I95*($C95*$G95+$D95*$H95))/(INERTIA+mazalazo*($C95^2+$D95^2)),0) -> 1.714040502 | O95: -2.737777242 | P95: =IF(Q95<>0,G95*COS(O95)+H95*SIN(O95)+F95*$I95,0) -> -3.709718199 | Q95: -32.3805684 | R95: =R94+mazalazo*($I95^2*($E95*$P95+$F95*$U95))*DT -> 100.6044574 | S95: =IF(Q95<>0,$J95*COS($O95)+$K95*SIN($Z95)+2*$U95*$I95+$E95*$I95^2+$F95*$N95,0) -> 2.600665388 | T95: =IF(Q95<>0,-$J95*SIN($O95)+$K95*COS($O95)-2*$P95*$I95+$F95*$I95^2-$E95*$N95,0) -> -0.5291365997 | U95: =IF(Q95<>0,-$G95*SIN(O95)+$H95*COS(O95)-$E95*$I95,0) -> -0.577670774 | Y95: 3.610214226 | Z95: 3.560870402 | AA95: -0.4600945841 | AB95: -0.4113353263 | AC95: 0.9968826633 | AD95: 1.027276387 | AE95: 0.3381899107 | AF95: -3.721918898 | AG95: 4.620133454 | AH95: 3.634662889 | AI95: -0.4846196995 | AJ95: -2.737777242 | AK95: -0.0490340018 | AL95: FALSE | AN95: 1.036725576 | AR95: -3.732532332 | AS95: -47.35762132 | AT95: 55 | AU95: 1.036725576 | AV95: -32.3805684 | AW95: 21.14356896 | AX95: =1/2*(INERTIA+mazalazo*($C95^2+$D95^2))*$I95^2 -> 47.64868156 | AY95: -47.35762132 | AZ95: -3.732532332 | BA95: -32.3805684 | BB95: 68.79225052 | BC95: 20.86626766 | BD95: 89.65851818 | BF95: 1.036725576 | BG95: 3.18435599 | BH95: =$H95-($I95*$C95) -> 1.988866404 | BI95: 3.75442574 | BJ95: -4.803272835 | BK95: -1.589217533 | BL95: =BL94+mazalazo*($I95*(BM95^2+BN95^2)+BM95*BR95-BN95*BQ95)*$BS95*DT -> -18.86652681 | BM95: 3.634662889 | BN95: -0.4846196995 | BO95: -3.151900023 | BP95: 1.873808104 | BQ95: 2.570199409 | BR95: -2.617327141 | BS95: 0.4097297849 | BT95: 1.741962274 | BU95: 1.714040502
A96: 0 | B96: 56 | C96: 3.682656172 | D96: -0.5342345697 | E96: -3.220812768 | F96: 1.863794026 | G96: 2.521951296 | H96: -2.646819044 | I96: -1.235503569 | J96: =IF(($G96+$I96*$D96)^2+($H96-$I96*$D96)^2<>0,-mew*($G96+$I96*$D96)/SQRT(($G96+$I96*$D96)^2+($H96-$I96*$C96)^2),0) -> -2.574648102 | K96: =-mew*($H96-$C96*$I96)/SQRT(($G96+$D96*$I96)^2+($H96-$I96*$C96)^2) -> -1.539865952 | L96: -1.235503569 | M96: =($I96-$I95)/DT -> 1.686637999 | N96: =IF(Q96<>0,mazalazo*(($D96*$J96-$C96*$K96)-2*$I96*($C96*$G96+$D96*$H96))/(INERTIA+mazalazo*($C96^2+$D96^2)),0) -> 1.659494272 | O96: -2.761065936 | P96: =IF(Q96<>0,G96*COS(O96)+H96*SIN(O96)+F96*$I96,0) -> -3.66122421 | Q96: -33.00956338 | R96: =R95+mazalazo*($I96^2*($E96*$P96+$F96*$U96))*DT -> 101.5282088 | S96: =IF(Q96<>0,$J96*COS($O96)+$K96*SIN($Z96)+2*$U96*$I96+$E96*$I96^2+$F96*$N96,0) -> 2.708389005 | T96: =IF(Q96<>0,-$J96*SIN($O96)+$K96*COS($O96)-2*$P96*$I96+$F96*$I96^2-$E96*$N96,0) -> -0.3834978011 | U96: =IF(Q96<>0,-$G96*SIN(O96)+$H96*COS(O96)-$E96*$I96,0) -> -0.5851590504 | Y96: 3.65865953 | Z96: 3.610214226 | AA96: -0.5094271346 | AB96: -0.4600945841 | AC96: 0.967316507 | AD96: 0.9968826633 | AE96: 0.3566803001 | AF96: -3.70348615 | AG96: 4.59402567 | AH96: 3.682656172 | AI96: -0.5342345697 | AJ96: -2.761065936 | AK96: -2.712031934 | AL96: FALSE | AN96: 1.055575132 | AR96: -3.869232549 | AS96: -48.17484186 | AT96: 56 | AU96: 1.055575132 | AV96: -33.00956338 | AW96: 20.62046075 | AX96: =1/2*(INERTIA+mazalazo*($C96^2+$D96^2))*$I96^2 -> 46.20781323 | AY96: -48.17484186 | AZ96: -3.869232549 | BA96: -33.00956338 | BB96: 66.82827398 | BC96: 20.34380353 | BD96: 87.17207751 | BF96: 1.055575132 | BG96: 3.182000014 | BH96: =$H96-($I96*$C96) -> 1.903115799 | BI96: 3.707691172 | BJ96: -5.015984864 | BK96: -1.539865952 | BL96: =BL95+mazalazo*($I96*(BM96^2+BN96^2)+BM96*BR96-BN96*BQ96)*$BS96*DT -> -19.46340228 | BM96: 3.682656172 | BN96: -0.5342345697 | BO96: -3.220812768 | BP96: 1.863794026 | BQ96: 2.521951296 | BR96: -2.646819044 | BS96: 0.4137869777 | BT96: 1.686637999 | BU96: 1.659494272
A97: 0 | B97: 57 | C97: 3.729734695 | D97: -0.5843965449 | E97: -3.288831151 | F97: 1.853653116 | G97: 2.473143317 | H97: -2.675374845 | I97: -1.204724773 | J97: =IF(($G97+$I97*$D97)^2+($H97-$I97*$D97)^2<>0,-mew*($G97+$I97*$D97)/SQRT(($G97+$I97*$D97)^2+($H97-$I97*$C97)^2),0) -> -2.603882651 | K97: =-mew*($H97-$C97*$I97)/SQRT(($G97+$D97*$I97)^2+($H97-$I97*$C97)^2) -> -1.489897695 | L97: -1.204724773 | M97: =($I97-$I96)/DT -> 1.632865847 | N97: =IF(Q97<>0,mazalazo*(($D97*$J97-$C97*$K97)-2*$I97*($C97*$G97+$D97*$H97))/(INERTIA+mazalazo*($C97^2+$D97^2)),0) -> 1.606493788 | O97: -2.783774463 | P97: =IF(Q97<>0,G97*COS(O97)+H97*SIN(O97)+F97*$I97,0) -> -3.612643732 | Q97: -33.63055444 | R97: =R96+mazalazo*($I97^2*($E97*$P97+$F97*$U97))*DT -> 102.4135788 | S97: =IF(Q97<>0,$J97*COS($O97)+$K97*SIN($Z97)+2*$U97*$I97+$E97*$I97^2+$F97*$N97,0) -> 2.801732772 | T97: =IF(Q97<>0,-$J97*SIN($O97)+$K97*COS($O97)-2*$P97*$I97+$F97*$I97^2-$E97*$N97,0) -> -0.2471039668 | U97: =IF(Q97<>0,-$G97*SIN(O97)+$H97*COS(O97)-$E97*$I97,0) -> -0.5900386581 | V97: =$G97*COS($O97)+$H97*SIN($O97)+$F97*$I97 -> -3.612643732 | W97: =-$G97*SIN($O97)+$H97*COS($O97)-$E97*$I97 -> -0.5900386581 | Y97: 3.706195433 | Z97: 3.65865953 | AA97: -0.5593155573 | AB97: -0.5094271346 | AC97: 0.938530093 | AD97: 0.967316507 | AE97: 0.3757810807 | AF97: -3.685009649 | AG97: 4.567451721 | AH97: 3.729734695 | AI97: -0.5843965449 | AJ97: -2.783774463 | AK97: -0.07174252878 | AL97: FALSE | AN97: 1.074424688 | AR97: -4.007988287 | AS97: -48.95948228 | AT97: 57 | AU97: 1.074424688 | AV97: -33.63055444 | AW97: 20.09901053 | AX97: =1/2*(INERTIA+mazalazo*($C97^2+$D97^2))*$I97^2 -> 44.81610736 | AY97: -48.95948228 | AZ97: -4.007988287 | BA97: -33.63055444 | BB97: 64.91511789 | BC97: 19.82354213 | BD97: 84.73866002 | BF97: 1.074424688 | BG97: 3.177180311 | BH97: =$H97-($I97*$C97) -> 1.817928938 | BI97: 3.660510942 | BJ97: -5.243076742 | BK97: -1.489897695 | BL97: =BL96+mazalazo*($I97*(BM97^2+BN97^2)+BM97*BR97-BN97*BQ97)*$BS97*DT -> -20.07209977 | BM97: 3.729734695 | BN97: -0.5843965449 | BO97: -3.288831151 | BP97: 1.853653116 | BQ97: 2.473143317 | BR97: -2.675374845 | BS97: 0.4187823711 | BT97: 1.632865847 | BU97: 1.606493788
A98: 0 | B98: 58 | C98: 3.775888072 | D98: -0.6350878717 | E98: -3.355953624 | F98: 1.843432291 | G98: 2.423793193 | H98: -2.702983135 | I98: -1.174930572 | J98: =IF(($G98+$I98*$D98)^2+($H98-$I98*$D98)^2<>0,-mew*($G98+$I98*$D98)/SQRT(($G98+$I98*$D98)^2+($H98-$I98*$C98)^2),0) -> -2.632168704 | K98: =-mew*($H98-$C98*$I98)/SQRT(($G98+$D98*$I98)^2+($H98-$I98*$C98)^2) -> -1.439335928 | L98: -1.174930572 | M98: =($I98-$I97)/DT -> 1.580631438 | N98: =IF(Q98<>0,mazalazo*(($D98*$J98-$C98*$K98)-2*$I98*($C98*$G98+$D98*$H98))/(INERTIA+mazalazo*($C98^2+$D98^2)),0) -> 1.555022295 | O98: -2.805921382 | P98: =IF(Q98<>0,G98*COS(O98)+H98*SIN(O98)+F98*$I98,0) -> -3.564053913 | Q98: -34.24347942 | R98: =R97+mazalazo*($I98^2*($E98*$P98+$F98*$U98))*DT -> 103.2620177 | S98: =IF(Q98<>0,$J98*COS($O98)+$K98*SIN($Z98)+2*$U98*$I98+$E98*$I98^2+$F98*$N98,0) -> 2.881483244 | T98: =IF(Q98<>0,-$J98*SIN($O98)+$K98*COS($O98)-2*$P98*$I98+$F98*$I98^2-$E98*$N98,0) -> -0.1196998215 | U98: =IF(Q98<>0,-$G98*SIN(O98)+$H98*COS(O98)-$E98*$I98,0) -> -0.5924796037 | V98: =$G98*COS($O98)+$H98*SIN($O98)+$F98*$I98 -> -3.564053913 | W98: =-$G98*SIN($O98)+$H98*COS($O98)-$E98*$I98 -> -0.5924796037 | Y98: 3.752811383 | Z98: 3.706195433 | AA98: -0.6097422083 | AB98: -0.5593155573 | AC98: 0.9104787681 | AD98: 0.938530093 | AE98: 0.3954967635 | AF98: -3.666505888 | AG98: 4.540413795 | AH98: 3.775888072 | AI98: -0.6350878717 | AJ98: -2.805921382 | AK98: -2.734178854 | AL98: FALSE | AN98: 1.093274243 | AR98: -4.148756686 | AS98: -49.71206268 | AT98: 58 | AU98: 1.093274243 | AV98: -34.24347942 | AW98: 19.58026856 | AX98: =1/2*(INERTIA+mazalazo*($C98^2+$D98^2))*$I98^2 -> 43.47212548 | AY98: -49.71206268 | AZ98: -4.148756686 | BA98: -34.24347942 | BB98: 63.05239404 | BC98: 19.30647558 | BD98: 82.35886962 | BF98: 1.093274243 | BG98: 3.169977349 | BH98: =$H98-($I98*$C98) -> 1.733423197 | BI98: 3.612964486 | BJ98: -5.486214827 | BK98: -1.439335928 | BL98: =BL97+mazalazo*($I98*(BM98^2+BN98^2)+BM98*BR98-BN98*BQ98)*$BS98*DT -> -20.69412888 | BM98: 3.775888072 | BN98: -0.6350878717 | BO98: -3.355953624 | BP98: 1.843432291 | BQ98: 2.423793193 | BR98: -2.702983135 | BS98: 0.4248356472 | BT98: 1.580631438 | BU98: 1.555022295
A99: 0 | B99: 59 | C99: 3.821106252 | D99: -0.686290586 | E99: -3.422179977 | F99: 1.833175378 | G99: 2.373918955 | H99: -2.729632953 | I99: -1.146092337 | J99: =IF(($G99+$I99*$D99)^2+($H99-$I99*$D99)^2<>0,-mew*($G99+$I99*$D99)/SQRT(($G99+$I99*$D99)^2+($H99-$I99*$C99)^2),0) -> -2.659490121 | K99: =-mew*($H99-$C99*$I99)/SQRT(($G99+$D99*$I99)^2+($H99-$I99*$C99)^2) -> -1.388204703 | L99: -1.146092337 | M99: =($I99-$I98)/DT -> 1.529915894 | N99: =IF(Q99<>0,mazalazo*(($D99*$J99-$C99*$K99)-2*$I99*($C99*$G99+$D99*$H99))/(INERTIA+mazalazo*($C99^2+$D99^2)),0) -> 1.505058914 | O99: -2.827524714 | P99: =IF(Q99<>0,G99*COS(O99)+H99*SIN(O99)+F99*$I99,0) -> -3.515520447 | Q99: -34.84828858 | R99: =R98+mazalazo*($I99^2*($E99*$P99+$F99*$U99))*DT -> 104.0749423 | S99: =IF(Q99<>0,$J99*COS($O99)+$K99*SIN($Z99)+2*$U99*$I99+$E99*$I99^2+$F99*$N99,0) -> 2.948408982 | T99: =IF(Q99<>0,-$J99*SIN($O99)+$K99*COS($O99)-2*$P99*$I99+$F99*$I99^2-$E99*$N99,0) -> -0.001009422709 | U99: =IF(Q99<>0,-$G99*SIN(O99)+$H99*COS(O99)-$E99*$I99,0) -> -0.5926469089 | V99: =$G99*COS($O99)+$H99*SIN($O99)+$F99*$I99 -> -3.515520447 | W99: =-$G99*SIN($O99)+$H99*COS($O99)-$E99*$I99 -> -0.5926469089 | Y99: 3.798497162 | Z99: 3.752811383 | AA99: -0.6606892289 | AB99: -0.6097422083 | AC99: 0.8831207736 | AD99: 0.9104787681 | AE99: 0.4158313762 | AF99: -3.647991654 | AG99: 4.512914276 | AH99: 3.821106252 | AI99: -0.686290586 | AJ99: -2.827524714 | AK99: -0.09334586037 | AL99: FALSE | AN99: 1.112123799 | AR99: -4.291492575 | AS99: -50.4331672 | AT99: 59 | AU99: 1.112123799 | AV99: -34.84828858 | AW99: 19.06517156 | AX99: =1/2*(INERTIA+mazalazo*($C99^2+$D99^2))*$I99^2 -> 42.17444566 | AY99: -50.4331672 | AZ99: -4.291492575 | BA99: -34.84828858 | BB99: 61.23961722 | BC99: 18.79348656 | BD99: 80.03310378 | BF99: 1.112123799 | BG99: 3.160471337 | BH99: =$H99-($I99*$C99) -> 1.649707642 | BI99: 3.565124735 | BJ99: -5.747329873 | BK99: -1.388204703 | BL99: =BL98+mazalazo*($I99*(BM99^2+BN99^2)+BM99*BR99-BN99*BQ99)*$BS99*DT -> -21.33123201 | BM99: 3.821106252 | BN99: -0.686290586 | BO99: -3.422179977 | BP99: 1.833175378 | BQ99: 2.373918955 | BR99: -2.729632953 | BS99: 0.4320830559 | BT99: 1.529915894 | BU99: 1.505058914
A100: 0 | B100: 60 | C100: 3.86537953 | D100: -0.7379865214 | E100: -3.487511147 | F100: 1.822923206 | G100: 2.323538935 | H100: -2.755313798 | I100: -1.118181864 | J100: =IF(($G100+$I100*$D100)^2+($H100-$I100*$D100)^2<>0,-mew*($G100+$I100*$D100)/SQRT(($G100+$I100*$D100)^2+($H100-$I100*$C100)^2),0) -> -2.685831417 | K100: =-mew*($H100-$C100*$I100)/SQRT(($G100+$D100*$I100)^2+($H100-$I100*$C100)^2) -> -1.336528938 | L100: -1.118181864 | M100: =($I100-$I99)/DT -> 1.480696559 | N100: =IF(Q100<>0,mazalazo*(($D100*$J100-$C100*$K100)-2*$I100*($C100*$G100+$D100*$H100))/(INERTIA+mazalazo*($C100^2+$D100^2)),0) -> 1.456579316 | O100: -2.848601945 | P100: =IF(Q100<>0,G100*COS(O100)+H100*SIN(O100)+F100*$I100,0) -> -3.467098749 | Q100: -35.4449435 | R100: =R99+mazalazo*($I100^2*($E100*$P100+$F100*$U100))*DT -> 104.8537347 | S100: =IF(Q100<>0,$J100*COS($O100)+$K100*SIN($Z100)+2*$U100*$I100+$E100*$I100^2+$F100*$N100,0) -> 3.003259938 | T100: =IF(Q100<>0,-$J100*SIN($O100)+$K100*COS($O100)-2*$P100*$I100+$F100*$I100^2-$E100*$N100,0) -> 0.1092583215 | U100: =IF(Q100<>0,-$G100*SIN(O100)+$H100*COS(O100)-$E100*$I100,0) -> -0.5907002821 | V100: =$G100*COS($O100)+$H100*SIN($O100)+$F100*$I100 -> -3.467098749 | W100: =-$G100*SIN($O100)+$H100*COS($O100)-$E100*$I100 -> -0.5907002821 | Y100: 3.843242891 | Z100: 3.798497162 | AA100: -0.7121385537 | AB100: -0.6606892289 | AC100: 0.8564169943 | AD100: 0.8831207736 | AE100: 0.4367884385 | AF100: -3.629484037 | AG100: 4.484955759 | AH100: 3.86537953 | AI100: -0.7379865214 | AJ100: -2.848601945 | AK100: -2.755256085 | AL100: FALSE | AN100: 1.130973355 | AR100: -4.436148436 | AS100: -51.12343491 | AT100: 60 | AU100: 1.130973355 | AV100: -35.4449435 | AW100: 18.55455084 | AX100: =1/2*(INERTIA+mazalazo*($C100^2+$D100^2))*$I100^2 -> 40.92166593 | AY100: -51.12343491 | AZ100: -4.436148436 | BA100: -35.4449435 | BB100: 59.47621677 | BC100: 18.28535628 | BD100: 77.76157305 | BF100: 1.130973355 | BG100: 3.14874208 | BH100: =$H100-($I100*$C100) -> 1.566883491 | BI100: 3.51705851 | BJ100: -6.02867175 | BK100: -1.336528938 | BL100: =BL99+mazalazo*($I100*(BM100^2+BN100^2)+BM100*BR100-BN100*BQ100)*$BS100*DT -> -21.98541776 | BM100: 3.86537953 | BN100: -0.7379865214 | BO100: -3.487511147 | BP100: 1.822923206 | BQ100: 2.323538935 | BR100: -2.755313798 | BS100: 0.4406810036 | BT100: 1.480696559 | BU100: 1.456579316
A101: 0 | B101: 61 | C101: 3.908698546 | D101: -0.7901573177 | E101: -3.551949032 | F101: 1.812713707 | G101: 2.272671748 | H101: -2.780015647 | I101: -1.091171438 | J101: =IF(($G101+$I101*$D101)^2+($H101-$I101*$D101)^2<>0,-mew*($G101+$I101*$D101)/SQRT(($G101+$I101*$D101)^2+($H101-$I101*$C101)^2),0) -> -2.711177818 | K101: =-mew*($H101-$C101*$I101)/SQRT(($G101+$D101*$I101)^2+($H101-$I101*$C101)^2) -> -1.284334396 | L101: -1.091171438 | M101: =($I101-$I100)/DT -> 1.432947636 | N101: =IF(Q101<>0,mazalazo*(($D101*$J101-$C101*$K101)-2*$I101*($C101*$G101+$D101*$H101))/(INERTIA+mazalazo*($C101^2+$D101^2)),0) -> 1.409556329 | O101: -2.869170043 | P101: =IF(Q101<>0,G101*COS(O101)+H101*SIN(O101)+F101*$I101,0) -> -3.418835031 | Q101: -36.03341612 | R101: =R100+mazalazo*($I101^2*($E101*$P101+$F101*$U101))*DT -> 105.5997398 | S101: =IF(Q101<>0,$J101*COS($O101)+$K101*SIN($Z101)+2*$U101*$I101+$E101*$I101^2+$F101*$N101,0) -> 3.046766816 | T101: =IF(Q101<>0,-$J101*SIN($O101)+$K101*COS($O101)-2*$P101*$I101+$F101*$I101^2-$E101*$N101,0) -> 0.2114049603 | U101: =IF(Q101<>0,-$G101*SIN(O101)+$H101*COS(O101)-$E101*$I101,0) -> -0.586793883 | V101: =$G101*COS($O101)+$H101*SIN($O101)+$F101*$I101 -> -3.418835031 | W101: =-$G101*SIN($O101)+$H101*COS($O101)-$E101*$I101 -> -0.586793883 | Y101: 3.887039038 | Z101: 3.843242891 | AA101: -0.7640719195 | AB101: -0.7121385537 | AC101: 0.8303307336 | AD101: 0.8564169943 | AE101: 0.4583709356 | AF101: -3.61100042 | AG101: 4.456541066 | AH101: 3.908698546 | AI101: -0.7901573177 | AJ101: -2.869170043 | AK101: -0.1139139574 | AL101: FALSE | AN101: 1.149822911 | AR101: -4.582674376 | AS101: -51.78355158 | AT101: 61 | AU101: 1.149822911 | AV101: -36.03341612 | AW101: 18.04914004 | AX101: =1/2*(INERTIA+mazalazo*($C101^2+$D101^2))*$I101^2 -> 39.71240717 | AY101: -51.78355158 | AZ101: -4.582674376 | BA101: -36.03341612 | BB101: 57.76154722 | BC101: 17.78277208 | BD101: 75.5443193 | BF101: 1.149822911 | BG101: 3.134868844 | BH101: =$H101-($I101*$C101) -> 1.485044565 | BI101: 3.468826895 | BJ101: -6.332878324 | BK101: -1.284334396 | BL101: =BL100+mazalazo*($I101*(BM101^2+BN101^2)+BM101*BR101-BN101*BQ101)*$BS101*DT -> -22.65900166 | BM101: 3.908698546 | BN101: -0.7901573177 | BO101: -3.551949032 | BP101: 1.812713707 | BQ101: 2.272671748 | BR101: -2.780015647 | BS101: 0.4508105615 | BT101: 1.432947636 | BU101: 1.409556329
A102: 0 | B102: 62 | C102: 3.951054294 | D102: -0.8427844309 | E102: -3.61549633 | F102: 1.802582014 | G102: 2.221336279 | H102: -2.803728971 | I102: -1.065033875 | J102: =IF(($G102+$I102*$D102)^2+($H102-$I102*$D102)^2<>0,-mew*($G102+$I102*$D102)/SQRT(($G102+$I102*$D102)^2+($H102-$I102*$C102)^2),0) -> -2.735515315 | K102: =-mew*($H102-$C102*$I102)/SQRT(($G102+$D102*$I102)^2+($H102-$I102*$C102)^2) -> -1.23164766 | L102: -1.065033875 | M102: =($I102-$I101)/DT -> 1.38664075 | N102: =IF(Q102<>0,mazalazo*(($D102*$J102-$C102*$K102)-2*$I102*($C102*$G102+$D102*$H102))/(INERTIA+mazalazo*($C102^2+$D102^2)),0) -> 1.363960462 | O102: -2.889245458 | P102: =IF(Q102<>0,G102*COS(O102)+H102*SIN(O102)+F102*$I102,0) -> -3.370767304 | Q102: -36.61368783 | R102: =R101+mazalazo*($I102^2*($E102*$P102+$F102*$U102))*DT -> 106.3142645 | S102: =IF(Q102<>0,$J102*COS($O102)+$K102*SIN($Z102)+2*$U102*$I102+$E102*$I102^2+$F102*$N102,0) -> 3.079640394 | T102: =IF(Q102<>0,-$J102*SIN($O102)+$K102*COS($O102)-2*$P102*$I102+$F102*$I102^2-$E102*$N102,0) -> 0.3057385384 | U102: =IF(Q102<>0,-$G102*SIN(O102)+$H102*COS(O102)-$E102*$I102,0) -> -0.5810761689 | V102: =$G102*COS($O102)+$H102*SIN($O102)+$F102*$I102 -> -3.370767304 | W102: =-$G102*SIN($O102)+$H102*COS($O102)-$E102*$I102 -> -0.5810761689 | Y102: 3.92987642 | Z102: 3.887039038 | AA102: -0.8164708743 | AB102: -0.7640719195 | AC102: 0.8048275087 | AD102: 0.8303307336 | AE102: 0.4805812901 | AF102: -3.59255848 | AG102: 4.427673273 | AH102: 3.951054294 | AI102: -0.8427844309 | AJ102: -2.889245458 | AK102: -2.775331501 | AL102: FALSE | AN102: 1.168672467 | AR102: -4.73101811 | AS102: -52.41424195 | AT102: 62 | AU102: 1.168672467 | AV102: -36.61368783 | AW102: 17.5495826 | AX102: =1/2*(INERTIA+mazalazo*($C102^2+$D102^2))*$I102^2 -> 38.54531554 | AY102: -52.41424195 | AZ102: -4.73101811 | BA102: -36.61368783 | BB102: =AW102+AX102 -> 56.09489814 | BC102: 17.28633467 | BD102: =BB102+BC102 -> 73.38123281 | BF102: 1.168672467 | BG102: 3.118930248 | BH102: =$H102-($I102*$C102) -> 1.404277695 | BI102: 3.420485599 | BJ102: -6.663062992 | BK102: -1.23164766 | BL102: =BL101+mazalazo*($I102*(BM102^2+BN102^2)+BM102*BR102-BN102*BQ102)*$BS102*DT -> -23.35465632 | BM102: 3.951054294 | BN102: -0.8427844309 | BO102: -3.61549633 | BP102: 1.802582014 | BQ102: 2.221336279 | BR102: -2.803728971 | BS102: 0.4626831818 | BT102: 1.38664075 | BU102: 1.363960462
A103: 0 | B103: 63 | C103: 3.992438128 | D103: -0.8958491419 | E103: -3.6781564 | F103: 1.792560569 | G103: 2.169551672 | H103: -2.826444749 | I103: -1.039742569 | J103: =IF(($G103+$I103*$D103)^2+($H103-$I103*$D103)^2<>0,-mew*($G103+$I103*$D103)/SQRT(($G103+$I103*$D103)^2+($H103-$I103*$C103)^2),0) -> -2.758830717 | K103: =-mew*($H103-$C103*$I103)/SQRT(($G103+$D103*$I103)^2+($H103-$I103*$C103)^2) -> -1.178496106 | L103: -1.039742569 | M103: =($I103-$I102)/DT -> 1.34174545 | N103: =IF(Q103<>0,mazalazo*(($D103*$J103-$C103*$K103)-2*$I103*($C103*$G103+$D103*$H103))/(INERTIA+mazalazo*($C103^2+$D103^2)),0) -> 1.319760376 | O103: -2.908844144 | P103: =IF(Q103<>0,G103*COS(O103)+H103*SIN(O103)+F103*$I103,0) -> -3.322926303 | Q103: -37.18574863 | R103: =R102+mazalazo*($I103^2*($E103*$P103+$F103*$U103))*DT -> 106.9985766 | S103: =IF(Q103<>0,$J103*COS($O103)+$K103*SIN($Z103)+2*$U103*$I103+$E103*$I103^2+$F103*$N103,0) -> 3.102570811 | T103: =IF(Q103<>0,-$J103*SIN($O103)+$K103*COS($O103)-2*$P103*$I103+$F103*$I103^2-$E103*$N103,0) -> 0.392570276 | U103: =IF(Q103<>0,-$G103*SIN(O103)+$H103*COS(O103)-$E103*$I103,0) -> -0.5736898071 | V103: =$G103*COS($O103)+$H103*SIN($O103)+$F103*$I103 -> -3.322926303 | W103: =-$G103*SIN($O103)+$H103*COS($O103)-$E103*$I103 -> -0.5736898071 | Y103: 3.971746211 | Z103: 3.92987642 | AA103: -0.8693167864 | AB103: -0.8164708743 | AC103: 0.7798748658 | AD103: 0.8048275087 | AE103: 0.503421333 | AF103: -3.574176185 | AG103: 4.398355721 | AH103: 3.992438128 | AI103: -0.8958491419 | AJ103: -2.908844144 | AK103: -0.1335126431 | AL103: FALSE | AN103: 1.187522023 | AR103: -4.881124947 | AS103: -53.01626292 | AT103: 63 | AU103: 1.187522023 | AV103: -37.18574863 | AW103: 17.05643881 | AX103: =1/2*(INERTIA+mazalazo*($C103^2+$D103^2))*$I103^2 -> 37.41906433 | AY103: -53.01626292 | AZ103: -4.881124947 | BA103: -37.18574863 | BB103: 54.47550315 | BC103: 16.79656505 | BD103: 71.2720682 | BF103: 1.187522023 | BG103: 3.101004161 | BH103: =$H103-($I103*$C103) -> 1.324663129 | BI103: 3.372085291 | BJ103: -7.022927023 | BK103: -1.178496106 | BL103: =BL102+mazalazo*($I103*(BM103^2+BN103^2)+BM103*BR103-BN103*BQ103)*$BS103*DT -> -24.0754736 | BM103: 3.992438128 | BN103: -0.8958491419 | BO103: -3.6781564 | BP103: 1.792560569 | BQ103: 2.169551672 | BR103: -2.826444749 | BS103: 0.4765480247 | BT103: 1.34174545 | BU103: 1.319760376
A104: =IF(B104=XRON,1,0) -> 0 | B104: 64 | C104: 4.032841765 | D104: -0.9493325664 | E104: -3.739933127 | F104: 1.782679227 | G104: 2.117337311 | H104: -2.848154484 | I104: -1.015271517 | J104: =IF(($G104+$I104*$D104)^2+($H104-$I104*$D104)^2<>0,-mew*($G104+$I104*$D104)/SQRT(($G104+$I104*$D104)^2+($H104-$I104*$C104)^2),0) -> -2.781111702 | K104: =-mew*($H104-$C104*$I104)/SQRT(($G104+$D104*$I104)^2+($H104-$I104*$C104)^2) -> -1.124907863 | L104: -1.015271517 | M104: =($I104-$I103)/DT -> 1.298229649 | N104: =IF(Q104<>0,mazalazo*(($D104*$J104-$C104*$K104)-2*$I104*($C104*$G104+$D104*$H104))/(INERTIA+mazalazo*($C104^2+$D104^2)),0) -> 1.276923297 | O104: -2.927981561 | P104: =IF(Q104<>0,G104*COS(O104)+H104*SIN(O104)+F104*$I104,0) -> -3.275336324 | Q104: -37.74959628 | R104: =R103+mazalazo*($I104^2*($E104*$P104+$F104*$U104))*DT -> 107.6539045 | S104: =IF(Q104<>0,$J104*COS($O104)+$K104*SIN($Z104)+2*$U104*$I104+$E104*$I104^2+$F104*$N104,0) -> 3.116226836 | T104: =IF(Q104<>0,-$J104*SIN($O104)+$K104*COS($O104)-2*$P104*$I104+$F104*$I104^2-$E104*$N104,0) -> 0.4722118106 | U104: =IF(Q104<>0,-$G104*SIN(O104)+$H104*COS(O104)-$E104*$I104,0) -> -0.5647716445 | V104: =$G104*COS($O104)+$H104*SIN($O104)+$F104*$I104 -> -3.275336324 | W104: =-$G104*SIN($O104)+$H104*COS($O104)-$E104*$I104 -> -0.5647716445 | Y104: 4.012639947 | Z104: 3.971746211 | AA104: -0.9225908541 | AB104: -0.8693167864 | AC104: 0.7554422126 | AD104: 0.7798748658 | AE104: 0.5268922714 | AF104: -3.55587179 | AG104: 4.368592045 | AH104: 4.032841765 | AI104: -0.9493325664 | AJ104: -2.927981561 | AK104: -2.794468918 | AL104: FALSE | AN104: =B104*DT -> 1.206371579 | AR104: -5.032937773 | AS104: -53.59039714 | AT104: 64 | AU104: 1.206371579 | AV104: -37.74959628 | AW104: =1/2*mazalazo*(P104^2+U104^2) -> 16.57019257 | AX104: =1/2*(INERTIA+mazalazo*($C104^2+$D104^2))*$I104^2 -> 36.3323556 | AY104: -53.59039714 | AZ104: -5.032937773 | BA104: -37.74959628 | BB104: 52.90254817 | BC104: 16.31391106 | BD104: 69.21645923 | BF104: 1.206371579 | BG104: 3.081167626 | BH104: =$H104-($I104*$C104) -> 1.246274893 | BI104: 3.323671922 | BJ104: -7.416905314 | BK104: -1.124907863 | BL104: =BL103+mazalazo*($I104*(BM104^2+BN104^2)+BM104*BR104-BN104*BQ104)*$BS104*DT -> -24.82504233 | BM104: 4.032841765 | BN104: -0.9493325664 | BO104: -3.739933127 | BP104: 1.782679227 | BQ104: 2.117337311 | BR104: -2.848154484 | BS104: 0.4927014534 | BT104: 1.298229649 | BU104: 1.276923297
A105: 0 | B105: 65 | C105: 4.072257287 | D105: -1.003215665 | E105: -3.800830818 | F105: 1.772965364 | G105: 2.064712802 | H105: -2.868850214 | I105: =IF(AND(Q105<>0,B105>=0),(L0+mazalazo*(D105*G105-C105*H105))/(INERTIA+mazalazo*($C105^2+$D105^2)),I104) -> -0.9915953438 | J105: =IF(($G105+$I105*$D105)^2+($H105-$I105*$D105)^2<>0,-mew*($G105+$I105*$D105)/SQRT(($G105+$I105*$D105)^2+($H105-$I105*$C105)^2),0) -> -2.802346868 | K105: =-mew*($H105-$C105*$I105)/SQRT(($G105+$D105*$I105)^2+($H105-$I105*$C105)^2) -> -1.070911776 | L105: -0.9915953438 | M105: =($I105-$I104)/DT -> 1.256060004 | N105: =IF(Q105<>0,mazalazo*(($D105*$J105-$C105*$K105)-2*$I105*($C105*$G105+$D105*$H105))/(INERTIA+mazalazo*($C105^2+$D105^2)),0) -> 1.235415371 | O105: -2.946672693 | P105: =IF(Q105<>0,G105*COS(O105)+H105*SIN(O105)+F105*$I105,0) -> -3.228016003 | Q105: -38.30523564 | R105: =R104+mazalazo*($I105^2*($E105*$P105+$F105*$U105))*DT -> 108.2814365 | S105: =IF(Q105<>0,$J105*COS($O105)+$K105*SIN($Z105)+2*$U105*$I105+$E105*$I105^2+$F105*$N105,0) -> 3.121255128 | T105: =IF(Q105<>0,-$J105*SIN($O105)+$K105*COS($O105)-2*$P105*$I105+$F105*$I105^2-$E105*$N105,0) -> 0.5449729268 | U105: =IF(Q105<>0,-$G105*SIN(O105)+$H105*COS(O105)-$E105*$I105,0) -> -0.5544527228 | V105: =$G105*COS($O105)+$H105*SIN($O105)+$F105*$I105 -> -3.228016003 | W105: =-$G105*SIN($O105)+$H105*COS($O105)-$E105*$I105 -> -0.5544527228 | Y105: 4.052549526 | Z105: 4.012639947 | AA105: -0.9762741157 | AB105: -0.9225908541 | AC105: 0.731500665 | AD105: 0.7554422126 | AE105: 0.5509946559 | AF105: -3.537663832 | AG105: 4.338386197 | AH105: 4.072257287 | AI105: -1.003215665 | AJ105: =IF(Q105<>0,O105,AJ104+TEL_OMEGA*DT) -> -2.946672693 | AK105: -0.152203775 | AL105: FALSE | AN105: 1.225221135 | AR105: =mazalazo*(J105*G105+K105*H105)*DT+AR104 -> -5.186397058 | AS105: =AS104+mazalazo*($F105*$P105-$E105*$U105)*$N105*DT -> -54.13744734 | AT105: 65 | AU105: 1.225221135 | AV105: -38.30523564 | AW105: 16.09125771 | AX105: =1/2*(INERTIA+mazalazo*($C105^2+$D105^2))*$I105^2 -> 35.28392131 | AY105: -54.13744734 | AZ105: -5.186397058 | BA105: =IF(($P105^2+$U105^2)<>0,-mazalazo*mew*($P105^2+$U105^2)/SQRT($P105^2+$U105^2)*DT+BA104,BA104) -> -38.30523564 | BB105: 51.37517901 | BC105: 15.83875353 | BD105: 67.21393254 | BF105: =B105*DT -> 1.225221135 | BG105: 3.059496785 | BH105: =$H105-($I105*$C105) -> 1.169181151 | BI105: 3.275287031 | BJ105: =-mew*BG105/BH105 -> -7.850357788 | BK105: =-mew*BH105/BI105 -> -1.070911776 | BL105: =BL104+mazalazo*($I105*(BM105^2+BN105^2)+BM105*BR105-BN105*BQ105)*$BS105*DT -> -25.60754657 | BM105: 4.072257287 | BN105: -1.003215665 | BO105: -3.800830818 | BP105: 1.772965364 | BQ105: 2.064712802 | BR105: -2.868850214 | BS105: =($BN105*$BJ105-$BM105*$BK105)/(INERTIA+mazalazo*($BM105^2+$BN105^2))*mazalazo -> 0.5114994925 | BT105: 1.256060004 | BU105: 1.235415371
A106: 0 | B106: 66 | C106: 4.110677151 | D106: -1.057479254 | E106: -3.860854095 | F106: 1.76344398 | G106: 2.01169796 | H106: -2.888524529 | I106: -0.9686893209 | J106: =IF(($G106+$I106*$D106)^2+($H106-$I106*$D106)^2<>0,-mew*($G106+$I106*$D106)/SQRT(($G106+$I106*$D106)^2+($H106-$I106*$C106)^2),0) -> -2.82252578 | K106: =-mew*($H106-$C106*$I106)/SQRT(($G106+$D106*$I106)^2+($H106-$I106*$C106)^2) -> -1.016537367 | L106: -0.9686893209 | M106: =($I106-$I105)/DT -> 1.215202256 | N106: =IF(Q106<>0,mazalazo*(($D106*$J106-$C106*$K106)-2*$I106*($C106*$G106+$D106*$H106))/(INERTIA+mazalazo*($C106^2+$D106^2)),0) -> 1.195201981 | O106: -2.964932056 | P106: =IF(Q106<>0,G106*COS(O106)+H106*SIN(O106)+F106*$I106,0) -> -3.180979016 | Q106: -38.85267787 | R106: =R105+mazalazo*($I106^2*($E106*$P106+$F106*$U106))*DT -> 108.8823211 | S106: =IF(Q106<>0,$J106*COS($O106)+$K106*SIN($Z106)+2*$U106*$I106+$E106*$I106^2+$F106*$N106,0) -> 3.118279515 | T106: =IF(Q106<>0,-$J106*SIN($O106)+$K106*COS($O106)-2*$P106*$I106+$F106*$I106^2-$E106*$N106,0) -> 0.6111597094 | U106: =IF(Q106<>0,-$G106*SIN(O106)+$H106*COS(O106)-$E106*$I106,0) -> -0.5428583329 | V106: =$G106*COS($O106)+$H106*SIN($O106)+$F106*$I106 -> -3.180979016 | W106: =-$G106*SIN($O106)+$H106*COS($O106)-$E106*$I106 -> -0.5428583329 | Y106: 4.091467219 | Z106: 4.052549526 | AA106: -1.030347459 | AB106: -0.9762741157 | AC106: 0.7080229083 | AD106: 0.731500665 | AE106: 0.5757283457 | AF106: -3.519571121 | AG106: 4.307742469 | AH106: 4.110677151 | AI106: -1.057479254 | AJ106: -2.964932056 | AK106: -2.812728281 | AL106: =AND(ABS(L106)>ABS(exactome)/10,ABS(L107)<ABS(exactome)/10) -> FALSE | AN106: 1.244070691 | AR106: -5.341440852 | AS106: -54.65823114 | AT106: 66 | AU106: =IF(AND(AT106>0,Q106<>0),AN106,AU105) -> 1.244070691 | AV106: =IF(AU106<>AU105,Q106,AV105) -> -38.85267787 | AW106: 15.61998401 | AX106: =1/2*(INERTIA+mazalazo*($C106^2+$D106^2))*$I106^2 -> 34.27252421 | AY106: -54.65823114 | AZ106: =IF(AU106<>AU105,AR106,AR105) -> -5.341440852 | BA106: -38.85267787 | BB106: 49.89250822 | BC106: =BA106+AY106+$R106 -> 15.37141213 | BD106: 65.26392035 | BF106: 1.244070691 | BG106: =G106-(-D106*L106) -> 3.03606682 | BH106: =$H106-($I106*$C106) -> 1.093444529 | BI106: =SQRT(BG106^2+BH106^2) -> 3.226968031 | BJ106: -8.329823984 | BK106: -1.016537367 | BL106: =BL105+mazalazo*($I106*(BM106^2+BN106^2)+BM106*BR106-BN106*BQ106)*$BS106*DT -> -26.42789115 | BM106: =C106 -> 4.110677151 | BN106: =D106 -> -1.057479254 | BO106: =E106 -> -3.860854095 | BP106: =F106 -> 1.76344398 | BQ106: =G106 -> 2.01169796 | BR106: =H106 -> -2.888524529 | BS106: 0.5333743911 | BT106: =$M106 -> 1.215202256 | BU106: =$N106 -> 1.195201981
A107: 0 | B107: 67 | C107: 4.148094187 | D107: -1.112104013 | E107: -3.920007816 | F107: 1.754137806 | G107: 1.958312783 | H107: -2.907170582 | I107: -0.9465293774 | J107: =IF(($G107+$I107*$D107)^2+($H107-$I107*$D107)^2<>0,-mew*($G107+$I107*$D107)/SQRT(($G107+$I107*$D107)^2+($H107-$I107*$C107)^2),0) -> -2.841639021 | K107: =-mew*($H107-$C107*$I107)/SQRT(($G107+$D107*$I107)^2+($H107-$I107*$C107)^2) -> -0.9618147832 | L107: -0.9465293774 | M107: =($I107-$I106)/DT -> 1.175621519 | N107: =IF(Q107<>0,mazalazo*(($D107*$J107-$C107*$K107)-2*$I107*($C107*$G107+$D107*$H107))/(INERTIA+mazalazo*($C107^2+$D107^2)),0) -> 1.156248018 | O107: -2.982773715 | P107: =IF(Q107<>0,G107*COS(O107)+H107*SIN(O107)+F107*$I107,0) -> -3.13423472 | Q107: -39.39193984 | R107: =R106+mazalazo*($I107^2*($E107*$P107+$F107*$U107))*DT -> 109.457667 | S107: =IF(Q107<>0,$J107*COS($O107)+$K107*SIN($Z107)+2*$U107*$I107+$E107*$I107^2+$F107*$N107,0) -> 3.107900299 | T107: =IF(Q107<>0,-$J107*SIN($O107)+$K107*COS($O107)-2*$P107*$I107+$F107*$I107^2-$E107*$N107,0) -> 0.6710730609 | U107: =IF(Q107<>0,-$G107*SIN(O107)+$H107*COS(O107)-$E107*$I107,0) -> -0.5301080986 | V107: =$G107*COS($O107)+$H107*SIN($O107)+$F107*$I107 -> -3.13423472 | W107: =-$G107*SIN($O107)+$H107*COS($O107)-$E107*$I107 -> -0.5301080986 | Y107: =(C107+C106)/2 -> 4.129385669 | Z107: =(C106+C105)/2 -> 4.091467219 | AA107: =(D107+D106)/2 -> -1.084791633 | AB107: =(D106+D105)/2 -> -1.030347459 | AC107: =-(C106-C107)/(D106-D107) -> 0.6849830698 | AD107: =-(C105-C106)/(D105-D106) -> 0.7080229083 | AE107: =((AA107-AB107)+AD107*Z107-AC107*Y107)/(AD107-AC107) -> 0.6010924717 | AF107: =AA107+AC107*(AE107-Y107) -> -3.501612739 | AG107: =SQRT((AE107-Z107)^2+(AF107-AB107)^2) -> 4.276665519 | AH107: 4.148094187 | AI107: -1.112104013 | AJ107: -2.982773715 | AK107: -0.1700454334 | AL107: FALSE | AN107: 1.262920247 | AR107: -5.498004794 | AS107: -55.15357644 | AT107: 67 | AU107: 1.262920247 | AV107: -39.39193984 | AW107: 15.15666282 | AX107: =1/2*(INERTIA+mazalazo*($C107^2+$D107^2))*$I107^2 -> 33.29695854 | AY107: =IF(AU107<>AU106,AS107,AY106) -> -55.15357644 | AZ107: -5.498004794 | BA107: -39.39193984 | BB107: 48.45362136 | BC107: 14.91215077 | BD107: 63.36577213 | BF107: 1.262920247 | BG107: 3.010951903 | BH107: =$H107-($I107*$C107) -> 1.019122426 | BI107: 3.178748477 | BJ107: -8.863366638 | BK107: -0.9618147832 | BL107: =BL106+mazalazo*($I107*(BM107^2+BN107^2)+BM107*BR107-BN107*BQ107)*$BS107*DT -> -27.29186395 | BM107: 4.148094187 | BN107: -1.112104013 | BO107: -3.920007816 | BP107: 1.754137806 | BQ107: 1.958312783 | BR107: -2.907170582 | BS107: 0.5588569648 | BT107: 1.175621519 | BU107: 1.156248018
A108: 0 | B108: 68 | C108: 4.184501604 | D108: -1.167070502 | E108: -3.978296995 | F108: 1.745067404 | G108: 1.904577441 | H108: -2.924782098 | I108: -0.9250921066 | J108: =IF(($G108+$I108*$D108)^2+($H108-$I108*$D108)^2<>0,-mew*($G108+$I108*$D108)/SQRT(($G108+$I108*$D108)^2+($H108-$I108*$C108)^2),0) -> -2.859678226 | K108: =-mew*($H108-$C108*$I108)/SQRT(($G108+$D108*$I108)^2+($H108-$I108*$C108)^2) -> -0.9067747482 | L108: -0.9250921066 | M108: =($I108-$I107)/DT -> 1.137282537 | N108: =IF(Q108<>0,mazalazo*(($D108*$J108-$C108*$K108)-2*$I108*($C108*$G108+$D108*$H108))/(INERTIA+mazalazo*($C108^2+$D108^2)),0) -> 1.118518113 | O108: -3.00021129 | P108: =IF(Q108<>0,G108*COS(O108)+H108*SIN(O108)+F108*$I108,0) -> -3.087788733 | Q108: -39.92304351 | R108: =R107+mazalazo*($I108^2*($E108*$P108+$F108*$U108))*DT -> 110.0085435 | S108: =IF(Q108<>0,$J108*COS($O108)+$K108*SIN($Z108)+2*$U108*$I108+$E108*$I108^2+$F108*$N108,0) -> 3.090693613 | T108: =IF(Q108<>0,-$J108*SIN($O108)+$K108*COS($O108)-2*$P108*$I108+$F108*$I108^2-$E108*$N108,0) -> 0.7250075313 | U108: =IF(Q108<>0,-$G108*SIN(O108)+$H108*COS(O108)-$E108*$I108,0) -> -0.5163160863 | V108: =$G108*COS($O108)+$H108*SIN($O108)+$F108*$I108 -> -3.087788733 | W108: =-$G108*SIN($O108)+$H108*COS($O108)-$E108*$I108 -> -0.5163160863 | Y108: 4.166297895 | Z108: 4.129385669 | AA108: -1.139587258 | AB108: -1.084791633 | AC108: 0.662356603 | AD108: 0.6849830698 | AE108: 0.6270853979 | AF108: -3.483808025 | AG108: 4.245160401 | AH108: 4.184501604 | AI108: -1.167070502 | AJ108: -3.00021129 | AK108: -2.830165857 | AL108: FALSE | AM108: =exactome -> -4 | AN108: 1.281769803 | AR108: -5.656022135 | AS108: -55.6243172 | AT108: 68 | AU108: 1.281769803 | AV108: -39.92304351 | AW108: 14.70153234 | AX108: =1/2*(INERTIA+mazalazo*($C108^2+$D108^2))*$I108^2 -> 32.35605034 | AY108: -55.6243172 | AZ108: -5.656022135 | BA108: -39.92304351 | BB108: 47.05758268 | BC108: 14.46118276 | BD108: 61.51876545 | BF108: 1.281769803 | BG108: 2.98422515 | BH108: =$H108-($I108*$C108) -> 0.9462673055 | BI108: 3.130658327 | BJ108: -9.461042772 | BK108: -0.9067747482 | BL108: =BL107+mazalazo*($I108*(BM108^2+BN108^2)+BM108*BR108-BN108*BQ108)*$BS108*DT -> -28.20634865 | BM108: 4.184501604 | BN108: -1.167070502 | BO108: -3.978296995 | BP108: 1.745067404 | BQ108: 1.904577441 | BR108: -2.924782098 | BS108: 0.5886072212 | BT108: 1.137282537 | BU108: 1.118518113
A109: 0 | B109: 69 | C109: 4.219892992 | D109: -1.222359165 | E109: -4.03572674 | F109: 1.73625127 | G109: 1.850512248 | H109: -2.941353387 | I109: -0.9043547695 | J109: =IF(($G109+$I109*$D109)^2+($H109-$I109*$D109)^2<>0,-mew*($G109+$I109*$D109)/SQRT(($G109+$I109*$D109)^2+($H109-$I109*$C109)^2),0) -> -2.876636133 | K109: =-mew*($H109-$C109*$I109)/SQRT(($G109+$D109*$I109)^2+($H109-$I109*$C109)^2) -> -0.8514485075 | L109: -0.9043547695 | M109: =($I109-$I108)/DT -> 1.1001499 | N109: =IF(Q109<>0,mazalazo*(($D109*$J109-$C109*$K109)-2*$I109*($C109*$G109+$D109*$H109))/(INERTIA+mazalazo*($C109^2+$D109^2)),0) -> 1.081976844 | O109: -3.017257976 | P109: =IF(Q109<>0,G109*COS(O109)+H109*SIN(O109)+F109*$I109,0) -> -3.041643456 | Q109: -40.44601535 | R109: =R108+mazalazo*($I109^2*($E109*$P109+$F109*$U109))*DT -> 110.5359806 | S109: =IF(Q109<>0,$J109*COS($O109)+$K109*SIN($Z109)+2*$U109*$I109+$E109*$I109^2+$F109*$N109,0) -> 3.067210846 | T109: =IF(Q109<>0,-$J109*SIN($O109)+$K109*COS($O109)-2*$P109*$I109+$F109*$I109^2-$E109*$N109,0) -> 0.7732504142 | U109: =IF(Q109<>0,-$G109*SIN(O109)+$H109*COS(O109)-$E109*$I109,0) -> -0.5015909322 | V109: =$G109*COS($O109)+$H109*SIN($O109)+$F109*$I109 -> -3.041643456 | W109: =-$G109*SIN($O109)+$H109*COS($O109)-$E109*$I109 -> -0.5015909322 | Y109: 4.202197298 | Z109: 4.166297895 | AA109: -1.194714833 | AB109: -1.139587258 | AC109: 0.6401201802 | AD109: 0.662356603 | AE109: 0.6537046822 | AF109: -3.466176566 | AG109: 4.213232594 | AH109: 4.219892992 | AI109: -1.222359165 | AJ109: -3.017257976 | AK109: -0.1870921192 | AL109: FALSE | AN109: 1.300619359 | AR109: -5.81542375 | AS109: -56.07128974 | AT109: 69 | AU109: 1.300619359 | AV109: -40.44601535 | AW109: 14.25478257 | AX109: =1/2*(INERTIA+mazalazo*($C109^2+$D109^2))*$I109^2 -> 31.44865775 | AY109: -56.07128974 | AZ109: -5.81542375 | BA109: -40.44601535 | BB109: 45.70344032 | BC109: 14.01867555 | BD109: 59.72211586 | BF109: 1.300619359 | BG109: 2.955958589 | BH109: =$H109-($I109*$C109) -> 0.8749269678 | BI109: 3.082724181 | BJ109: -10.13556113 | BK109: -0.8514485075 | BL109: =BL108+mazalazo*($I109*(BM109^2+BN109^2)+BM109*BR109-BN109*BQ109)*$BS109*DT -> -29.17960791 | BM109: 4.219892992 | BN109: -1.222359165 | BO109: -4.03572674 | BP109: 1.73625127 | BQ109: 1.850512248 | BR109: -2.941353387 | BS109: 0.6234570913 | BT109: 1.1001499 | BU109: 1.081976844
A110: 0 | B110: 70 | C110: 4.254262328 | D110: -1.277950344 | E110: -4.092302194 | F110: 1.727705933 | G110: 1.796137646 | H110: -2.956879351 | I110: -0.884295294 | J110: =IF(($G110+$I110*$D110)^2+($H110-$I110*$D110)^2<>0,-mew*($G110+$I110*$D110)/SQRT(($G110+$I110*$D110)^2+($H110-$I110*$C110)^2),0) -> -2.892506611 | K110: =-mew*($H110-$C110*$I110)/SQRT(($G110+$D110*$I110)^2+($H110-$I110*$C110)^2) -> -0.7958677694 | L110: -0.884295294 | M110: =($I110-$I109)/DT -> 1.06418823 | N110: =IF(Q110<>0,mazalazo*(($D110*$J110-$C110*$K110)-2*$I110*($C110*$G110+$D110*$H110))/(INERTIA+mazalazo*($C110^2+$D110^2)),0) -> 1.046588907 | O110: -3.03392655 | P110: =IF(Q110<>0,G110*COS(O110)+H110*SIN(O110)+F110*$I110,0) -> -2.995798547 | Q110: -40.9608858 | R110: =R109+mazalazo*($I110^2*($E110*$P110+$F110*$U110))*DT -> 111.0409704 | S110: =IF(Q110<>0,$J110*COS($O110)+$K110*SIN($Z110)+2*$U110*$I110+$E110*$I110^2+$F110*$N110,0) -> 3.03797815 | T110: =IF(Q110<>0,-$J110*SIN($O110)+$K110*COS($O110)-2*$P110*$I110+$F110*$I110^2-$E110*$N110,0) -> 0.8160810685 | U110: =IF(Q110<>0,-$G110*SIN(O110)+$H110*COS(O110)-$E110*$I110,0) -> -0.4860359857 | V110: =$G110*COS($O110)+$H110*SIN($O110)+$F110*$I110 -> -2.995798547 | W110: =-$G110*SIN($O110)+$H110*COS($O110)-$E110*$I110 -> -0.4860359857 | Y110: 4.23707766 | Z110: 4.202197298 | AA110: -1.250154754 | AB110: -1.194714833 | AC110: 0.6182515952 | AD110: 0.6401201802 | AE110: 0.6809470342 | AF110: -3.448738187 | AG110: 4.180888027 | AH110: 4.254262328 | AI110: -1.277950344 | AJ110: -3.03392655 | AK110: -2.84683443 | AL110: FALSE | AN110: 1.319468915 | AR110: -5.976138176 | AS110: -56.49532945 | AT110: 70 | AU110: 1.319468915 | AV110: -40.9608858 | AW110: 13.81655987 | AX110: =1/2*(INERTIA+mazalazo*($C110^2+$D110^2))*$I110^2 -> 30.57367098 | AY110: -56.49532945 | AZ110: -5.976138176 | BA110: -40.9608858 | BB110: 44.39023085 | BC110: 13.58475515 | BD110: 57.974986 | BF110: 1.319468915 | BG110: 2.926223122 | BH110: =$H110-($I110*$C110) -> 0.8051448042 | BI110: 3.034969508 | BJ110: -10.90321805 | BK110: -0.7958677694 | BL110: =BL109+mazalazo*($I110*(BM110^2+BN110^2)+BM110*BR110-BN110*BQ110)*$BS110*DT -> -30.22166674 | BM110: 4.254262328 | BN110: -1.277950344 | BO110: -4.092302194 | BP110: 1.727705933 | BQ110: 1.796137646 | BR110: -2.956879351 | BS110: 0.6644712506 | BT110: 1.06418823 | BU110: 1.046588907
A111: 0 | B111: 71 | C111: 4.287603971 | D111: -1.333824294 | E111: -4.148028489 | F111: 1.719446048 | G111: 1.741474182 | H111: -2.971355497 | I111: -0.8648922709 | J111: =IF(($G111+$I111*$D111)^2+($H111-$I111*$D111)^2<>0,-mew*($G111+$I111*$D111)/SQRT(($G111+$I111*$D111)^2+($H111-$I111*$C111)^2),0) -> -2.907284699 | K111: =-mew*($H111-$C111*$I111)/SQRT(($G111+$D111*$I111)^2+($H111-$I111*$C111)^2) -> -0.7400646438 | L111: -0.8648922709 | M111: =($I111-$I110)/DT -> 1.029362343 | N111: =IF(Q111<>0,mazalazo*(($D111*$J111-$C111*$K111)-2*$I111*($C111*$G111+$D111*$H111))/(INERTIA+mazalazo*($C111^2+$D111^2)),0) -> 1.01231926 | O111: -3.050229385 | P111: =IF(Q111<>0,G111*COS(O111)+H111*SIN(O111)+F111*$I111,0) -> -2.950251343 | Q111: -41.46768879 | R111: =R110+mazalazo*($I111^2*($E111*$P111+$F111*$U111))*DT -> 111.5244669 | S111: =IF(Q111<>0,$J111*COS($O111)+$K111*SIN($Z111)+2*$U111*$I111+$E111*$I111^2+$F111*$N111,0) -> 3.003496044 | T111: =IF(Q111<>0,-$J111*SIN($O111)+$K111*COS($O111)-2*$P111*$I111+$F111*$I111^2-$E111*$N111,0) -> 0.8537704302 | U111: =IF(Q111<>0,-$G111*SIN(O111)+$H111*COS(O111)-$E111*$I111,0) -> -0.469749462 | V111: =$G111*COS($O111)+$H111*SIN($O111)+$F111*$I111 -> -2.950251343 | W111: =-$G111*SIN($O111)+$H111*COS($O111)-$E111*$I111 -> -0.469749462 | Y111: 4.270933149 | Z111: 4.23707766 | AA111: -1.305887319 | AB111: -1.250154754 | AC111: 0.5967296729 | AD111: 0.6182515952 | AE111: 0.7088082728 | AF111: -3.431512931 | AG111: 4.148133118 | AH111: 4.287603971 | AI111: -1.333824294 | AJ111: -3.050229385 | AK111: -0.2033949545 | AL111: FALSE | AN111: 1.33831847 | AR111: -6.138091643 | AS111: -56.89726775 | AT111: 71 | AU111: 1.33831847 | AV111: -41.46768879 | AW111: 13.38697132 | AX111: =1/2*(INERTIA+mazalazo*($C111^2+$D111^2))*$I111^2 -> 29.73001225 | AY111: -56.89726775 | AZ111: -6.138091643 | BA111: -41.46768879 | BB111: 43.11698357 | BC111: 13.15951033 | BD111: 56.27649391 | BF111: 1.33831847 | BG111: 2.895088504 | BH111: =$H111-($I111*$C111) -> 0.736960038 | BI111: 2.98741486 | BJ111: -11.7852598 | BK111: -0.7400646438 | BL111: =BL110+mazalazo*($I111*(BM111^2+BN111^2)+BM111*BR111-BN111*BQ111)*$BS111*DT -> -31.34484172 | BM111: 4.287603971 | BN111: -1.333824294 | BO111: -4.148028489 | BP111: 1.719446048 | BQ111: 1.741474182 | BR111: -2.971355497 | BS111: 0.7130356459 | BT111: 1.029362343 | BU111: 1.01231926
A112: 0 | B112: 72 | C112: 4.319912672 | D112: -1.389961187 | E112: -4.202910709 | F112: 1.711484492 | G112: 1.686542483 | H112: -2.984777938 | I112: -0.8461249484 | J112: =IF(($G112+$I112*$D112)^2+($H112-$I112*$D112)^2<>0,-mew*($G112+$I112*$D112)/SQRT(($G112+$I112*$D112)^2+($H112-$I112*$C112)^2),0) -> -2.920966634 | K112: =-mew*($H112-$C112*$I112)/SQRT(($G112+$D112*$I112)^2+($H112-$I112*$C112)^2) -> -0.6840715773 | L112: -0.8461249484 | M112: =($I112-$I111)/DT -> 0.9956373838 | N112: =IF(Q112<>0,mazalazo*(($D112*$J112-$C112*$K112)-2*$I112*($C112*$G112+$D112*$H112))/(INERTIA+mazalazo*($C112^2+$D112^2)),0) -> 0.97913325 | O112: -3.066178464 | P112: =IF(Q112<>0,G112*COS(O112)+H112*SIN(O112)+F112*$I112,0) -> -2.904997241 | Q112: -41.96646128 | R112: =R111+mazalazo*($I112^2*($E112*$P112+$F112*$U112))*DT -> 111.9873873 | S112: =IF(Q112<>0,$J112*COS($O112)+$K112*SIN($Z112)+2*$U112*$I112+$E112*$I112^2+$F112*$N112,0) -> 2.964239121 | T112: =IF(Q112<>0,-$J112*SIN($O112)+$K112*COS($O112)-2*$P112*$I112+$F112*$I112^2-$E112*$N112,0) -> 0.8865806832 | U112: =IF(Q112<>0,-$G112*SIN(O112)+$H112*COS(O112)-$E112*$I112,0) -> -0.4528246034 | V112: =$G112*COS($O112)+$H112*SIN($O112)+$F112*$I112 -> -2.904997241 | W112: =-$G112*SIN($O112)+$H112*COS($O112)-$E112*$I112 -> -0.4528246034 | Y112: 4.303758322 | Z112: 4.270933149 | AA112: -1.36189274 | AB112: -1.305887319 | AC112: 0.5755341858 | AD112: 0.5967296729 | AE112: 0.7372832817 | AF112: -3.414521049 | AG112: 4.114974799 | AH112: =IF(Q112<>0,C112,(E112*COS(AJ112)-F112*SIN(AJ112)+C112)/2) -> 4.319912672 | AI112: =IF(Q112<>0,D112,(E112*SIN(AJ112)+F112*COS(AJ112)+D112)/2) -> -1.389961187 | AJ112: -3.066178464 | AK112: -2.86278351 | AL112: FALSE | AN112: 1.357168026 | AR112: -6.301208117 | AS112: -57.2779296 | AT112: 72 | AU112: 1.357168026 | AV112: -41.96646128 | AW112: 12.96608864 | AX112: =1/2*(INERTIA+mazalazo*($C112^2+$D112^2))*$I112^2 -> 28.91663557 | AY112: -57.2779296 | AZ112: -6.301208117 | BA112: -41.96646128 | BB112: 41.88272421 | BC112: 12.74299642 | BD112: 54.62572063 | BF112: 1.357168026 | BG112: 2.86262332 | BH112: =$H112-($I112*$C112) -> 0.6704079489 | BI112: 2.940078076 | BJ112: -12.80991667 | BK112: -0.6840715773 | BL112: =BL111+mazalazo*($I112*(BM112^2+BN112^2)+BM112*BR112-BN112*BQ112)*$BS112*DT -> -32.56448807 | BM112: 4.319912672 | BN112: -1.389961187 | BO112: -4.202910709 | BP112: 1.711484492 | BQ112: 1.686542483 | BR112: -2.984777938 | BS112: 0.7709896708 | BT112: 0.9956373838 | BU112: 0.97913325
A113: 0 | B113: 73 | C113: 4.351183569 | D113: -1.44634113 | E113: -4.256953853 | F113: 1.703832449 | G113: 1.631363238 | H113: -2.9971434 | I113: -0.8279732231 | J113: =IF(($G113+$I113*$D113)^2+($H113-$I113*$D113)^2<>0,-mew*($G113+$I113*$D113)/SQRT(($G113+$I113*$D113)^2+($H113-$I113*$C113)^2),0) -> -2.933549873 | K113: =-mew*($H113-$C113*$I113)/SQRT(($G113+$D113*$I113)^2+($H113-$I113*$C113)^2) -> -0.6279212863 | L113: -0.8279732231 | M113: =($I113-$I112)/DT -> 0.9629789359 | N113: =IF(Q113<>0,mazalazo*(($D113*$J113-$C113*$K113)-2*$I113*($C113*$G113+$D113*$H113))/(INERTIA+mazalazo*($C113^2+$D113^2)),0) -> 0.9469967157 | O113: -3.081785392 | P113: =IF(Q113<>0,G113*COS(O113)+H113*SIN(O113)+F113*$I113,0) -> -2.860030036 | Q113: -42.45724284 | R113: =R112+mazalazo*($I113^2*($E113*$P113+$F113*$U113))*DT -> 112.4306128 | S113: =IF(Q113<>0,$J113*COS($O113)+$K113*SIN($Z113)+2*$U113*$I113+$E113*$I113^2+$F113*$N113,0) -> 2.920655876 | T113: =IF(Q113<>0,-$J113*SIN($O113)+$K113*COS($O113)-2*$P113*$I113+$F113*$I113^2-$E113*$N113,0) -> 0.9147650617 | U113: =IF(Q113<>0,-$G113*SIN(O113)+$H113*COS(O113)-$E113*$I113,0) -> -0.4353498443 | V113: =$G113*COS($O113)+$H113*SIN($O113)+$F113*$I113 -> -2.860030036 | W113: =-$G113*SIN($O113)+$H113*COS($O113)-$E113*$I113 -> -0.4353498443 | Y113: 4.335548121 | Z113: 4.303758322 | AA113: -1.418151158 | AB113: -1.36189274 | AC113: 0.5546457775 | AD113: 0.5755341858 | AE113: 0.7663659648 | AF113: -3.39778297 | AG113: 4.081420551 | AH113: 4.351183569 | AI113: -1.44634113 | AJ113: -3.081785392 | AK113: -0.219001882 | AL113: FALSE | AN113: 1.376017582 | AR113: -6.465409348 | AS113: -57.63813112 | AT113: 73 | AU113: 1.376017582 | AV113: -42.45724284 | AW113: 12.55395194 | AX113: =1/2*(INERTIA+mazalazo*($C113^2+$D113^2))*$I113^2 -> 28.13252638 | AY113: -57.63813112 | AZ113: -6.465409348 | BA113: -42.45724284 | BB113: 40.68647831 | BC113: 12.33523886 | BD113: 53.02171718 | BF113: 1.376017582 | BG113: 2.828894964 | BH113: =$H113-($I113*$C113) -> 0.6055200837 | BI113: 2.892974471 | BJ113: -14.01552999 | BK113: -0.6279212863 | BL113: =BL112+mazalazo*($I113*(BM113^2+BN113^2)+BM113*BR113-BN113*BQ113)*$BS113*DT -> -33.90008156 | BM113: 4.351183569 | BN113: -1.44634113 | BO113: -4.256953853 | BP113: 1.703832449 | BQ113: 1.631363238 | BR113: -2.9971434 | BS113: 0.8408293477 | BT113: 0.9629789359 | BU113: 0.9469967157
A114: 0 | B114: 74 | C114: 4.381412192 | D114: -1.502944173 | E114: -4.310162806 | F114: 1.696499505 | G114: 1.57595717 | H114: -3.008449232 | I114: -0.8104176303 | J114: =IF(($G114+$I114*$D114)^2+($H114-$I114*$D114)^2<>0,-mew*($G114+$I114*$D114)/SQRT(($G114+$I114*$D114)^2+($H114-$I114*$C114)^2),0) -> -2.945033118 | K114: =-mew*($H114-$C114*$I114)/SQRT(($G114+$D114*$I114)^2+($H114-$I114*$C114)^2) -> -0.571646687 | L114: -0.8104176303 | M114: =($I114-$I113)/DT -> 0.9313531194 | N114: =IF(Q114<>0,mazalazo*(($D114*$J114-$C114*$K114)-2*$I114*($C114*$G114+$D114*$H114))/(INERTIA+mazalazo*($C114^2+$D114^2)),0) -> 0.9158760714 | O114: -3.097061404 | P114: =IF(Q114<>0,G114*COS(O114)+H114*SIN(O114)+F114*$I114,0) -> -2.815342221 | Q114: -42.94007522 | R114: =R113+mazalazo*($I114^2*($E114*$P114+$F114*$U114))*DT -> 112.8549894 | S114: =IF(Q114<>0,$J114*COS($O114)+$K114*SIN($Z114)+2*$U114*$I114+$E114*$I114^2+$F114*$N114,0) -> 2.873168652 | T114: =IF(Q114<>0,-$J114*SIN($O114)+$K114*COS($O114)-2*$P114*$I114+$F114*$I114^2-$E114*$N114,0) -> 0.9385677617 | U114: =IF(Q114<>0,-$G114*SIN(O114)+$H114*COS(O114)-$E114*$I114,0) -> -0.4174089798 | V114: =$G114*COS($O114)+$H114*SIN($O114)+$F114*$I114 -> -2.815342221 | W114: =-$G114*SIN($O114)+$H114*COS($O114)-$E114*$I114 -> -0.4174089798 | Y114: 4.366297881 | Z114: 4.335548121 | AA114: -1.474642651 | AB114: -1.418151158 | AC114: 0.534045891 | AD114: 0.5546457775 | AE114: 0.7960492003 | AF114: -3.381319289 | AG114: 4.04747844 | AH114: 4.381412192 | AI114: -1.502944173 | AJ114: -3.097061404 | AK114: -2.878059522 | AL114: FALSE | AN114: 1.394867138 | AR114: -6.630614925 | AS114: -57.97867766 | AT114: 74 | AU114: 1.394867138 | AV114: -42.94007522 | AW114: 12.15057312 | AX114: =1/2*(INERTIA+mazalazo*($C114^2+$D114^2))*$I114^2 -> 27.37670116 | AY114: -57.97867766 | AZ114: -6.630614925 | BA114: -42.94007522 | BB114: 39.52727428 | BC114: 11.93623655 | BD114: 51.46351083 | BF114: 1.394867138 | BG114: 2.793969625 | BH114: =$H114-($I114*$C114) -> 0.5423244547 | BI114: 2.846117018 | BJ114: -15.45552446 | BK114: -0.571646687 | BL114: =BL113+mazalazo*($I114*(BM114^2+BN114^2)+BM114*BR114-BN114*BQ114)*$BS114*DT -> -35.37683277 | BM114: 4.381412192 | BN114: -1.502944173 | BO114: -4.310162806 | BP114: 1.696499505 | BQ114: 1.57595717 | BR114: -3.008449232 | BS114: 0.9260304069 | BT114: 0.9313531194 | BU114: 0.9158760714
A115: 0 | B115: 75 | C115: 4.41059446 | D115: -1.559750323 | E115: -4.362542323 | F115: 1.689493725 | G115: 1.520345017 | H115: -3.0186934 | I115: -0.7934393327 | J115: =IF(($G115+$I115*$D115)^2+($H115-$I115*$D115)^2<>0,-mew*($G115+$I115*$D115)/SQRT(($G115+$I115*$D115)^2+($H115-$I115*$C115)^2),0) -> -2.955416328 | K115: =-mew*($H115-$C115*$I115)/SQRT(($G115+$D115*$I115)^2+($H115-$I115*$C115)^2) -> -0.5152808243 | L115: -0.7934393327 | M115: =($I115-$I114)/DT -> 0.9007266667 | N115: =IF(Q115<>0,mazalazo*(($D115*$J115-$C115*$K115)-2*$I115*($C115*$G115+$D115*$H115))/(INERTIA+mazalazo*($C115^2+$D115^2)),0) -> 0.8857383772 | O115: -3.112017384 | P115: =IF(Q115<>0,G115*COS(O115)+H115*SIN(O115)+F115*$I115,0) -> -2.770925261 | Q115: -43.41500201 | R115: =R114+mazalazo*($I115^2*($E115*$P115+$F115*$U115))*DT -> 113.2613289 | S115: =IF(Q115<>0,$J115*COS($O115)+$K115*SIN($Z115)+2*$U115*$I115+$E115*$I115^2+$F115*$N115,0) -> 2.822173707 | T115: =IF(Q115<>0,-$J115*SIN($O115)+$K115*COS($O115)-2*$P115*$I115+$F115*$I115^2-$E115*$N115,0) -> 0.9582239407 | U115: =IF(Q115<>0,-$G115*SIN(O115)+$H115*COS(O115)-$E115*$I115,0) -> -0.3990813341 | V115: =$G115*COS($O115)+$H115*SIN($O115)+$F115*$I115 -> -2.770925261 | W115: =-$G115*SIN($O115)+$H115*COS($O115)-$E115*$I115 -> -0.3990813341 | Y115: 4.396003326 | Z115: 4.366297881 | AA115: -1.531347248 | AB115: -1.474642651 | AC115: 0.5137167026 | AD115: 0.534045891 | AE115: 0.8263247942 | AF115: -3.365150733 | AG115: 4.013157144 | AH115: 4.41059446 | AI115: -1.559750323 | AJ115: -3.112017384 | AK115: -0.2339578611 | AL115: FALSE | AN115: 1.413716694 | AR115: -6.796742338 | AS115: -58.300362 | AT115: 75 | AU115: 1.413716694 | AV115: -43.41500201 | AW115: 11.75593907 | AX115: =1/2*(INERTIA+mazalazo*($C115^2+$D115^2))*$I115^2 -> 26.64820696 | AY115: -58.300362 | AZ115: -6.796742338 | BA115: -43.41500201 | BB115: 38.40414603 | BC115: 11.54596485 | BD115: 49.95011087 | BF115: 1.413716694 | BG115: 2.757912272 | BH115: =$H115-($I115*$C115) -> 0.4808457257 | BI115: 2.799516514 | BJ115: -17.20663484 | BK115: -0.5152808243 | BL115: =BL114+mazalazo*($I115*(BM115^2+BN115^2)+BM115*BR115-BN115*BQ115)*$BS115*DT -> -37.02818227 | BM115: 4.41059446 | BN115: -1.559750323 | BO115: -4.362542323 | BP115: 1.689493725 | BQ115: 1.520345017 | BR115: -3.0186934 | BS115: 1.031582812 | BT115: 0.9007266667 | BU115: 0.8857383772
A116: 0 | B116: 76 | C116: 4.438726684 | D116: -1.616739553 | E116: -4.414097005 | F116: 1.682821736 | G116: 1.464547503 | H116: -3.027874496 | I116: -0.7770201068 | J116: =IF(($G116+$I116*$D116)^2+($H116-$I116*$D116)^2<>0,-mew*($G116+$I116*$D116)/SQRT(($G116+$I116*$D116)^2+($H116-$I116*$C116)^2),0) -> -2.964700733 | K116: =-mew*($H116-$C116*$I116)/SQRT(($G116+$D116*$I116)^2+($H116-$I116*$C116)^2) -> -0.4588567985 | L116: -0.7770201068 | M116: =($I116-$I115)/DT -> 0.8710669846 | N116: =IF(Q116<>0,mazalazo*(($D116*$J116-$C116*$K116)-2*$I116*($C116*$G116+$D116*$H116))/(INERTIA+mazalazo*($C116^2+$D116^2)),0) -> 0.856551395 | O116: -3.126663867 | P116: =IF(Q116<>0,G116*COS(O116)+H116*SIN(O116)+F116*$I116,0) -> -2.726769819 | Q116: -43.88206828 | R116: =R115+mazalazo*($I116^2*($E116*$P116+$F116*$U116))*DT -> 113.6504096 | S116: =IF(Q116<>0,$J116*COS($O116)+$K116*SIN($Z116)+2*$U116*$I116+$E116*$I116^2+$F116*$N116,0) -> 2.768041414 | T116: =IF(Q116<>0,-$J116*SIN($O116)+$K116*COS($O116)-2*$P116*$I116+$F116*$I116^2-$E116*$N116,0) -> 0.9739597885 | U116: =IF(Q116<>0,-$G116*SIN(O116)+$H116*COS(O116)-$E116*$I116,0) -> -0.3804419289 | V116: =$G116*COS($O116)+$H116*SIN($O116)+$F116*$I116 -> -2.726769819 | W116: =-$G116*SIN($O116)+$H116*COS($O116)-$E116*$I116 -> -0.3804419289 | Y116: 4.424660572 | Z116: 4.396003326 | AA116: -1.588244938 | AB116: -1.531347248 | AC116: 0.4936410599 | AD116: 0.5137167026 | AE116: 0.8571834343 | AF116: -3.349298134 | AG116: 3.978465992 | AH116: 4.438726684 | AI116: -1.616739553 | AJ116: -3.126663867 | AK116: -2.892706006 | AL116: FALSE | AN116: 1.43256625 | AR116: -6.963707044 | AS116: -58.60396291 | AT116: 76 | AU116: 1.43256625 | AV116: -43.88206828 | AW116: 11.37001456 | AX116: =1/2*(INERTIA+mazalazo*($C116^2+$D116^2))*$I116^2 -> 25.94612085 | AY116: -58.60396291 | AZ116: -6.963707044 | BA116: -43.88206828 | BB116: 37.31613542 | BC116: 11.1643784 | BD116: 48.48051382 | BF116: 1.43256625 | BG116: 2.720786644 | BH116: =$H116-($I116*$C116) -> 0.4211053867 | BI116: 2.753181743 | BJ116: -19.38317625 | BK116: -0.4588567985 | BL116: =BL115+mazalazo*($I116*(BM116^2+BN116^2)+BM116*BR116-BN116*BQ116)*$BS116*DT -> -38.8998238 | BM116: 4.438726684 | BN116: -1.616739553 | BO116: -4.414097005 | BP116: 1.682821736 | BQ116: 1.464547503 | BR116: -3.027874496 | BS116: 1.164917961 | BT116: 0.8710669846 | BU116: 0.856551395
A117: 0 | B117: 77 | C117: 4.465805566 | D117: -1.673891818 | E117: -4.46483129 | F117: 1.676488807 | G117: 1.408585321 | H117: -3.035991736 | I117: -0.7611423304 | J117: =IF(($G117+$I117*$D117)^2+($H117-$I117*$D117)^2<>0,-mew*($G117+$I117*$D117)/SQRT(($G117+$I117*$D117)^2+($H117-$I117*$C117)^2),0) -> -2.972888839 | K117: =-mew*($H117-$C117*$I117)/SQRT(($G117+$D117*$I117)^2+($H117-$I117*$C117)^2) -> -0.4024076911 | L117: -0.7611423304 | M117: =($I117-$I116)/DT -> 0.8423422043 | N117: =IF(Q117<>0,mazalazo*(($D117*$J117-$C117*$K117)-2*$I117*($C117*$G117+$D117*$H117))/(INERTIA+mazalazo*($C117^2+$D117^2)),0) -> 0.8282836317 | O117: -3.141011062 | P117: =IF(Q117<>0,G117*COS(O117)+H117*SIN(O117)+F117*$I117,0) -> -2.682865974 | Q117: -44.34132031 | R117: =R116+mazalazo*($I117^2*($E117*$P117+$F117*$U117))*DT -> 114.0229779 | S117: =IF(Q117<>0,$J117*COS($O117)+$K117*SIN($Z117)+2*$U117*$I117+$E117*$I117^2+$F117*$N117,0) -> 2.711116574 | T117: =IF(Q117<>0,-$J117*SIN($O117)+$K117*COS($O117)-2*$P117*$I117+$F117*$I117^2-$E117*$N117,0) -> 0.9859926546 | U117: =IF(Q117<>0,-$G117*SIN(O117)+$H117*COS(O117)-$E117*$I117,0) -> -0.3615616493 | V117: =$G117*COS($O117)+$H117*SIN($O117)+$F117*$I117 -> -2.682865974 | W117: =-$G117*SIN($O117)+$H117*COS($O117)-$E117*$I117 -> -0.3615616493 | Y117: 4.452266125 | Z117: 4.424660572 | AA117: -1.645315685 | AB117: -1.588244938 | AC117: 0.4738024247 | AD117: 0.4936410599 | AE117: 0.8886146436 | AF117: -3.333782398 | AG117: 3.943414996 | AH117: 4.465805566 | AI117: -1.673891818 | AJ117: -3.141011062 | AK117: -0.248305056 | AL117: FALSE | AN117: 1.451415806 | AR117: -7.131422541 | AS117: -58.89024381 | AT117: 77 | AU117: 1.451415806 | AV117: -44.34132031 | AW117: 10.99274499 | AX117: =1/2*(INERTIA+mazalazo*($C117^2+$D117^2))*$I117^2 -> 25.26954935 | AY117: -58.89024381 | AZ117: -7.131422541 | BA117: -44.34132031 | BB117: 36.26229434 | BC117: 10.79141375 | BD117: 47.05370809 | BF117: 1.451415806 | BG117: 2.682655239 | BH117: =$H117-($I117*$C117) -> 0.3631219192 | BI117: 2.707119625 | BJ117: -22.16326058 | BK117: -0.4024076911 | BL117: =BL116+mazalazo*($I117*(BM117^2+BN117^2)+BM117*BR117-BN117*BQ117)*$BS117*DT -> -41.0565345 | BM117: 4.465805566 | BN117: -1.673891818 | BO117: -4.46483129 | BP117: 1.676488807 | BQ117: 1.408585321 | BR117: -3.035991736 | BS117: 1.337612061 | BT117: 0.8423422043 | BU117: 0.8282836317
A118: 0 | B118: 78 | C118: 4.491828195 | D118: -1.73118706 | E118: -4.514749442 | F118: 1.670498922 | G118: 1.352479099 | H118: -3.043044958 | I118: -0.7457889671 | J118: =IF(($G118+$I118*$D118)^2+($H118-$I118*$D118)^2<>0,-mew*($G118+$I118*$D118)/SQRT(($G118+$I118*$D118)^2+($H118-$I118*$C118)^2),0) -> -2.979984427 | K118: =-mew*($H118-$C118*$I118)/SQRT(($G118+$D118*$I118)^2+($H118-$I118*$C118)^2) -> -0.3459664906 | L118: -0.7457889671 | M118: =($I118-$I117)/DT -> 0.8145212194 | N118: =IF(Q118<>0,mazalazo*(($D118*$J118-$C118*$K118)-2*$I118*($C118*$G118+$D118*$H118))/(INERTIA+mazalazo*($C118^2+$D118^2)),0) -> 0.800904372 | O118: -3.155068853 | P118: =IF(Q118<>0,G118*COS(O118)+H118*SIN(O118)+F118*$I118,0) -> -2.639203396 | Q118: -44.79280522 | R118: =R117+mazalazo*($I118^2*($E118*$P118+$F118*$U118))*DT -> 114.3797486 | S118: =IF(Q118<>0,$J118*COS($O118)+$K118*SIN($Z118)+2*$U118*$I118+$E118*$I118^2+$F118*$N118,0) -> 2.651718856 | T118: =IF(Q118<>0,-$J118*SIN($O118)+$K118*COS($O118)-2*$P118*$I118+$F118*$I118^2-$E118*$N118,0) -> 0.9945312195 | U118: =IF(Q118<>0,-$G118*SIN(O118)+$H118*COS(O118)-$E118*$I118,0) -> -0.3425074075 | V118: =$G118*COS($O118)+$H118*SIN($O118)+$F118*$I118 -> -2.639203396 | W118: =-$G118*SIN($O118)+$H118*COS($O118)-$E118*$I118 -> -0.3425074075 | Y118: 4.47881688 | Z118: 4.452266125 | AA118: -1.702539439 | AB118: -1.645315685 | AC118: 0.4541848185 | AD118: 0.4738024247 | AE118: 0.9206067352 | AF118: -3.318624468 | AG118: 3.908014883 | AH118: 4.491828195 | AI118: -1.73118706 | AJ118: -3.155068853 | AL118: FALSE | AN118: 1.470265362 | AR118: -7.299800445 | AS118: -59.15995172 | AT118: 78 | AU118: 1.470265362 | AV118: -44.79280522 | AW118: 10.62405884 | AX118: =1/2*(INERTIA+mazalazo*($C118^2+$D118^2))*$I118^2 -> 24.61762776 | AY118: -59.15995172 | AZ118: -7.299800445 | BA118: -44.79280522 | BB118: 35.2416866 | BC118: 10.4269917 | BD118: 45.6686783 | BF118: 1.470265362 | BG118: 2.643579308 | BH118: =$H118-($I118*$C118) -> 0.3069109515 | BI118: 2.661335359 | BJ118: -25.84051787 | BK118: -0.3459664906 | BL118: =BL117+mazalazo*($I118*(BM118^2+BN118^2)+BM118*BR118-BN118*BQ118)*$BS118*DT -> -43.59454316 | BM118: 4.491828195 | BN118: -1.73118706 | BO118: -4.514749442 | BP118: 1.670498922 | BQ118: 1.352479099 | BR118: -3.043044958 | BS118: 1.568746666 | BT118: 0.8145212194 | BU118: 0.800904372
A119: 0 | B119: 79 | C119: 4.516792051 | D119: -1.788605227 | E119: -4.563855542 | F119: 1.664854851 | G119: 1.296249387 | H119: -3.049034622 | I119: -0.7309435523 | J119: =IF(($G119+$I119*$D119)^2+($H119-$I119*$D119)^2<>0,-mew*($G119+$I119*$D119)/SQRT(($G119+$I119*$D119)^2+($H119-$I119*$C119)^2),0) -> -2.985992552 | K119: =-mew*($H119-$C119*$I119)/SQRT(($G119+$D119*$I119)^2+($H119-$I119*$C119)^2) -> -0.289566017 | L119: -0.7309435523 | M119: =($I119-$I118)/DT -> 0.7875737139 | N119: =IF(Q119<>0,mazalazo*(($D119*$J119-$C119*$K119)-2*$I119*($C119*$G119+$D119*$H119))/(INERTIA+mazalazo*($C119^2+$D119^2)),0) -> 0.7743837028 | O119: -3.168846815 | P119: =IF(Q119<>0,G119*COS(O119)+H119*SIN(O119)+F119*$I119,0) -> -2.595771509 | Q119: -45.23657076 | R119: =R118+mazalazo*($I119^2*($E119*$P119+$F119*$U119))*DT -> 114.7214066 | S119: =IF(Q119<>0,$J119*COS($O119)+$K119*SIN($Z119)+2*$U119*$I119+$E119*$I119^2+$F119*$N119,0) -> 2.590143349 | T119: =IF(Q119<>0,-$J119*SIN($O119)+$K119*COS($O119)-2*$P119*$I119+$F119*$I119^2-$E119*$N119,0) -> 0.9997756995 | U119: =IF(Q119<>0,-$G119*SIN(O119)+$H119*COS(O119)-$E119*$I119,0) -> -0.3233423021 | V119: =$G119*COS($O119)+$H119*SIN($O119)+$F119*$I119 -> -2.595771509 | W119: =-$G119*SIN($O119)+$H119*COS($O119)-$E119*$I119 -> -0.3233423021 | Y119: 4.504310123 | Z119: 4.47881688 | AA119: -1.759896143 | AB119: -1.702539439 | AC119: 0.434772772 | AD119: 0.4541848185 | AE119: 0.9531467673 | AF119: -3.303845279 | AG119: 3.872277126 | AH119: 4.516792051 | AI119: -1.788605227 | AJ119: -3.168846815 | AL119: FALSE | AN119: 1.489114918 | AR119: -7.468750572 | AS119: -59.41381631 | AT119: 79 | AU119: 1.489114918 | AV119: -45.23657076 | AW119: 10.26386996 | AX119: =1/2*(INERTIA+mazalazo*($C119^2+$D119^2))*$I119^2 -> 23.98951961 | AY119: -59.41381631 | AZ119: -7.468750572 | BA119: -45.23657076 | BB119: 34.25338957 | BC119: 10.07101952 | BD119: 44.32440909 | BF119: 1.489114918 | BG119: 2.603618846 | BH119: =$H119-($I119*$C119) -> 0.252485405 | BI119: 2.615832558 | BJ119: -30.93587344 | BK119: -0.289566017 | BL119: =BL118+mazalazo*($I119*(BM119^2+BN119^2)+BM119*BR119-BN119*BQ119)*$BS119*DT -> -46.66586693 | BM119: 4.516792051 | BN119: -1.788605227 | BO119: -4.563855542 | BP119: 1.664854851 | BQ119: 1.296249387 | BR119: -3.049034622 | BS119: 1.892171233 | BT119: 0.7875737139 | BU119: 0.7743837028
A120: 0 | B120: 80 | C120: 4.540694998 | D120: -1.846126281 | E120: -4.61215349 | F120: 1.659558222 | G120: 1.239916625 | H120: -3.053961801 | I120: -0.7165901775 | J120: =IF(($G120+$I120*$D120)^2+($H120-$I120*$D120)^2<>0,-mew*($G120+$I120*$D120)/SQRT(($G120+$I120*$D120)^2+($H120-$I120*$C120)^2),0) -> -2.990919531 | K120: =-mew*($H120-$C120*$I120)/SQRT(($G120+$D120*$I120)^2+($H120-$I120*$C120)^2) -> -0.2332388477 | L120: -0.7165901775 | M120: =($I120-$I119)/DT -> 0.7614701825 | N120: =IF(Q120<>0,mazalazo*(($D120*$J120-$C120*$K120)-2*$I120*($C120*$G120+$D120*$H120))/(INERTIA+mazalazo*($C120^2+$D120^2)),0) -> 0.7486925285 | O120: -3.182354221 | P120: =IF(Q120<>0,G120*COS(O120)+H120*SIN(O120)+F120*$I120,0) -> -2.552559626 | Q120: -45.67266504 | R120: =R119+mazalazo*($I120^2*($E120*$P120+$F120*$U120))*DT -> 115.0486072 | S120: =IF(Q120<>0,$J120*COS($O120)+$K120*SIN($Z120)+2*$U120*$I120+$E120*$I120^2+$F120*$N120,0) -> 2.526661222 | T120: =IF(Q120<>0,-$J120*SIN($O120)+$K120*COS($O120)-2*$P120*$I120+$F120*$I120^2-$E120*$N120,0) -> 1.001918076 | U120: =IF(Q120<>0,-$G120*SIN(O120)+$H120*COS(O120)-$E120*$I120,0) -> -0.3041257743 | V120: =$G120*COS($O120)+$H120*SIN($O120)+$F120*$I120 -> -2.552559626 | W120: =-$G120*SIN($O120)+$H120*COS($O120)-$E120*$I120 -> -0.3041257743 | Y120: 4.528743524 | Z120: 4.504310123 | AA120: -1.817365754 | AB120: -1.759896143 | AC120: 0.415551277 | AD120: 0.434772772 | AE120: 0.9862205006 | AF120: -3.28946572 | AG120: 3.836213977 | AH120: 4.540694998 | AI120: -1.846126281 | AJ120: -3.182354221 | AL120: FALSE | AN120: 1.507964474 | AR120: -7.638181029 | AS120: -59.65254921 | AT120: 80 | AU120: 1.507964474 | AV120: -45.67266504 | AW120: 9.912079698 | AX120: =1/2*(INERTIA+mazalazo*($C120^2+$D120^2))*$I120^2 -> 23.38441589 | AY120: -59.65254921 | AZ120: -7.638181029 | BA120: -45.67266504 | BB120: 33.29649558 | BC120: 9.72339294 | BD120: 43.01988852 | BF120: 1.507964474 | BG120: 2.562832585 | BH120: =$H120-($I120*$C120) -> 0.1998556339 | BI120: 2.570613377 | BJ120: -38.47025777 | BK120: -0.2332388477 | BL120: =BL119+mazalazo*($I120*(BM120^2+BN120^2)+BM120*BR120-BN120*BQ120)*$BS120*DT -> -50.531848 | BM120: 4.540694998 | BN120: -1.846126281 | BO120: -4.61215349 | BP120: 1.659558222 | BQ120: 1.239916625 | BR120: -3.053961801 | BS120: 2.374222057 | BT120: 0.7614701825 | BU120: 0.7486925285
A121: 0 | B121: 81 | C121: 4.563535286 | D121: -1.903730209 | E121: -4.659646997 | F121: 1.654609585 | G121: 1.183501123 | H121: -3.057828183 | I121: -0.7027134748 | J121: =IF(($G121+$I121*$D121)^2+($H121-$I121*$D121)^2<>0,-mew*($G121+$I121*$D121)/SQRT(($G121+$I121*$D121)^2+($H121-$I121*$C121)^2),0) -> -2.994772929 | K121: =-mew*($H121-$C121*$I121)/SQRT(($G121+$D121*$I121)^2+($H121-$I121*$C121)^2) -> -0.1770172433 | L121: -0.7027134748 | M121: =($I121-$I120)/DT -> 0.7361819424 | N121: =IF(Q121<>0,mazalazo*(($D121*$J121-$C121*$K121)-2*$I121*($C121*$G121+$D121*$H121))/(INERTIA+mazalazo*($C121^2+$D121^2)),0) -> 0.7238025803 | O121: -3.195600058 | P121: =IF(Q121<>0,G121*COS(O121)+H121*SIN(O121)+F121*$I121,0) -> -2.509557068 | Q121: -46.10113633 | R121: =R120+mazalazo*($I121^2*($E121*$P121+$F121*$U121))*DT -> 115.3619777 | S121: =IF(Q121<>0,$J121*COS($O121)+$K121*SIN($Z121)+2*$U121*$I121+$E121*$I121^2+$F121*$N121,0) -> 2.461520482 | T121: =IF(Q121<>0,-$J121*SIN($O121)+$K121*COS($O121)-2*$P121*$I121+$F121*$I121^2-$E121*$N121,0) -> 1.001142343 | U121: =IF(Q121<>0,-$G121*SIN(O121)+$H121*COS(O121)-$E121*$I121,0) -> -0.2849137589 | V121: =$G121*COS($O121)+$H121*SIN($O121)+$F121*$I121 -> -2.509557068 | W121: =-$G121*SIN($O121)+$H121*COS($O121)-$E121*$I121 -> -0.2849137589 | Y121: 4.552115142 | Z121: 4.528743524 | AA121: -1.874928245 | AB121: -1.817365754 | AC121: 0.3965057419 | AD121: 0.415551277 | AE121: 1.019812357 | AF121: -3.275506582 | AG121: 3.799838498 | AH121: 4.563535286 | AI121: -1.903730209 | AJ121: -3.195600058 | AL121: FALSE | AN121: 1.52681403 | AR121: -7.807998308 | AS121: -59.87684333 | AT121: 81 | AU121: 1.52681403 | AV121: -46.10113633 | AW121: 9.568578794 | AX121: =1/2*(INERTIA+mazalazo*($C121^2+$D121^2))*$I121^2 -> 22.80153443 | AY121: -59.87684333 | AZ121: -7.807998308 | BA121: -46.10113633 | BB121: 32.37011322 | BC121: 9.383998004 | BD121: 41.75411123 | BF121: 1.52681403 | BG121: 2.521277993 | BH121: =$H121-($I121*$C121) -> 0.1490295561 | BI121: 2.525678627 | BJ121: -50.75391875 | BK121: -0.1770172433 | BL121: =BL120+mazalazo*($I121*(BM121^2+BN121^2)+BM121*BR121-BN121*BQ121)*$BS121*DT -> -55.70120501 | BM121: 4.563535286 | BN121: -1.903730209 | BO121: -4.659646997 | BP121: 1.654609585 | BQ121: 1.183501123 | BR121: -3.057828183 | BS121: 3.165006713 | BT121: 0.7361819424 | BU121: 0.7238025803
A122: 0 | B122: 82 | C122: 4.585311546 | D122: -1.961397037 | E122: -4.70633959 | F122: 1.650008476 | G122: 1.127023036 | H122: -3.060636058 | I122: -0.6892986014 | J122: =IF(($G122+$I122*$D122)^2+($H122-$I122*$D122)^2<>0,-mew*($G122+$I122*$D122)/SQRT(($G122+$I122*$D122)^2+($H122-$I122*$C122)^2),0) -> -2.997561541 | K122: =-mew*($H122-$C122*$I122)/SQRT(($G122+$D122*$I122)^2+($H122-$I122*$C122)^2) -> -0.1209330755 | L122: -0.6892986014 | M122: =($I122-$I121)/DT -> 0.7116811401 | N122: =IF(Q122<>0,mazalazo*(($D122*$J122-$C122*$K122)-2*$I122*($C122*$G122+$D122*$H122))/(INERTIA+mazalazo*($C122^2+$D122^2)),0) -> 0.6996864197 | O122: -3.208593031 | P122: =IF(Q122<>0,G122*COS(O122)+H122*SIN(O122)+F122*$I122,0) -> -2.466753266 | Q122: -46.52203279 | R122: =R121+mazalazo*($I122^2*($E122*$P122+$F122*$U122))*DT -> 115.662118 | S122: =IF(Q122<>0,$J122*COS($O122)+$K122*SIN($Z122)+2*$U122*$I122+$E122*$I122^2+$F122*$N122,0) -> 2.394946823 | T122: =IF(Q122<>0,-$J122*SIN($O122)+$K122*COS($O122)-2*$P122*$I122+$F122*$I122^2-$E122*$N122,0) -> 0.9976247644 | U122: =IF(Q122<>0,-$G122*SIN(O122)+$H122*COS(O122)-$E122*$I122,0) -> -0.2657588308 | V122: =$G122*COS($O122)+$H122*SIN($O122)+$F122*$I122 -> -2.466753266 | W122: =-$G122*SIN($O122)+$H122*COS($O122)-$E122*$I122 -> -0.2657588308 | Y122: 4.574423416 | Z122: 4.552115142 | AA122: -1.932563623 | AB122: -1.874928245 | AC122: 0.3776219481 | AD122: 0.3965057419 | AE122: 1.053905381 | AF122: -3.261988502 | AG122: 3.763164584 | AH122: 4.585311546 | AI122: -1.961397037 | AJ122: -3.208593031 | AL122: FALSE | AN122: 1.545663586 | AR122: -7.978107376 | AS122: -60.08737244 | AT122: 82 | AU122: 1.545663586 | AV122: -46.52203279 | AW122: 9.233249151 | AX122: =1/2*(INERTIA+mazalazo*($C122^2+$D122^2))*$I122^2 -> 22.24011921 | AY122: -60.08737244 | AZ122: -7.978107376 | BA122: -46.52203279 | BB122: 31.47336836 | BC122: 9.052712744 | BD122: 40.5260811 | BF122: 1.545663586 | BG122: 2.47901127 | BH122: =$H122-($I122*$C122) -> 0.1000127781 | BI122: 2.481027899 | BJ122: -74.36083623 | BK122: -0.1209330755 | BL122: =BL121+mazalazo*($I122*(BM122^2+BN122^2)+BM122*BR122-BN122*BQ122)*$BS122*DT -> -63.38656603 | BM122: 4.585311546 | BN122: -1.961397037 | BO122: -4.70633959 | BP122: 1.650008476 | BQ122: 1.127023036 | BR122: -3.060636058 | BS122: 4.69166235 | BT122: 0.7116811401 | BU122: 0.6996864197
A123: 0 | B123: 83 | C123: 4.606022786 | D123: -2.019106837 | E123: -4.752234612 | F123: 1.64575348 | G123: 1.070502343 | H123: -3.062388313 | I123: -0.6763312237 | J123: =IF(($G123+$I123*$D123)^2+($H123-$I123*$D123)^2<>0,-mew*($G123+$I123*$D123)/SQRT(($G123+$I123*$D123)^2+($H123-$I123*$C123)^2),0) -> -2.999295366 | K123: =-mew*($H123-$C123*$I123)/SQRT(($G123+$D123*$I123)^2+($H123-$I123*$C123)^2) -> -0.06501775565 | L123: -0.6763312237 | M123: =($I123-$I122)/DT -> 0.6879407514 | N123: =IF(Q123<>0,mazalazo*(($D123*$J123-$C123*$K123)-2*$I123*($C123*$G123+$D123*$H123))/(INERTIA+mazalazo*($C123^2+$D123^2)),0) -> 0.6763174366 | O123: -3.221341574 | P123: =IF(Q123<>0,G123*COS(O123)+H123*SIN(O123)+F123*$I123,0) -> -2.424137846 | Q123: -46.93540236 | R123: =R122+mazalazo*($I123^2*($E123*$P123+$F123*$U123))*DT -> 115.9496019 | S123: =IF(Q123<>0,$J123*COS($O123)+$K123*SIN($Z123)+2*$U123*$I123+$E123*$I123^2+$F123*$N123,0) -> 2.327144563 | T123: =IF(Q123<>0,-$J123*SIN($O123)+$K123*COS($O123)-2*$P123*$I123+$F123*$I123^2-$E123*$N123,0) -> 0.9915341365 | U123: =IF(Q123<>0,-$G123*SIN(O123)+$H123*COS(O123)-$E123*$I123,0) -> -0.2467103468 | V123: =$G123*COS($O123)+$H123*SIN($O123)+$F123*$I123 -> -2.424137846 | W123: =-$G123*SIN($O123)+$H123*COS($O123)-$E123*$I123 -> -0.2467103468 | Y123: 4.595667166 | Z123: 4.574423416 | AA123: -1.990251937 | AB123: -1.932563623 | AC123: 0.3588860097 | AD123: 0.3776219481 | AE123: 1.088481206 | AF123: -3.248931911 | AG123: 3.726206994 | AH123: 4.606022786 | AI123: -2.019106837 | AJ123: -3.221341574 | AL123: FALSE | AN123: 1.564513141 | AR123: -8.148411781 | AS123: -60.28479077 | AT123: 83 | AU123: 1.564513141 | AV123: -46.93540236 | AW123: 8.90596544 | AX123: =1/2*(INERTIA+mazalazo*($C123^2+$D123^2))*$I123^2 -> 21.69943964 | AY123: -60.28479077 | AZ123: -8.148411781 | BA123: -46.93540236 | BB123: 30.60540508 | BC123: 8.729408713 | BD123: 39.33481379 | BF123: 1.564513141 | BG123: 2.436087341 | BH123: =$H123-($I123*$C123) -> 0.0528087141 | BI123: 2.436659659 | BJ123: -138.3912134 | BK123: -0.06501775565 | BL123: =BL122+mazalazo*($I123*(BM123^2+BN123^2)+BM123*BR123-BN123*BQ123)*$BS123*DT -> -77.91643466 | BM123: 4.606022786 | BN123: -2.019106837 | BO123: -4.752234612 | BP123: 1.64575348 | BQ123: 1.070502343 | BR123: -3.062388313 | BS123: 8.844934772 | BT123: 0.6879407514 | BU123: 0.6763174366
A124: 0 | B124: 84 | C124: 4.62566839 | D124: -2.076839745 | E124: -4.797335228 | F124: 1.641842288 | G124: 1.013958822 | H124: -3.063088425 | I124: -0.6637975022 | J124: =IF(($G124+$I124*$D124)^2+($H124-$I124*$D124)^2<>0,-mew*($G124+$I124*$D124)/SQRT(($G124+$I124*$D124)^2+($H124-$I124*$C124)^2),0) -> -2.999985578 | K124: =-mew*($H124-$C124*$I124)/SQRT(($G124+$D124*$I124)^2+($H124-$I124*$C124)^2) -> -0.00930216633 | L124: -0.6637975022 | M124: =($I124-$I123)/DT -> 0.6649345782 | N124: =IF(Q124<>0,mazalazo*(($D124*$J124-$C124*$K124)-2*$I124*($C124*$G124+$D124*$H124))/(INERTIA+mazalazo*($C124^2+$D124^2)),0) -> 0.6536698433 | O124: -3.233853862 | P124: =IF(Q124<>0,G124*COS(O124)+H124*SIN(O124)+F124*$I124,0) -> -2.3817007 | Q124: -47.34129253 | R124: =R123+mazalazo*($I124^2*($E124*$P124+$F124*$U124))*DT -> 116.2249777 | S124: =IF(Q124<>0,$J124*COS($O124)+$K124*SIN($Z124)+2*$U124*$I124+$E124*$I124^2+$F124*$N124,0) -> 2.258297638 | T124: =IF(Q124<>0,-$J124*SIN($O124)+$K124*COS($O124)-2*$P124*$I124+$F124*$I124^2-$E124*$N124,0) -> 0.9830320581 | U124: =IF(Q124<>0,-$G124*SIN(O124)+$H124*COS(O124)-$E124*$I124,0) -> -0.227814582 | V124: =$G124*COS($O124)+$H124*SIN($O124)+$F124*$I124 -> -2.3817007 | W124: =-$G124*SIN($O124)+$H124*COS($O124)-$E124*$I124 -> -0.227814582 | Y124: 4.615845588 | Z124: 4.595667166 | AA124: -2.047973291 | AB124: -1.990251937 | AC124: 0.340284334 | AD124: 0.3588860097 | AE124: 1.123520018 | AF124: -3.236356972 | AG124: 3.688981374 | AH124: 4.62566839 | AI124: -2.076839745 | AJ124: -3.233853862 | AL124: FALSE | AN124: 1.583362697 | AR124: -8.318813754 | AS124: -60.4697328 | AT124: 84 | AU124: 1.583362697 | AV124: -47.34129253 | AW124: 8.586596562 | AX124: =1/2*(INERTIA+mazalazo*($C124^2+$D124^2))*$I124^2 -> 21.17878989 | AY124: -60.4697328 | AZ124: -8.318813754 | BA124: -47.34129253 | BB124: 29.76538645 | BC124: 8.413952381 | BD124: 38.17933883 | BF124: 1.583362697 | BG124: 2.392559857 | BH124: =$H124-($I124*$C124) -> 0.007418698913 | BI124: 2.392571359 | BJ124: -967.5119123 | BK124: -0.00930216633 | BL124: =BL123+mazalazo*($I124*(BM124^2+BN124^2)+BM124*BR124-BN124*BQ124)*$BS124*DT -> -181.2121047 | BM124: 4.62566839 | BN124: -2.076839745 | BO124: -4.797335228 | BP124: 1.641842288 | BQ124: 1.013958822 | BR124: -3.063088425 | BS124: 62.7090111 | BT124: 0.6649345782 | BU124: 0.6536698433
A125: 0 | B125: 85 | C125: 4.644248113 | D125: -2.134575965 | E125: -4.841644427 | F125: 1.63827175 | G125: 0.957412031 | H125: -3.062740442 | I125: -0.6516840756 | J125: =IF(($G125+$I125*$D125)^2+($H125-$I125*$D125)^2<>0,-mew*($G125+$I125*$D125)/SQRT(($G125+$I125*$D125)^2+($H125-$I125*$C125)^2),0) -> -2.999644494 | K125: =-mew*($H125-$C125*$I125)/SQRT(($G125+$D125*$I125)^2+($H125-$I125*$C125)^2) -> 0.04618340508 | L125: -0.6516840756 | M125: =($I125-$I124)/DT -> 0.6426372403 | N125: =IF(Q125<>0,mazalazo*(($D125*$J125-$C125*$K125)-2*$I125*($C125*$G125+$D125*$H125))/(INERTIA+mazalazo*($C125^2+$D125^2)),0) -> 0.6317186653 | O125: -3.246137818 | P125: =IF(Q125<>0,G125*COS(O125)+H125*SIN(O125)+F125*$I125,0) -> -2.339432045 | Q125: -47.7397502 | R125: =R124+mazalazo*($I125^2*($E125*$P125+$F125*$U125))*DT -> 116.4887697 | S125: =IF(Q125<>0,$J125*COS($O125)+$K125*SIN($Z125)+2*$U125*$I125+$E125*$I125^2+$F125*$N125,0) -> 2.188570671 | T125: =IF(Q125<>0,-$J125*SIN($O125)+$K125*COS($O125)-2*$P125*$I125+$F125*$I125^2-$E125*$N125,0) -> 0.972273194 | U125: =IF(Q125<>0,-$G125*SIN(O125)+$H125*COS(O125)-$E125*$I125,0) -> -0.2091148619 | V125: =$G125*COS($O125)+$H125*SIN($O125)+$F125*$I125 -> -2.339432045 | W125: =-$G125*SIN($O125)+$H125*COS($O125)-$E125*$I125 -> -0.2091148619 | Y125: 4.634958251 | Z125: 4.615845588 | AA125: -2.105707855 | AB125: -2.047973291 | AC125: 0.3218035846 | AD125: 0.340284334 | AE125: 1.159000533 | AF125: -3.224283508 | AG125: 3.651504274 | AH125: 4.644248113 | AI125: -2.134575965 | AJ125: -3.246137818 | AL125: FALSE | AN125: 1.602212253 | AR125: -8.489214315 | AS125: -60.64281305 | AT125: 85 | AU125: 1.602212253 | AV125: -47.7397502 | AW125: 8.275006979 | AX125: =1/2*(INERTIA+mazalazo*($C125^2+$D125^2))*$I125^2 -> 20.6774882 | AY125: -60.64281305 | AZ125: -8.489214315 | BA125: -47.7397502 | BB125: 28.95249518 | BC125: 8.106206402 | BD125: 37.05870158 | BF125: 1.602212253 | BG125: 2.348481195 | BH125: =$H125-($I125*$C125) -> -0.03615790424 | BI125: 2.348759528 | BJ125: 194.8521004 | BK125: 0.04618340508 | BL125: =BL124+mazalazo*($I125*(BM125^2+BN125^2)+BM125*BR125-BN125*BQ125)*$BS125*DT -> -160.0381113 | BM125: 4.644248113 | BN125: -2.134575965 | BO125: -4.841644427 | BP125: 1.63827175 | BQ125: 0.957412031 | BR125: -3.062740442 | BS125: -12.8205986 | BT125: 0.6426372403 | BU125: 0.6317186653
A126: 0 | B126: 86 | C126: 4.661762074 | D126: -2.192295783 | E126: -4.885165032 | F126: 1.635037934 | G126: 0.9008812844 | H126: -3.061348983 | I126: -0.6399780459 | J126: =IF(($G126+$I126*$D126)^2+($H126-$I126*$D126)^2<>0,-mew*($G126+$I126*$D126)/SQRT(($G126+$I126*$D126)^2+($H126-$I126*$C126)^2),0) -> -2.998285535 | K126: =-mew*($H126-$C126*$I126)/SQRT(($G126+$D126*$I126)^2+($H126-$I126*$C126)^2) -> 0.1014093297 | L126: -0.6399780459 | M126: =($I126-$I125)/DT -> 0.6210241647 | N126: =IF(Q126<>0,mazalazo*(($D126*$J126-$C126*$K126)-2*$I126*($C126*$G126+$D126*$H126))/(INERTIA+mazalazo*($C126^2+$D126^2)),0) -> 0.610439729 | O126: -3.258201119 | P126: =IF(Q126<>0,G126*COS(O126)+H126*SIN(O126)+F126*$I126,0) -> -2.297322473 | Q126: -48.13082154 | R126: =R125+mazalazo*($I126^2*($E126*$P126+$F126*$U126))*DT -> 116.7414783 | S126: =IF(Q126<>0,$J126*COS($O126)+$K126*SIN($Z126)+2*$U126*$I126+$E126*$I126^2+$F126*$N126,0) -> 2.11811008 | T126: =IF(Q126<>0,-$J126*SIN($O126)+$K126*COS($O126)-2*$P126*$I126+$F126*$I126^2-$E126*$N126,0) -> 0.9594055377 | U126: =IF(Q126<>0,-$G126*SIN(O126)+$H126*COS(O126)-$E126*$I126,0) -> -0.1906516888 | V126: =$G126*COS($O126)+$H126*SIN($O126)+$F126*$I126 -> -2.297322473 | W126: =-$G126*SIN($O126)+$H126*COS($O126)-$E126*$I126 -> -0.1906516888 | Y126: 4.653005094 | Z126: 4.634958251 | AA126: -2.163435874 | AB126: -2.105707855 | AC126: 0.3034306447 | AD126: 0.3218035846 | AE126: 1.194899972 | AF126: -3.21273094 | AG126: 3.61379317 | AH126: 4.661762074 | AI126: -2.192295783 | AJ126: -3.258201119 | AL126: FALSE | AN126: 1.621061809 | AR126: -8.65951338 | AS126: -60.80462603 | AT126: 86 | AU126: 1.621061809 | AV126: -48.13082154 | AW126: 7.971057919 | AX126: =1/2*(INERTIA+mazalazo*($C126^2+$D126^2))*$I126^2 -> 20.19487617 | AY126: -60.80462603 | AZ126: -8.65951338 | BA126: -48.13082154 | BB126: 28.16593409 | BC126: 7.806030759 | BD126: 35.97196485 | BF126: 1.621061809 | BG126: 2.303902456 | BH126: =$H126-($I126*$C126) -> -0.07792360038 | BI126: 2.305219862 | BJ126: 88.69851153 | BK126: 0.1014093297 | BL126: =BL125+mazalazo*($I126*(BM126^2+BN126^2)+BM126*BR126-BN126*BQ126)*$BS126*DT -> -150.2195972 | BM126: 4.661762074 | BN126: -2.192295783 | BO126: -4.885165032 | BP126: 1.635037934 | BQ126: 0.9008812844 | BR126: -3.061348983 | BS126: -5.929939361 | BT126: 0.6210241647 | BU126: 0.610439729
A127: 0 | B127: 87 | C127: 4.678210758 | D127: -2.249979578 | E127: -4.927899705 | F127: 1.632136174 | G127: 0.8443856339 | H127: -3.058919214 | I127: -0.6286669632 | J127: =IF(($G127+$I127*$D127)^2+($H127-$I127*$D127)^2<>0,-mew*($G127+$I127*$D127)/SQRT(($G127+$I127*$D127)^2+($H127-$I127*$C127)^2),0) -> -2.995923182 | K127: =-mew*($H127-$C127*$I127)/SQRT(($G127+$D127*$I127)^2+($H127-$I127*$C127)^2) -> 0.1563466975 | L127: -0.6286669632 | M127: =($I127-$I126)/DT -> 0.6000715721 | N127: =IF(Q127<>0,mazalazo*(($D127*$J127-$C127*$K127)-2*$I127*($C127*$G127+$D127*$H127))/(INERTIA+mazalazo*($C127^2+$D127^2)),0) -> 0.5898096465 | O127: -3.270051213 | P127: =IF(Q127<>0,G127*COS(O127)+H127*SIN(O127)+F127*$I127,0) -> -2.255362987 | Q127: -48.51455186 | R127: =R126+mazalazo*($I127^2*($E127*$P127+$F127*$U127))*DT -> 116.9835819 | S127: =IF(Q127<>0,$J127*COS($O127)+$K127*SIN($Z127)+2*$U127*$I127+$E127*$I127^2+$F127*$N127,0) -> 2.047045235 | T127: =IF(Q127<>0,-$J127*SIN($O127)+$K127*COS($O127)-2*$P127*$I127+$F127*$I127^2-$E127*$N127,0) -> 0.944570669 | U127: =IF(Q127<>0,-$G127*SIN(O127)+$H127*COS(O127)-$E127*$I127,0) -> -0.1724628642 | V127: =$G127*COS($O127)+$H127*SIN($O127)+$F127*$I127 -> -2.255362987 | W127: =-$G127*SIN($O127)+$H127*COS($O127)-$E127*$I127 -> -0.1724628642 | Y127: 4.669986416 | Z127: 4.653005094 | AA127: -2.221137681 | AB127: -2.163435874 | AC127: 0.2851525827 | AD127: 0.3034306447 | AE127: 1.231194041 | AF127: -3.201718208 | AG127: 3.57586648 | AH127: 4.678210758 | AI127: -2.249979578 | AJ127: -3.270051213 | AL127: FALSE | AN127: 1.639911365 | AR127: -8.829609874 | AS127: -60.95574621 | AT127: 87 | AU127: 1.639911365 | AV127: -48.51455186 | AW127: 7.674608465 | AX127: =1/2*(INERTIA+mazalazo*($C127^2+$D127^2))*$I127^2 -> 19.73031814 | AY127: -60.95574621 | AZ127: -8.829609874 | BA127: -48.51455186 | BB127: 27.40492661 | BC127: 7.513283802 | BD127: 34.91821041 | BF127: 1.639911365 | BG127: 2.258873463 | BH127: =$H127-($I127*$C127) -> -0.117882664 | BI127: 2.261947312 | BJ127: 57.48614899 | BK127: 0.1563466975 | BL127: =BL126+mazalazo*($I127*(BM127^2+BN127^2)+BM127*BR127-BN127*BQ127)*$BS127*DT -> -143.7325661 | BM127: 4.678210758 | BN127: -2.249979578 | BO127: -4.927899705 | BP127: 1.632136174 | BQ127: 0.8443856339 | BR127: -3.058919214 | BS127: -3.908311985 | BT127: 0.6000715721 | BU127: 0.5898096465
A128: 0 | B128: 88 | C128: 4.693595001 | D128: -2.307607832 | E128: -4.969850953 | F128: 1.629561121 | G128: 0.7879438485 | H128: -3.055456842 | I128: -0.6177388114 | J128: =IF(($G128+$I128*$D128)^2+($H128-$I128*$D128)^2<>0,-mew*($G128+$I128*$D128)/SQRT(($G128+$I128*$D128)^2+($H128-$I128*$C128)^2),0) -> -2.992572934 | K128: =-mew*($H128-$C128*$I128)/SQRT(($G128+$D128*$I128)^2+($H128-$I128*$C128)^2) -> 0.2109673732 | L128: -0.6177388114 | M128: =($I128-$I127)/DT -> 0.5797564609 | N128: =IF(Q128<>0,mazalazo*(($D128*$J128-$C128*$K128)-2*$I128*($C128*$G128+$D128*$H128))/(INERTIA+mazalazo*($C128^2+$D128^2)),0) -> 0.5698057998 | O128: -3.281695315 | P128: =IF(Q128<>0,G128*COS(O128)+H128*SIN(O128)+F128*$I128,0) -> -2.213545031 | Q128: -48.89098551 | R128: =R127+mazalazo*($I128^2*($E128*$P128+$F128*$U128))*DT -> 117.2155368 | S128: =IF(Q128<>0,$J128*COS($O128)+$K128*SIN($Z128)+2*$U128*$I128+$E128*$I128^2+$F128*$N128,0) -> 1.97548964 | T128: =IF(Q128<>0,-$J128*SIN($O128)+$K128*COS($O128)-2*$P128*$I128+$F128*$I128^2-$E128*$N128,0) -> 0.9279040046 | U128: =IF(Q128<>0,-$G128*SIN(O128)+$H128*COS(O128)-$E128*$I128,0) -> -0.1545836056 | V128: =$G128*COS($O128)+$H128*SIN($O128)+$F128*$I128 -> -2.213545031 | W128: =-$G128*SIN($O128)+$H128*COS($O128)-$E128*$I128 -> -0.1545836056 | Y128: 4.685902879 | Z128: 4.669986416 | AA128: -2.278793705 | AB128: -2.221137681 | AC128: 0.2669566174 | AD128: 0.2851525827 | AE128: 1.267856923 | AF128: -3.191263692 | AG128: 3.53774357 | AH128: 4.693595001 | AI128: -2.307607832 | AJ128: -3.281695315 | AL128: FALSE | AN128: 1.658760921 | AR128: -8.999401837 | AS128: -61.09672815 | AT128: 88 | AU128: 1.658760921 | AV128: -48.89098551 | AW128: 7.385516542 | AX128: =1/2*(INERTIA+mazalazo*($C128^2+$D128^2))*$I128^2 -> 19.28320047 | AY128: -61.09672815 | AZ128: -8.999401837 | BA128: -48.89098551 | BB128: 26.66871702 | BC128: 7.227823177 | BD128: 33.89654019 | BF128: 1.658760921 | BG128: 2.213442768 | BH128: =$H128-($I128*$C128) -> -0.1560410446 | BI128: 2.218936163 | BJ128: 42.55501059 | BK128: 0.2109673732 | BL128: =BL127+mazalazo*($I128*(BM128^2+BN128^2)+BM128*BR128-BN128*BQ128)*$BS128*DT -> -138.8339715 | BM128: 4.693595001 | BN128: -2.307607832 | BO128: -4.969850953 | BP128: 1.629561121 | BQ128: 0.7879438485 | BR128: -3.055456842 | BS128: -2.944366529 | BT128: 0.5797564609 | BU128: 0.5698057998
A129: 0 | B129: 89 | C129: 4.707915995 | D129: -2.365161138 | E129: -5.011021138 | F129: 1.627306787 | G129: 0.7315743958 | H129: -3.050968094 | I129: -0.6071819934 | J129: =IF(($G129+$I129*$D129)^2+($H129-$I129*$D129)^2<>0,-mew*($G129+$I129*$D129)/SQRT(($G129+$I129*$D129)^2+($H129-$I129*$C129)^2),0) -> -2.98825126 | K129: =-mew*($H129-$C129*$I129)/SQRT(($G129+$D129*$I129)^2+($H129-$I129*$C129)^2) -> 0.2652440497 | L129: -0.6071819934 | M129: =($I129-$I128)/DT -> 0.5600565901 | N129: =IF(Q129<>0,mazalazo*(($D129*$J129-$C129*$K129)-2*$I129*($C129*$G129+$D129*$H129))/(INERTIA+mazalazo*($C129^2+$D129^2)),0) -> 0.5504063218 | O129: -3.293140426 | P129: =IF(Q129<>0,G129*COS(O129)+H129*SIN(O129)+F129*$I129,0) -> -2.171860511 | Q129: -49.26016577 | R129: =R128+mazalazo*($I129^2*($E129*$P129+$F129*$U129))*DT -> 117.437779 | S129: =IF(Q129<>0,$J129*COS($O129)+$K129*SIN($Z129)+2*$U129*$I129+$E129*$I129^2+$F129*$N129,0) -> 1.903542133 | T129: =IF(Q129<>0,-$J129*SIN($O129)+$K129*COS($O129)-2*$P129*$I129+$F129*$I129^2-$E129*$N129,0) -> 0.9095350413 | U129: =IF(Q129<>0,-$G129*SIN(O129)+$H129*COS(O129)-$E129*$I129,0) -> -0.1370466593 | V129: =$G129*COS($O129)+$H129*SIN($O129)+$F129*$I129 -> -2.171860511 | W129: =-$G129*SIN($O129)+$H129*COS($O129)-$E129*$I129 -> -0.1370466593 | Y129: 4.700755498 | Z129: 4.685902879 | AA129: -2.336384485 | AB129: -2.278793705 | AC129: 0.2488300856 | AD129: 0.2669566174 | AE129: 1.30486127 | AF129: -3.181385137 | AG129: 3.499444764 | AH129: 4.707915995 | AI129: -2.365161138 | AJ129: -3.293140426 | AL129: FALSE | AN129: 1.677610477 | AR129: -9.168786543 | AS129: -61.22810654 | AT129: 89 | AU129: 1.677610477 | AV129: -49.26016577 | AW129: 7.103639797 | AX129: =1/2*(INERTIA+mazalazo*($C129^2+$D129^2))*$I129^2 -> 18.85293092 | AY129: -61.22810654 | AZ129: -9.168786543 | BA129: -49.26016577 | BB129: 25.95657072 | BC129: 6.949506663 | BD129: 32.90607738 | BF129: 1.677610477 | BG129: 2.167657651 | BH129: =$H129-($I129*$C129) -> -0.192406275 | BI129: 2.176180109 | BJ129: 33.79813341 | BK129: 0.2652440497 | BL129: =BL128+mazalazo*($I129*(BM129^2+BN129^2)+BM129*BR129-BN129*BQ129)*$BS129*DT -> -134.8629622 | BM129: 4.707915995 | BN129: -2.365161138 | BO129: -5.011021138 | BP129: 1.627306787 | BQ129: 0.7315743958 | BR129: -3.050968094 | BS129: -2.381417048 | BT129: 0.5600565901 | BU129: 0.5504063218
A130: 0 | B130: 90 | C130: 4.721175275 | D130: -2.422620213 | E130: -5.051412486 | F130: 1.625366595 | G130: 0.6752954245 | H130: -3.045459705 | I130: -0.5969853174 | J130: =IF(($G130+$I130*$D130)^2+($H130-$I130*$D130)^2<>0,-mew*($G130+$I130*$D130)/SQRT(($G130+$I130*$D130)^2+($H130-$I130*$C130)^2),0) -> -2.982975543 | K130: =-mew*($H130-$C130*$I130)/SQRT(($G130+$D130*$I130)^2+($H130-$I130*$C130)^2) -> 0.319150296 | L130: -0.5969853174 | M130: =($I130-$I129)/DT -> 0.5409504603 | N130: =IF(Q130<>0,mazalazo*(($D130*$J130-$C130*$K130)-2*$I130*($C130*$G130+$D130*$H130))/(INERTIA+mazalazo*($C130^2+$D130^2)),0) -> 0.5315900773 | O130: -3.304393334 | P130: =IF(Q130<>0,G130*COS(O130)+H130*SIN(O130)+F130*$I130,0) -> -2.13030181 | Q130: -49.62213475 | R130: =R129+mazalazo*($I130^2*($E130*$P130+$F130*$U130))*DT -> 117.6507241 | S130: =IF(Q130<>0,$J130*COS($O130)+$K130*SIN($Z130)+2*$U130*$I130+$E130*$I130^2+$F130*$N130,0) -> 1.831288104 | T130: =IF(Q130<>0,-$J130*SIN($O130)+$K130*COS($O130)-2*$P130*$I130+$F130*$I130^2-$E130*$N130,0) -> 0.8895875909 | U130: =IF(Q130<>0,-$G130*SIN(O130)+$H130*COS(O130)-$E130*$I130,0) -> -0.1198824085 | V130: =$G130*COS($O130)+$H130*SIN($O130)+$F130*$I130 -> -2.13030181 | W130: =-$G130*SIN($O130)+$H130*COS($O130)-$E130*$I130 -> -0.1198824085 | Y130: 4.714545635 | Z130: 4.700755498 | AA130: -2.393890676 | AB130: -2.336384485 | AC130: 0.2307604083 | AD130: 0.2488300856 | AE130: 1.342178204 | AF130: -3.172099561 | AG130: 3.46099135 | AH130: 4.721175275 | AI130: -2.422620213 | AJ130: -3.304393334 | AL130: FALSE | AN130: 1.696460033 | AR130: -9.337660606 | AS130: -61.35039642 | AT130: 90 | AU130: 1.696460033 | AV130: -49.62213475 | AW130: 6.82883639 | AX130: =1/2*(INERTIA+mazalazo*($C130^2+$D130^2))*$I130^2 -> 18.438938 | AY130: -61.35039642 | AZ130: -9.337660606 | BA130: -49.62213475 | BB130: 25.26777439 | BC130: 6.678192918 | BD130: 31.94596731 | BF130: 1.696460033 | BG130: 2.121564121 | BH130: =$H130-($I130*$C130) -> -0.2269873847 | BI130: 2.133672326 | BJ130: 28.03985063 | BK130: 0.319150296 | BL130: =BL129+mazalazo*($I130*(BM130^2+BN130^2)+BM130*BR130-BN130*BQ130)*$BS130*DT -> -131.4987213 | BM130: 4.721175275 | BN130: -2.422620213 | BO130: -5.051412486 | BP130: 1.625366595 | BQ130: 0.6752954245 | BR130: -3.045459705 | BS130: -2.013128797 | BT130: 0.5409504603 | BU130: 0.5315900773
A131: 0 | B131: 91 | C131: 4.733374714 | D131: -2.479965903 | E131: -5.091027092 | F131: 1.623733416 | G131: 0.619124747 | H131: -3.038938899 | I131: -0.5871379834 | J131: =IF(($G131+$I131*$D131)^2+($H131-$I131*$D131)^2<>0,-mew*($G131+$I131*$D131)/SQRT(($G131+$I131*$D131)^2+($H131-$I131*$C131)^2),0) -> -2.976764028 | K131: =-mew*($H131-$C131*$I131)/SQRT(($G131+$D131*$I131)^2+($H131-$I131*$C131)^2) -> 0.3726606011 | L131: -0.5871379834 | M131: =($I131-$I130)/DT -> 0.5224172938 | N131: =IF(Q131<>0,mazalazo*(($D131*$J131-$C131*$K131)-2*$I131*($C131*$G131+$D131*$H131))/(INERTIA+mazalazo*($C131^2+$D131^2)),0) -> 0.5133366428 | O131: -3.315460624 | P131: =IF(Q131<>0,G131*COS(O131)+H131*SIN(O131)+F131*$I131,0) -> -2.088861798 | Q131: -49.97693334 | R131: =R130+mazalazo*($I131^2*($E131*$P131+$F131*$U131))*DT -> 117.8547689 | S131: =IF(Q131<>0,$J131*COS($O131)+$K131*SIN($Z131)+2*$U131*$I131+$E131*$I131^2+$F131*$N131,0) -> 1.75880071 | T131: =IF(Q131<>0,-$J131*SIN($O131)+$K131*COS($O131)-2*$P131*$I131+$F131*$I131^2-$E131*$N131,0) -> 0.8681800067 | U131: =IF(Q131<>0,-$G131*SIN(O131)+$H131*COS(O131)-$E131*$I131,0) -> -0.1031189773 | V131: =$G131*COS($O131)+$H131*SIN($O131)+$F131*$I131 -> -2.088861798 | W131: =-$G131*SIN($O131)+$H131*COS($O131)-$E131*$I131 -> -0.1031189773 | Y131: 4.727274994 | Z131: 4.714545635 | AA131: -2.451293058 | AB131: -2.393890676 | AC131: 0.2127350591 | AD131: 0.2307604083 | AE131: 1.379777329 | AF131: -3.163423171 | AG131: 3.422405575 | AH131: 4.733374714 | AI131: -2.479965903 | AJ131: -3.315460624 | AL131: FALSE | AN131: 1.715309589 | AR131: -9.505920096 | AS131: -61.46409341 | AT131: =AT130+1 -> 91 | AU131: 1.715309589 | AV131: -49.97693334 | AW131: 6.5609657 | AX131: =1/2*(INERTIA+mazalazo*($C131^2+$D131^2))*$I131^2 -> 18.04067034 | AY131: -61.46409341 | AZ131: -9.505920096 | BA131: -49.97693334 | BB131: 24.60163604 | BC131: 6.413742145 | BD131: 31.01537819 | BF131: 1.715309589 | BG131: 2.075206926 | BH131: =$H131-($I131*$C131) -> -0.2597948153 | BI131: 2.09140554 | BJ131: 23.96360671 | BK131: 0.3726606011 | BL131: =BL130+mazalazo*($I131*(BM131^2+BN131^2)+BM131*BR131-BN131*BQ131)*$BS131*DT -> -128.5614042 | BM131: 4.733374714 | BN131: -2.479965903 | BO131: -5.091027092 | BP131: 1.623733416 | BQ131: 0.619124747 | BR131: -3.038938899 | BS131: -1.753960317 | BT131: 0.5224172938 | BU131: 0.5133366428
A132: 0 | B132: 92 | C132: 4.744516518 | D132: -2.537179197 | E132: -5.129866934 | F132: 1.622399615 | G132: 0.5630798245 | H132: -3.031413374 | I132: -0.5776295697 | J132: =IF(($G132+$I132*$D132)^2+($H132-$I132*$D132)^2<>0,-mew*($G132+$I132*$D132)/SQRT(($G132+$I132*$D132)^2+($H132-$I132*$C132)^2),0) -> -2.969635766 | K132: =-mew*($H132-$C132*$I132)/SQRT(($G132+$D132*$I132)^2+($H132-$I132*$C132)^2) -> 0.4257504145 | L132: -0.5776295697 | M132: =($I132-$I131)/DT -> 0.5044370143 | N132: =IF(Q132<>0,mazalazo*(($D132*$J132-$C132*$K132)-2*$I132*($C132*$G132+$D132*$H132))/(INERTIA+mazalazo*($C132^2+$D132^2)),0) -> 0.4956262857 | O132: -3.326348685 | P132: =IF(Q132<>0,G132*COS(O132)+H132*SIN(O132)+F132*$I132,0) -> -2.047533832 | Q132: -50.32460112 | R132: =R131+mazalazo*($I132^2*($E132*$P132+$F132*$U132))*DT -> 118.0502917 | S132: =IF(Q132<>0,$J132*COS($O132)+$K132*SIN($Z132)+2*$U132*$I132+$E132*$I132^2+$F132*$N132,0) -> 1.686142089 | T132: =IF(Q132<>0,-$J132*SIN($O132)+$K132*COS($O132)-2*$P132*$I132+$F132*$I132^2-$E132*$N132,0) -> 0.8454254016 | U132: =IF(Q132<>0,-$G132*SIN(O132)+$H132*COS(O132)-$E132*$I132,0) -> -0.0867823304 | V132: =$G132*COS($O132)+$H132*SIN($O132)+$F132*$I132 -> -2.047533832 | W132: =-$G132*SIN($O132)+$H132*COS($O132)-$E132*$I132 -> -0.0867823304 | Y132: 4.738945616 | Z132: 4.727274994 | AA132: -2.50857255 | AB132: -2.451293058 | AC132: 0.1947415315 | AD132: 0.2127350591 | AE132: 1.417626743 | AF132: -3.155371274 | AG132: 3.383710638 | AH132: 4.744516518 | AI132: -2.537179197 | AJ132: -3.326348685 | AL132: FALSE | AN132: 1.734159145 | AR132: -9.673460651 | AS132: -61.56967394 | AT132: 92 | AU132: 1.734159145 | AV132: -50.32460112 | AW132: 6.299888946 | AX132: =1/2*(INERTIA+mazalazo*($C132^2+$D132^2))*$I132^2 -> 17.65759609 | AY132: -61.56967394 | AZ132: -9.673460651 | BA132: -50.32460112 | BB132: 23.95748503 | BC132: 6.156016675 | BD132: 30.11350171 | BF132: 1.734159145 | BG132: 2.028629553 | BH132: =$H132-($I132*$C132) -> -0.2908403389 | BI132: 2.04937209 | BJ132: 20.92518761 | BK132: 0.4257504145 | BL132: =BL131+mazalazo*($I132*(BM132^2+BN132^2)+BM132*BR132-BN132*BQ132)*$BS132*DT -> -125.9401475 | BM132: 4.744516518 | BN132: -2.537179197 | BO132: -5.129866934 | BP132: 1.622399615 | BQ132: 0.5630798245 | BR132: -3.031413374 | BS132: -1.562054779 | BT132: 0.5044370143 | BU132: 0.4956262857
A133: 0 | B133: 93 | C133: 4.754603221 | D133: -2.594241233 | E133: -5.167933877 | F133: 1.621357088 | G133: 0.5071777517 | H133: -3.022891278 | I133: -0.5684500202 | J133: =IF(($G133+$I133*$D133)^2+($H133-$I133*$D133)^2<>0,-mew*($G133+$I133*$D133)/SQRT(($G133+$I133*$D133)^2+($H133-$I133*$C133)^2),0) -> -2.961610558 | K133: =-mew*($H133-$C133*$I133)/SQRT(($G133+$D133*$I133)^2+($H133-$I133*$C133)^2) -> 0.47839618 | L133: -0.5684500202 | M133: =($I133-$I132)/DT -> 0.4869902257 | N133: =IF(Q133<>0,mazalazo*(($D133*$J133-$C133*$K133)-2*$I133*($C133*$G133+$D133*$H133))/(INERTIA+mazalazo*($C133^2+$D133^2)),0) -> 0.4784399428 | O133: -3.337063715 | P133: =IF(Q133<>0,G133*COS(O133)+H133*SIN(O133)+F133*$I133,0) -> -2.006311757 | Q133: -50.66517633 | R133: =R132+mazalazo*($I133^2*($E133*$P133+$F133*$U133))*DT -> 118.2376534 | S133: =IF(Q133<>0,$J133*COS($O133)+$K133*SIN($Z133)+2*$U133*$I133+$E133*$I133^2+$F133*$N133,0) -> 1.61336456 | T133: =IF(Q133<>0,-$J133*SIN($O133)+$K133*COS($O133)-2*$P133*$I133+$F133*$I133^2-$E133*$N133,0) -> 0.821431857 | U133: =IF(Q133<>0,-$G133*SIN(O133)+$H133*COS(O133)-$E133*$I133,0) -> -0.07089636872 | V133: =$G133*COS($O133)+$H133*SIN($O133)+$F133*$I133 -> -2.006311757 | W133: =-$G133*SIN($O133)+$H133*COS($O133)-$E133*$I133 -> -0.07089636872 | Y133: 4.749559869 | Z133: 4.738945616 | AA133: -2.565710215 | AB133: -2.50857255 | AC133: 0.1767673072 | AD133: 0.1947415315 | AE133: 1.455693064 | AF133: -3.147958181 | AG133: 3.344930688 | AH133: 4.754603221 | AI133: -2.594241233 | AJ133: -3.337063715 | AL133: FALSE | AN133: 1.753008701 | AR133: -9.840177581 | AS133: -61.66759558 | AT133: 93 | AU133: 1.753008701 | AV133: -50.66517633 | AW133: 6.045469743 | AX133: =1/2*(INERTIA+mazalazo*($C133^2+$D133^2))*$I133^2 -> 17.2892023 | AY133: -61.66759558 | AZ133: -9.840177581 | BA133: -50.66517633 | BB133: 23.33467204 | BC133: 5.904881483 | BD133: 29.23955352 | BF133: 1.753008701 | BG133: 1.981874233 | BH133: =$H133-($I133*$C133) -> -0.3201369808 | BI133: 2.007563987 | BJ133: 18.57212086 | BK133: 0.47839618 | BL133: =BL132+mazalazo*($I133*(BM133^2+BN133^2)+BM133*BR133-BN133*BQ133)*$BS133*DT -> -123.561831 | BM133: 4.754603221 | BN133: -2.594241233 | BO133: -5.167933877 | BP133: 1.621357088 | BQ133: 0.5071777517 | BR133: -3.022891278 | BS133: -1.414511038 | BT133: 0.4869902257 | BU133: 0.4784399428
A134: 0 | B134: 94 | C134: 4.763637672 | D134: -2.651133306 | E134: -5.205229684 | F134: 1.6205973 | G134: 0.4514352437 | H134: -3.013381195 | I134: -0.5595896321 | J134: =IF(($G134+$I134*$D134)^2+($H134-$I134*$D134)^2<>0,-mew*($G134+$I134*$D134)/SQRT(($G134+$I134*$D134)^2+($H134-$I134*$C134)^2),0) -> -2.952708889 | K134: =-mew*($H134-$C134*$I134)/SQRT(($G134+$D134*$I134)^2+($H134-$I134*$C134)^2) -> 0.5305753666 | L134: -0.5595896321 | M134: =($I134-$I133)/DT -> 0.4700581909 | N134: =IF(Q134<>0,mazalazo*(($D134*$J134-$C134*$K134)-2*$I134*($C134*$G134+$D134*$H134))/(INERTIA+mazalazo*($C134^2+$D134^2)),0) -> 0.4617591995 | O134: -3.347611732 | P134: =IF(Q134<>0,G134*COS(O134)+H134*SIN(O134)+F134*$I134,0) -> -1.965189903 | Q134: -50.99869579 | R134: =R133+mazalazo*($I134^2*($E134*$P134+$F134*$U134))*DT -> 118.4171978 | S134: =IF(Q134<>0,$J134*COS($O134)+$K134*SIN($Z134)+2*$U134*$I134+$E134*$I134^2+$F134*$N134,0) -> 1.540511801 | T134: =IF(Q134<>0,-$J134*SIN($O134)+$K134*COS($O134)-2*$P134*$I134+$F134*$I134^2-$E134*$N134,0) -> 0.7963026238 | U134: =IF(Q134<>0,-$G134*SIN(O134)+$H134*COS(O134)-$E134*$I134,0) -> -0.05548302155 | V134: =$G134*COS($O134)+$H134*SIN($O134)+$F134*$I134 -> -1.965189903 | W134: =-$G134*SIN($O134)+$H134*COS($O134)-$E134*$I134 -> -0.05548302155 | Y134: 4.759120446 | Z134: 4.749559869 | AA134: -2.622687269 | AB134: -2.565710215 | AC134: 0.158799823 | AD134: 0.1767673072 | AE134: 1.493941465 | AF134: -3.141197114 | AG134: 3.306090798 | AH134: 4.763637672 | AI134: -2.651133306 | AJ134: -3.347611732 | AL134: FALSE | AN134: 1.771858257 | AR134: -10.00596599 | AS134: -61.75829733 | AT134: 94 | AU134: 1.771858257 | AV134: -50.99869579 | AW134: 5.797574581 | AX134: =1/2*(INERTIA+mazalazo*($C134^2+$D134^2))*$I134^2 -> 16.93499435 | AY134: -61.75829733 | AZ134: -10.00596599 | BA134: -50.99869579 | BB134: 22.73256894 | BC134: 5.660204642 | BD134: 28.39277358 | BF134: 1.771858257 | BG134: 1.934981955 | BH134: =$H134-($I134*$C134) -> -0.3476989431 | BI134: 1.96597297 | BJ134: 16.69532214 | BK134: 0.5305753666 | BL134: =BL133+mazalazo*($I134*(BM134^2+BN134^2)+BM134*BR134-BN134*BQ134)*$BS134*DT -> -121.3757241 | BM134: 4.763637672 | BN134: -2.651133306 | BO134: -5.205229684 | BP134: 1.6205973 | BQ134: 0.4514352437 | BR134: -3.013381195 | BS134: -1.29774458 | BT134: 0.4700581909 | BU134: 0.4617591995
A135: 0 | B135: 95 | C135: 4.771623034 | D135: -2.707836876 | E135: -5.241756025 | F135: 1.620111323 | G135: 0.3958686232 | H135: -3.002892125 | I135: -0.5510390435 | J135: =IF(($G135+$I135*$D135)^2+($H135-$I135*$D135)^2<>0,-mew*($G135+$I135*$D135)/SQRT(($G135+$I135*$D135)^2+($H135-$I135*$C135)^2),0) -> -2.942951874 | K135: =-mew*($H135-$C135*$I135)/SQRT(($G135+$D135*$I135)^2+($H135-$I135*$C135)^2) -> 0.5822664936 | L135: -0.5510390435 | M135: =($I135-$I134)/DT -> 0.4536228103 | N135: =IF(Q135<>0,mazalazo*(($D135*$J135-$C135*$K135)-2*$I135*($C135*$G135+$D135*$H135))/(INERTIA+mazalazo*($C135^2+$D135^2)),0) -> 0.4455662676 | O135: -3.357998573 | P135: =IF(Q135<>0,G135*COS(O135)+H135*SIN(O135)+F135*$I135,0) -> -1.924163071 | Q135: -51.32519489 | R135: =R134+mazalazo*($I135^2*($E135*$P135+$F135*$U135))*DT -> 118.5892526 | S135: =IF(Q135<>0,$J135*COS($O135)+$K135*SIN($Z135)+2*$U135*$I135+$E135*$I135^2+$F135*$N135,0) -> 1.467620013 | T135: =IF(Q135<>0,-$J135*SIN($O135)+$K135*COS($O135)-2*$P135*$I135+$F135*$I135^2-$E135*$N135,0) -> 0.7701363148 | U135: =IF(Q135<>0,-$G135*SIN(O135)+$H135*COS(O135)-$E135*$I135,0) -> -0.04056233472 | V135: =$G135*COS($O135)+$H135*SIN($O135)+$F135*$I135 -> -1.924163071 | W135: =-$G135*SIN($O135)+$H135*COS($O135)-$E135*$I135 -> -0.04056233472 | Y135: 4.767630353 | Z135: 4.759120446 | AA135: -2.679485091 | AB135: -2.622687269 | AC135: 0.1408264389 | AD135: 0.158799823 | AE135: 1.532335713 | AF135: -3.135100114 | AG135: 3.267216956 | AH135: 4.771623034 | AI135: -2.707836876 | AJ135: -3.357998573 | AL135: FALSE | AN135: 1.790707813 | AR135: -10.17072086 | AS135: -61.8422 | AT135: 95 | AU135: 1.790707813 | AV135: -51.32519489 | AW135: 5.55607324 | AX135: =1/2*(INERTIA+mazalazo*($C135^2+$D135^2))*$I135^2 -> 16.59449541 | AY135: -61.8422 | AZ135: -10.17072086 | BA135: -51.32519489 | BB135: 22.15056865 | BC135: 5.421857706 | BD135: 27.57242636 | BF135: 1.790707813 | BG135: 1.887992466 | BH135: =$H135-($I135*$C135) -> -0.3735415325 | BI135: 1.924590561 | BJ135: 15.16291203 | BK135: 0.5822664936 | BL135: =BL134+mazalazo*($I135*(BM135^2+BN135^2)+BM135*BR135-BN135*BQ135)*$BS135*DT -> -119.3452184 | BM135: 4.771623034 | BN135: -2.707836876 | BO135: -5.241756025 | BP135: 1.620111323 | BQ135: 0.3958686232 | BR135: -3.002892125 | BS135: -1.203187351 | BT135: 0.4536228103 | BU135: 0.4455662676
A136: 0 | B136: 96 | C136: 4.778562772 | D136: -2.764333579 | E136: -5.277514485 | F136: 1.619889865 | G136: 0.3404938097 | H136: -2.991433461 | I136: -0.5427892225 | J136: =IF(($G136+$I136*$D136)^2+($H136-$I136*$D136)^2<>0,-mew*($G136+$I136*$D136)/SQRT(($G136+$I136*$D136)^2+($H136-$I136*$C136)^2),0) -> -2.932361194 | K136: =-mew*($H136-$C136*$I136)/SQRT(($G136+$D136*$I136)^2+($H136-$I136*$C136)^2) -> 0.6334491511 | L136: -0.5427892225 | M136: =($I136-$I135)/DT -> 0.4376666004 | N136: =IF(Q136<>0,mazalazo*(($D136*$J136-$C136*$K136)-2*$I136*($C136*$G136+$D136*$H136))/(INERTIA+mazalazo*($C136^2+$D136^2)),0) -> 0.4298439649 | O136: -3.368229909 | P136: =IF(Q136<>0,G136*COS(O136)+H136*SIN(O136)+F136*$I136,0) -> -1.883226526 | Q136: -51.64470754 | R136: =R135+mazalazo*($I136^2*($E136*$P136+$F136*$U136))*DT -> 118.7541302 | S136: =IF(Q136<>0,$J136*COS($O136)+$K136*SIN($Z136)+2*$U136*$I136+$E136*$I136^2+$F136*$N136,0) -> 1.394719041 | T136: =IF(Q136<>0,-$J136*SIN($O136)+$K136*COS($O136)-2*$P136*$I136+$F136*$I136^2-$E136*$N136,0) -> 0.7430270899 | U136: =IF(Q136<>0,-$G136*SIN(O136)+$H136*COS(O136)-$E136*$I136,0) -> -0.02615255545 | V136: =$G136*COS($O136)+$H136*SIN($O136)+$F136*$I136 -> -1.883226526 | W136: =-$G136*SIN($O136)+$H136*COS($O136)-$E136*$I136 -> -0.02615255545 | Y136: 4.775092903 | Z136: 4.767630353 | AA136: -2.736085228 | AB136: -2.679485091 | AC136: 0.1228344043 | AD136: 0.1408264389 | AE136: 1.570838222 | AF136: -3.129677943 | AG136: 3.228336031 | AH136: 4.778562772 | AI136: -2.764333579 | AJ136: -3.368229909 | AL136: FALSE | AN136: 1.809557368 | AR136: -10.33433718 | AS136: -61.91970661 | AT136: 96 | AU136: 1.809557368 | AV136: -51.64470754 | AW136: 5.320839158 | AX136: =1/2*(INERTIA+mazalazo*($C136^2+$D136^2))*$I136^2 -> 16.26724582 | AY136: -61.91970661 | AZ136: -10.33433718 | BA136: -51.64470754 | BB136: 21.58808498 | BC136: 5.189716043 | BD136: 26.77780102 | BF136: 1.809557368 | BG136: 1.840944284 | BH136: =$H136-($I136*$C136) -> -0.3976810893 | BI136: 1.883408109 | BJ136: 13.88759235 | BK136: 0.6334491511 | BL136: =BL135+mazalazo*($I136*(BM136^2+BN136^2)+BM136*BR136-BN136*BQ136)*$BS136*DT -> -117.443054 | BM136: 4.778562772 | BN136: -2.764333579 | BO136: -5.277514485 | BP136: 1.619889865 | BQ136: 0.3404938097 | BR136: -2.991433461 | BS136: -1.125168076 | BT136: 0.4376666004 | BU136: 0.4298439649
A137: 0 | B137: 97 | C137: 4.784460651 | D137: -2.82060523 | E137: -5.31250657 | F137: 1.619923309 | G137: 0.285326309 | H137: -2.979014972 | I137: -0.5348314551 | J137: =IF(($G137+$I137*$D137)^2+($H137-$I137*$D137)^2<>0,-mew*($G137+$I137*$D137)/SQRT(($G137+$I137*$D137)^2+($H137-$I137*$C137)^2),0) -> -2.920959037 | K137: =-mew*($H137-$C137*$I137)/SQRT(($G137+$D137*$I137)^2+($H137-$I137*$C137)^2) -> 0.684104016 | L137: -0.5348314551 | M137: =($I137-$I136)/DT -> 0.4221726729 | N137: =IF(Q137<>0,mazalazo*(($D137*$J137-$C137*$K137)-2*$I137*($C137*$G137+$D137*$H137))/(INERTIA+mazalazo*($C137^2+$D137^2)),0) -> 0.4145756936 | O137: -3.378311244 | P137: =IF(Q137<>0,G137*COS(O137)+H137*SIN(O137)+F137*$I137,0) -> -1.842375983 | Q137: -51.9572662 | R137: =R136+mazalazo*($I137^2*($E137*$P137+$F137*$U137))*DT -> 118.912128 | S137: =IF(Q137<>0,$J137*COS($O137)+$K137*SIN($Z137)+2*$U137*$I137+$E137*$I137^2+$F137*$N137,0) -> 1.321833473 | T137: =IF(Q137<>0,-$J137*SIN($O137)+$K137*COS($O137)-2*$P137*$I137+$F137*$I137^2-$E137*$N137,0) -> 0.7150648335 | U137: =IF(Q137<>0,-$G137*SIN(O137)+$H137*COS(O137)-$E137*$I137,0) -> -0.01227021373 | V137: =$G137*COS($O137)+$H137*SIN($O137)+$F137*$I137 -> -1.842375983 | W137: =-$G137*SIN($O137)+$H137*COS($O137)-$E137*$I137 -> -0.01227021373 | Y137: 4.781511712 | Z137: 4.775092903 | AA137: -2.792469405 | AB137: -2.736085228 | AC137: 0.1048108242 | AD137: 0.1228344043 | AE137: 1.609410109 | AF137: -3.124939988 | AG137: 3.189475752 | AH137: 4.784460651 | AI137: -2.82060523 | AJ137: -3.378311244 | AL137: FALSE | AN137: 1.828406924 | AR137: -10.49671004 | AS137: -61.99120271 | AT137: 97 | AU137: 1.828406924 | AV137: -51.9572662 | AW137: 5.091749731 | AX137: =1/2*(INERTIA+mazalazo*($C137^2+$D137^2))*$I137^2 -> 15.9528026 | AY137: -61.99120271 | AZ137: -10.49671004 | BA137: -51.9572662 | BB137: 21.04455233 | BC137: 4.963659119 | BD137: 26.00821145 | BF137: 1.828406924 | BG137: 1.793874708 | BH137: =$H137-($I137*$C137) -> -0.4201349203 | BI137: 1.842416842 | BJ137: 12.80927594 | BK137: 0.684104016 | BL137: =BL136+mazalazo*($I137*(BM137^2+BN137^2)+BM137*BR137-BN137*BQ137)*$BS137*DT -> -115.6484056 | BM137: 4.784460651 | BN137: -2.82060523 | BO137: -5.31250657 | BP137: 1.619923309 | BQ137: 0.285326309 | BR137: -2.979014972 | BS137: -1.059783645 | BT137: 0.4221726729 | BU137: 0.4145756936
A138: 0 | B138: 98 | C138: 4.789320718 | D138: -2.87663383 | E138: -5.346733718 | F138: 1.620201742 | G138: 0.2303812045 | H138: -2.965646779 | I138: -0.527157335 | J138: =IF(($G138+$I138*$D138)^2+($H138-$I138*$D138)^2<>0,-mew*($G138+$I138*$D138)/SQRT(($G138+$I138*$D138)^2+($H138-$I138*$C138)^2),0) -> -2.908768033 | K138: =-mew*($H138-$C138*$I138)/SQRT(($G138+$D138*$I138)^2+($H138-$I138*$C138)^2) -> 0.7342128626 | L138: -0.527157335 | M138: =($I138-$I137)/DT -> 0.4071247136 | N138: =IF(Q138<>0,mazalazo*(($D138*$J138-$C138*$K138)-2*$I138*($C138*$G138+$D138*$H138))/(INERTIA+mazalazo*($C138^2+$D138^2)),0) -> 0.3997454195 | O138: -3.388247926 | P138: =IF(Q138<>0,G138*COS(O138)+H138*SIN(O138)+F138*$I138,0) -> -1.801607588 | Q138: -52.26290178 | R138: =R137+mazalazo*($I138^2*($E138*$P138+$F138*$U138))*DT -> 119.0635294 | S138: =IF(Q138<>0,$J138*COS($O138)+$K138*SIN($Z138)+2*$U138*$I138+$E138*$I138^2+$F138*$N138,0) -> 1.248983693 | T138: =IF(Q138<>0,-$J138*SIN($O138)+$K138*COS($O138)-2*$P138*$I138+$F138*$I138^2-$E138*$N138,0) -> 0.6863353249 | U138: =IF(Q138<>0,-$G138*SIN(O138)+$H138*COS(O138)-$E138*$I138,0) -> 0.001069799518 | V138: =$G138*COS($O138)+$H138*SIN($O138)+$F138*$I138 -> -1.801607588 | W138: =-$G138*SIN($O138)+$H138*COS($O138)-$E138*$I138 -> 0.001069799518 | Y138: 4.786890684 | Z138: 4.781511712 | AA138: -2.84861953 | AB138: -2.792469405 | AC138: 0.08674262445 | AD138: 0.1048108242 | AE138: 1.648011269 | AF138: -3.120894169 | AG138: 3.150664668 | AH138: 4.789320718 | AI138: -2.87663383 | AJ138: -3.388247926 | AL138: FALSE | AN138: 1.84725648 | AR138: -10.65773472 | AS138: -62.05705689 | AT138: 98 | AU138: 1.84725648 | AV138: -52.26290178 | AW138: 4.86868657 | AX138: =1/2*(INERTIA+mazalazo*($C138^2+$D138^2))*$I138^2 -> 15.65073891 | AY138: -62.05705689 | AZ138: -10.65773472 | BA138: -52.26290178 | BB138: 20.51942548 | BC138: 4.743570727 | BD138: 25.26299621 | BF138: 1.84725648 | BG138: 1.746819828 | BH138: =$H138-($I138*$C138) -> -0.4409212326 | BI138: 1.801607906 | BJ138: 11.88525092 | BK138: 0.7342128626 | BL138: =BL137+mazalazo*($I138*(BM138^2+BN138^2)+BM138*BR138-BN138*BQ138)*$BS138*DT -> -113.9450212 | BM138: 4.789320718 | BN138: -2.87663383 | BO138: -5.346733718 | BP138: 1.620201742 | BQ138: 0.2303812045 | BR138: -2.965646779 | BS138: -1.004260041 | BT138: 0.4071247136 | BU138: 0.3997454195
A139: 0 | B139: 99 | C139: 4.793147307 | D139: -2.932401578 | E139: -5.380197307 | F139: 1.620714983 | G139: 0.1756731491 | H139: -2.951339338 | I139: -0.5197587531 | J139: =IF(($G139+$I139*$D139)^2+($H139-$I139*$D139)^2<>0,-mew*($G139+$I139*$D139)/SQRT(($G139+$I139*$D139)^2+($H139-$I139*$C139)^2),0) -> -2.8958112 | K139: =-mew*($H139-$C139*$I139)/SQRT(($G139+$D139*$I139)^2+($H139-$I139*$C139)^2) -> 0.7837585693 | L139: -0.5197587531 | M139: =($I139-$I138)/DT -> 0.392506962 | N139: =IF(Q139<>0,mazalazo*(($D139*$J139-$C139*$K139)-2*$I139*($C139*$G139+$D139*$H139))/(INERTIA+mazalazo*($C139^2+$D139^2)),0) -> 0.3853376524 | O139: -3.398045147 | P139: =IF(Q139<>0,G139*COS(O139)+H139*SIN(O139)+F139*$I139,0) -> -1.760917906 | Q139: -52.56164371 | R139: =R138+mazalazo*($I139^2*($E139*$P139+$F139*$U139))*DT -> 119.208604 | S139: =IF(Q139<>0,$J139*COS($O139)+$K139*SIN($Z139)+2*$U139*$I139+$E139*$I139^2+$F139*$N139,0) -> 1.176186902 | T139: =IF(Q139<>0,-$J139*SIN($O139)+$K139*COS($O139)-2*$P139*$I139+$F139*$I139^2-$E139*$N139,0) -> 0.6569204027 | U139: =IF(Q139<>0,-$G139*SIN(O139)+$H139*COS(O139)-$E139*$I139,0) -> 0.01385415733 | V139: =$G139*COS($O139)+$H139*SIN($O139)+$F139*$I139 -> -1.760917906 | W139: =-$G139*SIN($O139)+$H139*COS($O139)-$E139*$I139 -> 0.01385415733 | Y139: 4.791234013 | Z139: 4.786890684 | AA139: -2.904517704 | AB139: -2.84861953 | AC139: 0.06861651572 | AD139: 0.08674262445 | AE139: 1.686600445 | AF139: -3.117546842 | AG139: 3.111932112 | AH139: 4.793147307 | AI139: -2.932401578 | AJ139: -3.398045147 | AL139: FALSE | AN139: 1.866106036 | AR139: -10.81730679 | AS139: -62.1176211 | AT139: 99 | AU139: 1.866106036 | AV139: -52.56164371 | AW139: 4.651535712 | AX139: =1/2*(INERTIA+mazalazo*($C139^2+$D139^2))*$I139^2 -> 15.36064355 | AY139: -62.1176211 | AZ139: -10.81730679 | BA139: -52.56164371 | BB139: 20.01217926 | BC139: 4.529339176 | BD139: 24.54151843 | BF139: 1.866106036 | BG139: 1.699814537 | BH139: =$H139-($I139*$C139) -> -0.4600590707 | BI139: 1.760972404 | BJ139: 11.08432359 | BK139: 0.7837585693 | BL139: =BL138+mazalazo*($I139*(BM139^2+BN139^2)+BM139*BR139-BN139*BQ139)*$BS139*DT -> -112.3199891 | BM139: 4.793147307 | BN139: -2.932401578 | BO139: -5.380197307 | BP139: 1.620714983 | BQ139: 0.1756731491 | BR139: -2.951339338 | BS139: -0.9565717753 | BT139: 0.392506962 | BU139: 0.3853376524
A140: 0 | B140: 100 | C140: 4.795945019 | D140: -2.987890868 | E140: -5.412898658 | F140: 1.621452614 | G140: 0.121216359 | H140: -2.936103417 | I140: -0.5126278871 | J140: =IF(($G140+$I140*$D140)^2+($H140-$I140*$D140)^2<>0,-mew*($G140+$I140*$D140)/SQRT(($G140+$I140*$D140)^2+($H140-$I140*$C140)^2),0) -> -2.882111877 | K140: =-mew*($H140-$C140*$I140)/SQRT(($G140+$D140*$I140)^2+($H140-$I140*$C140)^2) -> 0.8327251207 | L140: -0.5126278871 | M140: =($I140-$I139)/DT -> 0.3783041913 | N140: =IF(Q140<>0,mazalazo*(($D140*$J140-$C140*$K140)-2*$I140*($C140*$G140+$D140*$H140))/(INERTIA+mazalazo*($C140^2+$D140^2)),0) -> 0.3713374257 | O140: -3.407707955 | P140: =IF(Q140<>0,G140*COS(O140)+H140*SIN(O140)+F140*$I140,0) -> -1.720303896 | Q140: -52.8535199 | R140: =R139+mazalazo*($I140^2*($E140*$P140+$F140*$U140))*DT -> 119.3476085 | S140: =IF(Q140<>0,$J140*COS($O140)+$K140*SIN($Z140)+2*$U140*$I140+$E140*$I140^2+$F140*$N140,0) -> 1.103458089 | T140: =IF(Q140<>0,-$J140*SIN($O140)+$K140*COS($O140)-2*$P140*$I140+$F140*$I140^2-$E140*$N140,0) -> 0.626898123 | U140: =IF(Q140<>0,-$G140*SIN(O140)+$H140*COS(O140)-$E140*$I140,0) -> 0.02607102468 | V140: =$G140*COS($O140)+$H140*SIN($O140)+$F140*$I140 -> -1.720303896 | W140: =-$G140*SIN($O140)+$H140*COS($O140)-$E140*$I140 -> 0.02607102468 | Y140: 4.794546163 | Z140: 4.791234013 | AA140: -2.960146223 | AB140: -2.904517704 | AC140: 0.05041895601 | AD140: 0.06861651572 | AE140: 1.725135321 | AF140: -3.114902713 | AG140: 3.073308158 | AH140: 4.795945019 | AI140: -2.987890868 | AJ140: -3.407707955 | AL140: FALSE | AN140: 1.884955592 | AR140: -10.97532221 | AS140: -62.17323119 | AT140: 100 | AU140: 1.884955592 | AV140: -52.8535199 | AW140: 4.440187789 | AX140: =1/2*(INERTIA+mazalazo*($C140^2+$D140^2))*$I140^2 -> 15.08212044 | AY140: -62.17323119 | AZ140: -10.97532221 | BA140: -52.8535199 | BB140: 19.52230822 | BC140: 4.320857442 | BD140: 23.84316567 | BF140: 1.884955592 | BG140: 1.652892542 | BH140: =$H140-($I140*$C140) -> -0.4775682555 | BI140: 1.720501436 | BJ140: 10.38318098 | BK140: 0.8327251207 | BL140: =BL139+mazalazo*($I140*(BM140^2+BN140^2)+BM140*BR140-BN140*BQ140)*$BS140*DT -> -110.7628929 | BM140: 4.795945019 | BN140: -2.987890868 | BO140: -5.412898658 | BP140: 1.621452614 | BQ140: 0.121216359 | BR140: -2.936103417 | BS140: -0.915205541 | BT140: 0.3783041913 | BU140: 0.3713374257
A141: 0 | B141: 101 | C141: 4.797718721 | D141: -3.043084304 | E141: -5.444839047 | F141: 1.622404007 | G141: 0.06702460756 | H141: -2.919950075 | I141: -0.5057571921 | J141: =IF(($G141+$I141*$D141)^2+($H141-$I141*$D141)^2<>0,-mew*($G141+$I141*$D141)/SQRT(($G141+$I141*$D141)^2+($H141-$I141*$C141)^2),0) -> -2.867693674 | K141: =-mew*($H141-$C141*$I141)/SQRT(($G141+$D141*$I141)^2+($H141-$I141*$C141)^2) -> 0.8810976049 | L141: -0.5057571921 | M141: =($I141-$I140)/DT -> 0.3645016888 | N141: =IF(Q141<>0,mazalazo*(($D141*$J141-$C141*$K141)-2*$I141*($C141*$G141+$D141*$H141))/(INERTIA+mazalazo*($C141^2+$D141^2)),0) -> 0.3577302775 | O141: -3.417241254 | P141: =IF(Q141<>0,G141*COS(O141)+H141*SIN(O141)+F141*$I141,0) -> -1.679762898 | Q141: -53.13855676 | R141: =R140+mazalazo*($I141^2*($E141*$P141+$F141*$U141))*DT -> 119.4807873 | S141: =IF(Q141<>0,$J141*COS($O141)+$K141*SIN($Z141)+2*$U141*$I141+$E141*$I141^2+$F141*$N141,0) -> 1.03081096 | T141: =IF(Q141<>0,-$J141*SIN($O141)+$K141*COS($O141)-2*$P141*$I141+$F141*$I141^2-$E141*$N141,0) -> 0.5963429116 | U141: =IF(Q141<>0,-$G141*SIN(O141)+$H141*COS(O141)-$E141*$I141,0) -> 0.03770998928 | V141: =$G141*COS($O141)+$H141*SIN($O141)+$F141*$I141 -> -1.679762898 | W141: =-$G141*SIN($O141)+$H141*COS($O141)-$E141*$I141 -> 0.03770998928 | Y141: 4.79683187 | Z141: 4.794546163 | AA141: -3.015487586 | AB141: -2.960146223 | AC141: 0.03213611184 | AD141: 0.05041895601 | AE141: 1.763572618 | AF141: -3.112964745 | AG141: 3.034823575 | AH141: 4.797718721 | AI141: -3.043084304 | AJ141: -3.417241254 | AL141: FALSE | AN141: 1.903805148 | AR141: -11.13167741 | AS141: -62.22420727 | AT141: 101 | AU141: 1.903805148 | AV141: -53.13855676 | AW141: 4.234538156 | AX141: =1/2*(INERTIA+mazalazo*($C141^2+$D141^2))*$I141^2 -> 14.81478816 | AY141: -62.22420727 | AZ141: -11.13167741 | BA141: -53.13855676 | BB141: 19.04932631 | BC141: 4.118023274 | BD141: 23.16734959 | BF141: 1.903805148 | BG141: 1.606086381 | BH141: =$H141-($I141*$C141) -> -0.4934693255 | BI141: 1.680186132 | BJ141: 9.764049948 | BK141: 0.8810976049 | BL141: =BL140+mazalazo*($I141*(BM141^2+BN141^2)+BM141*BR141-BN141*BQ141)*$BS141*DT -> -109.2652188 | BM141: 4.797718721 | BN141: -3.043084304 | BO141: -5.444839047 | BP141: 1.622404007 | BQ141: 0.06702460756 | BR141: -2.919950075 | BS141: -0.8790081093 | BT141: 0.3645016888 | BU141: 0.3577302775
A142: 0 | B142: 102 | C142: 4.798473536 | D142: -3.097964699 | E142: -5.476019708 | F142: 1.623558348 | G142: 0.01311122115 | H142: -2.902890641 | I142: -0.4991393913 | J142: =IF(($G142+$I142*$D142)^2+($H142-$I142*$D142)^2<>0,-mew*($G142+$I142*$D142)/SQRT(($G142+$I142*$D142)^2+($H142-$I142*$C142)^2),0) -> -2.852580411 | K142: =-mew*($H142-$C142*$I142)/SQRT(($G142+$D142*$I142)^2+($H142-$I142*$C142)^2) -> 0.928862207 | L142: -0.4991393913 | M142: =($I142-$I141)/DT -> 0.3510852371 | N142: =IF(Q142<>0,mazalazo*(($D142*$J142-$C142*$K142)-2*$I142*($C142*$G142+$D142*$H142))/(INERTIA+mazalazo*($C142^2+$D142^2)),0) -> 0.3445022318 | O142: -3.42664981 | P142: =IF(Q142<>0,G142*COS(O142)+H142*SIN(O142)+F142*$I142,0) -> -1.639292609 | Q142: -53.41677921 | R142: =R141+mazalazo*($I142^2*($E142*$P142+$F142*$U142))*DT -> 119.6083727 | S142: =IF(Q142<>0,$J142*COS($O142)+$K142*SIN($Z142)+2*$U142*$I142+$E142*$I142^2+$F142*$N142,0) -> 0.9582588215 | T142: =IF(Q142<>0,-$J142*SIN($O142)+$K142*COS($O142)-2*$P142*$I142+$F142*$I142^2-$E142*$N142,0) -> 0.565325712 | U142: =IF(Q142<>0,-$G142*SIN(O142)+$H142*COS(O142)-$E142*$I142,0) -> 0.04876199525 | V142: =$G142*COS($O142)+$H142*SIN($O142)+$F142*$I142 -> -1.639292609 | W142: =-$G142*SIN($O142)+$H142*COS($O142)-$E142*$I142 -> 0.04876199525 | Y142: 4.798096129 | Z142: 4.79683187 | AA142: -3.070524502 | AB142: -3.015487586 | AC142: 0.01375381749 | AD142: 0.03213611184 | AE142: 1.801868193 | AF142: -3.111734074 | AG142: 2.996509772 | AH142: 4.798473536 | AI142: -3.097964699 | AJ142: -3.42664981 | AL142: FALSE | AN142: 1.922654704 | AR142: -11.28626938 | AS142: -62.2708542 | AT142: 102 | AU142: 1.922654704 | AV142: -53.41677921 | AW142: 4.034486984 | AX142: =1/2*(INERTIA+mazalazo*($C142^2+$D142^2))*$I142^2 -> 14.55827947 | AY142: -62.2708542 | AZ142: -11.28626938 | BA142: -53.41677921 | BB142: 18.59276645 | BC142: 3.920739275 | BD142: 22.51350573 | BF142: 1.922654704 | BG142: 1.559427435 | BH142: =$H142-($I142*$C142) -> -0.5077834804 | BI142: 1.64001768 | BJ142: 9.213143961 | BK142: 0.928862207 | BL142: =BL141+mazalazo*($I142*(BM142^2+BN142^2)+BM142*BR142-BN142*BQ142)*$BS142*DT -> -107.8199276 | BM142: 4.798473536 | BN142: -3.097964699 | BO142: -5.476019708 | BP142: 1.623558348 | BQ142: 0.01311122115 | BR142: -2.902890641 | BS142: -0.8470853993 | BT142: 0.3510852371 | BU142: 0.3445022318
A143: 0 | B143: 103 | C143: 4.798214833 | D143: -3.152515082 | E143: -5.506441842 | F143: 1.624904664 | G143: -0.0405109244 | H143: -2.884936695 | I143: -0.4927674668 | J143: =IF(($G143+$I143*$D143)^2+($H143-$I143*$D143)^2<>0,-mew*($G143+$I143*$D143)/SQRT(($G143+$I143*$D143)^2+($H143-$I143*$C143)^2),0) -> -2.836796062 | K143: =-mew*($H143-$C143*$I143)/SQRT(($G143+$D143*$I143)^2+($H143-$I143*$C143)^2) -> 0.9760061987 | L143: -0.4927674668 | M143: =($I143-$I142)/DT -> 0.3380410955 | N143: =IF(Q143<>0,mazalazo*(($D143*$J143-$C143*$K143)-2*$I143*($C143*$G143+$D143*$H143))/(INERTIA+mazalazo*($C143^2+$D143^2)),0) -> 0.3316397804 | O143: -3.435938258 | P143: =IF(Q143<>0,G143*COS(O143)+H143*SIN(O143)+F143*$I143,0) -> -1.598891061 | Q143: -53.68821067 | R143: =R142+mazalazo*($I143^2*($E143*$P143+$F143*$U143))*DT -> 119.7305856 | S143: =IF(Q143<>0,$J143*COS($O143)+$K143*SIN($Z143)+2*$U143*$I143+$E143*$I143^2+$F143*$N143,0) -> 0.8858154149 | T143: =IF(Q143<>0,-$J143*SIN($O143)+$K143*COS($O143)-2*$P143*$I143+$F143*$I143^2-$E143*$N143,0) -> 0.5339141283 | U143: =IF(Q143<>0,-$G143*SIN(O143)+$H143*COS(O143)-$E143*$I143,0) -> 0.05921927939 | V143: =$G143*COS($O143)+$H143*SIN($O143)+$F143*$I143 -> -1.598891061 | W143: =-$G143*SIN($O143)+$H143*COS($O143)-$E143*$I143 -> 0.05921927939 | Y143: 4.798344185 | Z143: 4.798096129 | AA143: -3.125239891 | AB143: -3.070524502 | AC143: -0.004742467886 | AD143: 0.01375381749 | AE143: 1.839977155 | AF143: -3.11120993 | AG143: 2.958398751 | AH143: 4.798214833 | AI143: -3.152515082 | AJ143: -3.435938258 | AL143: FALSE | AN143: 1.94150426 | AR143: -11.43899573 | AS143: -62.31346202 | AT143: 103 | AU143: 1.94150426 | AV143: -53.68821067 | AW143: 3.839939324 | AX143: =1/2*(INERTIA+mazalazo*($C143^2+$D143^2))*$I143^2 -> 14.31224086 | AY143: -62.31346202 | AZ143: -11.43899573 | BA143: -53.68821067 | BB143: 18.15218018 | BC143: 3.72891295 | BD143: 21.88109313 | BF143: 1.94150426 | BG143: 1.512945947 | BH143: =$H143-($I143*$C143) -> -0.5205325268 | BI143: 1.599987359 | BJ143: 8.719604649 | BK143: 0.9760061987 | BL143: =BL142+mazalazo*($I143*(BM143^2+BN143^2)+BM143*BR143-BN143*BQ143)*$BS143*DT -> -106.4211414 | BM143: 4.798214833 | BN143: -3.152515082 | BO143: -5.506441842 | BP143: 1.624904664 | BQ143: -0.0405109244 | BR143: -2.884936695 | BS143: -0.8187337016 | BT143: 0.3380410955 | BU143: 0.3316397804
A144: 0 | B144: 104 | C144: 4.796948219 | D144: -3.206718704 | E144: -5.53610662 | F144: 1.626431846 | G144: -0.09382940627 | H144: -2.866100048 | I144: -0.486634651 | J144: =IF(($G144+$I144*$D144)^2+($H144-$I144*$D144)^2<>0,-mew*($G144+$I144*$D144)/SQRT(($G144+$I144*$D144)^2+($H144-$I144*$C144)^2),0) -> -2.820364709 | K144: =-mew*($H144-$C144*$I144)/SQRT(($G144+$D144*$I144)^2+($H144-$I144*$C144)^2) -> 1.022517924 | L144: -0.486634651 | M144: =($I144-$I143)/DT -> 0.3253559826 | N144: =IF(Q144<>0,mazalazo*(($D144*$J144-$C144*$K144)-2*$I144*($C144*$G144+$D144*$H144))/(INERTIA+mazalazo*($C144^2+$D144^2)),0) -> 0.3191298656 | O144: -3.445111105 | P144: =IF(Q144<>0,G144*COS(O144)+H144*SIN(O144)+F144*$I144,0) -> -1.558556606 | Q144: -53.95287312 | R144: =R143+mazalazo*($I144^2*($E144*$P144+$F144*$U144))*DT -> 119.8476363 | S144: =IF(Q144<>0,$J144*COS($O144)+$K144*SIN($Z144)+2*$U144*$I144+$E144*$I144^2+$F144*$N144,0) -> 0.8134957023 | T144: =IF(Q144<>0,-$J144*SIN($O144)+$K144*COS($O144)-2*$P144*$I144+$F144*$I144^2-$E144*$N144,0) -> 0.5021725636 | U144: =IF(Q144<>0,-$G144*SIN(O144)+$H144*COS(O144)-$E144*$I144,0) -> 0.06907531016 | V144: =$G144*COS($O144)+$H144*SIN($O144)+$F144*$I144 -> -1.558556606 | W144: =-$G144*SIN($O144)+$H144*COS($O144)-$E144*$I144 -> 0.06907531016 | Y144: 4.797581526 | Z144: 4.798344185 | AA144: -3.179616893 | AB144: -3.125239891 | AC144: -0.0233677055 | AD144: -0.004742467886 | AE144: 1.877853986 | AF144: -3.11138956 | AG144: 2.920523041 | AH144: 4.796948219 | AI144: -3.206718704 | AJ144: -3.445111105 | AL144: FALSE | AN144: 1.960353816 | AR144: -11.58975479 | AS144: -62.35230642 | AT144: 104 | AU144: 1.960353816 | AV144: -53.95287312 | AW144: 3.650805138 | AX144: =1/2*(INERTIA+mazalazo*($C144^2+$D144^2))*$I144^2 -> 14.07633209 | AY144: -62.35230642 | AZ144: -11.58975479 | BA144: -53.95287312 | BB144: 17.72713723 | BC144: 3.542456719 | BD144: 21.26959395 | BF144: 1.960353816 | BG144: 1.466671031 | BH144: =$H144-($I144*$C144) -> -0.5317388256 | BI144: 1.560086565 | BJ144: 8.274763628 | BK144: 1.022517924 | BL144: =BL143+mazalazo*($I144*(BM144^2+BN144^2)+BM144*BR144-BN144*BQ144)*$BS144*DT -> -105.0639088 | BM144: 4.796948219 | BN144: -3.206718704 | BO144: -5.53610662 | BP144: 1.626431846 | BQ144: -0.09382940627 | BR144: -2.866100048 | BS144: -0.7933917055 | BT144: 0.3253559826 | BU144: 0.3191298656
A145: 0 | B145: 105 | C145: 4.794679531 | D145: -3.260559038 | E145: -5.565015191 | F145: 1.628128671 | G145: -0.1468322561 | H145: -2.846392718 | I145: -0.4807344184 | J145: =IF(($G145+$I145*$D145)^2+($H145-$I145*$D145)^2<>0,-mew*($G145+$I145*$D145)/SQRT(($G145+$I145*$D145)^2+($H145-$I145*$C145)^2),0) -> -2.803310486 | K145: =-mew*($H145-$C145*$I145)/SQRT(($G145+$D145*$I145)^2+($H145-$I145*$C145)^2) -> 1.068386782 | L145: -0.4807344184 | M145: =($I145-$I144)/DT -> 0.3130170589 | N145: =IF(Q145<>0,mazalazo*(($D145*$J145-$C145*$K145)-2*$I145*($C145*$G145+$D145*$H145))/(INERTIA+mazalazo*($C145^2+$D145^2)),0) -> 0.3069598633 | O145: -3.454172735 | P145: =IF(Q145<>0,G145*COS(O145)+H145*SIN(O145)+F145*$I145,0) -> -1.518287886 | Q145: -54.2107871 | R145: =R144+mazalazo*($I145^2*($E145*$P145+$F145*$U145))*DT -> 119.9597242 | S145: =IF(Q145<>0,$J145*COS($O145)+$K145*SIN($Z145)+2*$U145*$I145+$E145*$I145^2+$F145*$N145,0) -> 0.7413166054 | T145: =IF(Q145<>0,-$J145*SIN($O145)+$K145*COS($O145)-2*$P145*$I145+$F145*$I145^2-$E145*$N145,0) -> 0.4701623552 | U145: =IF(Q145<>0,-$G145*SIN(O145)+$H145*COS(O145)-$E145*$I145,0) -> 0.0783247292 | V145: =$G145*COS($O145)+$H145*SIN($O145)+$F145*$I145 -> -1.518287886 | W145: =-$G145*SIN($O145)+$H145*COS($O145)-$E145*$I145 -> 0.0783247292 | Y145: 4.795813875 | Z145: 4.797581526 | AA145: -3.233638871 | AB145: -3.179616893 | AC145: -0.0421373249 | AD145: -0.0233677055 | AE145: 1.915452668 | AF145: -3.112268155 | AG145: 2.882915644 | AH145: 4.794679531 | AI145: -3.260559038 | AJ145: -3.454172735 | AL145: FALSE | AN145: 1.979203372 | AR145: -11.73844567 | AS145: -62.38764922 | AT145: 105 | AU145: 1.979203372 | AV145: -54.2107871 | AW145: 3.466999304 | AX145: =1/2*(INERTIA+mazalazo*($C145^2+$D145^2))*$I145^2 -> 13.85022578 | AY145: -62.38764922 | AZ145: -11.73844567 | BA145: -54.2107871 | BB145: 17.31722508 | BC145: 3.361287916 | BD145: 20.678513 | BF145: 1.979203372 | BG145: 1.420630697 | BH145: =$H145-($I145*$C145) -> -0.5414252422 | BI145: 1.520306834 | BJ145: 7.871616906 | BK145: 1.068386782 | BL145: =BL144+mazalazo*($I145*(BM145^2+BN145^2)+BM145*BR145-BN145*BQ145)*$BS145*DT -> -103.7440262 | BM145: 4.794679531 | BN145: -3.260559038 | BO145: -5.565015191 | BP145: 1.628128671 | BQ145: -0.1468322561 | BR145: -2.846392718 | BS145: -0.7706063417 | BT145: 0.3130170589 | BU145: 0.3069598633
A146: 0 | B146: 106 | C146: 4.791414829 | D146: -3.314019787 | E146: -5.593168685 | F146: 1.629983824 | G146: -0.1995079607 | H146: -2.825826916 | I146: -0.4750604776 | J146: =IF(($G146+$I146*$D146)^2+($H146-$I146*$D146)^2<>0,-mew*($G146+$I146*$D146)/SQRT(($G146+$I146*$D146)^2+($H146-$I146*$C146)^2),0) -> -2.785657535 | K146: =-mew*($H146-$C146*$I146)/SQRT(($G146+$D146*$I146)^2+($H146-$I146*$C146)^2) -> 1.113603206 | L146: -0.4750604776 | M146: =($I146-$I145)/DT -> 0.3010119103 | N146: =IF(Q146<>0,mazalazo*(($D146*$J146-$C146*$K146)-2*$I146*($C146*$G146+$D146*$H146))/(INERTIA+mazalazo*($C146^2+$D146^2)),0) -> 0.2951175671 | O146: -3.463127414 | P146: =IF(Q146<>0,G146*COS(O146)+H146*SIN(O146)+F146*$I146,0) -> -1.478083822 | Q146: -54.46197173 | R146: =R145+mazalazo*($I146^2*($E146*$P146+$F146*$U146))*DT -> 120.0670392 | S146: =IF(Q146<>0,$J146*COS($O146)+$K146*SIN($Z146)+2*$U146*$I146+$E146*$I146^2+$F146*$N146,0) -> 0.6692976932 | T146: =IF(Q146<>0,-$J146*SIN($O146)+$K146*COS($O146)-2*$P146*$I146+$F146*$I146^2-$E146*$N146,0) -> 0.4379419054 | U146: =IF(Q146<>0,-$G146*SIN(O146)+$H146*COS(O146)-$E146*$I146,0) -> 0.08696329526 | V146: =$G146*COS($O146)+$H146*SIN($O146)+$F146*$I146 -> -1.478083822 | W146: =-$G146*SIN($O146)+$H146*COS($O146)-$E146*$I146 -> 0.08696329526 | Y146: 4.79304718 | Z146: 4.795813875 | AA146: -3.287289412 | AB146: -3.233638871 | AC146: -0.06106727498 | AD146: -0.0421373249 | AE146: 1.952726815 | AF146: -3.113838788 | AG146: 2.845609968 | AH146: 4.791414829 | AI146: -3.314019787 | AJ146: -3.463127414 | AL146: FALSE | AN146: 1.998052928 | AR146: -11.8849683 | AS146: -62.41973875 | AT146: 106 | AU146: 1.998052928 | AV146: -54.46197173 | AW146: 3.2884416 | AX146: =1/2*(INERTIA+mazalazo*($C146^2+$D146^2))*$I146^2 -> 13.63360698 | AY146: -62.41973875 | AZ146: -11.8849683 | BA146: -54.46197173 | BB146: 16.92204858 | BC146: 3.185328754 | BD146: 20.10737733 | BF146: 1.998052928 | BG146: 1.374851862 | BH146: =$H146-($I146*$C146) -> -0.5496150989 | BI146: 1.480639862 | BJ146: 7.504443736 | BK146: 1.113603206 | BL146: =BL145+mazalazo*($I146*(BM146^2+BN146^2)+BM146*BR146-BN146*BQ146)*$BS146*DT -> -102.4578999 | BM146: 4.791414829 | BN146: -3.314019787 | BO146: -5.593168685 | BP146: 1.629983824 | BQ146: -0.1995079607 | BR146: -2.825826916 | BS146: -0.7500080087 | BT146: 0.3010119103 | BU146: 0.2951175671
A147: 0 | B147: 107 | C147: 4.787160383 | D147: -3.367084886 | E147: -5.620568221 | F147: 1.631985917 | G147: -0.2518454615 | H147: -2.804415021 | I147: -0.4696067632 | J147: =IF(($G147+$I147*$D147)^2+($H147-$I147*$D147)^2<>0,-mew*($G147+$I147*$D147)/SQRT(($G147+$I147*$D147)^2+($H147-$I147*$C147)^2),0) -> -2.767429958 | K147: =-mew*($H147-$C147*$I147)/SQRT(($G147+$D147*$I147)^2+($H147-$I147*$C147)^2) -> 1.158158637 | L147: -0.4696067632 | M147: =($I147-$I146)/DT -> 0.2893285327 | N147: =IF(Q147<>0,mazalazo*(($D147*$J147-$C147*$K147)-2*$I147*($C147*$G147+$D147*$H147))/(INERTIA+mazalazo*($C147^2+$D147^2)),0) -> 0.2835911723 | O147: -3.471979293 | P147: =IF(Q147<>0,G147*COS(O147)+H147*SIN(O147)+F147*$I147,0) -> -1.437943584 | Q147: -54.70644477 | R147: =R146+mazalazo*($I147^2*($E147*$P147+$F147*$U147))*DT -> 120.1697614 | S147: =IF(Q147<>0,$J147*COS($O147)+$K147*SIN($Z147)+2*$U147*$I147+$E147*$I147^2+$F147*$N147,0) -> 0.5974618212 | T147: =IF(Q147<>0,-$J147*SIN($O147)+$K147*COS($O147)-2*$P147*$I147+$F147*$I147^2-$E147*$N147,0) -> 0.4055668106 | U147: =IF(Q147<>0,-$G147*SIN(O147)+$H147*COS(O147)-$E147*$I147,0) -> 0.09498783068 | V147: =$G147*COS($O147)+$H147*SIN($O147)+$F147*$I147 -> -1.437943584 | W147: =-$G147*SIN($O147)+$H147*COS($O147)-$E147*$I147 -> 0.09498783068 | Y147: 4.789287606 | Z147: 4.79304718 | AA147: -3.340552337 | AB147: -3.287289412 | AC147: -0.08017407846 | AD147: -0.06106727498 | AE147: 1.989629818 | AF147: -3.116092353 | AG147: 2.808639767 | AH147: 4.787160383 | AI147: -3.367084886 | AJ147: -3.471979293 | AL147: FALSE | AN147: 2.016902484 | AR147: -12.02922355 | AS147: -62.44881038 | AT147: 107 | AU147: 2.016902484 | AV147: -54.70644477 | AW147: 3.11505666 | AX147: =1/2*(INERTIA+mazalazo*($C147^2+$D147^2))*$I147^2 -> 13.42617274 | AY147: -62.44881038 | AZ147: -12.02922355 | BA147: -54.70644477 | BB147: 16.5412294 | BC147: 3.014506279 | BD147: 19.55573568 | BF147: 2.016902484 | BG147: 1.329360374 | BH147: =$H147-($I147*$C147) -> -0.5563321284 | BI147: 1.441077527 | BJ147: 7.168525629 | BK147: 1.158158637 | BL147: =BL146+mazalazo*($I147*(BM147^2+BN147^2)+BM147*BR147-BN147*BQ147)*$BS147*DT -> -101.2024393 | BM147: 4.787160383 | BN147: -3.367084886 | BO147: -5.620568221 | BP147: 1.631985917 | BQ147: -0.2518454615 | BR147: -2.804415021 | BS147: -0.7312923079 | BT147: 0.2893285327 | BU147: 0.2835911723
A148: 0 | B148: 108 | C148: 4.78192267 | D148: -3.419738505 | E148: -5.647214908 | F148: 1.634123513 | G148: -0.3038341536 | H148: -2.782169566 | I148: -0.464367429 | J148: =IF(($G148+$I148*$D148)^2+($H148-$I148*$D148)^2<>0,-mew*($G148+$I148*$D148)/SQRT(($G148+$I148*$D148)^2+($H148-$I148*$C148)^2),0) -> -2.748651781 | K148: =-mew*($H148-$C148*$I148)/SQRT(($G148+$D148*$I148)^2+($H148-$I148*$C148)^2) -> 1.202045502 | L148: -0.464367429 | M148: =($I148-$I147)/DT -> 0.2779553162 | N148: =IF(Q148<>0,mazalazo*(($D148*$J148-$C148*$K148)-2*$I148*($C148*$G148+$D148*$H148))/(INERTIA+mazalazo*($C148^2+$D148^2)),0) -> 0.2723692617 | O148: -3.480732413 | P148: =IF(Q148<>0,G148*COS(O148)+H148*SIN(O148)+F148*$I148,0) -> -1.397866578 | Q148: -54.94422263 | R148: =R147+mazalazo*($I148^2*($E148*$P148+$F148*$U148))*DT -> 120.2680618 | S148: =IF(Q148<>0,$J148*COS($O148)+$K148*SIN($Z148)+2*$U148*$I148+$E148*$I148^2+$F148*$N148,0) -> 0.5258357218 | T148: =IF(Q148<>0,-$J148*SIN($O148)+$K148*COS($O148)-2*$P148*$I148+$F148*$I148^2-$E148*$N148,0) -> 0.3730899856 | U148: =IF(Q148<>0,-$G148*SIN(O148)+$H148*COS(O148)-$E148*$I148,0) -> 0.1023961701 | V148: =$G148*COS($O148)+$H148*SIN($O148)+$F148*$I148 -> -1.397866578 | W148: =-$G148*SIN($O148)+$H148*COS($O148)-$E148*$I148 -> 0.1023961701 | Y148: 4.784541527 | Z148: 4.789287606 | AA148: -3.393411696 | AB148: -3.340552337 | AC148: -0.09947489021 | AD148: -0.08017407846 | AE148: 2.026114985 | AF148: -3.119017518 | AG148: 2.77203907 | AH148: 4.78192267 | AI148: -3.419738505 | AJ148: -3.480732413 | AL148: FALSE | AN148: 2.03575204 | AR148: -12.17111321 | AS148: -62.47508691 | AT148: 108 | AU148: 2.03575204 | AV148: -54.94422263 | AW148: 2.946773917 | AX148: =1/2*(INERTIA+mazalazo*($C148^2+$D148^2))*$I148^2 -> 13.22763177 | AY148: -62.47508691 | AZ148: -12.17111321 | BA148: -54.94422263 | BB148: 16.17440569 | BC148: 2.848752299 | BD148: 19.02315799 | BF148: 2.03575204 | BG148: 1.284181024 | BH148: =$H148-($I148*$C148) -> -0.5616004303 | BI148: 1.401611909 | BJ148: 6.859936109 | BK148: 1.202045502 | BL148: =BL147+mazalazo*($I148*(BM148^2+BN148^2)+BM148*BR148-BN148*BQ148)*$BS148*DT -> -99.97497114 | BM148: 4.78192267 | BN148: -3.419738505 | BO148: -5.647214908 | BP148: 1.634123513 | BQ148: -0.3038341536 | BR148: -2.782169566 | BS148: -0.7142063747 | BT148: 0.2779553162 | BU148: 0.2723692617
A149: 0 | B149: 109 | C149: 4.775708361 | D149: -3.47196505 | E149: -5.673109848 | F149: 1.636385136 | G149: -0.3554638841 | H149: -2.759103217 | I149: -0.45933684 | J149: =IF(($G149+$I149*$D149)^2+($H149-$I149*$D149)^2<>0,-mew*($G149+$I149*$D149)/SQRT(($G149+$I149*$D149)^2+($H149-$I149*$C149)^2),0) -> -2.72934691 | K149: =-mew*($H149-$C149*$I149)/SQRT(($G149+$D149*$I149)^2+($H149-$I149*$C149)^2) -> 1.24525718 | L149: -0.45933684 | M149: =($I149-$I148)/DT -> 0.2668810313 | N149: =IF(Q149<>0,mazalazo*(($D149*$J149-$C149*$K149)-2*$I149*($C149*$G149+$D149*$H149))/(INERTIA+mazalazo*($C149^2+$D149^2)),0) -> 0.2614407909 | O149: -3.489390708 | P149: =IF(Q149<>0,G149*COS(O149)+H149*SIN(O149)+F149*$I149,0) -> -1.357852419 | Q149: -55.17532041 | R149: =R148+mazalazo*($I149^2*($E149*$P149+$F149*$U149))*DT -> 120.3621028 | S149: =IF(Q149<>0,$J149*COS($O149)+$K149*SIN($Z149)+2*$U149*$I149+$E149*$I149^2+$F149*$N149,0) -> 0.454450544 | T149: =IF(Q149<>0,-$J149*SIN($O149)+$K149*COS($O149)-2*$P149*$I149+$F149*$I149^2-$E149*$N149,0) -> 0.3405617875 | U149: =IF(Q149<>0,-$G149*SIN(O149)+$H149*COS(O149)-$E149*$I149,0) -> 0.1091871114 | V149: =$G149*COS($O149)+$H149*SIN($O149)+$F149*$I149 -> -1.357852419 | W149: =-$G149*SIN($O149)+$H149*COS($O149)-$E149*$I149 -> 0.1091871114 | Y149: 4.778815516 | Z149: 4.784541527 | AA149: -3.445851777 | AB149: -3.393411696 | AC149: -0.11898756 | AD149: -0.09947489021 | AE149: 2.0621357 | AF149: -3.122600675 | AG149: 2.735842118 | AH149: 4.775708361 | AI149: -3.47196505 | AJ149: -3.489390708 | AL149: FALSE | AN149: 2.054601595 | AR149: -12.3105401 | AS149: -62.49877905 | AT149: 109 | AU149: 2.054601595 | AV149: -55.17532041 | AW149: 2.783527525 | AX149: =1/2*(INERTIA+mazalazo*($C149^2+$D149^2))*$I149^2 -> 13.03770399 | AY149: -62.49877905 | AZ149: -12.3105401 | BA149: -55.17532041 | BB149: 15.82123152 | BC149: 2.688003298 | BD149: 18.50923482 | BF149: 2.054601595 | BG149: 1.239337571 | BH149: =$H149-($I149*$C149) -> -0.5654444298 | BI149: 1.362235302 | BJ149: 6.575381267 | BK149: 1.24525718 | BL149: =BL148+mazalazo*($I149*(BM149^2+BN149^2)+BM149*BR149-BN149*BQ149)*$BS149*DT -> -98.77317197 | BM149: 4.775708361 | BN149: -3.47196505 | BO149: -5.673109848 | BP149: 1.636385136 | BQ149: -0.3554638841 | BR149: -2.759103217 | BS149: -0.6985385111 | BT149: 0.2668810313 | BU149: 0.2614407909
A150: 0 | B150: 110 | C150: 4.768524314 | D150: -3.523749168 | E150: -5.698254144 | F150: 1.638759299 | G150: -0.4067249492 | H150: -2.735228757 | I150: -0.4545095665 | J150: =IF(($G150+$I150*$D150)^2+($H150-$I150*$D150)^2<>0,-mew*($G150+$I150*$D150)/SQRT(($G150+$I150*$D150)^2+($H150-$I150*$C150)^2),0) -> -2.7095391 | K150: =-mew*($H150-$C150*$I150)/SQRT(($G150+$D150*$I150)^2+($H150-$I150*$C150)^2) -> 1.287787973 | L150: -0.4545095665 | M150: =($I150-$I149)/DT -> 0.2560948144 | N150: =IF(Q150<>0,mazalazo*(($D150*$J150-$C150*$K150)-2*$I150*($C150*$G150+$D150*$H150))/(INERTIA+mazalazo*($C150^2+$D150^2)),0) -> 0.2507950749 | O150: -3.497958012 | P150: =IF(Q150<>0,G150*COS(O150)+H150*SIN(O150)+F150*$I150,0) -> -1.317900918 | Q150: -55.39975193 | R150: =R149+mazalazo*($I150^2*($E150*$P150+$F150*$U150))*DT -> 120.4520381 | S150: =IF(Q150<>0,$J150*COS($O150)+$K150*SIN($Z150)+2*$U150*$I150+$E150*$I150^2+$F150*$N150,0) -> 0.383342346 | T150: =IF(Q150<>0,-$J150*SIN($O150)+$K150*COS($O150)-2*$P150*$I150+$F150*$I150^2-$E150*$N150,0) -> 0.3080301353 | U150: =IF(Q150<>0,-$G150*SIN(O150)+$H150*COS(O150)-$E150*$I150,0) -> 0.1153603696 | V150: =$G150*COS($O150)+$H150*SIN($O150)+$F150*$I150 -> -1.317900918 | W150: =-$G150*SIN($O150)+$H150*COS($O150)-$E150*$I150 -> 0.1153603696 | Y150: 4.772116338 | Z150: 4.778815516 | AA150: -3.497857109 | AB150: -3.445851777 | AC150: -0.1387306997 | AD150: -0.11898756 | AE150: 2.097645567 | AF150: -3.126825907 | AG150: 2.700083296 | AH150: 4.768524314 | AI150: -3.523749168 | AJ150: -3.497958012 | AL150: FALSE | AN150: 2.073451151 | AR150: -12.4474081 | AS150: -62.52008585 | AT150: 110 | AU150: 2.073451151 | AV150: -55.39975193 | AW150: 2.625256266 | AX150: =1/2*(INERTIA+mazalazo*($C150^2+$D150^2))*$I150^2 -> 12.8561202 | AY150: -62.52008585 | AZ150: -12.4474081 | BA150: -55.39975193 | BB150: 15.48137647 | BC150: 2.532200337 | BD150: 18.0135768 | BF150: 2.073451151 | BG150: 1.194852758 | BH150: =$H150-($I150*$C150) -> -0.5678888377 | BI150: 1.322940227 | BJ150: 6.312077355 | BK150: 1.287787973 | BL150: =BL149+mazalazo*($I150*(BM150^2+BN150^2)+BM150*BR150-BN150*BQ150)*$BS150*DT -> -97.59501319 | BM150: 4.768524314 | BN150: -3.523749168 | BO150: -5.698254144 | BP150: 1.638759299 | BQ150: -0.4067249492 | BR150: -2.735228757 | BS150: -0.6841102238 | BT150: 0.2560948144 | BU150: 0.2507950749
A151: 0 | B151: 111 | C151: 4.760377567 | D151: -3.575075748 | E151: -5.722648902 | F151: 1.641234511 | G151: -0.4576080911 | H151: -2.710559065 | I151: -0.4498803766 | J151: =IF(($G151+$I151*$D151)^2+($H151-$I151*$D151)^2<>0,-mew*($G151+$I151*$D151)/SQRT(($G151+$I151*$D151)^2+($H151-$I151*$C151)^2),0) -> -2.68925192 | K151: =-mew*($H151-$C151*$I151)/SQRT(($G151+$D151*$I151)^2+($H151-$I151*$C151)^2) -> 1.329633073 | L151: -0.4498803766 | M151: =($I151-$I150)/DT -> 0.2455861549 | N151: =IF(Q151<>0,mazalazo*(($D151*$J151-$C151*$K151)-2*$I151*($C151*$G151+$D151*$H151))/(INERTIA+mazalazo*($C151^2+$D151^2)),0) -> 0.2404217754 | O151: -3.506438057 | P151: =IF(Q151<>0,G151*COS(O151)+H151*SIN(O151)+F151*$I151,0) -> -1.278012058 | Q151: -55.6175298 | R151: =R150+mazalazo*($I151^2*($E151*$P151+$F151*$U151))*DT -> 120.5380139 | S151: =IF(Q151<>0,$J151*COS($O151)+$K151*SIN($Z151)+2*$U151*$I151+$E151*$I151^2+$F151*$N151,0) -> 0.3125525368 | T151: =IF(Q151<>0,-$J151*SIN($O151)+$K151*COS($O151)-2*$P151*$I151+$F151*$I151^2-$E151*$N151,0) -> 0.2755406292 | U151: =IF(Q151<>0,-$G151*SIN(O151)+$H151*COS(O151)-$E151*$I151,0) -> 0.1209165316 | V151: =$G151*COS($O151)+$H151*SIN($O151)+$F151*$I151 -> -1.278012058 | W151: =-$G151*SIN($O151)+$H151*COS($O151)-$E151*$I151 -> 0.1209165316 | Y151: 4.764450941 | Z151: 4.772116338 | AA151: -3.549412458 | AB151: -3.497857109 | AC151: -0.1587237569 | AD151: -0.1387306997 | AE151: 2.132598575 | AF151: -3.131674963 | AG151: 2.664797062 | AH151: 4.760377567 | AI151: -3.575075748 | AJ151: -3.506438057 | AL151: FALSE | AN151: 2.092300707 | AR151: -12.58162215 | AS151: -62.53919511 | AT151: 111 | AU151: 2.092300707 | AV151: -55.6175298 | AW151: 2.471903441 | AX151: =1/2*(INERTIA+mazalazo*($C151^2+$D151^2))*$I151^2 -> 12.68262168 | AY151: -62.53919511 | AZ151: -12.58162215 | BA151: -55.6175298 | BB151: 15.15452512 | BC151: 2.381288939 | BD151: 17.53581406 | BF151: 2.092300707 | BG151: 1.150748332 | BH151: =$H151-($I151*$C151) -> -0.5689586128 | BI151: 1.283719451 | BJ151: 6.067655748 | BK151: 1.329633073 | BL151: =BL150+mazalazo*($I151*(BM151^2+BN151^2)+BM151*BR151-BN151*BQ151)*$BS151*DT -> -96.4387165 | BM151: 4.760377567 | BN151: -3.575075748 | BO151: -5.722648902 | BP151: 1.641234511 | BQ151: -0.4576080911 | BR151: -2.710559065 | BS151: -0.670770042 | BT151: 0.2455861549 | BU151: 0.2404217754
A152: 0 | B152: 112 | C152: 4.751275326 | D152: -3.625929922 | E152: -5.746295231 | F152: 1.643799301 | G152: -0.5081044944 | H152: -2.685107106 | I152: -0.44544423 | J152: =IF(($G152+$I152*$D152)^2+($H152-$I152*$D152)^2<>0,-mew*($G152+$I152*$D152)/SQRT(($G152+$I152*$D152)^2+($H152-$I152*$C152)^2),0) -> -2.668508725 | K152: =-mew*($H152-$C152*$I152)/SQRT(($G152+$D152*$I152)^2+($H152-$I152*$C152)^2) -> 1.370788527 | L152: -0.44544423 | M152: =($I152-$I151)/DT -> 0.2353448824 | N152: =IF(Q152<>0,mazalazo*(($D152*$J152-$C152*$K152)-2*$I152*($C152*$G152+$D152*$H152))/(INERTIA+mazalazo*($C152^2+$D152^2)),0) -> 0.230310888 | O152: -3.514834483 | P152: =IF(Q152<>0,G152*COS(O152)+H152*SIN(O152)+F152*$I152,0) -> -1.238185978 | Q152: -55.82866545 | R152: =R151+mazalazo*($I152^2*($E152*$P152+$F152*$U152))*DT -> 120.6201682 | S152: =IF(Q152<>0,$J152*COS($O152)+$K152*SIN($Z152)+2*$U152*$I152+$E152*$I152^2+$F152*$N152,0) -> 0.2421282707 | T152: =IF(Q152<>0,-$J152*SIN($O152)+$K152*COS($O152)-2*$P152*$I152+$F152*$I152^2-$E152*$N152,0) -> 0.2431366671 | U152: =IF(Q152<>0,-$G152*SIN(O152)+$H152*COS(O152)-$E152*$I152,0) -> 0.1258570148 | V152: =$G152*COS($O152)+$H152*SIN($O152)+$F152*$I152 -> -1.238185978 | W152: =-$G152*SIN($O152)+$H152*COS($O152)-$E152*$I152 -> 0.1258570148 | Y152: 4.755826446 | Z152: 4.764450941 | AA152: -3.600502835 | AB152: -3.549412458 | AC152: -0.1789870932 | AD152: -0.1587237569 | AE152: 2.166949258 | AF152: -3.137127232 | AG152: 2.630017889 | AH152: 4.751275326 | AI152: -3.625929922 | AJ152: -3.514834483 | AL152: FALSE | AN152: 2.111150263 | AR152: -12.71308835 | AS152: -62.55628383 | AT152: 112 | AU152: 2.111150263 | AV152: -55.82866545 | AW152: 2.323416756 | AX152: =1/2*(INERTIA+mazalazo*($C152^2+$D152^2))*$I152^2 -> 12.51695986 | AY152: -62.55628383 | AZ152: -12.71308835 | BA152: -55.82866545 | BB152: 14.84037661 | BC152: 2.235218967 | BD152: 17.07559558 | BF152: 2.111150263 | BG152: 1.107045068 | BH152: =$H152-($I152*$C152) -> -0.568678927 | BI152: 1.24456599 | BJ152: 5.840088397 | BK152: 1.370788527 | BL152: =BL151+mazalazo*($I152*(BM152^2+BN152^2)+BM152*BR152-BN152*BQ152)*$BS152*DT -> -95.30271722 | BM152: 4.751275326 | BN152: -3.625929922 | BO152: -5.746295231 | BP152: 1.643799301 | BQ152: -0.5081044944 | BR152: -2.685107106 | BS152: -0.6583886665 | BT152: 0.2353448824 | BU152: 0.230310888
A153: 0 | B153: 113 | C153: 4.741224961 | D153: -3.676297067 | E153: -5.769194246 | F153: 1.646442228 | G153: -0.5582057817 | H153: -2.65888591 | I153: -0.4411962723 | J153: =IF(($G153+$I153*$D153)^2+($H153-$I153*$D153)^2<>0,-mew*($G153+$I153*$D153)/SQRT(($G153+$I153*$D153)^2+($H153-$I153*$C153)^2),0) -> -2.64733263 | K153: =-mew*($H153-$C153*$I153)/SQRT(($G153+$D153*$I153)^2+($H153-$I153*$C153)^2) -> 1.411251198 | L153: -0.4411962723 | M153: =($I153-$I152)/DT -> 0.225361155 | N153: =IF(Q153<>0,mazalazo*(($D153*$J153-$C153*$K153)-2*$I153*($C153*$G153+$D153*$H153))/(INERTIA+mazalazo*($C153^2+$D153^2)),0) -> 0.2204527313 | O153: -3.523150837 | P153: =IF(Q153<>0,G153*COS(O153)+H153*SIN(O153)+F153*$I153,0) -> -1.198422954 | Q153: -56.03316915 | R153: =R152+mazalazo*($I153^2*($E153*$P153+$F153*$U153))*DT -> 120.6986323 | S153: =IF(Q153<>0,$J153*COS($O153)+$K153*SIN($Z153)+2*$U153*$I153+$E153*$I153^2+$F153*$N153,0) -> 0.1721227923 | T153: =IF(Q153<>0,-$J153*SIN($O153)+$K153*COS($O153)-2*$P153*$I153+$F153*$I153^2-$E153*$N153,0) -> 0.2108595602 | U153: =IF(Q153<>0,-$G153*SIN(O153)+$H153*COS(O153)-$E153*$I153,0) -> 0.1301840264 | V153: =$G153*COS($O153)+$H153*SIN($O153)+$F153*$I153 -> -1.198422954 | W153: =-$G153*SIN($O153)+$H153*COS($O153)-$E153*$I153 -> 0.1301840264 | Y153: 4.746250144 | Z153: 4.755826446 | AA153: -3.651113494 | AB153: -3.600502835 | AC153: -0.1995420704 | AD153: -0.1789870932 | AE153: 2.20065285 | AF153: -3.14315974 | AG153: 2.595780194 | AH153: 4.741224961 | AI153: -3.676297067 | AJ153: -3.523150837 | AL153: FALSE | AN153: 2.129999819 | AR153: -12.84171392 | AS153: -62.57151862 | AT153: 113 | AU153: 2.129999819 | AV153: -56.03316915 | AW153: 2.179748186 | AX153: =1/2*(INERTIA+mazalazo*($C153^2+$D153^2))*$I153^2 -> 12.35889596 | AY153: -62.57151862 | AZ153: -12.84171392 | BA153: -56.03316915 | BB153: 14.53864415 | BC153: 2.09394449 | BD153: 16.63258864 | BF153: 2.129999819 | BG153: 1.06376278 | BH153: =$H153-($I153*$C153) -> -0.5670751311 | BI153: 1.205473126 | BJ153: 5.627628802 | BK153: 1.411251198 | BL153: =BL152+mazalazo*($I153*(BM153^2+BN153^2)+BM153*BR153-BN153*BQ153)*$BS153*DT -> -94.18563408 | BM153: 4.741224961 | BN153: -3.676297067 | BO153: -5.769194246 | BP153: 1.646442228 | BQ153: -0.5582057817 | BR153: -2.65888591 | BS153: -0.6468551269 | BT153: 0.225361155 | BU153: 0.2204527313
A154: 0 | B154: 114 | C154: 4.730233997 | D154: -3.726162807 | E154: -5.791347075 | F154: 1.649151898 | G154: -0.6079040088 | H154: -2.63190856 | I154: -0.4371318284 | J154: =IF(($G154+$I154*$D154)^2+($H154-$I154*$D154)^2<>0,-mew*($G154+$I154*$D154)/SQRT(($G154+$I154*$D154)^2+($H154-$I154*$C154)^2),0) -> -2.625746493 | K154: =-mew*($H154-$C154*$I154)/SQRT(($G154+$D154*$I154)^2+($H154-$I154*$C154)^2) -> 1.451018729 | L154: -0.4371318284 | M154: =($I154-$I153)/DT -> 0.2156254477 | N154: =IF(Q154<>0,mazalazo*(($D154*$J154-$C154*$K154)-2*$I154*($C154*$G154+$D154*$H154))/(INERTIA+mazalazo*($C154^2+$D154^2)),0) -> 0.2108379348 | O154: -3.531390578 | P154: =IF(Q154<>0,G154*COS(O154)+H154*SIN(O154)+F154*$I154,0) -> -1.158723382 | Q154: -56.23105008 | R154: =R153+mazalazo*($I154^2*($E154*$P154+$F154*$U154))*DT -> 120.7735298 | S154: =IF(Q154<>0,$J154*COS($O154)+$K154*SIN($Z154)+2*$U154*$I154+$E154*$I154^2+$F154*$N154,0) -> 0.1025957326 | T154: =IF(Q154<>0,-$J154*SIN($O154)+$K154*COS($O154)-2*$P154*$I154+$F154*$I154^2-$E154*$N154,0) -> 0.1787486469 | U154: =IF(Q154<>0,-$G154*SIN(O154)+$H154*COS(O154)-$E154*$I154,0) -> 0.133900526 | V154: =$G154*COS($O154)+$H154*SIN($O154)+$F154*$I154 -> -1.158723382 | W154: =-$G154*SIN($O154)+$H154*COS($O154)-$E154*$I154 -> 0.133900526 | Y154: 4.735729479 | Z154: 4.746250144 | AA154: -3.701229937 | AB154: -3.651113494 | AC154: -0.2204111439 | AD154: -0.1995420704 | AE154: 2.233665452 | AF154: -3.149747143 | AG154: 2.562118275 | AH154: 4.730233997 | AI154: -3.726162807 | AJ154: -3.531390578 | AL154: FALSE | AN154: 2.148849375 | AR154: -12.96740729 | AS154: -62.5850561 | AT154: 114 | AU154: 2.148849375 | AV154: -56.23105008 | AW154: 2.040853842 | AX154: =1/2*(INERTIA+mazalazo*($C154^2+$D154^2))*$I154^2 -> 12.20820066 | AY154: -62.5850561 | AZ154: -12.96740729 | BA154: -56.23105008 | BB154: 14.24905451 | BC154: 1.957423636 | BD154: 16.20647814 | BF154: 2.148849375 | BG154: 1.020920352 | BH154: =$H154-($I154*$C154) -> -0.5641727241 | BI154: 1.166434408 | BJ154: 5.428764854 | BK154: 1.451018729 | BL154: =BL153+mazalazo*($I154*(BM154^2+BN154^2)+BM154*BR154-BN154*BQ154)*$BS154*DT -> -93.08624395 | BM154: 4.730233997 | BN154: -3.726162807 | BO154: -5.791347075 | BP154: 1.649151898 | BQ154: -0.6079040088 | BR154: -2.63190856 | BS154: -0.6360737109 | BT154: 0.2156254477 | BU154: 0.2108379348
A155: 0 | B155: 115 | C155: 4.7183101 | D155: -3.775513013 | E155: -5.812754856 | F155: 1.651916976 | G155: -0.65719166 | H155: -2.604188174 | I155: -0.4332463969 | J155: =IF(($G155+$I155*$D155)^2+($H155-$I155*$D155)^2<>0,-mew*($G155+$I155*$D155)/SQRT(($G155+$I155*$D155)^2+($H155-$I155*$C155)^2),0) -> -2.603772891 | K155: =-mew*($H155-$C155*$I155)/SQRT(($G155+$D155*$I155)^2+($H155-$I155*$C155)^2) -> 1.490089504 | L155: -0.4332463969 | M155: =($I155-$I154)/DT -> 0.2061285416 | N155: =IF(Q155<>0,mazalazo*(($D155*$J155-$C155*$K155)-2*$I155*($C155*$G155+$D155*$H155))/(INERTIA+mazalazo*($C155^2+$D155^2)),0) -> 0.2014574294 | O155: -3.53955708 | P155: =IF(Q155<>0,G155*COS(O155)+H155*SIN(O155)+F155*$I155,0) -> -1.119087764 | Q155: -56.42231639 | R155: =R154+mazalazo*($I155^2*($E155*$P155+$F155*$U155))*DT -> 120.8449781 | S155: =IF(Q155<>0,$J155*COS($O155)+$K155*SIN($Z155)+2*$U155*$I155+$E155*$I155^2+$F155*$N155,0) -> 0.03361335722 | T155: =IF(Q155<>0,-$J155*SIN($O155)+$K155*COS($O155)-2*$P155*$I155+$F155*$I155^2-$E155*$N155,0) -> 0.1468414064 | U155: =IF(Q155<>0,-$G155*SIN(O155)+$H155*COS(O155)-$E155*$I155,0) -> 0.1370101897 | V155: =$G155*COS($O155)+$H155*SIN($O155)+$F155*$I155 -> -1.119087764 | W155: =-$G155*SIN($O155)+$H155*COS($O155)-$E155*$I155 -> 0.1370101897 | Y155: 4.724272048 | Z155: 4.735729479 | AA155: -3.75083791 | AB155: -3.701229937 | AC155: -0.2416179647 | AD155: -0.2204111439 | AE155: 2.265944189 | AF155: -3.156861736 | AG155: 2.529066254 | AH155: 4.7183101 | AI155: -3.775513013 | AJ155: -3.53955708 | AL155: FALSE | AN155: 2.167698931 | AR155: -13.09007807 | AS155: -62.5970433 | AT155: 115 | AU155: 2.167698931 | AV155: -56.42231639 | AW155: 1.906693823 | AX155: =1/2*(INERTIA+mazalazo*($C155^2+$D155^2))*$I155^2 -> 12.06465377 | AY155: -62.5970433 | AZ155: -13.09007807 | BA155: -56.42231639 | BB155: 13.97134759 | BC155: 1.825618447 | BD155: 15.79696604 | BF155: 2.167698931 | BG155: 0.9785357495 | BH155: =$H155-($I155*$C155) -> -0.5599973233 | BI155: 1.127443664 | BJ155: 5.242180858 | BK155: 1.490089504 | BL155: =BL154+mazalazo*($I155*(BM155^2+BN155^2)+BM155*BR155-BN155*BQ155)*$BS155*DT -> -92.00346074 | BM155: 4.7183101 | BN155: -3.775513013 | BO155: -5.812754856 | BP155: 1.651916976 | BQ155: -0.65719166 | BR155: -2.604188174 | BS155: -0.6259614901 | BT155: 0.2061285416 | BU155: 0.2014574294
A156: 0 | B156: 116 | C156: 4.705461079 | D156: -3.824333802 | E156: -5.83341874 | F156: 1.654726201 | G156: -0.7060616421 | H156: -2.575737896 | I156: -0.4295356448 | J156: =IF(($G156+$I156*$D156)^2+($H156-$I156*$D156)^2<>0,-mew*($G156+$I156*$D156)/SQRT(($G156+$I156*$D156)^2+($H156-$I156*$C156)^2),0) -> -2.581434109 | K156: =-mew*($H156-$C156*$I156)/SQRT(($G156+$D156*$I156)^2+($H156-$I156*$C156)^2) -> 1.528462606 | L156: -0.4295356448 | M156: =($I156-$I155)/DT -> 0.1968615139 | N156: =IF(Q156<>0,mazalazo*(($D156*$J156-$C156*$K156)-2*$I156*($C156*$G156+$D156*$H156))/(INERTIA+mazalazo*($C156^2+$D156^2)),0) -> 0.1923024371 | O156: -3.547653636 | P156: =IF(Q156<>0,G156*COS(O156)+H156*SIN(O156)+F156*$I156,0) -> -1.079516686 | Q156: -56.60697522 | R156: =R155+mazalazo*($I156^2*($E156*$P156+$F156*$U156))*DT -> 120.913088 | S156: =IF(Q156<>0,$J156*COS($O156)+$K156*SIN($Z156)+2*$U156*$I156+$E156*$I156^2+$F156*$N156,0) -> -0.03475123513 | T156: =IF(Q156<>0,-$J156*SIN($O156)+$K156*COS($O156)-2*$P156*$I156+$F156*$I156^2-$E156*$N156,0) -> 0.1151735711 | U156: =IF(Q156<>0,-$G156*SIN(O156)+$H156*COS(O156)-$E156*$I156,0) -> 0.1395173761 | V156: =$G156*COS($O156)+$H156*SIN($O156)+$F156*$I156 -> -1.079516686 | W156: =-$G156*SIN($O156)+$H156*COS($O156)-$E156*$I156 -> 0.1395173761 | Y156: 4.71188559 | Z156: 4.724272048 | AA156: -3.799923408 | AB156: -3.75083791 | AC156: -0.2631874909 | AD156: -0.2416179647 | AE156: 2.297447373 | AF156: -3.164473471 | AG156: 2.496658018 | AH156: 4.705461079 | AI156: -3.824333802 | AJ156: -3.547653636 | AL156: FALSE | AN156: 2.186548487 | AR156: -13.20963708 | AS156: -62.60761806 | AT156: 116 | AU156: 2.186548487 | AV156: -56.60697522 | AW156: 1.77723206 | AX156: =1/2*(INERTIA+mazalazo*($C156^2+$D156^2))*$I156^2 -> 11.92804389 | AY156: -62.60761806 | AZ156: -13.20963708 | BA156: -56.60697522 | BB156: 13.70527595 | BC156: 1.698494719 | BD156: 15.40377067 | BF156: 2.186548487 | BG156: 0.9366260436 | BH156: =$H156-($I156*$C156) -> -0.5545746369 | BI156: 1.088495004 | BJ156: 5.06672672 | BK156: 1.528462606 | BL156: =BL155+mazalazo*($I156*(BM156^2+BN156^2)+BM156*BR156-BN156*BQ156)*$BS156*DT -> -90.93631757 | BM156: 4.705461079 | BN156: -3.824333802 | BO156: -5.83341874 | BP156: 1.654726201 | BQ156: -0.7060616421 | BR156: -2.575737896 | BS156: -0.6164463119 | BT156: 0.1968615139 | BU156: 0.1923024371
A157: 0 | B157: 117 | C157: 4.69169487 | D157: -3.87261154 | E157: -5.853339893 | F157: 1.657568398 | G157: -0.7545072794 | H157: -2.54657088 | I157: -0.4259954017 | J157: =IF(($G157+$I157*$D157)^2+($H157-$I157*$D157)^2<>0,-mew*($G157+$I157*$D157)/SQRT(($G157+$I157*$D157)^2+($H157-$I157*$C157)^2),0) -> -2.558752128 | K157: =-mew*($H157-$C157*$I157)/SQRT(($G157+$D157*$I157)^2+($H157-$I157*$C157)^2) -> 1.56613778 | L157: -0.4259954017 | M157: =($I157-$I156)/DT -> 0.1878157282 | N157: =IF(Q157<>0,mazalazo*(($D157*$J157-$C157*$K157)-2*$I157*($C157*$G157+$D157*$H157))/(INERTIA+mazalazo*($C157^2+$D157^2)),0) -> 0.1833644616 | O157: -3.55568346 | P157: =IF(Q157<>0,G157*COS(O157)+H157*SIN(O157)+F157*$I157,0) -> -1.04001081 | Q157: -56.78503275 | R157: =R156+mazalazo*($I157^2*($E157*$P157+$F157*$U157))*DT -> 120.977964 | S157: =IF(Q157<>0,$J157*COS($O157)+$K157*SIN($Z157)+2*$U157*$I157+$E157*$I157^2+$F157*$N157,0) -> -0.1024179621 | T157: =IF(Q157<>0,-$J157*SIN($O157)+$K157*COS($O157)-2*$P157*$I157+$F157*$I157^2-$E157*$N157,0) -> 0.08377923907 | U157: =IF(Q157<>0,-$G157*SIN(O157)+$H157*COS(O157)-$E157*$I157,0) -> 0.1414270952 | V157: =$G157*COS($O157)+$H157*SIN($O157)+$F157*$I157 -> -1.04001081 | W157: =-$G157*SIN($O157)+$H157*COS($O157)-$E157*$I157 -> 0.1414270952 | Y157: 4.698577975 | Z157: 4.71188559 | AA157: -3.848472671 | AB157: -3.799923408 | AC157: -0.2851461097 | AD157: -0.2631874909 | AE157: 2.328134657 | AF157: -3.172549981 | AG157: 2.464927165 | AH157: 4.69169487 | AI157: -3.87261154 | AJ157: -3.55568346 | AL157: FALSE | AN157: 2.205398043 | AR157: -13.32599635 | AS157: -62.61690941 | AT157: 117 | AU157: 2.205398043 | AV157: -56.78503275 | AW157: 1.652436161 | AX157: =1/2*(INERTIA+mazalazo*($C157^2+$D157^2))*$I157^2 -> 11.79816813 | AY157: -62.61690941 | AZ157: -13.32599635 | BA157: -56.78503275 | BB157: 13.45060429 | BC157: 1.576021843 | BD157: 15.02662614 | BF157: 2.205398043 | BG157: 0.8952074294 | BH157: =$H157-($I157*$C157) -> -0.5479304387 | BI157: 1.049582825 | BJ157: 4.901392765 | BK157: 1.56613778 | BL157: =BL156+mazalazo*($I157*(BM157^2+BN157^2)+BM157*BR157-BN157*BQ157)*$BS157*DT -> -89.88395165 | BM157: 4.69169487 | BN157: -3.87261154 | BO157: -5.853339893 | BP157: 1.657568398 | BQ157: -0.7545072794 | BR157: -2.54657088 | BS157: -0.6074651573 | BT157: 0.1878157282 | BU157: 0.1833644616
A158: 0 | B158: 118 | C158: 4.677019531 | D158: -3.920332841 | E158: -5.872519496 | F158: 1.660432488 | G158: -0.8025223075 | H158: -2.516700279 | I158: -0.422621655 | J158: =IF(($G158+$I158*$D158)^2+($H158-$I158*$D158)^2<>0,-mew*($G158+$I158*$D158)/SQRT(($G158+$I158*$D158)^2+($H158-$I158*$C158)^2),0) -> -2.535748619 | K158: =-mew*($H158-$C158*$I158)/SQRT(($G158+$D158*$I158)^2+($H158-$I158*$C158)^2) -> 1.603115386 | L158: -0.422621655 | M158: =($I158-$I157)/DT -> 0.1789828257 | N158: =IF(Q158<>0,mazalazo*(($D158*$J158-$C158*$K158)-2*$I158*($C158*$G158+$D158*$H158))/(INERTIA+mazalazo*($C158^2+$D158^2)),0) -> 0.1746352799 | O158: -3.563649691 | P158: =IF(Q158<>0,G158*COS(O158)+H158*SIN(O158)+F158*$I158,0) -> -1.000570854 | Q158: -56.95649428 | R158: =R157+mazalazo*($I158^2*($E158*$P158+$F158*$U158))*DT -> 121.0397048 | S158: =IF(Q158<>0,$J158*COS($O158)+$K158*SIN($Z158)+2*$U158*$I158+$E158*$I158^2+$F158*$N158,0) -> -0.1692996574 | T158: =IF(Q158<>0,-$J158*SIN($O158)+$K158*COS($O158)-2*$P158*$I158+$F158*$I158^2-$E158*$N158,0) -> 0.05269098638 | U158: =IF(Q158<>0,-$G158*SIN(O158)+$H158*COS(O158)-$E158*$I158,0) -> 0.1427449788 | V158: =$G158*COS($O158)+$H158*SIN($O158)+$F158*$I158 -> -1.000570854 | W158: =-$G158*SIN($O158)+$H158*COS($O158)-$E158*$I158 -> 0.1427449788 | Y158: 4.684357201 | Z158: 4.698577975 | AA158: -3.896472191 | AB158: -3.848472671 | AC158: -0.3075217723 | AD158: -0.2851461097 | AE158: 2.357967189 | AF158: -3.181056611 | AG158: 2.433906952 | AH158: 4.677019531 | AI158: -3.920332841 | AJ158: -3.563649691 | AL158: FALSE | AN158: 2.224247599 | AR158: -13.43906915 | AS158: -62.62503792 | AT158: 118 | AU158: 2.224247599 | AV158: -56.95649428 | AW158: 1.532277245 | AX158: =1/2*(INERTIA+mazalazo*($C158^2+$D158^2))*$I158^2 -> 11.67483177 | AY158: -62.62503792 | AZ158: -13.43906915 | BA158: -56.95649428 | BB158: 13.20710902 | BC158: 1.458172638 | BD158: 14.66528166 | BF158: 2.224247599 | BG158: 0.8542952458 | BH158: =$H158-($I158*$C158) -> -0.5400905447 | BI158: 1.010701817 | BJ158: 4.745289031 | BK158: 1.603115386 | BL158: =BL157+mazalazo*($I158*(BM158^2+BN158^2)+BM158*BR158-BN158*BQ158)*$BS158*DT -> -88.84559143 | BM158: 4.677019531 | BN158: -3.920332841 | BO158: -5.872519496 | BP158: 1.660432488 | BQ158: -0.8025223075 | BR158: -2.516700279 | BS158: -0.5989627896 | BT158: 0.1789828257 | BU158: 0.1746352799
A159: 0 | B159: 119 | C159: 4.661443235 | D159: -3.967484567 | E159: -5.890958748 | F159: 1.663307502 | G159: -0.8501008676 | H159: -2.486139235 | I159: -0.4194105442 | J159: =IF(($G159+$I159*$D159)^2+($H159-$I159*$D159)^2<>0,-mew*($G159+$I159*$D159)/SQRT(($G159+$I159*$D159)^2+($H159-$I159*$C159)^2),0) -> -2.512444939 | K159: =-mew*($H159-$C159*$I159)/SQRT(($G159+$D159*$I159)^2+($H159-$I159*$C159)^2) -> 1.639396361 | L159: -0.4194105442 | M159: =($I159-$I158)/DT -> 0.1703547167 | N159: =IF(Q159<>0,mazalazo*(($D159*$J159-$C159*$K159)-2*$I159*($C159*$G159+$D159*$H159))/(INERTIA+mazalazo*($C159^2+$D159^2)),0) -> 0.1661069344 | O159: -3.571555393 | P159: =IF(Q159<>0,G159*COS(O159)+H159*SIN(O159)+F159*$I159,0) -> -0.9611975839 | Q159: -57.12136423 | R159: =R158+mazalazo*($I159^2*($E159*$P159+$F159*$U159))*DT -> 121.0984035 | S159: =IF(Q159<>0,$J159*COS($O159)+$K159*SIN($Z159)+2*$U159*$I159+$E159*$I159^2+$F159*$N159,0) -> -0.2353020187 | T159: =IF(Q159<>0,-$J159*SIN($O159)+$K159*COS($O159)-2*$P159*$I159+$F159*$I159^2-$E159*$N159,0) -> 0.02193998008 | U159: =IF(Q159<>0,-$G159*SIN(O159)+$H159*COS(O159)-$E159*$I159,0) -> 0.1434772532 | V159: =$G159*COS($O159)+$H159*SIN($O159)+$F159*$I159 -> -0.9611975839 | W159: =-$G159*SIN($O159)+$H159*COS($O159)-$E159*$I159 -> 0.1434772532 | Y159: 4.669231383 | Z159: 4.684357201 | AA159: -3.943908704 | AB159: -3.896472191 | AC159: -0.3303441412 | AD159: -0.3075217723 | AE159: 2.386907762 | AF159: -3.189956467 | AG159: 2.403630252 | AH159: 4.661443235 | AI159: -3.967484567 | AJ159: -3.571555393 | AL159: FALSE | AN159: 2.243097155 | AR159: -13.54876995 | AS159: -62.6321161 | AT159: 119 | AU159: 2.243097155 | AV159: -57.12136423 | AW159: 1.416729776 | AX159: =1/2*(INERTIA+mazalazo*($C159^2+$D159^2))*$I159^2 -> 11.55784799 | AY159: -62.6321161 | AZ159: -13.54876995 | BA159: -57.12136423 | BB159: 12.97457777 | BC159: 1.344923185 | BD159: 14.31950095 | BF159: 2.243097155 | BG159: 0.8139039937 | BH159: =$H159-($I159*$C159) -> -0.5310807911 | BI159: 0.971846962 | BJ159: 4.597628124 | BK159: 1.639396361 | BL159: =BL158+mazalazo*($I159*(BM159^2+BN159^2)+BM159*BR159-BN159*BQ159)*$BS159*DT -> -87.82054553 | BM159: 4.661443235 | BN159: -3.967484567 | BO159: -5.890958748 | BP159: 1.663307502 | BQ159: -0.8501008676 | BR159: -2.486139235 | BS159: -0.590890636 | BT159: 0.1703547167 | BU159: 0.1661069344
A160: 0 | B160: 120 | C160: 4.644974261 | D160: -4.014053826 | E160: -5.908658864 | F160: 1.666182593 | G160: -0.8972375004 | H160: -2.454900865 | I160: -0.4163583568 | J160: =IF(($G160+$I160*$D160)^2+($H160-$I160*$D160)^2<>0,-mew*($G160+$I160*$D160)/SQRT(($G160+$I160*$D160)^2+($H160-$I160*$C160)^2),0) -> -2.488862133 | K160: =-mew*($H160-$C160*$I160)/SQRT(($G160+$D160*$I160)^2+($H160-$I160*$C160)^2) -> 1.674982174 | L160: -0.4163583568 | M160: =($I160-$I159)/DT -> 0.1619235732 | N160: =IF(Q160<>0,mazalazo*(($D160*$J160-$C160*$K160)-2*$I160*($C160*$G160+$D160*$H160))/(INERTIA+mazalazo*($C160^2+$D160^2)),0) -> 0.1577717252 | O160: -3.579403563 | P160: =IF(Q160<>0,G160*COS(O160)+H160*SIN(O160)+F160*$I160,0) -> -0.921891794 | Q160: -57.27964625 | R160: =R159+mazalazo*($I160^2*($E160*$P160+$F160*$U160))*DT -> 121.1541476 | S160: =IF(Q160<>0,$J160*COS($O160)+$K160*SIN($Z160)+2*$U160*$I160+$E160*$I160^2+$F160*$N160,0) -> -0.3003236066 | T160: =IF(Q160<>0,-$J160*SIN($O160)+$K160*COS($O160)-2*$P160*$I160+$F160*$I160^2-$E160*$N160,0) -> -0.008443907948 | U160: =IF(Q160<>0,-$G160*SIN(O160)+$H160*COS(O160)-$E160*$I160,0) -> 0.1436307138 | V160: =$G160*COS($O160)+$H160*SIN($O160)+$F160*$I160 -> -0.921891794 | W160: =-$G160*SIN($O160)+$H160*COS($O160)-$E160*$I160 -> 0.1436307138 | Y160: 4.653208748 | Z160: 4.669231383 | AA160: -3.990769196 | AB160: -3.943908704 | AC160: -0.3536447535 | AD160: -0.3303441412 | AE160: 2.41492096 | AF160: -3.199210463 | AG160: 2.374129515 | AH160: 4.644974261 | AI160: -4.014053826 | AJ160: -3.579403563 | AK160: =(AJ160-AJ159)/DT -> -0.4163583568 | AL160: FALSE | AN160: 2.261946711 | AR160: -13.65501442 | AS160: -62.63824871 | AT160: 120 | AU160: 2.261946711 | AV160: -57.27964625 | AW160: 1.305771393 | AX160: =1/2*(INERTIA+mazalazo*($C160^2+$D160^2))*$I160^2 -> 11.44703755 | AY160: -62.63824871 | AZ160: -13.65501442 | BA160: -57.27964625 | BB160: 12.75280894 | BC160: 1.236252652 | BD160: 13.9890616 | BF160: 2.261946711 | BG160: 0.7740473545 | BH160: =$H160-($I160*$C160) -> -0.5209270148 | BI160: 0.9330135378 | BJ160: 4.457710961 | BK160: 1.674982174 | BL160: =BL159+mazalazo*($I160*(BM160^2+BN160^2)+BM160*BR160-BN160*BQ160)*$BS160*DT -> -86.80819326 | BM160: 4.644974261 | BN160: -4.014053826 | BO160: -5.908658864 | BP160: 1.666182593 | BQ160: -0.8972375004 | BR160: -2.454900865 | BS160: -0.5832058557 | BT160: 0.1619235732 | BU160: 0.1577717252
A161: 0 | B161: 121 | C161: 4.627620987 | D161: -4.060027975 | E161: -5.925621075 | F161: 1.669047041 | G161: -0.9439271404 | H161: -2.422998256 | I161: -0.4134615227 | J161: =IF(($G161+$I161*$D161)^2+($H161-$I161*$D161)^2<>0,-mew*($G161+$I161*$D161)/SQRT(($G161+$I161*$D161)^2+($H161-$I161*$C161)^2),0) -> -2.465020938 | K161: =-mew*($H161-$C161*$I161)/SQRT(($G161+$D161*$I161)^2+($H161-$I161*$C161)^2) -> 1.709874784 | L161: -0.4134615227 | M161: =($I161-$I160)/DT -> 0.1536818214 | N161: =IF(Q161<>0,mazalazo*(($D161*$J161-$C161*$K161)-2*$I161*($C161*$G161+$D161*$H161))/(INERTIA+mazalazo*($C161^2+$D161^2)),0) -> 0.1496222035 | O161: -3.587197129 | P161: =IF(Q161<>0,G161*COS(O161)+H161*SIN(O161)+F161*$I161,0) -> -0.8826542992 | Q161: -57.43134322 | R161: =R160+mazalazo*($I161^2*($E161*$P161+$F161*$U161))*DT -> 121.2070195 | S161: =IF(Q161<>0,$J161*COS($O161)+$K161*SIN($Z161)+2*$U161*$I161+$E161*$I161^2+$F161*$N161,0) -> -0.3642558927 | T161: =IF(Q161<>0,-$J161*SIN($O161)+$K161*COS($O161)-2*$P161*$I161+$F161*$I161^2-$E161*$N161,0) -> -0.03843198544 | U161: =IF(Q161<>0,-$G161*SIN(O161)+$H161*COS(O161)-$E161*$I161,0) -> 0.1432127025 | V161: =$G161*COS($O161)+$H161*SIN($O161)+$F161*$I161 -> -0.8826542992 | W161: =-$G161*SIN($O161)+$H161*COS($O161)-$E161*$I161 -> 0.1432127025 | Y161: 4.636297624 | Z161: 4.653208748 | AA161: -4.0370409 | AB161: -3.990769196 | AC161: -0.3774572016 | AD161: -0.3536447535 | AE161: 2.441973292 | AF161: -3.208777379 | AG161: 2.345436727 | AH161: 4.627620987 | AI161: -4.060027975 | AJ161: -3.587197129 | AK161: -0.4134615227 | AL161: FALSE | AN161: 2.280796267 | AR161: -13.75771943 | AS161: -62.64353313 | AT161: 121 | AU161: 2.280796267 | AV161: -57.43134322 | AW161: 1.199382735 | AX161: =1/2*(INERTIA+mazalazo*($C161^2+$D161^2))*$I161^2 -> 11.34222853 | AY161: -62.64353313 | AZ161: -13.75771943 | BA161: -57.43134322 | BB161: 12.54161127 | BC161: 1.132143123 | BD161: 13.67375439 | BF161: 2.280796267 | BG161: 0.7347382081 | BH161: =$H161-($I161*$C161) -> -0.5096550359 | BI161: 0.8941971204 | BJ161: 4.324914833 | BK161: 1.709874784 | BL161: =BL160+mazalazo*($I161*(BM161^2+BN161^2)+BM161*BR161-BN161*BQ161)*$BS161*DT -> -85.80797645 | BM161: 4.627620987 | BN161: -4.060027975 | BO161: -5.925621075 | BP161: 1.669047041 | BQ161: -0.9439271404 | BR161: -2.422998256 | BS161: -0.5758705604 | BT161: 0.1536818214 | BU161: 0.1496222035
A162: 0 | B162: 122 | C162: 4.609391884 | D162: -4.105394616 | E162: -5.941846634 | F162: 1.67189027 | G162: -0.9901651104 | H162: -2.390444451 | I162: -0.4107166101 | J162: =IF(($G162+$I162*$D162)^2+($H162-$I162*$D162)^2<>0,-mew*($G162+$I162*$D162)/SQRT(($G162+$I162*$D162)^2+($H162-$I162*$C162)^2),0) -> -2.440941794 | K162: =-mew*($H162-$C162*$I162)/SQRT(($G162+$D162*$I162)^2+($H162-$I162*$C162)^2) -> 1.744076592 | L162: -0.4107166101 | M162: =($I162-$I161)/DT -> 0.1456221358 | N162: =IF(Q162<>0,mazalazo*(($D162*$J162-$C162*$K162)-2*$I162*($C162*$G162+$D162*$H162))/(INERTIA+mazalazo*($C162^2+$D162^2)),0) -> 0.1416511658 | O162: -3.594938955 | P162: =IF(Q162<>0,G162*COS(O162)+H162*SIN(O162)+F162*$I162,0) -> -0.8434859218 | Q162: -57.57645732 | R162: =R161+mazalazo*($I162^2*($E162*$P162+$F162*$U162))*DT -> 121.2570964 | S162: =IF(Q162<>0,$J162*COS($O162)+$K162*SIN($Z162)+2*$U162*$I162+$E162*$I162^2+$F162*$N162,0) -> -0.4269833583 | T162: =IF(Q162<>0,-$J162*SIN($O162)+$K162*COS($O162)-2*$P162*$I162+$F162*$I162^2-$E162*$N162,0) -> -0.06799662196 | U162: =IF(Q162<>0,-$G162*SIN(O162)+$H162*COS(O162)-$E162*$I162,0) -> 0.1422310862 | V162: =$G162*COS($O162)+$H162*SIN($O162)+$F162*$I162 -> -0.8434859218 | W162: =-$G162*SIN($O162)+$H162*COS($O162)-$E162*$I162 -> 0.1422310862 | Y162: 4.618506436 | Z162: 4.636297624 | AA162: -4.082711295 | AB162: -4.0370409 | AC162: -0.4018173329 | AD162: -0.3774572016 | AE162: 2.468033331 | AF162: -3.218613928 | AG162: 2.317583386 | AH162: 4.609391884 | AI162: -4.105394616 | AJ162: -3.594938955 | AK162: -0.4107166101 | AL162: FALSE | AN162: 2.299645822 | AR162: -13.85680304 | AS162: -62.64805969 | AT162: 122 | AU162: 2.299645822 | AV162: -57.57645732 | AW162: 1.097547273 | AX162: =1/2*(INERTIA+mazalazo*($C162^2+$D162^2))*$I162^2 -> 11.24325604 | AY162: -62.64805969 | AZ162: -13.85680304 | BA162: -57.57645732 | BB162: 12.34080331 | BC162: 1.032579423 | BD162: 13.37338274 | BF162: 2.299645822 | BG162: 0.6959886492 | BH162: =$H162-($I162*$C162) -> -0.4972906417 | BI162: 0.8553935832 | BJ162: 4.198683371 | BK162: 1.744076592 | BL162: =BL161+mazalazo*($I162*(BM162^2+BN162^2)+BM162*BR162-BN162*BQ162)*$BS162*DT -> -84.81939226 | BM162: 4.609391884 | BN162: -4.105394616 | BO162: -5.941846634 | BP162: 1.67189027 | BQ162: -0.9901651104 | BR162: -2.390444451 | BS162: -0.568851158 | BT162: 0.1456221358 | BU162: 0.1416511658
A163: 0 | B163: 123 | C163: 4.590295507 | D163: -4.150141597 | E163: -5.957336806 | F163: 1.674701852 | G163: -1.035947116 | H163: -2.357252447 | I163: -0.4081203206 | J163: =IF(($G163+$I163*$D163)^2+($H163-$I163*$D163)^2<>0,-mew*($G163+$I163*$D163)/SQRT(($G163+$I163*$D163)^2+($H163-$I163*$C163)^2),0) -> -2.416644857 | K163: =-mew*($H163-$C163*$I163)/SQRT(($G163+$D163*$I163)^2+($H163-$I163*$C163)^2) -> 1.777590401 | L163: -0.4081203206 | M163: =($I163-$I162)/DT -> 0.1377374332 | N163: =IF(Q163<>0,mazalazo*(($D163*$J163-$C163*$K163)-2*$I163*($C163*$G163+$D163*$H163))/(INERTIA+mazalazo*($C163^2+$D163^2)),0) -> 0.1338516482 | O163: -3.602631842 | P163: =IF(Q163<>0,G163*COS(O163)+H163*SIN(O163)+F163*$I163,0) -> -0.80438748 | Q163: -57.71499009 | R163: =R162+mazalazo*($I163^2*($E163*$P163+$F163*$U163))*DT -> 121.304451 | S163: =IF(Q163<>0,$J163*COS($O163)+$K163*SIN($Z163)+2*$U163*$I163+$E163*$I163^2+$F163*$N163,0) -> -0.4883836438 | T163: =IF(Q163<>0,-$J163*SIN($O163)+$K163*COS($O163)-2*$P163*$I163+$F163*$I163^2-$E163*$N163,0) -> -0.09711112786 | U163: =IF(Q163<>0,-$G163*SIN(O163)+$H163*COS(O163)-$E163*$I163,0) -> 0.1406942387 | V163: =$G163*COS($O163)+$H163*SIN($O163)+$F163*$I163 -> -0.80438748 | W163: =-$G163*SIN($O163)+$H163*COS($O163)-$E163*$I163 -> 0.1406942387 | Y163: 4.599843696 | Z163: 4.618506436 | AA163: -4.127768106 | AB163: -4.082711295 | AC163: -0.4267634717 | AD163: -0.4018173329 | AE163: 2.493071832 | AF163: -3.228674832 | AG163: 2.290600474 | AH163: 4.590295507 | AI163: -4.150141597 | AJ163: -3.602631842 | AK163: -0.4081203206 | AL163: FALSE | AN163: 2.318495378 | AR163: -13.95218441 | AS163: -62.65191197 | AT163: 123 | AU163: 2.318495378 | AV163: -57.71499009 | AW163: 1.00025113 | AX163: =1/2*(INERTIA+mazalazo*($C163^2+$D163^2))*$I163^2 -> 11.14996192 | AY163: -62.65191197 | AZ163: -13.95218441 | BA163: -57.71499009 | BB163: 12.15021305 | BC163: 0.9375489452 | BD163: 13.087762 | BF163: 2.318495378 | BG163: 0.6578100035 | BH163: =$H163-($I163*$C163) -> -0.4838595726 | BI163: 0.8165990979 | BJ163: 4.078518071 | BK163: 1.777590401 | BL163: =BL162+mazalazo*($I163*(BM163^2+BN163^2)+BM163*BR163-BN163*BQ163)*$BS163*DT -> -83.84198704 | BM163: 4.590295507 | BN163: -4.150141597 | BO163: -5.957336806 | BP163: 1.674701852 | BQ163: -1.035947116 | BR163: -2.357252447 | BS163: -0.5621177981 | BT163: 0.1377374332 | BU163: 0.1338516482
A164: 0 | B164: 124 | C164: 4.570340488 | D164: -4.19425701 | E164: -5.972092878 | F164: 1.677471521 | G164: -1.081269239 | H164: -2.323435183 | I164: -0.405669485 | J164: =IF(($G164+$I164*$D164)^2+($H164-$I164*$D164)^2<>0,-mew*($G164+$I164*$D164)/SQRT(($G164+$I164*$D164)^2+($H164-$I164*$C164)^2),0) -> -2.392150019 | K164: =-mew*($H164-$C164*$I164)/SQRT(($G164+$D164*$I164)^2+($H164-$I164*$C164)^2) -> 1.810419367 | L164: -0.405669485 | M164: =($I164-$I163)/DT -> 0.1300208682 | N164: =IF(Q164<>0,mazalazo*(($D164*$J164-$C164*$K164)-2*$I164*($C164*$G164+$D164*$H164))/(INERTIA+mazalazo*($C164^2+$D164^2)),0) -> 0.1262169224 | O164: -3.610278532 | P164: =IF(Q164<>0,G164*COS(O164)+H164*SIN(O164)+F164*$I164,0) -> -0.7653597774 | Q164: -57.84694247 | R164: =R163+mazalazo*($I164^2*($E164*$P164+$F164*$U164))*DT -> 121.3491511 | S164: =IF(Q164<>0,$J164*COS($O164)+$K164*SIN($Z164)+2*$U164*$I164+$E164*$I164^2+$F164*$N164,0) -> -0.548327748 | T164: =IF(Q164<>0,-$J164*SIN($O164)+$K164*COS($O164)-2*$P164*$I164+$F164*$I164^2-$E164*$N164,0) -> -0.125749629 | U164: =IF(Q164<>0,-$G164*SIN(O164)+$H164*COS(O164)-$E164*$I164,0) -> 0.1386110242 | V164: =$G164*COS($O164)+$H164*SIN($O164)+$F164*$I164 -> -0.7653597774 | W164: =-$G164*SIN($O164)+$H164*COS($O164)-$E164*$I164 -> 0.1386110242 | Y164: 4.580317998 | Z164: 4.599843696 | AA164: -4.172199303 | AB164: -4.127768106 | AC164: -0.4523366667 | AD164: -0.4267634717 | AE164: 2.517061852 | AF164: -3.238912896 | AG164: 2.264518446 | AH164: 4.570340488 | AI164: -4.19425701 | AJ164: -3.610278532 | AK164: -0.405669485 | AL164: FALSE | AN164: 2.337344934 | AR164: -14.04378386 | AS164: -62.65516714 | AT164: 124 | AU164: 2.337344934 | AV164: -57.84694247 | AW164: 0.9074829074 | AX164: =1/2*(INERTIA+mazalazo*($C164^2+$D164^2))*$I164^2 -> 11.06219451 | AY164: -62.65516714 | AZ164: -14.04378386 | BA164: -57.84694247 | BB164: 11.96967742 | BC164: 0.8470414706 | BD164: 12.81671889 | BF164: 2.337344934 | BG164: 0.6202128426 | BH164: =$H164-($I164*$C164) -> -0.4693875103 | BI164: 0.7778101342 | BJ164: 3.963971105 | BK164: 1.810419367 | BL164: =BL163+mazalazo*($I164*(BM164^2+BN164^2)+BM164*BR164-BN164*BQ164)*$BS164*DT -> -82.87535085 | BM164: 4.570340488 | BN164: -4.19425701 | BO164: -5.972092878 | BP164: 1.677471521 | BQ164: -1.081269239 | BR164: -2.323435183 | BS164: -0.5556439023 | BT164: 0.1300208682 | BU164: 0.1262169224
A165: 0 | B165: 125 | C165: 4.54953553 | D165: -4.237729191 | E165: -5.98611615 | F165: 1.680189177 | G165: -1.126127935 | H165: -2.289005535 | I165: -0.4033610585 | J165: =IF(($G165+$I165*$D165)^2+($H165-$I165*$D165)^2<>0,-mew*($G165+$I165*$D165)/SQRT(($G165+$I165*$D165)^2+($H165-$I165*$C165)^2),0) -> -2.367476932 | K165: =-mew*($H165-$C165*$I165)/SQRT(($G165+$D165*$I165)^2+($H165-$I165*$C165)^2) -> 1.842566953 | L165: -0.4033610585 | M165: =($I165-$I164)/DT -> 0.1224658289 | N165: =IF(Q165<>0,mazalazo*(($D165*$J165-$C165*$K165)-2*$I165*($C165*$G165+$D165*$H165))/(INERTIA+mazalazo*($C165^2+$D165^2)),0) -> 0.1187404921 | O165: -3.617881708 | P165: =IF(Q165<>0,G165*COS(O165)+H165*SIN(O165)+F165*$I165,0) -> -0.7264035931 | Q165: -57.97231485 | R165: =R164+mazalazo*($I165^2*($E165*$P165+$F165*$U165))*DT -> 121.3912601 | S165: =IF(Q165<>0,$J165*COS($O165)+$K165*SIN($Z165)+2*$U165*$I165+$E165*$I165^2+$F165*$N165,0) -> -0.6066802789 | T165: =IF(Q165<>0,-$J165*SIN($O165)+$K165*COS($O165)-2*$P165*$I165+$F165*$I165^2-$E165*$N165,0) -> -0.1538869358 | U165: =IF(Q165<>0,-$G165*SIN(O165)+$H165*COS(O165)-$E165*$I165,0) -> 0.1359907834 | V165: =$G165*COS($O165)+$H165*SIN($O165)+$F165*$I165 -> -0.7264035931 | W165: =-$G165*SIN($O165)+$H165*COS($O165)-$E165*$I165 -> 0.1359907834 | Y165: 4.559938009 | Z165: 4.580317998 | AA165: -4.2159931 | AB165: -4.172199303 | AC165: -0.4785809663 | AD165: -0.4523366667 | AE165: 2.539978858 | AF165: -3.249279098 | AG165: 2.239367213 | AH165: 4.54953553 | AI165: -4.237729191 | AJ165: -3.617881708 | AK165: -0.4033610585 | AL165: FALSE | AN165: 2.35619449 | AR165: -14.13152274 | AS165: -62.65789622 | AT165: 125 | AU165: 2.35619449 | AV165: -57.97231485 | AW165: 0.8192335099 | AX165: =1/2*(INERTIA+mazalazo*($C165^2+$D165^2))*$I165^2 -> 10.97980834 | AY165: -62.65789622 | AZ165: -14.13152274 | BA165: -57.97231485 | BB165: 11.79904185 | BC165: 0.7610489977 | BD165: 12.56009085 | BF165: 2.35619449 | BG165: 0.5832069973 | BH165: =$H165-($I165*$C165) -> -0.4539000678 | BI165: 0.7390234592 | BJ165: 3.854639194 | BK165: 1.842566953 | BL165: =BL164+mazalazo*($I165*(BM165^2+BN165^2)+BM165*BR165-BN165*BQ165)*$BS165*DT -> -81.91911274 | BM165: 4.54953553 | BN165: -4.237729191 | BO165: -5.98611615 | BP165: 1.680189177 | BQ165: -1.126127935 | BR165: -2.289005535 | BS165: -0.5494057627 | BT165: 0.1224658289 | BU165: 0.1187404921
A166: 0 | B166: 126 | C166: 4.527889398 | D166: -4.280546717 | E166: -5.999407941 | F166: 1.682844902 | G166: -1.170520028 | H166: -2.253976313 | I166: -0.4011921168 | J166: =IF(($G166+$I166*$D166)^2+($H166-$I166*$D166)^2<>0,-mew*($G166+$I166*$D166)/SQRT(($G166+$I166*$D166)^2+($H166-$I166*$C166)^2),0) -> -2.342645038 | K166: =-mew*($H166-$C166*$I166)/SQRT(($G166+$D166*$I166)^2+($H166-$I166*$C166)^2) -> 1.874036879 | L166: -0.4011921168 | M166: =($I166-$I165)/DT -> 0.1150659342 | N166: =IF(Q166<>0,mazalazo*(($D166*$J166-$C166*$K166)-2*$I166*($C166*$G166+$D166*$H166))/(INERTIA+mazalazo*($C166^2+$D166^2)),0) -> 0.1114160904 | O166: -3.625444002 | P166: =IF(Q166<>0,G166*COS(O166)+H166*SIN(O166)+F166*$I166,0) -> -0.6875196715 | Q166: -58.09110711 | R166: =R165+mazalazo*($I166^2*($E166*$P166+$F166*$U166))*DT -> 121.4308371 | S166: =IF(Q166<>0,$J166*COS($O166)+$K166*SIN($Z166)+2*$U166*$I166+$E166*$I166^2+$F166*$N166,0) -> -0.663299754 | T166: =IF(Q166<>0,-$J166*SIN($O166)+$K166*COS($O166)-2*$P166*$I166+$F166*$I166^2-$E166*$N166,0) -> -0.1814984051 | U166: =IF(Q166<>0,-$G166*SIN(O166)+$H166*COS(O166)-$E166*$I166,0) -> 0.132843322 | V166: =$G166*COS($O166)+$H166*SIN($O166)+$F166*$I166 -> -0.6875196715 | W166: =-$G166*SIN($O166)+$H166*COS($O166)-$E166*$I166 -> 0.132843322 | Y166: 4.538712464 | Z166: 4.559938009 | AA166: -4.259137954 | AB166: -4.2159931 | AC166: -0.505543727 | AD166: -0.4785809663 | AE166: 2.561800823 | AF166: -3.259722675 | AG166: 2.215176143 | AH166: 4.527889398 | AI166: -4.280546717 | AJ166: -3.625444002 | AK166: -0.4011921168 | AL166: TRUE | AN166: 2.375044046 | AR166: -14.21532344 | AS166: -62.66016442 | AT166: 126 | AU166: 2.375044046 | AV166: -58.09110711 | AW166: 0.7354959704 | AX166: =1/2*(INERTIA+mazalazo*($C166^2+$D166^2))*$I166^2 -> 10.9026639 | AY166: -62.66016442 | AZ166: -14.21532344 | BA166: -58.09110711 | BB166: =AW166+AX166 -> 11.63815987 | BC166: 0.6795655649 | BD166: =BB166+BC166 -> 12.31772543 | BF166: 2.375044046 | BG166: 0.5468015703 | BH166: =$H166-($I166*$C166) -> -0.4374227813 | BI166: 0.7002361365 | BJ166: 3.750158385 | BK166: 1.874036879 | BL166: =BL165+mazalazo*($I166*(BM166^2+BN166^2)+BM166*BR166-BN166*BQ166)*$BS166*DT -> -80.97293652 | BM166: 4.527889398 | BN166: -4.280546717 | BO166: -5.999407941 | BP166: 1.682844902 | BQ166: -1.170520028 | BR166: -2.253976313 | BS166: -0.5433822005 | BT166: 0.1150659342 | BU166: 0.1114160904
